Workbook

Sheet สรุปชั่วโมงสอนต่อสัปดาห์ (hidden)
A1: สรุปชั่วโมงปฎิบัติงานรายสัปดาห์
K2: =IF(SUM(J5:J264)>0,"ตรวจสอบชั่วโมงสอนบางสัปดาห์","") -> 
A3: เลขบัตรประชาชน | B3: ปีการศึกษา | C3: ภาคเรียนที่ | D3: สัปดาห์ที่ | E3: จำนวนคาบ | H3: รวม | J3: Check | K3: Check
E4: ตามตารางสอน | F4: สนับสนุนการเรียนรู้ | G4: ตอบสนองนโยบายและจุดเน้น
A5: ='1.ข้อมูลส่วนบุคคล'!$F$5 -> 12345678912345 | B5: ='3.ชั่วโมงสอนตามตารางสอน'!B7 -> 1 | D5: 1 | E5: =SUMIF('3.ชั่วโมงสอนตามตารางสอน'!T$7:T$56,สรุปชั่วโมงสอนต่อสัปดาห์!I5,'3.ชั่วโมงสอนตามตารางสอน'!L$7:L$56) -> 0 | F5: =SUMIF('4.งานสนับสนุนการจัดการเรียนรู้'!#REF!,สรุปชั่วโมงสอนต่อสัปดาห์!I5,'4.งานสนับสนุนการจัดการเรียนรู้'!I$7:I$58) ->  | G5: =SUMIF('5.งานตอบสนองนโยบายและจุดเน้น'!#REF!,สรุปชั่วโมงสอนต่อสัปดาห์!I5,'5.งานตอบสนองนโยบายและจุดเน้น'!I$7:I$58) ->  | H5: =SUM(E5:G5) ->  | I5: =B5&+D5 -> 11 | J5: =IF(H5>ตัวแปร!C$37,1,"") ->  | K5: =IF(J5=1,"ตรวจสอบ","") -> 
A6: ='1.ข้อมูลส่วนบุคคล'!$F$5 -> 12345678912345 | B6: =IF(D5=52,B5+1,B5) -> 1 | D6: 2 | E6: =SUMIF('3.ชั่วโมงสอนตามตารางสอน'!T$7:T$56,สรุปชั่วโมงสอนต่อสัปดาห์!I6,'3.ชั่วโมงสอนตามตารางสอน'!L$7:L$56) -> 0 | F6: =SUMIF('4.งานสนับสนุนการจัดการเรียนรู้'!#REF!,สรุปชั่วโมงสอนต่อสัปดาห์!I6,'4.งานสนับสนุนการจัดการเรียนรู้'!I$7:I$58) ->  | G6: =SUMIF('5.งานตอบสนองนโยบายและจุดเน้น'!#REF!,สรุปชั่วโมงสอนต่อสัปดาห์!I6,'5.งานตอบสนองนโยบายและจุดเน้น'!I$7:I$58) ->  | H6: =SUM(E6:G6) ->  | I6: =B6&+D6 -> 12 | J6: =IF(H6>ตัวแปร!C$37,1,"") ->  | K6: =IF(J6=1,"ตรวจสอบ","") -> 
A7: ='1.ข้อมูลส่วนบุคคล'!$F$5 -> 12345678912345 | B7: =IF(D6=52,B6+1,B6) -> 1 | D7: 3 | E7: =SUMIF('3.ชั่วโมงสอนตามตารางสอน'!T$7:T$56,สรุปชั่วโมงสอนต่อสัปดาห์!I7,'3.ชั่วโมงสอนตามตารางสอน'!L$7:L$56) -> 0 | F7: =SUMIF('4.งานสนับสนุนการจัดการเรียนรู้'!#REF!,สรุปชั่วโมงสอนต่อสัปดาห์!I7,'4.งานสนับสนุนการจัดการเรียนรู้'!I$7:I$58) ->  | G7: =SUMIF('5.งานตอบสนองนโยบายและจุดเน้น'!#REF!,สรุปชั่วโมงสอนต่อสัปดาห์!I7,'5.งานตอบสนองนโยบายและจุดเน้น'!I$7:I$58) ->  | I7: 13 | J7: =IF(H7>ตัวแปร!C$37,1,"") -> 
A8: ='1.ข้อมูลส่วนบุคคล'!$F$5 -> 12345678912345 | B8: 1 | D8: 4 | E8: =SUMIF('3.ชั่วโมงสอนตามตารางสอน'!T$7:T$56,สรุปชั่วโมงสอนต่อสัปดาห์!I8,'3.ชั่วโมงสอนตามตารางสอน'!L$7:L$56) -> 0 | F8: =SUMIF('4.งานสนับสนุนการจัดการเรียนรู้'!#REF!,สรุปชั่วโมงสอนต่อสัปดาห์!I8,'4.งานสนับสนุนการจัดการเรียนรู้'!I$7:I$58) ->  | G8: =SUMIF('5.งานตอบสนองนโยบายและจุดเน้น'!#REF!,สรุปชั่วโมงสอนต่อสัปดาห์!I8,'5.งานตอบสนองนโยบายและจุดเน้น'!I$7:I$58) ->  | I8: 14 | J8: =IF(H8>ตัวแปร!C$37,1,"") -> 
A9: ='1.ข้อมูลส่วนบุคคล'!$F$5 -> 12345678912345 | B9: 1 | D9: 5 | E9: =SUMIF('3.ชั่วโมงสอนตามตารางสอน'!T$7:T$56,สรุปชั่วโมงสอนต่อสัปดาห์!I9,'3.ชั่วโมงสอนตามตารางสอน'!L$7:L$56) -> 0 | F9: =SUMIF('4.งานสนับสนุนการจัดการเรียนรู้'!#REF!,สรุปชั่วโมงสอนต่อสัปดาห์!I9,'4.งานสนับสนุนการจัดการเรียนรู้'!I$7:I$58) ->  | G9: =SUMIF('5.งานตอบสนองนโยบายและจุดเน้น'!#REF!,สรุปชั่วโมงสอนต่อสัปดาห์!I9,'5.งานตอบสนองนโยบายและจุดเน้น'!I$7:I$58) ->  | H9: =SUM(E9:G9) ->  | I9: 15 | J9: =IF(H9>ตัวแปร!C$37,1,"") -> 
A10: ='1.ข้อมูลส่วนบุคคล'!$F$5 -> 12345678912345 | B10: 1 | D10: 6 | E10: =SUMIF('3.ชั่วโมงสอนตามตารางสอน'!T$7:T$56,สรุปชั่วโมงสอนต่อสัปดาห์!I10,'3.ชั่วโมงสอนตามตารางสอน'!L$7:L$56) -> 0 | F10: =SUMIF('4.งานสนับสนุนการจัดการเรียนรู้'!#REF!,สรุปชั่วโมงสอนต่อสัปดาห์!I10,'4.งานสนับสนุนการจัดการเรียนรู้'!I$7:I$58) ->  | G10: =SUMIF('5.งานตอบสนองนโยบายและจุดเน้น'!#REF!,สรุปชั่วโมงสอนต่อสัปดาห์!I10,'5.งานตอบสนองนโยบายและจุดเน้น'!I$7:I$58) ->  | I10: 16 | J10: =IF(H10>ตัวแปร!C$37,1,"") -> 
A11: ='1.ข้อมูลส่วนบุคคล'!$F$5 -> 12345678912345 | B11: 1 | D11: 7 | E11: =SUMIF('3.ชั่วโมงสอนตามตารางสอน'!T$7:T$56,สรุปชั่วโมงสอนต่อสัปดาห์!I11,'3.ชั่วโมงสอนตามตารางสอน'!L$7:L$56) -> 0 | F11: =SUMIF('4.งานสนับสนุนการจัดการเรียนรู้'!#REF!,สรุปชั่วโมงสอนต่อสัปดาห์!I11,'4.งานสนับสนุนการจัดการเรียนรู้'!I$7:I$58) ->  | G11: =SUMIF('5.งานตอบสนองนโยบายและจุดเน้น'!#REF!,สรุปชั่วโมงสอนต่อสัปดาห์!I11,'5.งานตอบสนองนโยบายและจุดเน้น'!I$7:I$58) ->  | I11: 17 | J11: =IF(H11>ตัวแปร!C$37,1,"") -> 
A12: ='1.ข้อมูลส่วนบุคคล'!$F$5 -> 12345678912345 | B12: 1 | D12: 8 | E12: =SUMIF('3.ชั่วโมงสอนตามตารางสอน'!T$7:T$56,สรุปชั่วโมงสอนต่อสัปดาห์!I12,'3.ชั่วโมงสอนตามตารางสอน'!L$7:L$56) -> 0 | F12: =SUMIF('4.งานสนับสนุนการจัดการเรียนรู้'!#REF!,สรุปชั่วโมงสอนต่อสัปดาห์!I12,'4.งานสนับสนุนการจัดการเรียนรู้'!I$7:I$58) ->  | G12: =SUMIF('5.งานตอบสนองนโยบายและจุดเน้น'!#REF!,สรุปชั่วโมงสอนต่อสัปดาห์!I12,'5.งานตอบสนองนโยบายและจุดเน้น'!I$7:I$58) ->  | I12: 18 | J12: =IF(H12>ตัวแปร!C$37,1,"") -> 
A13: ='1.ข้อมูลส่วนบุคคล'!$F$5 -> 12345678912345 | B13: 1 | D13: 9 | E13: =SUMIF('3.ชั่วโมงสอนตามตารางสอน'!T$7:T$56,สรุปชั่วโมงสอนต่อสัปดาห์!I13,'3.ชั่วโมงสอนตามตารางสอน'!L$7:L$56) -> 0 | F13: =SUMIF('4.งานสนับสนุนการจัดการเรียนรู้'!#REF!,สรุปชั่วโมงสอนต่อสัปดาห์!I13,'4.งานสนับสนุนการจัดการเรียนรู้'!I$7:I$58) ->  | G13: =SUMIF('5.งานตอบสนองนโยบายและจุดเน้น'!#REF!,สรุปชั่วโมงสอนต่อสัปดาห์!I13,'5.งานตอบสนองนโยบายและจุดเน้น'!I$7:I$58) ->  | I13: 19 | J13: =IF(H13>ตัวแปร!C$37,1,"") -> 
A14: ='1.ข้อมูลส่วนบุคคล'!$F$5 -> 12345678912345 | B14: 1 | D14: 10 | E14: =SUMIF('3.ชั่วโมงสอนตามตารางสอน'!T$7:T$56,สรุปชั่วโมงสอนต่อสัปดาห์!I14,'3.ชั่วโมงสอนตามตารางสอน'!L$7:L$56) -> 0 | F14: =SUMIF('4.งานสนับสนุนการจัดการเรียนรู้'!#REF!,สรุปชั่วโมงสอนต่อสัปดาห์!I14,'4.งานสนับสนุนการจัดการเรียนรู้'!I$7:I$58) ->  | G14: =SUMIF('5.งานตอบสนองนโยบายและจุดเน้น'!#REF!,สรุปชั่วโมงสอนต่อสัปดาห์!I14,'5.งานตอบสนองนโยบายและจุดเน้น'!I$7:I$58) ->  | I14: 110 | J14: =IF(H14>ตัวแปร!C$37,1,"") -> 
A15: ='1.ข้อมูลส่วนบุคคล'!$F$5 -> 12345678912345 | B15: 1 | D15: 11 | E15: =SUMIF('3.ชั่วโมงสอนตามตารางสอน'!T$7:T$56,สรุปชั่วโมงสอนต่อสัปดาห์!I15,'3.ชั่วโมงสอนตามตารางสอน'!L$7:L$56) -> 0 | F15: =SUMIF('4.งานสนับสนุนการจัดการเรียนรู้'!#REF!,สรุปชั่วโมงสอนต่อสัปดาห์!I15,'4.งานสนับสนุนการจัดการเรียนรู้'!I$7:I$58) ->  | G15: =SUMIF('5.งานตอบสนองนโยบายและจุดเน้น'!#REF!,สรุปชั่วโมงสอนต่อสัปดาห์!I15,'5.งานตอบสนองนโยบายและจุดเน้น'!I$7:I$58) ->  | I15: 111 | J15: =IF(H15>ตัวแปร!C$37,1,"") -> 
A16: ='1.ข้อมูลส่วนบุคคล'!$F$5 -> 12345678912345 | B16: 1 | D16: 12 | E16: =SUMIF('3.ชั่วโมงสอนตามตารางสอน'!T$7:T$56,สรุปชั่วโมงสอนต่อสัปดาห์!I16,'3.ชั่วโมงสอนตามตารางสอน'!L$7:L$56) -> 0 | F16: =SUMIF('4.งานสนับสนุนการจัดการเรียนรู้'!#REF!,สรุปชั่วโมงสอนต่อสัปดาห์!I16,'4.งานสนับสนุนการจัดการเรียนรู้'!I$7:I$58) ->  | G16: =SUMIF('5.งานตอบสนองนโยบายและจุดเน้น'!#REF!,สรุปชั่วโมงสอนต่อสัปดาห์!I16,'5.งานตอบสนองนโยบายและจุดเน้น'!I$7:I$58) ->  | I16: 112 | J16: =IF(H16>ตัวแปร!C$37,1,"") -> 
A17: ='1.ข้อมูลส่วนบุคคล'!$F$5 -> 12345678912345 | B17: 1 | D17: 13 | E17: =SUMIF('3.ชั่วโมงสอนตามตารางสอน'!T$7:T$56,สรุปชั่วโมงสอนต่อสัปดาห์!I17,'3.ชั่วโมงสอนตามตารางสอน'!L$7:L$56) -> 0 | F17: =SUMIF('4.งานสนับสนุนการจัดการเรียนรู้'!#REF!,สรุปชั่วโมงสอนต่อสัปดาห์!I17,'4.งานสนับสนุนการจัดการเรียนรู้'!I$7:I$58) ->  | G17: =SUMIF('5.งานตอบสนองนโยบายและจุดเน้น'!#REF!,สรุปชั่วโมงสอนต่อสัปดาห์!I17,'5.งานตอบสนองนโยบายและจุดเน้น'!I$7:I$58) ->  | I17: 113 | J17: =IF(H17>ตัวแปร!C$37,1,"") -> 
A18: ='1.ข้อมูลส่วนบุคคล'!$F$5 -> 12345678912345 | B18: 1 | D18: 14 | E18: =SUMIF('3.ชั่วโมงสอนตามตารางสอน'!T$7:T$56,สรุปชั่วโมงสอนต่อสัปดาห์!I18,'3.ชั่วโมงสอนตามตารางสอน'!L$7:L$56) -> 0 | F18: =SUMIF('4.งานสนับสนุนการจัดการเรียนรู้'!#REF!,สรุปชั่วโมงสอนต่อสัปดาห์!I18,'4.งานสนับสนุนการจัดการเรียนรู้'!I$7:I$58) ->  | G18: =SUMIF('5.งานตอบสนองนโยบายและจุดเน้น'!#REF!,สรุปชั่วโมงสอนต่อสัปดาห์!I18,'5.งานตอบสนองนโยบายและจุดเน้น'!I$7:I$58) ->  | I18: 114 | J18: =IF(H18>ตัวแปร!C$37,1,"") -> 
A19: ='1.ข้อมูลส่วนบุคคล'!$F$5 -> 12345678912345 | B19: 1 | D19: 15 | E19: =SUMIF('3.ชั่วโมงสอนตามตารางสอน'!T$7:T$56,สรุปชั่วโมงสอนต่อสัปดาห์!I19,'3.ชั่วโมงสอนตามตารางสอน'!L$7:L$56) -> 0 | F19: =SUMIF('4.งานสนับสนุนการจัดการเรียนรู้'!#REF!,สรุปชั่วโมงสอนต่อสัปดาห์!I19,'4.งานสนับสนุนการจัดการเรียนรู้'!I$7:I$58) ->  | G19: =SUMIF('5.งานตอบสนองนโยบายและจุดเน้น'!#REF!,สรุปชั่วโมงสอนต่อสัปดาห์!I19,'5.งานตอบสนองนโยบายและจุดเน้น'!I$7:I$58) ->  | I19: 115 | J19: =IF(H19>ตัวแปร!C$37,1,"") -> 
A20: ='1.ข้อมูลส่วนบุคคล'!$F$5 -> 12345678912345 | B20: 1 | D20: 16 | E20: =SUMIF('3.ชั่วโมงสอนตามตารางสอน'!T$7:T$56,สรุปชั่วโมงสอนต่อสัปดาห์!I20,'3.ชั่วโมงสอนตามตารางสอน'!L$7:L$56) -> 0 | F20: =SUMIF('4.งานสนับสนุนการจัดการเรียนรู้'!#REF!,สรุปชั่วโมงสอนต่อสัปดาห์!I20,'4.งานสนับสนุนการจัดการเรียนรู้'!I$7:I$58) ->  | G20: =SUMIF('5.งานตอบสนองนโยบายและจุดเน้น'!#REF!,สรุปชั่วโมงสอนต่อสัปดาห์!I20,'5.งานตอบสนองนโยบายและจุดเน้น'!I$7:I$58) ->  | I20: 116 | J20: =IF(H20>ตัวแปร!C$37,1,"") -> 
A21: ='1.ข้อมูลส่วนบุคคล'!$F$5 -> 12345678912345 | B21: 1 | D21: 17 | E21: =SUMIF('3.ชั่วโมงสอนตามตารางสอน'!T$7:T$56,สรุปชั่วโมงสอนต่อสัปดาห์!I21,'3.ชั่วโมงสอนตามตารางสอน'!L$7:L$56) -> 0 | F21: =SUMIF('4.งานสนับสนุนการจัดการเรียนรู้'!#REF!,สรุปชั่วโมงสอนต่อสัปดาห์!I21,'4.งานสนับสนุนการจัดการเรียนรู้'!I$7:I$58) ->  | G21: =SUMIF('5.งานตอบสนองนโยบายและจุดเน้น'!#REF!,สรุปชั่วโมงสอนต่อสัปดาห์!I21,'5.งานตอบสนองนโยบายและจุดเน้น'!I$7:I$58) ->  | I21: 117 | J21: =IF(H21>ตัวแปร!C$37,1,"") -> 
A22: ='1.ข้อมูลส่วนบุคคล'!$F$5 -> 12345678912345 | B22: 1 | D22: 18 | E22: =SUMIF('3.ชั่วโมงสอนตามตารางสอน'!T$7:T$56,สรุปชั่วโมงสอนต่อสัปดาห์!I22,'3.ชั่วโมงสอนตามตารางสอน'!L$7:L$56) -> 0 | F22: =SUMIF('4.งานสนับสนุนการจัดการเรียนรู้'!#REF!,สรุปชั่วโมงสอนต่อสัปดาห์!I22,'4.งานสนับสนุนการจัดการเรียนรู้'!I$7:I$58) ->  | G22: =SUMIF('5.งานตอบสนองนโยบายและจุดเน้น'!#REF!,สรุปชั่วโมงสอนต่อสัปดาห์!I22,'5.งานตอบสนองนโยบายและจุดเน้น'!I$7:I$58) ->  | I22: 118 | J22: =IF(H22>ตัวแปร!C$37,1,"") -> 
A23: ='1.ข้อมูลส่วนบุคคล'!$F$5 -> 12345678912345 | B23: 1 | D23: 19 | E23: =SUMIF('3.ชั่วโมงสอนตามตารางสอน'!T$7:T$56,สรุปชั่วโมงสอนต่อสัปดาห์!I23,'3.ชั่วโมงสอนตามตารางสอน'!L$7:L$56) -> 0 | F23: =SUMIF('4.งานสนับสนุนการจัดการเรียนรู้'!#REF!,สรุปชั่วโมงสอนต่อสัปดาห์!I23,'4.งานสนับสนุนการจัดการเรียนรู้'!I$7:I$58) ->  | G23: =SUMIF('5.งานตอบสนองนโยบายและจุดเน้น'!#REF!,สรุปชั่วโมงสอนต่อสัปดาห์!I23,'5.งานตอบสนองนโยบายและจุดเน้น'!I$7:I$58) ->  | I23: 119 | J23: =IF(H23>ตัวแปร!C$37,1,"") -> 
A24: ='1.ข้อมูลส่วนบุคคล'!$F$5 -> 12345678912345 | B24: 1 | D24: 20 | E24: =SUMIF('3.ชั่วโมงสอนตามตารางสอน'!T$7:T$56,สรุปชั่วโมงสอนต่อสัปดาห์!I24,'3.ชั่วโมงสอนตามตารางสอน'!L$7:L$56) -> 0 | F24: =SUMIF('4.งานสนับสนุนการจัดการเรียนรู้'!#REF!,สรุปชั่วโมงสอนต่อสัปดาห์!I24,'4.งานสนับสนุนการจัดการเรียนรู้'!I$7:I$58) ->  | G24: =SUMIF('5.งานตอบสนองนโยบายและจุดเน้น'!#REF!,สรุปชั่วโมงสอนต่อสัปดาห์!I24,'5.งานตอบสนองนโยบายและจุดเน้น'!I$7:I$58) ->  | I24: 120 | J24: =IF(H24>ตัวแปร!C$37,1,"") -> 
A25: ='1.ข้อมูลส่วนบุคคล'!$F$5 -> 12345678912345 | B25: 1 | D25: 21 | E25: =SUMIF('3.ชั่วโมงสอนตามตารางสอน'!T$7:T$56,สรุปชั่วโมงสอนต่อสัปดาห์!I25,'3.ชั่วโมงสอนตามตารางสอน'!L$7:L$56) -> 0 | F25: =SUMIF('4.งานสนับสนุนการจัดการเรียนรู้'!#REF!,สรุปชั่วโมงสอนต่อสัปดาห์!I25,'4.งานสนับสนุนการจัดการเรียนรู้'!I$7:I$58) ->  | G25: =SUMIF('5.งานตอบสนองนโยบายและจุดเน้น'!#REF!,สรุปชั่วโมงสอนต่อสัปดาห์!I25,'5.งานตอบสนองนโยบายและจุดเน้น'!I$7:I$58) ->  | I25: 121 | J25: =IF(H25>ตัวแปร!C$37,1,"") -> 
A26: ='1.ข้อมูลส่วนบุคคล'!$F$5 -> 12345678912345 | B26: 1 | D26: 22 | E26: =SUMIF('3.ชั่วโมงสอนตามตารางสอน'!T$7:T$56,สรุปชั่วโมงสอนต่อสัปดาห์!I26,'3.ชั่วโมงสอนตามตารางสอน'!L$7:L$56) -> 0 | F26: =SUMIF('4.งานสนับสนุนการจัดการเรียนรู้'!#REF!,สรุปชั่วโมงสอนต่อสัปดาห์!I26,'4.งานสนับสนุนการจัดการเรียนรู้'!I$7:I$58) ->  | G26: =SUMIF('5.งานตอบสนองนโยบายและจุดเน้น'!#REF!,สรุปชั่วโมงสอนต่อสัปดาห์!I26,'5.งานตอบสนองนโยบายและจุดเน้น'!I$7:I$58) ->  | I26: 122 | J26: =IF(H26>ตัวแปร!C$37,1,"") -> 
A27: ='1.ข้อมูลส่วนบุคคล'!$F$5 -> 12345678912345 | B27: 1 | D27: 23 | E27: =SUMIF('3.ชั่วโมงสอนตามตารางสอน'!T$7:T$56,สรุปชั่วโมงสอนต่อสัปดาห์!I27,'3.ชั่วโมงสอนตามตารางสอน'!L$7:L$56) -> 0 | F27: =SUMIF('4.งานสนับสนุนการจัดการเรียนรู้'!#REF!,สรุปชั่วโมงสอนต่อสัปดาห์!I27,'4.งานสนับสนุนการจัดการเรียนรู้'!I$7:I$58) ->  | G27: =SUMIF('5.งานตอบสนองนโยบายและจุดเน้น'!#REF!,สรุปชั่วโมงสอนต่อสัปดาห์!I27,'5.งานตอบสนองนโยบายและจุดเน้น'!I$7:I$58) ->  | I27: 123 | J27: =IF(H27>ตัวแปร!C$37,1,"") -> 
A28: ='1.ข้อมูลส่วนบุคคล'!$F$5 -> 12345678912345 | B28: 1 | D28: 24 | E28: =SUMIF('3.ชั่วโมงสอนตามตารางสอน'!T$7:T$56,สรุปชั่วโมงสอนต่อสัปดาห์!I28,'3.ชั่วโมงสอนตามตารางสอน'!L$7:L$56) -> 0 | F28: =SUMIF('4.งานสนับสนุนการจัดการเรียนรู้'!#REF!,สรุปชั่วโมงสอนต่อสัปดาห์!I28,'4.งานสนับสนุนการจัดการเรียนรู้'!I$7:I$58) ->  | G28: =SUMIF('5.งานตอบสนองนโยบายและจุดเน้น'!#REF!,สรุปชั่วโมงสอนต่อสัปดาห์!I28,'5.งานตอบสนองนโยบายและจุดเน้น'!I$7:I$58) ->  | I28: 124 | J28: =IF(H28>ตัวแปร!C$37,1,"") -> 
A29: ='1.ข้อมูลส่วนบุคคล'!$F$5 -> 12345678912345 | B29: 1 | D29: 25 | E29: =SUMIF('3.ชั่วโมงสอนตามตารางสอน'!T$7:T$56,สรุปชั่วโมงสอนต่อสัปดาห์!I29,'3.ชั่วโมงสอนตามตารางสอน'!L$7:L$56) -> 0 | F29: =SUMIF('4.งานสนับสนุนการจัดการเรียนรู้'!#REF!,สรุปชั่วโมงสอนต่อสัปดาห์!I29,'4.งานสนับสนุนการจัดการเรียนรู้'!I$7:I$58) ->  | G29: =SUMIF('5.งานตอบสนองนโยบายและจุดเน้น'!#REF!,สรุปชั่วโมงสอนต่อสัปดาห์!I29,'5.งานตอบสนองนโยบายและจุดเน้น'!I$7:I$58) ->  | I29: 125 | J29: =IF(H29>ตัวแปร!C$37,1,"") -> 
A30: ='1.ข้อมูลส่วนบุคคล'!$F$5 -> 12345678912345 | B30: 1 | D30: 26 | E30: =SUMIF('3.ชั่วโมงสอนตามตารางสอน'!T$7:T$56,สรุปชั่วโมงสอนต่อสัปดาห์!I30,'3.ชั่วโมงสอนตามตารางสอน'!L$7:L$56) -> 0 | F30: =SUMIF('4.งานสนับสนุนการจัดการเรียนรู้'!#REF!,สรุปชั่วโมงสอนต่อสัปดาห์!I30,'4.งานสนับสนุนการจัดการเรียนรู้'!I$7:I$58) ->  | G30: =SUMIF('5.งานตอบสนองนโยบายและจุดเน้น'!#REF!,สรุปชั่วโมงสอนต่อสัปดาห์!I30,'5.งานตอบสนองนโยบายและจุดเน้น'!I$7:I$58) ->  | I30: 126 | J30: =IF(H30>ตัวแปร!C$37,1,"") -> 
A31: ='1.ข้อมูลส่วนบุคคล'!$F$5 -> 12345678912345 | B31: 1 | D31: 27 | E31: =SUMIF('3.ชั่วโมงสอนตามตารางสอน'!T$7:T$56,สรุปชั่วโมงสอนต่อสัปดาห์!I31,'3.ชั่วโมงสอนตามตารางสอน'!L$7:L$56) -> 0 | F31: =SUMIF('4.งานสนับสนุนการจัดการเรียนรู้'!#REF!,สรุปชั่วโมงสอนต่อสัปดาห์!I31,'4.งานสนับสนุนการจัดการเรียนรู้'!I$7:I$58) ->  | G31: =SUMIF('5.งานตอบสนองนโยบายและจุดเน้น'!#REF!,สรุปชั่วโมงสอนต่อสัปดาห์!I31,'5.งานตอบสนองนโยบายและจุดเน้น'!I$7:I$58) ->  | I31: 127 | J31: =IF(H31>ตัวแปร!C$37,1,"") -> 
A32: ='1.ข้อมูลส่วนบุคคล'!$F$5 -> 12345678912345 | B32: 1 | D32: 28 | E32: =SUMIF('3.ชั่วโมงสอนตามตารางสอน'!T$7:T$56,สรุปชั่วโมงสอนต่อสัปดาห์!I32,'3.ชั่วโมงสอนตามตารางสอน'!L$7:L$56) -> 0 | F32: =SUMIF('4.งานสนับสนุนการจัดการเรียนรู้'!#REF!,สรุปชั่วโมงสอนต่อสัปดาห์!I32,'4.งานสนับสนุนการจัดการเรียนรู้'!I$7:I$58) ->  | G32: =SUMIF('5.งานตอบสนองนโยบายและจุดเน้น'!#REF!,สรุปชั่วโมงสอนต่อสัปดาห์!I32,'5.งานตอบสนองนโยบายและจุดเน้น'!I$7:I$58) ->  | I32: 128 | J32: =IF(H32>ตัวแปร!C$37,1,"") -> 
A33: ='1.ข้อมูลส่วนบุคคล'!$F$5 -> 12345678912345 | B33: 1 | D33: 29 | E33: =SUMIF('3.ชั่วโมงสอนตามตารางสอน'!T$7:T$56,สรุปชั่วโมงสอนต่อสัปดาห์!I33,'3.ชั่วโมงสอนตามตารางสอน'!L$7:L$56) -> 0 | F33: =SUMIF('4.งานสนับสนุนการจัดการเรียนรู้'!#REF!,สรุปชั่วโมงสอนต่อสัปดาห์!I33,'4.งานสนับสนุนการจัดการเรียนรู้'!I$7:I$58) ->  | G33: =SUMIF('5.งานตอบสนองนโยบายและจุดเน้น'!#REF!,สรุปชั่วโมงสอนต่อสัปดาห์!I33,'5.งานตอบสนองนโยบายและจุดเน้น'!I$7:I$58) ->  | I33: 129 | J33: =IF(H33>ตัวแปร!C$37,1,"") -> 
A34: ='1.ข้อมูลส่วนบุคคล'!$F$5 -> 12345678912345 | B34: 1 | D34: 30 | E34: =SUMIF('3.ชั่วโมงสอนตามตารางสอน'!T$7:T$56,สรุปชั่วโมงสอนต่อสัปดาห์!I34,'3.ชั่วโมงสอนตามตารางสอน'!L$7:L$56) -> 0 | F34: =SUMIF('4.งานสนับสนุนการจัดการเรียนรู้'!#REF!,สรุปชั่วโมงสอนต่อสัปดาห์!I34,'4.งานสนับสนุนการจัดการเรียนรู้'!I$7:I$58) ->  | G34: =SUMIF('5.งานตอบสนองนโยบายและจุดเน้น'!#REF!,สรุปชั่วโมงสอนต่อสัปดาห์!I34,'5.งานตอบสนองนโยบายและจุดเน้น'!I$7:I$58) ->  | I34: 130 | J34: =IF(H34>ตัวแปร!C$37,1,"") -> 
A35: ='1.ข้อมูลส่วนบุคคล'!$F$5 -> 12345678912345 | B35: 1 | D35: 31 | E35: =SUMIF('3.ชั่วโมงสอนตามตารางสอน'!T$7:T$56,สรุปชั่วโมงสอนต่อสัปดาห์!I35,'3.ชั่วโมงสอนตามตารางสอน'!L$7:L$56) -> 0 | F35: =SUMIF('4.งานสนับสนุนการจัดการเรียนรู้'!#REF!,สรุปชั่วโมงสอนต่อสัปดาห์!I35,'4.งานสนับสนุนการจัดการเรียนรู้'!I$7:I$58) ->  | G35: =SUMIF('5.งานตอบสนองนโยบายและจุดเน้น'!#REF!,สรุปชั่วโมงสอนต่อสัปดาห์!I35,'5.งานตอบสนองนโยบายและจุดเน้น'!I$7:I$58) ->  | I35: 131 | J35: =IF(H35>ตัวแปร!C$37,1,"") -> 
A36: ='1.ข้อมูลส่วนบุคคล'!$F$5 -> 12345678912345 | B36: 1 | D36: 32 | E36: =SUMIF('3.ชั่วโมงสอนตามตารางสอน'!T$7:T$56,สรุปชั่วโมงสอนต่อสัปดาห์!I36,'3.ชั่วโมงสอนตามตารางสอน'!L$7:L$56) -> 0 | F36: =SUMIF('4.งานสนับสนุนการจัดการเรียนรู้'!#REF!,สรุปชั่วโมงสอนต่อสัปดาห์!I36,'4.งานสนับสนุนการจัดการเรียนรู้'!I$7:I$58) ->  | G36: =SUMIF('5.งานตอบสนองนโยบายและจุดเน้น'!#REF!,สรุปชั่วโมงสอนต่อสัปดาห์!I36,'5.งานตอบสนองนโยบายและจุดเน้น'!I$7:I$58) ->  | I36: 132 | J36: =IF(H36>ตัวแปร!C$37,1,"") -> 
A37: ='1.ข้อมูลส่วนบุคคล'!$F$5 -> 12345678912345 | B37: 1 | D37: 33 | E37: =SUMIF('3.ชั่วโมงสอนตามตารางสอน'!T$7:T$56,สรุปชั่วโมงสอนต่อสัปดาห์!I37,'3.ชั่วโมงสอนตามตารางสอน'!L$7:L$56) -> 0 | F37: =SUMIF('4.งานสนับสนุนการจัดการเรียนรู้'!#REF!,สรุปชั่วโมงสอนต่อสัปดาห์!I37,'4.งานสนับสนุนการจัดการเรียนรู้'!I$7:I$58) ->  | G37: =SUMIF('5.งานตอบสนองนโยบายและจุดเน้น'!#REF!,สรุปชั่วโมงสอนต่อสัปดาห์!I37,'5.งานตอบสนองนโยบายและจุดเน้น'!I$7:I$58) ->  | I37: 133 | J37: =IF(H37>ตัวแปร!C$37,1,"") -> 
A38: ='1.ข้อมูลส่วนบุคคล'!$F$5 -> 12345678912345 | B38: 1 | D38: 34 | E38: =SUMIF('3.ชั่วโมงสอนตามตารางสอน'!T$7:T$56,สรุปชั่วโมงสอนต่อสัปดาห์!I38,'3.ชั่วโมงสอนตามตารางสอน'!L$7:L$56) -> 0 | F38: =SUMIF('4.งานสนับสนุนการจัดการเรียนรู้'!#REF!,สรุปชั่วโมงสอนต่อสัปดาห์!I38,'4.งานสนับสนุนการจัดการเรียนรู้'!I$7:I$58) ->  | G38: =SUMIF('5.งานตอบสนองนโยบายและจุดเน้น'!#REF!,สรุปชั่วโมงสอนต่อสัปดาห์!I38,'5.งานตอบสนองนโยบายและจุดเน้น'!I$7:I$58) ->  | I38: 134 | J38: =IF(H38>ตัวแปร!C$37,1,"") -> 
A39: ='1.ข้อมูลส่วนบุคคล'!$F$5 -> 12345678912345 | B39: 1 | D39: 35 | E39: =SUMIF('3.ชั่วโมงสอนตามตารางสอน'!T$7:T$56,สรุปชั่วโมงสอนต่อสัปดาห์!I39,'3.ชั่วโมงสอนตามตารางสอน'!L$7:L$56) -> 0 | F39: =SUMIF('4.งานสนับสนุนการจัดการเรียนรู้'!#REF!,สรุปชั่วโมงสอนต่อสัปดาห์!I39,'4.งานสนับสนุนการจัดการเรียนรู้'!I$7:I$58) ->  | G39: =SUMIF('5.งานตอบสนองนโยบายและจุดเน้น'!#REF!,สรุปชั่วโมงสอนต่อสัปดาห์!I39,'5.งานตอบสนองนโยบายและจุดเน้น'!I$7:I$58) ->  | I39: 135 | J39: =IF(H39>ตัวแปร!C$37,1,"") -> 
A40: ='1.ข้อมูลส่วนบุคคล'!$F$5 -> 12345678912345 | B40: 1 | D40: 36 | E40: =SUMIF('3.ชั่วโมงสอนตามตารางสอน'!T$7:T$56,สรุปชั่วโมงสอนต่อสัปดาห์!I40,'3.ชั่วโมงสอนตามตารางสอน'!L$7:L$56) -> 0 | F40: =SUMIF('4.งานสนับสนุนการจัดการเรียนรู้'!#REF!,สรุปชั่วโมงสอนต่อสัปดาห์!I40,'4.งานสนับสนุนการจัดการเรียนรู้'!I$7:I$58) ->  | G40: =SUMIF('5.งานตอบสนองนโยบายและจุดเน้น'!#REF!,สรุปชั่วโมงสอนต่อสัปดาห์!I40,'5.งานตอบสนองนโยบายและจุดเน้น'!I$7:I$58) ->  | I40: 136 | J40: =IF(H40>ตัวแปร!C$37,1,"") -> 
A41: ='1.ข้อมูลส่วนบุคคล'!$F$5 -> 12345678912345 | B41: 1 | D41: 37 | E41: =SUMIF('3.ชั่วโมงสอนตามตารางสอน'!T$7:T$56,สรุปชั่วโมงสอนต่อสัปดาห์!I41,'3.ชั่วโมงสอนตามตารางสอน'!L$7:L$56) -> 0 | F41: =SUMIF('4.งานสนับสนุนการจัดการเรียนรู้'!#REF!,สรุปชั่วโมงสอนต่อสัปดาห์!I41,'4.งานสนับสนุนการจัดการเรียนรู้'!I$7:I$58) ->  | G41: =SUMIF('5.งานตอบสนองนโยบายและจุดเน้น'!#REF!,สรุปชั่วโมงสอนต่อสัปดาห์!I41,'5.งานตอบสนองนโยบายและจุดเน้น'!I$7:I$58) ->  | I41: 137 | J41: =IF(H41>ตัวแปร!C$37,1,"") -> 
A42: ='1.ข้อมูลส่วนบุคคล'!$F$5 -> 12345678912345 | B42: 1 | D42: 38 | E42: =SUMIF('3.ชั่วโมงสอนตามตารางสอน'!T$7:T$56,สรุปชั่วโมงสอนต่อสัปดาห์!I42,'3.ชั่วโมงสอนตามตารางสอน'!L$7:L$56) -> 0 | F42: =SUMIF('4.งานสนับสนุนการจัดการเรียนรู้'!#REF!,สรุปชั่วโมงสอนต่อสัปดาห์!I42,'4.งานสนับสนุนการจัดการเรียนรู้'!I$7:I$58) ->  | G42: =SUMIF('5.งานตอบสนองนโยบายและจุดเน้น'!#REF!,สรุปชั่วโมงสอนต่อสัปดาห์!I42,'5.งานตอบสนองนโยบายและจุดเน้น'!I$7:I$58) ->  | I42: 138 | J42: =IF(H42>ตัวแปร!C$37,1,"") -> 
A43: ='1.ข้อมูลส่วนบุคคล'!$F$5 -> 12345678912345 | B43: 1 | D43: 39 | E43: =SUMIF('3.ชั่วโมงสอนตามตารางสอน'!T$7:T$56,สรุปชั่วโมงสอนต่อสัปดาห์!I43,'3.ชั่วโมงสอนตามตารางสอน'!L$7:L$56) -> 0 | F43: =SUMIF('4.งานสนับสนุนการจัดการเรียนรู้'!#REF!,สรุปชั่วโมงสอนต่อสัปดาห์!I43,'4.งานสนับสนุนการจัดการเรียนรู้'!I$7:I$58) ->  | G43: =SUMIF('5.งานตอบสนองนโยบายและจุดเน้น'!#REF!,สรุปชั่วโมงสอนต่อสัปดาห์!I43,'5.งานตอบสนองนโยบายและจุดเน้น'!I$7:I$58) ->  | I43: 139 | J43: =IF(H43>ตัวแปร!C$37,1,"") -> 
A44: ='1.ข้อมูลส่วนบุคคล'!$F$5 -> 12345678912345 | B44: 1 | D44: 40 | E44: =SUMIF('3.ชั่วโมงสอนตามตารางสอน'!T$7:T$56,สรุปชั่วโมงสอนต่อสัปดาห์!I44,'3.ชั่วโมงสอนตามตารางสอน'!L$7:L$56) -> 0 | F44: =SUMIF('4.งานสนับสนุนการจัดการเรียนรู้'!#REF!,สรุปชั่วโมงสอนต่อสัปดาห์!I44,'4.งานสนับสนุนการจัดการเรียนรู้'!I$7:I$58) ->  | G44: =SUMIF('5.งานตอบสนองนโยบายและจุดเน้น'!#REF!,สรุปชั่วโมงสอนต่อสัปดาห์!I44,'5.งานตอบสนองนโยบายและจุดเน้น'!I$7:I$58) ->  | I44: 140 | J44: =IF(H44>ตัวแปร!C$37,1,"") -> 
A45: ='1.ข้อมูลส่วนบุคคล'!$F$5 -> 12345678912345 | B45: 1 | D45: 41 | E45: =SUMIF('3.ชั่วโมงสอนตามตารางสอน'!T$7:T$56,สรุปชั่วโมงสอนต่อสัปดาห์!I45,'3.ชั่วโมงสอนตามตารางสอน'!L$7:L$56) -> 0 | F45: =SUMIF('4.งานสนับสนุนการจัดการเรียนรู้'!#REF!,สรุปชั่วโมงสอนต่อสัปดาห์!I45,'4.งานสนับสนุนการจัดการเรียนรู้'!I$7:I$58) ->  | G45: =SUMIF('5.งานตอบสนองนโยบายและจุดเน้น'!#REF!,สรุปชั่วโมงสอนต่อสัปดาห์!I45,'5.งานตอบสนองนโยบายและจุดเน้น'!I$7:I$58) ->  | I45: 141 | J45: =IF(H45>ตัวแปร!C$37,1,"") -> 
A46: ='1.ข้อมูลส่วนบุคคล'!$F$5 -> 12345678912345 | B46: 1 | D46: 42 | E46: =SUMIF('3.ชั่วโมงสอนตามตารางสอน'!T$7:T$56,สรุปชั่วโมงสอนต่อสัปดาห์!I46,'3.ชั่วโมงสอนตามตารางสอน'!L$7:L$56) -> 0 | F46: =SUMIF('4.งานสนับสนุนการจัดการเรียนรู้'!#REF!,สรุปชั่วโมงสอนต่อสัปดาห์!I46,'4.งานสนับสนุนการจัดการเรียนรู้'!I$7:I$58) ->  | G46: =SUMIF('5.งานตอบสนองนโยบายและจุดเน้น'!#REF!,สรุปชั่วโมงสอนต่อสัปดาห์!I46,'5.งานตอบสนองนโยบายและจุดเน้น'!I$7:I$58) ->  | I46: 142 | J46: =IF(H46>ตัวแปร!C$37,1,"") -> 
A47: ='1.ข้อมูลส่วนบุคคล'!$F$5 -> 12345678912345 | B47: 1 | D47: 43 | E47: =SUMIF('3.ชั่วโมงสอนตามตารางสอน'!T$7:T$56,สรุปชั่วโมงสอนต่อสัปดาห์!I47,'3.ชั่วโมงสอนตามตารางสอน'!L$7:L$56) -> 0 | F47: =SUMIF('4.งานสนับสนุนการจัดการเรียนรู้'!#REF!,สรุปชั่วโมงสอนต่อสัปดาห์!I47,'4.งานสนับสนุนการจัดการเรียนรู้'!I$7:I$58) ->  | G47: =SUMIF('5.งานตอบสนองนโยบายและจุดเน้น'!#REF!,สรุปชั่วโมงสอนต่อสัปดาห์!I47,'5.งานตอบสนองนโยบายและจุดเน้น'!I$7:I$58) ->  | I47: 143 | J47: =IF(H47>ตัวแปร!C$37,1,"") -> 
A48: ='1.ข้อมูลส่วนบุคคล'!$F$5 -> 12345678912345 | B48: 1 | D48: 44 | E48: =SUMIF('3.ชั่วโมงสอนตามตารางสอน'!T$7:T$56,สรุปชั่วโมงสอนต่อสัปดาห์!I48,'3.ชั่วโมงสอนตามตารางสอน'!L$7:L$56) -> 0 | F48: =SUMIF('4.งานสนับสนุนการจัดการเรียนรู้'!#REF!,สรุปชั่วโมงสอนต่อสัปดาห์!I48,'4.งานสนับสนุนการจัดการเรียนรู้'!I$7:I$58) ->  | G48: =SUMIF('5.งานตอบสนองนโยบายและจุดเน้น'!#REF!,สรุปชั่วโมงสอนต่อสัปดาห์!I48,'5.งานตอบสนองนโยบายและจุดเน้น'!I$7:I$58) ->  | I48: 144 | J48: =IF(H48>ตัวแปร!C$37,1,"") -> 
A49: ='1.ข้อมูลส่วนบุคคล'!$F$5 -> 12345678912345 | B49: 1 | D49: 45 | E49: =SUMIF('3.ชั่วโมงสอนตามตารางสอน'!T$7:T$56,สรุปชั่วโมงสอนต่อสัปดาห์!I49,'3.ชั่วโมงสอนตามตารางสอน'!L$7:L$56) -> 0 | F49: =SUMIF('4.งานสนับสนุนการจัดการเรียนรู้'!#REF!,สรุปชั่วโมงสอนต่อสัปดาห์!I49,'4.งานสนับสนุนการจัดการเรียนรู้'!I$7:I$58) ->  | G49: =SUMIF('5.งานตอบสนองนโยบายและจุดเน้น'!#REF!,สรุปชั่วโมงสอนต่อสัปดาห์!I49,'5.งานตอบสนองนโยบายและจุดเน้น'!I$7:I$58) ->  | I49: 145 | J49: =IF(H49>ตัวแปร!C$37,1,"") -> 
A50: ='1.ข้อมูลส่วนบุคคล'!$F$5 -> 12345678912345 | B50: 1 | D50: 46 | E50: =SUMIF('3.ชั่วโมงสอนตามตารางสอน'!T$7:T$56,สรุปชั่วโมงสอนต่อสัปดาห์!I50,'3.ชั่วโมงสอนตามตารางสอน'!L$7:L$56) -> 0 | F50: =SUMIF('4.งานสนับสนุนการจัดการเรียนรู้'!#REF!,สรุปชั่วโมงสอนต่อสัปดาห์!I50,'4.งานสนับสนุนการจัดการเรียนรู้'!I$7:I$58) ->  | G50: =SUMIF('5.งานตอบสนองนโยบายและจุดเน้น'!#REF!,สรุปชั่วโมงสอนต่อสัปดาห์!I50,'5.งานตอบสนองนโยบายและจุดเน้น'!I$7:I$58) ->  | I50: 146 | J50: =IF(H50>ตัวแปร!C$37,1,"") -> 
A51: ='1.ข้อมูลส่วนบุคคล'!$F$5 -> 12345678912345 | B51: 1 | D51: 47 | E51: =SUMIF('3.ชั่วโมงสอนตามตารางสอน'!T$7:T$56,สรุปชั่วโมงสอนต่อสัปดาห์!I51,'3.ชั่วโมงสอนตามตารางสอน'!L$7:L$56) -> 0 | F51: =SUMIF('4.งานสนับสนุนการจัดการเรียนรู้'!#REF!,สรุปชั่วโมงสอนต่อสัปดาห์!I51,'4.งานสนับสนุนการจัดการเรียนรู้'!I$7:I$58) ->  | G51: =SUMIF('5.งานตอบสนองนโยบายและจุดเน้น'!#REF!,สรุปชั่วโมงสอนต่อสัปดาห์!I51,'5.งานตอบสนองนโยบายและจุดเน้น'!I$7:I$58) ->  | I51: 147 | J51: =IF(H51>ตัวแปร!C$37,1,"") -> 
A52: ='1.ข้อมูลส่วนบุคคล'!$F$5 -> 12345678912345 | B52: 1 | D52: 48 | E52: =SUMIF('3.ชั่วโมงสอนตามตารางสอน'!T$7:T$56,สรุปชั่วโมงสอนต่อสัปดาห์!I52,'3.ชั่วโมงสอนตามตารางสอน'!L$7:L$56) -> 0 | F52: =SUMIF('4.งานสนับสนุนการจัดการเรียนรู้'!#REF!,สรุปชั่วโมงสอนต่อสัปดาห์!I52,'4.งานสนับสนุนการจัดการเรียนรู้'!I$7:I$58) ->  | G52: =SUMIF('5.งานตอบสนองนโยบายและจุดเน้น'!#REF!,สรุปชั่วโมงสอนต่อสัปดาห์!I52,'5.งานตอบสนองนโยบายและจุดเน้น'!I$7:I$58) ->  | I52: 148 | J52: =IF(H52>ตัวแปร!C$37,1,"") -> 
A53: ='1.ข้อมูลส่วนบุคคล'!$F$5 -> 12345678912345 | B53: 1 | D53: 49 | E53: =SUMIF('3.ชั่วโมงสอนตามตารางสอน'!T$7:T$56,สรุปชั่วโมงสอนต่อสัปดาห์!I53,'3.ชั่วโมงสอนตามตารางสอน'!L$7:L$56) -> 0 | F53: =SUMIF('4.งานสนับสนุนการจัดการเรียนรู้'!#REF!,สรุปชั่วโมงสอนต่อสัปดาห์!I53,'4.งานสนับสนุนการจัดการเรียนรู้'!I$7:I$58) ->  | G53: =SUMIF('5.งานตอบสนองนโยบายและจุดเน้น'!#REF!,สรุปชั่วโมงสอนต่อสัปดาห์!I53,'5.งานตอบสนองนโยบายและจุดเน้น'!I$7:I$58) ->  | I53: 149 | J53: =IF(H53>ตัวแปร!C$37,1,"") -> 
A54: ='1.ข้อมูลส่วนบุคคล'!$F$5 -> 12345678912345 | B54: 1 | D54: 50 | E54: =SUMIF('3.ชั่วโมงสอนตามตารางสอน'!T$7:T$56,สรุปชั่วโมงสอนต่อสัปดาห์!I54,'3.ชั่วโมงสอนตามตารางสอน'!L$7:L$56) -> 0 | F54: =SUMIF('4.งานสนับสนุนการจัดการเรียนรู้'!#REF!,สรุปชั่วโมงสอนต่อสัปดาห์!I54,'4.งานสนับสนุนการจัดการเรียนรู้'!I$7:I$58) ->  | G54: =SUMIF('5.งานตอบสนองนโยบายและจุดเน้น'!#REF!,สรุปชั่วโมงสอนต่อสัปดาห์!I54,'5.งานตอบสนองนโยบายและจุดเน้น'!I$7:I$58) ->  | I54: 150 | J54: =IF(H54>ตัวแปร!C$37,1,"") -> 
B55: 1 | D55: 51 | E55: =SUMIF('3.ชั่วโมงสอนตามตารางสอน'!T$7:T$56,สรุปชั่วโมงสอนต่อสัปดาห์!I55,'3.ชั่วโมงสอนตามตารางสอน'!L$7:L$56) -> 0 | F55: =SUMIF('4.งานสนับสนุนการจัดการเรียนรู้'!#REF!,สรุปชั่วโมงสอนต่อสัปดาห์!I55,'4.งานสนับสนุนการจัดการเรียนรู้'!I$7:I$58) ->  | G55: =SUMIF('5.งานตอบสนองนโยบายและจุดเน้น'!#REF!,สรุปชั่วโมงสอนต่อสัปดาห์!I55,'5.งานตอบสนองนโยบายและจุดเน้น'!I$7:I$58) ->  | I55: 151 | J55: =IF(H55>ตัวแปร!C$37,1,"") -> 
B56: 1 | D56: 52 | E56: =SUMIF('3.ชั่วโมงสอนตามตารางสอน'!T$7:T$56,สรุปชั่วโมงสอนต่อสัปดาห์!I56,'3.ชั่วโมงสอนตามตารางสอน'!L$7:L$56) -> 0 | F56: =SUMIF('4.งานสนับสนุนการจัดการเรียนรู้'!#REF!,สรุปชั่วโมงสอนต่อสัปดาห์!I56,'4.งานสนับสนุนการจัดการเรียนรู้'!I$7:I$58) ->  | G56: =SUMIF('5.งานตอบสนองนโยบายและจุดเน้น'!#REF!,สรุปชั่วโมงสอนต่อสัปดาห์!I56,'5.งานตอบสนองนโยบายและจุดเน้น'!I$7:I$58) ->  | I56: 152 | J56: =IF(H56>ตัวแปร!C$37,1,"") -> 
B57: 2 | D57: 1 | E57: =SUMIF('3.ชั่วโมงสอนตามตารางสอน'!T$7:T$56,สรุปชั่วโมงสอนต่อสัปดาห์!I57,'3.ชั่วโมงสอนตามตารางสอน'!L$7:L$56) -> 0 | F57: =SUMIF('4.งานสนับสนุนการจัดการเรียนรู้'!#REF!,สรุปชั่วโมงสอนต่อสัปดาห์!I57,'4.งานสนับสนุนการจัดการเรียนรู้'!I$7:I$58) ->  | G57: =SUMIF('5.งานตอบสนองนโยบายและจุดเน้น'!#REF!,สรุปชั่วโมงสอนต่อสัปดาห์!I57,'5.งานตอบสนองนโยบายและจุดเน้น'!I$7:I$58) ->  | I57: 21 | J57: =IF(H57>ตัวแปร!C$37,1,"") -> 
B58: 2 | D58: 2 | E58: =SUMIF('3.ชั่วโมงสอนตามตารางสอน'!T$7:T$56,สรุปชั่วโมงสอนต่อสัปดาห์!I58,'3.ชั่วโมงสอนตามตารางสอน'!L$7:L$56) -> 0 | F58: =SUMIF('4.งานสนับสนุนการจัดการเรียนรู้'!#REF!,สรุปชั่วโมงสอนต่อสัปดาห์!I58,'4.งานสนับสนุนการจัดการเรียนรู้'!I$7:I$58) ->  | G58: =SUMIF('5.งานตอบสนองนโยบายและจุดเน้น'!#REF!,สรุปชั่วโมงสอนต่อสัปดาห์!I58,'5.งานตอบสนองนโยบายและจุดเน้น'!I$7:I$58) ->  | I58: 22 | J58: =IF(H58>ตัวแปร!C$37,1,"") -> 
B59: 2 | D59: 3 | E59: =SUMIF('3.ชั่วโมงสอนตามตารางสอน'!T$7:T$56,สรุปชั่วโมงสอนต่อสัปดาห์!I59,'3.ชั่วโมงสอนตามตารางสอน'!L$7:L$56) -> 0 | F59: =SUMIF('4.งานสนับสนุนการจัดการเรียนรู้'!#REF!,สรุปชั่วโมงสอนต่อสัปดาห์!I59,'4.งานสนับสนุนการจัดการเรียนรู้'!I$7:I$58) ->  | G59: =SUMIF('5.งานตอบสนองนโยบายและจุดเน้น'!#REF!,สรุปชั่วโมงสอนต่อสัปดาห์!I59,'5.งานตอบสนองนโยบายและจุดเน้น'!I$7:I$58) ->  | I59: 23 | J59: =IF(H59>ตัวแปร!C$37,1,"") -> 
B60: 2 | D60: 4 | E60: =SUMIF('3.ชั่วโมงสอนตามตารางสอน'!T$7:T$56,สรุปชั่วโมงสอนต่อสัปดาห์!I60,'3.ชั่วโมงสอนตามตารางสอน'!L$7:L$56) -> 0 | F60: =SUMIF('4.งานสนับสนุนการจัดการเรียนรู้'!#REF!,สรุปชั่วโมงสอนต่อสัปดาห์!I60,'4.งานสนับสนุนการจัดการเรียนรู้'!I$7:I$58) ->  | G60: =SUMIF('5.งานตอบสนองนโยบายและจุดเน้น'!#REF!,สรุปชั่วโมงสอนต่อสัปดาห์!I60,'5.งานตอบสนองนโยบายและจุดเน้น'!I$7:I$58) ->  | I60: 24 | J60: =IF(H60>ตัวแปร!C$37,1,"") -> 
B61: 2 | D61: 5 | E61: =SUMIF('3.ชั่วโมงสอนตามตารางสอน'!T$7:T$56,สรุปชั่วโมงสอนต่อสัปดาห์!I61,'3.ชั่วโมงสอนตามตารางสอน'!L$7:L$56) -> 0 | F61: =SUMIF('4.งานสนับสนุนการจัดการเรียนรู้'!#REF!,สรุปชั่วโมงสอนต่อสัปดาห์!I61,'4.งานสนับสนุนการจัดการเรียนรู้'!I$7:I$58) ->  | G61: =SUMIF('5.งานตอบสนองนโยบายและจุดเน้น'!#REF!,สรุปชั่วโมงสอนต่อสัปดาห์!I61,'5.งานตอบสนองนโยบายและจุดเน้น'!I$7:I$58) ->  | I61: 25 | J61: =IF(H61>ตัวแปร!C$37,1,"") -> 
B62: 2 | D62: 6 | E62: =SUMIF('3.ชั่วโมงสอนตามตารางสอน'!T$7:T$56,สรุปชั่วโมงสอนต่อสัปดาห์!I62,'3.ชั่วโมงสอนตามตารางสอน'!L$7:L$56) -> 0 | F62: =SUMIF('4.งานสนับสนุนการจัดการเรียนรู้'!#REF!,สรุปชั่วโมงสอนต่อสัปดาห์!I62,'4.งานสนับสนุนการจัดการเรียนรู้'!I$7:I$58) ->  | G62: =SUMIF('5.งานตอบสนองนโยบายและจุดเน้น'!#REF!,สรุปชั่วโมงสอนต่อสัปดาห์!I62,'5.งานตอบสนองนโยบายและจุดเน้น'!I$7:I$58) ->  | I62: 26 | J62: =IF(H62>ตัวแปร!C$37,1,"") -> 
B63: 2 | D63: 7 | E63: =SUMIF('3.ชั่วโมงสอนตามตารางสอน'!T$7:T$56,สรุปชั่วโมงสอนต่อสัปดาห์!I63,'3.ชั่วโมงสอนตามตารางสอน'!L$7:L$56) -> 0 | F63: =SUMIF('4.งานสนับสนุนการจัดการเรียนรู้'!#REF!,สรุปชั่วโมงสอนต่อสัปดาห์!I63,'4.งานสนับสนุนการจัดการเรียนรู้'!I$7:I$58) ->  | G63: =SUMIF('5.งานตอบสนองนโยบายและจุดเน้น'!#REF!,สรุปชั่วโมงสอนต่อสัปดาห์!I63,'5.งานตอบสนองนโยบายและจุดเน้น'!I$7:I$58) ->  | I63: 27 | J63: =IF(H63>ตัวแปร!C$37,1,"") -> 
B64: 2 | D64: 8 | E64: =SUMIF('3.ชั่วโมงสอนตามตารางสอน'!T$7:T$56,สรุปชั่วโมงสอนต่อสัปดาห์!I64,'3.ชั่วโมงสอนตามตารางสอน'!L$7:L$56) -> 0 | F64: =SUMIF('4.งานสนับสนุนการจัดการเรียนรู้'!#REF!,สรุปชั่วโมงสอนต่อสัปดาห์!I64,'4.งานสนับสนุนการจัดการเรียนรู้'!I$7:I$58) ->  | G64: =SUMIF('5.งานตอบสนองนโยบายและจุดเน้น'!#REF!,สรุปชั่วโมงสอนต่อสัปดาห์!I64,'5.งานตอบสนองนโยบายและจุดเน้น'!I$7:I$58) ->  | I64: 28 | J64: =IF(H64>ตัวแปร!C$37,1,"") -> 
B65: 2 | D65: 9 | E65: =SUMIF('3.ชั่วโมงสอนตามตารางสอน'!T$7:T$56,สรุปชั่วโมงสอนต่อสัปดาห์!I65,'3.ชั่วโมงสอนตามตารางสอน'!L$7:L$56) -> 0 | F65: =SUMIF('4.งานสนับสนุนการจัดการเรียนรู้'!#REF!,สรุปชั่วโมงสอนต่อสัปดาห์!I65,'4.งานสนับสนุนการจัดการเรียนรู้'!I$7:I$58) ->  | G65: =SUMIF('5.งานตอบสนองนโยบายและจุดเน้น'!#REF!,สรุปชั่วโมงสอนต่อสัปดาห์!I65,'5.งานตอบสนองนโยบายและจุดเน้น'!I$7:I$58) ->  | I65: 29 | J65: =IF(H65>ตัวแปร!C$37,1,"") -> 
B66: 2 | D66: 10 | E66: =SUMIF('3.ชั่วโมงสอนตามตารางสอน'!T$7:T$56,สรุปชั่วโมงสอนต่อสัปดาห์!I66,'3.ชั่วโมงสอนตามตารางสอน'!L$7:L$56) -> 0 | F66: =SUMIF('4.งานสนับสนุนการจัดการเรียนรู้'!#REF!,สรุปชั่วโมงสอนต่อสัปดาห์!I66,'4.งานสนับสนุนการจัดการเรียนรู้'!I$7:I$58) ->  | G66: =SUMIF('5.งานตอบสนองนโยบายและจุดเน้น'!#REF!,สรุปชั่วโมงสอนต่อสัปดาห์!I66,'5.งานตอบสนองนโยบายและจุดเน้น'!I$7:I$58) ->  | I66: 210 | J66: =IF(H66>ตัวแปร!C$37,1,"") -> 
B67: 2 | D67: 11 | E67: =SUMIF('3.ชั่วโมงสอนตามตารางสอน'!T$7:T$56,สรุปชั่วโมงสอนต่อสัปดาห์!I67,'3.ชั่วโมงสอนตามตารางสอน'!L$7:L$56) -> 0 | F67: =SUMIF('4.งานสนับสนุนการจัดการเรียนรู้'!#REF!,สรุปชั่วโมงสอนต่อสัปดาห์!I67,'4.งานสนับสนุนการจัดการเรียนรู้'!I$7:I$58) ->  | G67: =SUMIF('5.งานตอบสนองนโยบายและจุดเน้น'!#REF!,สรุปชั่วโมงสอนต่อสัปดาห์!I67,'5.งานตอบสนองนโยบายและจุดเน้น'!I$7:I$58) ->  | I67: 211 | J67: =IF(H67>ตัวแปร!C$37,1,"") -> 
B68: 2 | D68: 12 | E68: =SUMIF('3.ชั่วโมงสอนตามตารางสอน'!T$7:T$56,สรุปชั่วโมงสอนต่อสัปดาห์!I68,'3.ชั่วโมงสอนตามตารางสอน'!L$7:L$56) -> 0 | F68: =SUMIF('4.งานสนับสนุนการจัดการเรียนรู้'!#REF!,สรุปชั่วโมงสอนต่อสัปดาห์!I68,'4.งานสนับสนุนการจัดการเรียนรู้'!I$7:I$58) ->  | G68: =SUMIF('5.งานตอบสนองนโยบายและจุดเน้น'!#REF!,สรุปชั่วโมงสอนต่อสัปดาห์!I68,'5.งานตอบสนองนโยบายและจุดเน้น'!I$7:I$58) ->  | I68: 212 | J68: =IF(H68>ตัวแปร!C$37,1,"") -> 
B69: 2 | D69: 13 | E69: =SUMIF('3.ชั่วโมงสอนตามตารางสอน'!T$7:T$56,สรุปชั่วโมงสอนต่อสัปดาห์!I69,'3.ชั่วโมงสอนตามตารางสอน'!L$7:L$56) -> 0 | F69: =SUMIF('4.งานสนับสนุนการจัดการเรียนรู้'!#REF!,สรุปชั่วโมงสอนต่อสัปดาห์!I69,'4.งานสนับสนุนการจัดการเรียนรู้'!I$7:I$58) ->  | G69: =SUMIF('5.งานตอบสนองนโยบายและจุดเน้น'!#REF!,สรุปชั่วโมงสอนต่อสัปดาห์!I69,'5.งานตอบสนองนโยบายและจุดเน้น'!I$7:I$58) ->  | I69: 213 | J69: =IF(H69>ตัวแปร!C$37,1,"") -> 
B70: 2 | D70: 14 | E70: =SUMIF('3.ชั่วโมงสอนตามตารางสอน'!T$7:T$56,สรุปชั่วโมงสอนต่อสัปดาห์!I70,'3.ชั่วโมงสอนตามตารางสอน'!L$7:L$56) -> 0 | F70: =SUMIF('4.งานสนับสนุนการจัดการเรียนรู้'!#REF!,สรุปชั่วโมงสอนต่อสัปดาห์!I70,'4.งานสนับสนุนการจัดการเรียนรู้'!I$7:I$58) ->  | G70: =SUMIF('5.งานตอบสนองนโยบายและจุดเน้น'!#REF!,สรุปชั่วโมงสอนต่อสัปดาห์!I70,'5.งานตอบสนองนโยบายและจุดเน้น'!I$7:I$58) ->  | H70: =SUM(E70:G70) ->  | I70: =B70&+D70 -> 214 | J70: =IF(H70>ตัวแปร!C$37,1,"") ->  | K70: =IF(J70=1,"ตรวจสอบ","") -> 
B71: =IF(D70=52,B70+1,B70) -> 2 | D71: 15 | E71: =SUMIF('3.ชั่วโมงสอนตามตารางสอน'!T$7:T$56,สรุปชั่วโมงสอนต่อสัปดาห์!I71,'3.ชั่วโมงสอนตามตารางสอน'!L$7:L$56) -> 0 | F71: =SUMIF('4.งานสนับสนุนการจัดการเรียนรู้'!#REF!,สรุปชั่วโมงสอนต่อสัปดาห์!I71,'4.งานสนับสนุนการจัดการเรียนรู้'!I$7:I$58) ->  | G71: =SUMIF('5.งานตอบสนองนโยบายและจุดเน้น'!#REF!,สรุปชั่วโมงสอนต่อสัปดาห์!I71,'5.งานตอบสนองนโยบายและจุดเน้น'!I$7:I$58) ->  | I71: 215 | J71: =IF(H71>ตัวแปร!C$37,1,"") -> 
B72: 2 | D72: 16 | E72: =SUMIF('3.ชั่วโมงสอนตามตารางสอน'!T$7:T$56,สรุปชั่วโมงสอนต่อสัปดาห์!I72,'3.ชั่วโมงสอนตามตารางสอน'!L$7:L$56) -> 0 | F72: =SUMIF('4.งานสนับสนุนการจัดการเรียนรู้'!#REF!,สรุปชั่วโมงสอนต่อสัปดาห์!I72,'4.งานสนับสนุนการจัดการเรียนรู้'!I$7:I$58) ->  | G72: =SUMIF('5.งานตอบสนองนโยบายและจุดเน้น'!#REF!,สรุปชั่วโมงสอนต่อสัปดาห์!I72,'5.งานตอบสนองนโยบายและจุดเน้น'!I$7:I$58) ->  | I72: 216 | J72: =IF(H72>ตัวแปร!C$37,1,"") -> 
B73: 2 | D73: 17 | E73: =SUMIF('3.ชั่วโมงสอนตามตารางสอน'!T$7:T$56,สรุปชั่วโมงสอนต่อสัปดาห์!I73,'3.ชั่วโมงสอนตามตารางสอน'!L$7:L$56) -> 0 | F73: =SUMIF('4.งานสนับสนุนการจัดการเรียนรู้'!#REF!,สรุปชั่วโมงสอนต่อสัปดาห์!I73,'4.งานสนับสนุนการจัดการเรียนรู้'!I$7:I$58) ->  | G73: =SUMIF('5.งานตอบสนองนโยบายและจุดเน้น'!#REF!,สรุปชั่วโมงสอนต่อสัปดาห์!I73,'5.งานตอบสนองนโยบายและจุดเน้น'!I$7:I$58) ->  | I73: 217 | J73: =IF(H73>ตัวแปร!C$37,1,"") -> 
B74: 2 | D74: 18 | E74: =SUMIF('3.ชั่วโมงสอนตามตารางสอน'!T$7:T$56,สรุปชั่วโมงสอนต่อสัปดาห์!I74,'3.ชั่วโมงสอนตามตารางสอน'!L$7:L$56) -> 0 | F74: =SUMIF('4.งานสนับสนุนการจัดการเรียนรู้'!#REF!,สรุปชั่วโมงสอนต่อสัปดาห์!I74,'4.งานสนับสนุนการจัดการเรียนรู้'!I$7:I$58) ->  | G74: =SUMIF('5.งานตอบสนองนโยบายและจุดเน้น'!#REF!,สรุปชั่วโมงสอนต่อสัปดาห์!I74,'5.งานตอบสนองนโยบายและจุดเน้น'!I$7:I$58) ->  | I74: 218 | J74: =IF(H74>ตัวแปร!C$37,1,"") -> 
B75: 2 | D75: 19 | E75: =SUMIF('3.ชั่วโมงสอนตามตารางสอน'!T$7:T$56,สรุปชั่วโมงสอนต่อสัปดาห์!I75,'3.ชั่วโมงสอนตามตารางสอน'!L$7:L$56) -> 0 | F75: =SUMIF('4.งานสนับสนุนการจัดการเรียนรู้'!#REF!,สรุปชั่วโมงสอนต่อสัปดาห์!I75,'4.งานสนับสนุนการจัดการเรียนรู้'!I$7:I$58) ->  | G75: =SUMIF('5.งานตอบสนองนโยบายและจุดเน้น'!#REF!,สรุปชั่วโมงสอนต่อสัปดาห์!I75,'5.งานตอบสนองนโยบายและจุดเน้น'!I$7:I$58) ->  | I75: 219 | J75: =IF(H75>ตัวแปร!C$37,1,"") -> 
B76: 2 | D76: 20 | E76: =SUMIF('3.ชั่วโมงสอนตามตารางสอน'!T$7:T$56,สรุปชั่วโมงสอนต่อสัปดาห์!I76,'3.ชั่วโมงสอนตามตารางสอน'!L$7:L$56) -> 0 | F76: =SUMIF('4.งานสนับสนุนการจัดการเรียนรู้'!#REF!,สรุปชั่วโมงสอนต่อสัปดาห์!I76,'4.งานสนับสนุนการจัดการเรียนรู้'!I$7:I$58) ->  | G76: =SUMIF('5.งานตอบสนองนโยบายและจุดเน้น'!#REF!,สรุปชั่วโมงสอนต่อสัปดาห์!I76,'5.งานตอบสนองนโยบายและจุดเน้น'!I$7:I$58) ->  | I76: 220 | J76: =IF(H76>ตัวแปร!C$37,1,"") -> 
B77: 2 | D77: 21 | E77: =SUMIF('3.ชั่วโมงสอนตามตารางสอน'!T$7:T$56,สรุปชั่วโมงสอนต่อสัปดาห์!I77,'3.ชั่วโมงสอนตามตารางสอน'!L$7:L$56) -> 0 | F77: =SUMIF('4.งานสนับสนุนการจัดการเรียนรู้'!#REF!,สรุปชั่วโมงสอนต่อสัปดาห์!I77,'4.งานสนับสนุนการจัดการเรียนรู้'!I$7:I$58) ->  | G77: =SUMIF('5.งานตอบสนองนโยบายและจุดเน้น'!#REF!,สรุปชั่วโมงสอนต่อสัปดาห์!I77,'5.งานตอบสนองนโยบายและจุดเน้น'!I$7:I$58) ->  | I77: 221 | J77: =IF(H77>ตัวแปร!C$37,1,"") -> 
B78: 2 | D78: 22 | E78: =SUMIF('3.ชั่วโมงสอนตามตารางสอน'!T$7:T$56,สรุปชั่วโมงสอนต่อสัปดาห์!I78,'3.ชั่วโมงสอนตามตารางสอน'!L$7:L$56) -> 0 | F78: =SUMIF('4.งานสนับสนุนการจัดการเรียนรู้'!#REF!,สรุปชั่วโมงสอนต่อสัปดาห์!I78,'4.งานสนับสนุนการจัดการเรียนรู้'!I$7:I$58) ->  | G78: =SUMIF('5.งานตอบสนองนโยบายและจุดเน้น'!#REF!,สรุปชั่วโมงสอนต่อสัปดาห์!I78,'5.งานตอบสนองนโยบายและจุดเน้น'!I$7:I$58) ->  | I78: 222 | J78: =IF(H78>ตัวแปร!C$37,1,"") -> 
B79: 2 | D79: 23 | E79: =SUMIF('3.ชั่วโมงสอนตามตารางสอน'!T$7:T$56,สรุปชั่วโมงสอนต่อสัปดาห์!I79,'3.ชั่วโมงสอนตามตารางสอน'!L$7:L$56) -> 0 | F79: =SUMIF('4.งานสนับสนุนการจัดการเรียนรู้'!#REF!,สรุปชั่วโมงสอนต่อสัปดาห์!I79,'4.งานสนับสนุนการจัดการเรียนรู้'!I$7:I$58) ->  | G79: =SUMIF('5.งานตอบสนองนโยบายและจุดเน้น'!#REF!,สรุปชั่วโมงสอนต่อสัปดาห์!I79,'5.งานตอบสนองนโยบายและจุดเน้น'!I$7:I$58) ->  | I79: 223 | J79: =IF(H79>ตัวแปร!C$37,1,"") -> 
B80: 2 | D80: 24 | E80: =SUMIF('3.ชั่วโมงสอนตามตารางสอน'!T$7:T$56,สรุปชั่วโมงสอนต่อสัปดาห์!I80,'3.ชั่วโมงสอนตามตารางสอน'!L$7:L$56) -> 0 | F80: =SUMIF('4.งานสนับสนุนการจัดการเรียนรู้'!#REF!,สรุปชั่วโมงสอนต่อสัปดาห์!I80,'4.งานสนับสนุนการจัดการเรียนรู้'!I$7:I$58) ->  | G80: =SUMIF('5.งานตอบสนองนโยบายและจุดเน้น'!#REF!,สรุปชั่วโมงสอนต่อสัปดาห์!I80,'5.งานตอบสนองนโยบายและจุดเน้น'!I$7:I$58) ->  | I80: 224 | J80: =IF(H80>ตัวแปร!C$37,1,"") -> 
B81: 2 | D81: 25 | E81: =SUMIF('3.ชั่วโมงสอนตามตารางสอน'!T$7:T$56,สรุปชั่วโมงสอนต่อสัปดาห์!I81,'3.ชั่วโมงสอนตามตารางสอน'!L$7:L$56) -> 0 | F81: =SUMIF('4.งานสนับสนุนการจัดการเรียนรู้'!#REF!,สรุปชั่วโมงสอนต่อสัปดาห์!I81,'4.งานสนับสนุนการจัดการเรียนรู้'!I$7:I$58) ->  | G81: =SUMIF('5.งานตอบสนองนโยบายและจุดเน้น'!#REF!,สรุปชั่วโมงสอนต่อสัปดาห์!I81,'5.งานตอบสนองนโยบายและจุดเน้น'!I$7:I$58) ->  | I81: 225 | J81: =IF(H81>ตัวแปร!C$37,1,"") -> 
B82: 2 | D82: 26 | E82: =SUMIF('3.ชั่วโมงสอนตามตารางสอน'!T$7:T$56,สรุปชั่วโมงสอนต่อสัปดาห์!I82,'3.ชั่วโมงสอนตามตารางสอน'!L$7:L$56) -> 0 | F82: =SUMIF('4.งานสนับสนุนการจัดการเรียนรู้'!#REF!,สรุปชั่วโมงสอนต่อสัปดาห์!I82,'4.งานสนับสนุนการจัดการเรียนรู้'!I$7:I$58) ->  | G82: =SUMIF('5.งานตอบสนองนโยบายและจุดเน้น'!#REF!,สรุปชั่วโมงสอนต่อสัปดาห์!I82,'5.งานตอบสนองนโยบายและจุดเน้น'!I$7:I$58) ->  | I82: 226 | J82: =IF(H82>ตัวแปร!C$37,1,"") -> 
B83: 2 | D83: 27 | E83: =SUMIF('3.ชั่วโมงสอนตามตารางสอน'!T$7:T$56,สรุปชั่วโมงสอนต่อสัปดาห์!I83,'3.ชั่วโมงสอนตามตารางสอน'!L$7:L$56) -> 0 | F83: =SUMIF('4.งานสนับสนุนการจัดการเรียนรู้'!#REF!,สรุปชั่วโมงสอนต่อสัปดาห์!I83,'4.งานสนับสนุนการจัดการเรียนรู้'!I$7:I$58) ->  | G83: =SUMIF('5.งานตอบสนองนโยบายและจุดเน้น'!#REF!,สรุปชั่วโมงสอนต่อสัปดาห์!I83,'5.งานตอบสนองนโยบายและจุดเน้น'!I$7:I$58) ->  | I83: 227 | J83: =IF(H83>ตัวแปร!C$37,1,"") -> 
B84: 2 | D84: 28 | E84: =SUMIF('3.ชั่วโมงสอนตามตารางสอน'!T$7:T$56,สรุปชั่วโมงสอนต่อสัปดาห์!I84,'3.ชั่วโมงสอนตามตารางสอน'!L$7:L$56) -> 0 | F84: =SUMIF('4.งานสนับสนุนการจัดการเรียนรู้'!#REF!,สรุปชั่วโมงสอนต่อสัปดาห์!I84,'4.งานสนับสนุนการจัดการเรียนรู้'!I$7:I$58) ->  | G84: =SUMIF('5.งานตอบสนองนโยบายและจุดเน้น'!#REF!,สรุปชั่วโมงสอนต่อสัปดาห์!I84,'5.งานตอบสนองนโยบายและจุดเน้น'!I$7:I$58) ->  | I84: 228 | J84: =IF(H84>ตัวแปร!C$37,1,"") -> 
B85: 2 | D85: 29 | E85: =SUMIF('3.ชั่วโมงสอนตามตารางสอน'!T$7:T$56,สรุปชั่วโมงสอนต่อสัปดาห์!I85,'3.ชั่วโมงสอนตามตารางสอน'!L$7:L$56) -> 0 | F85: =SUMIF('4.งานสนับสนุนการจัดการเรียนรู้'!#REF!,สรุปชั่วโมงสอนต่อสัปดาห์!I85,'4.งานสนับสนุนการจัดการเรียนรู้'!I$7:I$58) ->  | G85: =SUMIF('5.งานตอบสนองนโยบายและจุดเน้น'!#REF!,สรุปชั่วโมงสอนต่อสัปดาห์!I85,'5.งานตอบสนองนโยบายและจุดเน้น'!I$7:I$58) ->  | I85: 229 | J85: =IF(H85>ตัวแปร!C$37,1,"") -> 
B86: 2 | D86: 30 | E86: =SUMIF('3.ชั่วโมงสอนตามตารางสอน'!T$7:T$56,สรุปชั่วโมงสอนต่อสัปดาห์!I86,'3.ชั่วโมงสอนตามตารางสอน'!L$7:L$56) -> 0 | F86: =SUMIF('4.งานสนับสนุนการจัดการเรียนรู้'!#REF!,สรุปชั่วโมงสอนต่อสัปดาห์!I86,'4.งานสนับสนุนการจัดการเรียนรู้'!I$7:I$58) ->  | G86: =SUMIF('5.งานตอบสนองนโยบายและจุดเน้น'!#REF!,สรุปชั่วโมงสอนต่อสัปดาห์!I86,'5.งานตอบสนองนโยบายและจุดเน้น'!I$7:I$58) ->  | I86: 230 | J86: =IF(H86>ตัวแปร!C$37,1,"") -> 
B87: 2 | D87: 31 | E87: =SUMIF('3.ชั่วโมงสอนตามตารางสอน'!T$7:T$56,สรุปชั่วโมงสอนต่อสัปดาห์!I87,'3.ชั่วโมงสอนตามตารางสอน'!L$7:L$56) -> 0 | F87: =SUMIF('4.งานสนับสนุนการจัดการเรียนรู้'!#REF!,สรุปชั่วโมงสอนต่อสัปดาห์!I87,'4.งานสนับสนุนการจัดการเรียนรู้'!I$7:I$58) ->  | G87: =SUMIF('5.งานตอบสนองนโยบายและจุดเน้น'!#REF!,สรุปชั่วโมงสอนต่อสัปดาห์!I87,'5.งานตอบสนองนโยบายและจุดเน้น'!I$7:I$58) ->  | I87: 231 | J87: =IF(H87>ตัวแปร!C$37,1,"") -> 
B88: 2 | D88: 32 | E88: =SUMIF('3.ชั่วโมงสอนตามตารางสอน'!T$7:T$56,สรุปชั่วโมงสอนต่อสัปดาห์!I88,'3.ชั่วโมงสอนตามตารางสอน'!L$7:L$56) -> 0 | F88: =SUMIF('4.งานสนับสนุนการจัดการเรียนรู้'!#REF!,สรุปชั่วโมงสอนต่อสัปดาห์!I88,'4.งานสนับสนุนการจัดการเรียนรู้'!I$7:I$58) ->  | G88: =SUMIF('5.งานตอบสนองนโยบายและจุดเน้น'!#REF!,สรุปชั่วโมงสอนต่อสัปดาห์!I88,'5.งานตอบสนองนโยบายและจุดเน้น'!I$7:I$58) ->  | I88: 232 | J88: =IF(H88>ตัวแปร!C$37,1,"") -> 
B89: 2 | D89: 33 | E89: =SUMIF('3.ชั่วโมงสอนตามตารางสอน'!T$7:T$56,สรุปชั่วโมงสอนต่อสัปดาห์!I89,'3.ชั่วโมงสอนตามตารางสอน'!L$7:L$56) -> 0 | F89: =SUMIF('4.งานสนับสนุนการจัดการเรียนรู้'!#REF!,สรุปชั่วโมงสอนต่อสัปดาห์!I89,'4.งานสนับสนุนการจัดการเรียนรู้'!I$7:I$58) ->  | G89: =SUMIF('5.งานตอบสนองนโยบายและจุดเน้น'!#REF!,สรุปชั่วโมงสอนต่อสัปดาห์!I89,'5.งานตอบสนองนโยบายและจุดเน้น'!I$7:I$58) ->  | I89: 233 | J89: =IF(H89>ตัวแปร!C$37,1,"") -> 
B90: 2 | D90: 34 | E90: =SUMIF('3.ชั่วโมงสอนตามตารางสอน'!T$7:T$56,สรุปชั่วโมงสอนต่อสัปดาห์!I90,'3.ชั่วโมงสอนตามตารางสอน'!L$7:L$56) -> 0 | F90: =SUMIF('4.งานสนับสนุนการจัดการเรียนรู้'!#REF!,สรุปชั่วโมงสอนต่อสัปดาห์!I90,'4.งานสนับสนุนการจัดการเรียนรู้'!I$7:I$58) ->  | G90: =SUMIF('5.งานตอบสนองนโยบายและจุดเน้น'!#REF!,สรุปชั่วโมงสอนต่อสัปดาห์!I90,'5.งานตอบสนองนโยบายและจุดเน้น'!I$7:I$58) ->  | I90: 234 | J90: =IF(H90>ตัวแปร!C$37,1,"") -> 
B91: 2 | D91: 35 | E91: =SUMIF('3.ชั่วโมงสอนตามตารางสอน'!T$7:T$56,สรุปชั่วโมงสอนต่อสัปดาห์!I91,'3.ชั่วโมงสอนตามตารางสอน'!L$7:L$56) -> 0 | F91: =SUMIF('4.งานสนับสนุนการจัดการเรียนรู้'!#REF!,สรุปชั่วโมงสอนต่อสัปดาห์!I91,'4.งานสนับสนุนการจัดการเรียนรู้'!I$7:I$58) ->  | G91: =SUMIF('5.งานตอบสนองนโยบายและจุดเน้น'!#REF!,สรุปชั่วโมงสอนต่อสัปดาห์!I91,'5.งานตอบสนองนโยบายและจุดเน้น'!I$7:I$58) ->  | I91: 235 | J91: =IF(H91>ตัวแปร!C$37,1,"") -> 
B92: 2 | D92: 36 | E92: =SUMIF('3.ชั่วโมงสอนตามตารางสอน'!T$7:T$56,สรุปชั่วโมงสอนต่อสัปดาห์!I92,'3.ชั่วโมงสอนตามตารางสอน'!L$7:L$56) -> 0 | F92: =SUMIF('4.งานสนับสนุนการจัดการเรียนรู้'!#REF!,สรุปชั่วโมงสอนต่อสัปดาห์!I92,'4.งานสนับสนุนการจัดการเรียนรู้'!I$7:I$58) ->  | G92: =SUMIF('5.งานตอบสนองนโยบายและจุดเน้น'!#REF!,สรุปชั่วโมงสอนต่อสัปดาห์!I92,'5.งานตอบสนองนโยบายและจุดเน้น'!I$7:I$58) ->  | I92: 236 | J92: =IF(H92>ตัวแปร!C$37,1,"") -> 
B93: 2 | D93: 37 | E93: =SUMIF('3.ชั่วโมงสอนตามตารางสอน'!T$7:T$56,สรุปชั่วโมงสอนต่อสัปดาห์!I93,'3.ชั่วโมงสอนตามตารางสอน'!L$7:L$56) -> 0 | F93: =SUMIF('4.งานสนับสนุนการจัดการเรียนรู้'!#REF!,สรุปชั่วโมงสอนต่อสัปดาห์!I93,'4.งานสนับสนุนการจัดการเรียนรู้'!I$7:I$58) ->  | G93: =SUMIF('5.งานตอบสนองนโยบายและจุดเน้น'!#REF!,สรุปชั่วโมงสอนต่อสัปดาห์!I93,'5.งานตอบสนองนโยบายและจุดเน้น'!I$7:I$58) ->  | I93: 237 | J93: =IF(H93>ตัวแปร!C$37,1,"") -> 
B94: 2 | D94: 38 | E94: =SUMIF('3.ชั่วโมงสอนตามตารางสอน'!T$7:T$56,สรุปชั่วโมงสอนต่อสัปดาห์!I94,'3.ชั่วโมงสอนตามตารางสอน'!L$7:L$56) -> 0 | F94: =SUMIF('4.งานสนับสนุนการจัดการเรียนรู้'!#REF!,สรุปชั่วโมงสอนต่อสัปดาห์!I94,'4.งานสนับสนุนการจัดการเรียนรู้'!I$7:I$58) ->  | G94: =SUMIF('5.งานตอบสนองนโยบายและจุดเน้น'!#REF!,สรุปชั่วโมงสอนต่อสัปดาห์!I94,'5.งานตอบสนองนโยบายและจุดเน้น'!I$7:I$58) ->  | I94: 238 | J94: =IF(H94>ตัวแปร!C$37,1,"") -> 
B95: 2 | D95: 39 | E95: =SUMIF('3.ชั่วโมงสอนตามตารางสอน'!T$7:T$56,สรุปชั่วโมงสอนต่อสัปดาห์!I95,'3.ชั่วโมงสอนตามตารางสอน'!L$7:L$56) -> 0 | F95: =SUMIF('4.งานสนับสนุนการจัดการเรียนรู้'!#REF!,สรุปชั่วโมงสอนต่อสัปดาห์!I95,'4.งานสนับสนุนการจัดการเรียนรู้'!I$7:I$58) ->  | G95: =SUMIF('5.งานตอบสนองนโยบายและจุดเน้น'!#REF!,สรุปชั่วโมงสอนต่อสัปดาห์!I95,'5.งานตอบสนองนโยบายและจุดเน้น'!I$7:I$58) ->  | I95: 239 | J95: =IF(H95>ตัวแปร!C$37,1,"") -> 
B96: 2 | D96: 40 | E96: =SUMIF('3.ชั่วโมงสอนตามตารางสอน'!T$7:T$56,สรุปชั่วโมงสอนต่อสัปดาห์!I96,'3.ชั่วโมงสอนตามตารางสอน'!L$7:L$56) -> 0 | F96: =SUMIF('4.งานสนับสนุนการจัดการเรียนรู้'!#REF!,สรุปชั่วโมงสอนต่อสัปดาห์!I96,'4.งานสนับสนุนการจัดการเรียนรู้'!I$7:I$58) ->  | G96: =SUMIF('5.งานตอบสนองนโยบายและจุดเน้น'!#REF!,สรุปชั่วโมงสอนต่อสัปดาห์!I96,'5.งานตอบสนองนโยบายและจุดเน้น'!I$7:I$58) ->  | I96: 240 | J96: =IF(H96>ตัวแปร!C$37,1,"") -> 
B97: 2 | D97: 41 | E97: =SUMIF('3.ชั่วโมงสอนตามตารางสอน'!T$7:T$56,สรุปชั่วโมงสอนต่อสัปดาห์!I97,'3.ชั่วโมงสอนตามตารางสอน'!L$7:L$56) -> 0 | F97: =SUMIF('4.งานสนับสนุนการจัดการเรียนรู้'!#REF!,สรุปชั่วโมงสอนต่อสัปดาห์!I97,'4.งานสนับสนุนการจัดการเรียนรู้'!I$7:I$58) ->  | G97: =SUMIF('5.งานตอบสนองนโยบายและจุดเน้น'!#REF!,สรุปชั่วโมงสอนต่อสัปดาห์!I97,'5.งานตอบสนองนโยบายและจุดเน้น'!I$7:I$58) ->  | I97: 241 | J97: =IF(H97>ตัวแปร!C$37,1,"") -> 
B98: 2 | D98: 42 | E98: =SUMIF('3.ชั่วโมงสอนตามตารางสอน'!T$7:T$56,สรุปชั่วโมงสอนต่อสัปดาห์!I98,'3.ชั่วโมงสอนตามตารางสอน'!L$7:L$56) -> 0 | F98: =SUMIF('4.งานสนับสนุนการจัดการเรียนรู้'!#REF!,สรุปชั่วโมงสอนต่อสัปดาห์!I98,'4.งานสนับสนุนการจัดการเรียนรู้'!I$7:I$58) ->  | G98: =SUMIF('5.งานตอบสนองนโยบายและจุดเน้น'!#REF!,สรุปชั่วโมงสอนต่อสัปดาห์!I98,'5.งานตอบสนองนโยบายและจุดเน้น'!I$7:I$58) ->  | I98: 242 | J98: =IF(H98>ตัวแปร!C$37,1,"") -> 
B99: 2 | D99: 43 | E99: =SUMIF('3.ชั่วโมงสอนตามตารางสอน'!T$7:T$56,สรุปชั่วโมงสอนต่อสัปดาห์!I99,'3.ชั่วโมงสอนตามตารางสอน'!L$7:L$56) -> 0 | F99: =SUMIF('4.งานสนับสนุนการจัดการเรียนรู้'!#REF!,สรุปชั่วโมงสอนต่อสัปดาห์!I99,'4.งานสนับสนุนการจัดการเรียนรู้'!I$7:I$58) ->  | G99: =SUMIF('5.งานตอบสนองนโยบายและจุดเน้น'!#REF!,สรุปชั่วโมงสอนต่อสัปดาห์!I99,'5.งานตอบสนองนโยบายและจุดเน้น'!I$7:I$58) ->  | I99: 243 | J99: =IF(H99>ตัวแปร!C$37,1,"") -> 
B100: 2 | D100: 44 | E100: =SUMIF('3.ชั่วโมงสอนตามตารางสอน'!T$7:T$56,สรุปชั่วโมงสอนต่อสัปดาห์!I100,'3.ชั่วโมงสอนตามตารางสอน'!L$7:L$56) -> 0 | F100: =SUMIF('4.งานสนับสนุนการจัดการเรียนรู้'!#REF!,สรุปชั่วโมงสอนต่อสัปดาห์!I100,'4.งานสนับสนุนการจัดการเรียนรู้'!I$7:I$58) ->  | G100: =SUMIF('5.งานตอบสนองนโยบายและจุดเน้น'!#REF!,สรุปชั่วโมงสอนต่อสัปดาห์!I100,'5.งานตอบสนองนโยบายและจุดเน้น'!I$7:I$58) ->  | I100: 244 | J100: =IF(H100>ตัวแปร!C$37,1,"") -> 
B101: 2 | D101: 45 | E101: =SUMIF('3.ชั่วโมงสอนตามตารางสอน'!T$7:T$56,สรุปชั่วโมงสอนต่อสัปดาห์!I101,'3.ชั่วโมงสอนตามตารางสอน'!L$7:L$56) -> 0 | F101: =SUMIF('4.งานสนับสนุนการจัดการเรียนรู้'!#REF!,สรุปชั่วโมงสอนต่อสัปดาห์!I101,'4.งานสนับสนุนการจัดการเรียนรู้'!I$7:I$58) ->  | G101: =SUMIF('5.งานตอบสนองนโยบายและจุดเน้น'!#REF!,สรุปชั่วโมงสอนต่อสัปดาห์!I101,'5.งานตอบสนองนโยบายและจุดเน้น'!I$7:I$58) ->  | I101: 245 | J101: =IF(H101>ตัวแปร!C$37,1,"") -> 
B102: 2 | D102: 46 | E102: =SUMIF('3.ชั่วโมงสอนตามตารางสอน'!T$7:T$56,สรุปชั่วโมงสอนต่อสัปดาห์!I102,'3.ชั่วโมงสอนตามตารางสอน'!L$7:L$56) -> 0 | F102: =SUMIF('4.งานสนับสนุนการจัดการเรียนรู้'!#REF!,สรุปชั่วโมงสอนต่อสัปดาห์!I102,'4.งานสนับสนุนการจัดการเรียนรู้'!I$7:I$58) ->  | G102: =SUMIF('5.งานตอบสนองนโยบายและจุดเน้น'!#REF!,สรุปชั่วโมงสอนต่อสัปดาห์!I102,'5.งานตอบสนองนโยบายและจุดเน้น'!I$7:I$58) ->  | I102: 246 | J102: =IF(H102>ตัวแปร!C$37,1,"") -> 
B103: 2 | D103: 47 | E103: =SUMIF('3.ชั่วโมงสอนตามตารางสอน'!T$7:T$56,สรุปชั่วโมงสอนต่อสัปดาห์!I103,'3.ชั่วโมงสอนตามตารางสอน'!L$7:L$56) -> 0 | F103: =SUMIF('4.งานสนับสนุนการจัดการเรียนรู้'!#REF!,สรุปชั่วโมงสอนต่อสัปดาห์!I103,'4.งานสนับสนุนการจัดการเรียนรู้'!I$7:I$58) ->  | G103: =SUMIF('5.งานตอบสนองนโยบายและจุดเน้น'!#REF!,สรุปชั่วโมงสอนต่อสัปดาห์!I103,'5.งานตอบสนองนโยบายและจุดเน้น'!I$7:I$58) ->  | I103: 247 | J103: =IF(H103>ตัวแปร!C$37,1,"") -> 
B104: 2 | D104: 48 | E104: =SUMIF('3.ชั่วโมงสอนตามตารางสอน'!T$7:T$56,สรุปชั่วโมงสอนต่อสัปดาห์!I104,'3.ชั่วโมงสอนตามตารางสอน'!L$7:L$56) -> 0 | F104: =SUMIF('4.งานสนับสนุนการจัดการเรียนรู้'!#REF!,สรุปชั่วโมงสอนต่อสัปดาห์!I104,'4.งานสนับสนุนการจัดการเรียนรู้'!I$7:I$58) ->  | G104: =SUMIF('5.งานตอบสนองนโยบายและจุดเน้น'!#REF!,สรุปชั่วโมงสอนต่อสัปดาห์!I104,'5.งานตอบสนองนโยบายและจุดเน้น'!I$7:I$58) ->  | I104: 248 | J104: =IF(H104>ตัวแปร!C$37,1,"") -> 
B105: 2 | D105: 49 | E105: =SUMIF('3.ชั่วโมงสอนตามตารางสอน'!T$7:T$56,สรุปชั่วโมงสอนต่อสัปดาห์!I105,'3.ชั่วโมงสอนตามตารางสอน'!L$7:L$56) -> 0 | F105: =SUMIF('4.งานสนับสนุนการจัดการเรียนรู้'!#REF!,สรุปชั่วโมงสอนต่อสัปดาห์!I105,'4.งานสนับสนุนการจัดการเรียนรู้'!I$7:I$58) ->  | G105: =SUMIF('5.งานตอบสนองนโยบายและจุดเน้น'!#REF!,สรุปชั่วโมงสอนต่อสัปดาห์!I105,'5.งานตอบสนองนโยบายและจุดเน้น'!I$7:I$58) ->  | I105: 249 | J105: =IF(H105>ตัวแปร!C$37,1,"") -> 
B106: 2 | D106: 50 | E106: =SUMIF('3.ชั่วโมงสอนตามตารางสอน'!T$7:T$56,สรุปชั่วโมงสอนต่อสัปดาห์!I106,'3.ชั่วโมงสอนตามตารางสอน'!L$7:L$56) -> 0 | F106: =SUMIF('4.งานสนับสนุนการจัดการเรียนรู้'!#REF!,สรุปชั่วโมงสอนต่อสัปดาห์!I106,'4.งานสนับสนุนการจัดการเรียนรู้'!I$7:I$58) ->  | G106: =SUMIF('5.งานตอบสนองนโยบายและจุดเน้น'!#REF!,สรุปชั่วโมงสอนต่อสัปดาห์!I106,'5.งานตอบสนองนโยบายและจุดเน้น'!I$7:I$58) ->  | I106: 250 | J106: =IF(H106>ตัวแปร!C$37,1,"") -> 
B107: 2 | D107: 51 | E107: =SUMIF('3.ชั่วโมงสอนตามตารางสอน'!T$7:T$56,สรุปชั่วโมงสอนต่อสัปดาห์!I107,'3.ชั่วโมงสอนตามตารางสอน'!L$7:L$56) -> 0 | F107: =SUMIF('4.งานสนับสนุนการจัดการเรียนรู้'!#REF!,สรุปชั่วโมงสอนต่อสัปดาห์!I107,'4.งานสนับสนุนการจัดการเรียนรู้'!I$7:I$58) ->  | G107: =SUMIF('5.งานตอบสนองนโยบายและจุดเน้น'!#REF!,สรุปชั่วโมงสอนต่อสัปดาห์!I107,'5.งานตอบสนองนโยบายและจุดเน้น'!I$7:I$58) ->  | I107: 251 | J107: =IF(H107>ตัวแปร!C$37,1,"") -> 
B108: 2 | D108: 52 | E108: =SUMIF('3.ชั่วโมงสอนตามตารางสอน'!T$7:T$56,สรุปชั่วโมงสอนต่อสัปดาห์!I108,'3.ชั่วโมงสอนตามตารางสอน'!L$7:L$56) -> 0 | F108: =SUMIF('4.งานสนับสนุนการจัดการเรียนรู้'!#REF!,สรุปชั่วโมงสอนต่อสัปดาห์!I108,'4.งานสนับสนุนการจัดการเรียนรู้'!I$7:I$58) ->  | G108: =SUMIF('5.งานตอบสนองนโยบายและจุดเน้น'!#REF!,สรุปชั่วโมงสอนต่อสัปดาห์!I108,'5.งานตอบสนองนโยบายและจุดเน้น'!I$7:I$58) ->  | I108: 252 | J108: =IF(H108>ตัวแปร!C$37,1,"") -> 
B109: 3 | D109: 1 | E109: =SUMIF('3.ชั่วโมงสอนตามตารางสอน'!T$7:T$56,สรุปชั่วโมงสอนต่อสัปดาห์!I109,'3.ชั่วโมงสอนตามตารางสอน'!L$7:L$56) -> 0 | F109: =SUMIF('4.งานสนับสนุนการจัดการเรียนรู้'!#REF!,สรุปชั่วโมงสอนต่อสัปดาห์!I109,'4.งานสนับสนุนการจัดการเรียนรู้'!I$7:I$58) ->  | G109: =SUMIF('5.งานตอบสนองนโยบายและจุดเน้น'!#REF!,สรุปชั่วโมงสอนต่อสัปดาห์!I109,'5.งานตอบสนองนโยบายและจุดเน้น'!I$7:I$58) ->  | I109: 31 | J109: =IF(H109>ตัวแปร!C$37,1,"") -> 
B110: 3 | D110: 2 | E110: =SUMIF('3.ชั่วโมงสอนตามตารางสอน'!T$7:T$56,สรุปชั่วโมงสอนต่อสัปดาห์!I110,'3.ชั่วโมงสอนตามตารางสอน'!L$7:L$56) -> 0 | F110: =SUMIF('4.งานสนับสนุนการจัดการเรียนรู้'!#REF!,สรุปชั่วโมงสอนต่อสัปดาห์!I110,'4.งานสนับสนุนการจัดการเรียนรู้'!I$7:I$58) ->  | G110: =SUMIF('5.งานตอบสนองนโยบายและจุดเน้น'!#REF!,สรุปชั่วโมงสอนต่อสัปดาห์!I110,'5.งานตอบสนองนโยบายและจุดเน้น'!I$7:I$58) ->  | I110: 32 | J110: =IF(H110>ตัวแปร!C$37,1,"") -> 
B111: 3 | D111: 3 | E111: =SUMIF('3.ชั่วโมงสอนตามตารางสอน'!T$7:T$56,สรุปชั่วโมงสอนต่อสัปดาห์!I111,'3.ชั่วโมงสอนตามตารางสอน'!L$7:L$56) -> 0 | F111: =SUMIF('4.งานสนับสนุนการจัดการเรียนรู้'!#REF!,สรุปชั่วโมงสอนต่อสัปดาห์!I111,'4.งานสนับสนุนการจัดการเรียนรู้'!I$7:I$58) ->  | G111: =SUMIF('5.งานตอบสนองนโยบายและจุดเน้น'!#REF!,สรุปชั่วโมงสอนต่อสัปดาห์!I111,'5.งานตอบสนองนโยบายและจุดเน้น'!I$7:I$58) ->  | I111: 33 | J111: =IF(H111>ตัวแปร!C$37,1,"") -> 
B112: 3 | D112: 4 | E112: =SUMIF('3.ชั่วโมงสอนตามตารางสอน'!T$7:T$56,สรุปชั่วโมงสอนต่อสัปดาห์!I112,'3.ชั่วโมงสอนตามตารางสอน'!L$7:L$56) -> 0 | F112: =SUMIF('4.งานสนับสนุนการจัดการเรียนรู้'!#REF!,สรุปชั่วโมงสอนต่อสัปดาห์!I112,'4.งานสนับสนุนการจัดการเรียนรู้'!I$7:I$58) ->  | G112: =SUMIF('5.งานตอบสนองนโยบายและจุดเน้น'!#REF!,สรุปชั่วโมงสอนต่อสัปดาห์!I112,'5.งานตอบสนองนโยบายและจุดเน้น'!I$7:I$58) ->  | I112: 34 | J112: =IF(H112>ตัวแปร!C$37,1,"") -> 
B113: 3 | D113: 5 | E113: =SUMIF('3.ชั่วโมงสอนตามตารางสอน'!T$7:T$56,สรุปชั่วโมงสอนต่อสัปดาห์!I113,'3.ชั่วโมงสอนตามตารางสอน'!L$7:L$56) -> 0 | F113: =SUMIF('4.งานสนับสนุนการจัดการเรียนรู้'!#REF!,สรุปชั่วโมงสอนต่อสัปดาห์!I113,'4.งานสนับสนุนการจัดการเรียนรู้'!I$7:I$58) ->  | G113: =SUMIF('5.งานตอบสนองนโยบายและจุดเน้น'!#REF!,สรุปชั่วโมงสอนต่อสัปดาห์!I113,'5.งานตอบสนองนโยบายและจุดเน้น'!I$7:I$58) ->  | I113: 35 | J113: =IF(H113>ตัวแปร!C$37,1,"") -> 
B114: 3 | D114: 6 | E114: =SUMIF('3.ชั่วโมงสอนตามตารางสอน'!T$7:T$56,สรุปชั่วโมงสอนต่อสัปดาห์!I114,'3.ชั่วโมงสอนตามตารางสอน'!L$7:L$56) -> 0 | F114: =SUMIF('4.งานสนับสนุนการจัดการเรียนรู้'!#REF!,สรุปชั่วโมงสอนต่อสัปดาห์!I114,'4.งานสนับสนุนการจัดการเรียนรู้'!I$7:I$58) ->  | G114: =SUMIF('5.งานตอบสนองนโยบายและจุดเน้น'!#REF!,สรุปชั่วโมงสอนต่อสัปดาห์!I114,'5.งานตอบสนองนโยบายและจุดเน้น'!I$7:I$58) ->  | I114: 36 | J114: =IF(H114>ตัวแปร!C$37,1,"") -> 
B115: 3 | D115: 7 | E115: =SUMIF('3.ชั่วโมงสอนตามตารางสอน'!T$7:T$56,สรุปชั่วโมงสอนต่อสัปดาห์!I115,'3.ชั่วโมงสอนตามตารางสอน'!L$7:L$56) -> 0 | F115: =SUMIF('4.งานสนับสนุนการจัดการเรียนรู้'!#REF!,สรุปชั่วโมงสอนต่อสัปดาห์!I115,'4.งานสนับสนุนการจัดการเรียนรู้'!I$7:I$58) ->  | G115: =SUMIF('5.งานตอบสนองนโยบายและจุดเน้น'!#REF!,สรุปชั่วโมงสอนต่อสัปดาห์!I115,'5.งานตอบสนองนโยบายและจุดเน้น'!I$7:I$58) ->  | I115: 37 | J115: =IF(H115>ตัวแปร!C$37,1,"") -> 
B116: 3 | D116: 8 | E116: =SUMIF('3.ชั่วโมงสอนตามตารางสอน'!T$7:T$56,สรุปชั่วโมงสอนต่อสัปดาห์!I116,'3.ชั่วโมงสอนตามตารางสอน'!L$7:L$56) -> 0 | F116: =SUMIF('4.งานสนับสนุนการจัดการเรียนรู้'!#REF!,สรุปชั่วโมงสอนต่อสัปดาห์!I116,'4.งานสนับสนุนการจัดการเรียนรู้'!I$7:I$58) ->  | G116: =SUMIF('5.งานตอบสนองนโยบายและจุดเน้น'!#REF!,สรุปชั่วโมงสอนต่อสัปดาห์!I116,'5.งานตอบสนองนโยบายและจุดเน้น'!I$7:I$58) ->  | I116: 38 | J116: =IF(H116>ตัวแปร!C$37,1,"") -> 
B117: 3 | D117: 9 | E117: =SUMIF('3.ชั่วโมงสอนตามตารางสอน'!T$7:T$56,สรุปชั่วโมงสอนต่อสัปดาห์!I117,'3.ชั่วโมงสอนตามตารางสอน'!L$7:L$56) -> 0 | F117: =SUMIF('4.งานสนับสนุนการจัดการเรียนรู้'!#REF!,สรุปชั่วโมงสอนต่อสัปดาห์!I117,'4.งานสนับสนุนการจัดการเรียนรู้'!I$7:I$58) ->  | G117: =SUMIF('5.งานตอบสนองนโยบายและจุดเน้น'!#REF!,สรุปชั่วโมงสอนต่อสัปดาห์!I117,'5.งานตอบสนองนโยบายและจุดเน้น'!I$7:I$58) ->  | I117: 39 | J117: =IF(H117>ตัวแปร!C$37,1,"") -> 
B118: 3 | D118: 10 | E118: =SUMIF('3.ชั่วโมงสอนตามตารางสอน'!T$7:T$56,สรุปชั่วโมงสอนต่อสัปดาห์!I118,'3.ชั่วโมงสอนตามตารางสอน'!L$7:L$56) -> 0 | F118: =SUMIF('4.งานสนับสนุนการจัดการเรียนรู้'!#REF!,สรุปชั่วโมงสอนต่อสัปดาห์!I118,'4.งานสนับสนุนการจัดการเรียนรู้'!I$7:I$58) ->  | G118: =SUMIF('5.งานตอบสนองนโยบายและจุดเน้น'!#REF!,สรุปชั่วโมงสอนต่อสัปดาห์!I118,'5.งานตอบสนองนโยบายและจุดเน้น'!I$7:I$58) ->  | I118: 310 | J118: =IF(H118>ตัวแปร!C$37,1,"") -> 
B119: 3 | D119: 11 | E119: =SUMIF('3.ชั่วโมงสอนตามตารางสอน'!T$7:T$56,สรุปชั่วโมงสอนต่อสัปดาห์!I119,'3.ชั่วโมงสอนตามตารางสอน'!L$7:L$56) -> 0 | F119: =SUMIF('4.งานสนับสนุนการจัดการเรียนรู้'!#REF!,สรุปชั่วโมงสอนต่อสัปดาห์!I119,'4.งานสนับสนุนการจัดการเรียนรู้'!I$7:I$58) ->  | G119: =SUMIF('5.งานตอบสนองนโยบายและจุดเน้น'!#REF!,สรุปชั่วโมงสอนต่อสัปดาห์!I119,'5.งานตอบสนองนโยบายและจุดเน้น'!I$7:I$58) ->  | I119: 311 | J119: =IF(H119>ตัวแปร!C$37,1,"") -> 
B120: 3 | D120: 12 | E120: =SUMIF('3.ชั่วโมงสอนตามตารางสอน'!T$7:T$56,สรุปชั่วโมงสอนต่อสัปดาห์!I120,'3.ชั่วโมงสอนตามตารางสอน'!L$7:L$56) -> 0 | F120: =SUMIF('4.งานสนับสนุนการจัดการเรียนรู้'!#REF!,สรุปชั่วโมงสอนต่อสัปดาห์!I120,'4.งานสนับสนุนการจัดการเรียนรู้'!I$7:I$58) ->  | G120: =SUMIF('5.งานตอบสนองนโยบายและจุดเน้น'!#REF!,สรุปชั่วโมงสอนต่อสัปดาห์!I120,'5.งานตอบสนองนโยบายและจุดเน้น'!I$7:I$58) ->  | I120: 312 | J120: =IF(H120>ตัวแปร!C$37,1,"") -> 
B121: 3 | D121: 13 | E121: =SUMIF('3.ชั่วโมงสอนตามตารางสอน'!T$7:T$56,สรุปชั่วโมงสอนต่อสัปดาห์!I121,'3.ชั่วโมงสอนตามตารางสอน'!L$7:L$56) -> 0 | F121: =SUMIF('4.งานสนับสนุนการจัดการเรียนรู้'!#REF!,สรุปชั่วโมงสอนต่อสัปดาห์!I121,'4.งานสนับสนุนการจัดการเรียนรู้'!I$7:I$58) ->  | G121: =SUMIF('5.งานตอบสนองนโยบายและจุดเน้น'!#REF!,สรุปชั่วโมงสอนต่อสัปดาห์!I121,'5.งานตอบสนองนโยบายและจุดเน้น'!I$7:I$58) ->  | I121: 313 | J121: =IF(H121>ตัวแปร!C$37,1,"") -> 
B122: 3 | D122: 14 | E122: =SUMIF('3.ชั่วโมงสอนตามตารางสอน'!T$7:T$56,สรุปชั่วโมงสอนต่อสัปดาห์!I122,'3.ชั่วโมงสอนตามตารางสอน'!L$7:L$56) -> 0 | F122: =SUMIF('4.งานสนับสนุนการจัดการเรียนรู้'!#REF!,สรุปชั่วโมงสอนต่อสัปดาห์!I122,'4.งานสนับสนุนการจัดการเรียนรู้'!I$7:I$58) ->  | G122: =SUMIF('5.งานตอบสนองนโยบายและจุดเน้น'!#REF!,สรุปชั่วโมงสอนต่อสัปดาห์!I122,'5.งานตอบสนองนโยบายและจุดเน้น'!I$7:I$58) ->  | I122: 314 | J122: =IF(H122>ตัวแปร!C$37,1,"") -> 
B123: 3 | D123: 15 | E123: =SUMIF('3.ชั่วโมงสอนตามตารางสอน'!T$7:T$56,สรุปชั่วโมงสอนต่อสัปดาห์!I123,'3.ชั่วโมงสอนตามตารางสอน'!L$7:L$56) -> 0 | F123: =SUMIF('4.งานสนับสนุนการจัดการเรียนรู้'!#REF!,สรุปชั่วโมงสอนต่อสัปดาห์!I123,'4.งานสนับสนุนการจัดการเรียนรู้'!I$7:I$58) ->  | G123: =SUMIF('5.งานตอบสนองนโยบายและจุดเน้น'!#REF!,สรุปชั่วโมงสอนต่อสัปดาห์!I123,'5.งานตอบสนองนโยบายและจุดเน้น'!I$7:I$58) ->  | I123: 315 | J123: =IF(H123>ตัวแปร!C$37,1,"") -> 
B124: 3 | D124: 16 | E124: =SUMIF('3.ชั่วโมงสอนตามตารางสอน'!T$7:T$56,สรุปชั่วโมงสอนต่อสัปดาห์!I124,'3.ชั่วโมงสอนตามตารางสอน'!L$7:L$56) -> 0 | F124: =SUMIF('4.งานสนับสนุนการจัดการเรียนรู้'!#REF!,สรุปชั่วโมงสอนต่อสัปดาห์!I124,'4.งานสนับสนุนการจัดการเรียนรู้'!I$7:I$58) ->  | G124: =SUMIF('5.งานตอบสนองนโยบายและจุดเน้น'!#REF!,สรุปชั่วโมงสอนต่อสัปดาห์!I124,'5.งานตอบสนองนโยบายและจุดเน้น'!I$7:I$58) ->  | I124: 316 | J124: =IF(H124>ตัวแปร!C$37,1,"") -> 
B125: 3 | D125: 17 | E125: =SUMIF('3.ชั่วโมงสอนตามตารางสอน'!T$7:T$56,สรุปชั่วโมงสอนต่อสัปดาห์!I125,'3.ชั่วโมงสอนตามตารางสอน'!L$7:L$56) -> 0 | F125: =SUMIF('4.งานสนับสนุนการจัดการเรียนรู้'!#REF!,สรุปชั่วโมงสอนต่อสัปดาห์!I125,'4.งานสนับสนุนการจัดการเรียนรู้'!I$7:I$58) ->  | G125: =SUMIF('5.งานตอบสนองนโยบายและจุดเน้น'!#REF!,สรุปชั่วโมงสอนต่อสัปดาห์!I125,'5.งานตอบสนองนโยบายและจุดเน้น'!I$7:I$58) ->  | I125: 317 | J125: =IF(H125>ตัวแปร!C$37,1,"") -> 
B126: 3 | D126: 18 | E126: =SUMIF('3.ชั่วโมงสอนตามตารางสอน'!T$7:T$56,สรุปชั่วโมงสอนต่อสัปดาห์!I126,'3.ชั่วโมงสอนตามตารางสอน'!L$7:L$56) -> 0 | F126: =SUMIF('4.งานสนับสนุนการจัดการเรียนรู้'!#REF!,สรุปชั่วโมงสอนต่อสัปดาห์!I126,'4.งานสนับสนุนการจัดการเรียนรู้'!I$7:I$58) ->  | G126: =SUMIF('5.งานตอบสนองนโยบายและจุดเน้น'!#REF!,สรุปชั่วโมงสอนต่อสัปดาห์!I126,'5.งานตอบสนองนโยบายและจุดเน้น'!I$7:I$58) ->  | I126: 318 | J126: =IF(H126>ตัวแปร!C$37,1,"") -> 
B127: 3 | D127: 19 | E127: =SUMIF('3.ชั่วโมงสอนตามตารางสอน'!T$7:T$56,สรุปชั่วโมงสอนต่อสัปดาห์!I127,'3.ชั่วโมงสอนตามตารางสอน'!L$7:L$56) -> 0 | F127: =SUMIF('4.งานสนับสนุนการจัดการเรียนรู้'!#REF!,สรุปชั่วโมงสอนต่อสัปดาห์!I127,'4.งานสนับสนุนการจัดการเรียนรู้'!I$7:I$58) ->  | G127: =SUMIF('5.งานตอบสนองนโยบายและจุดเน้น'!#REF!,สรุปชั่วโมงสอนต่อสัปดาห์!I127,'5.งานตอบสนองนโยบายและจุดเน้น'!I$7:I$58) ->  | I127: 319 | J127: =IF(H127>ตัวแปร!C$37,1,"") -> 
B128: 3 | D128: 20 | E128: =SUMIF('3.ชั่วโมงสอนตามตารางสอน'!T$7:T$56,สรุปชั่วโมงสอนต่อสัปดาห์!I128,'3.ชั่วโมงสอนตามตารางสอน'!L$7:L$56) -> 0 | F128: =SUMIF('4.งานสนับสนุนการจัดการเรียนรู้'!#REF!,สรุปชั่วโมงสอนต่อสัปดาห์!I128,'4.งานสนับสนุนการจัดการเรียนรู้'!I$7:I$58) ->  | G128: =SUMIF('5.งานตอบสนองนโยบายและจุดเน้น'!#REF!,สรุปชั่วโมงสอนต่อสัปดาห์!I128,'5.งานตอบสนองนโยบายและจุดเน้น'!I$7:I$58) ->  | I128: 320 | J128: =IF(H128>ตัวแปร!C$37,1,"") -> 
B129: 3 | D129: 21 | E129: =SUMIF('3.ชั่วโมงสอนตามตารางสอน'!T$7:T$56,สรุปชั่วโมงสอนต่อสัปดาห์!I129,'3.ชั่วโมงสอนตามตารางสอน'!L$7:L$56) -> 0 | F129: =SUMIF('4.งานสนับสนุนการจัดการเรียนรู้'!#REF!,สรุปชั่วโมงสอนต่อสัปดาห์!I129,'4.งานสนับสนุนการจัดการเรียนรู้'!I$7:I$58) ->  | G129: =SUMIF('5.งานตอบสนองนโยบายและจุดเน้น'!#REF!,สรุปชั่วโมงสอนต่อสัปดาห์!I129,'5.งานตอบสนองนโยบายและจุดเน้น'!I$7:I$58) ->  | I129: 321 | J129: =IF(H129>ตัวแปร!C$37,1,"") -> 
B130: 3 | D130: 22 | E130: =SUMIF('3.ชั่วโมงสอนตามตารางสอน'!T$7:T$56,สรุปชั่วโมงสอนต่อสัปดาห์!I130,'3.ชั่วโมงสอนตามตารางสอน'!L$7:L$56) -> 0 | F130: =SUMIF('4.งานสนับสนุนการจัดการเรียนรู้'!#REF!,สรุปชั่วโมงสอนต่อสัปดาห์!I130,'4.งานสนับสนุนการจัดการเรียนรู้'!I$7:I$58) ->  | G130: =SUMIF('5.งานตอบสนองนโยบายและจุดเน้น'!#REF!,สรุปชั่วโมงสอนต่อสัปดาห์!I130,'5.งานตอบสนองนโยบายและจุดเน้น'!I$7:I$58) ->  | I130: 322 | J130: =IF(H130>ตัวแปร!C$37,1,"") -> 
B131: 3 | D131: 23 | E131: =SUMIF('3.ชั่วโมงสอนตามตารางสอน'!T$7:T$56,สรุปชั่วโมงสอนต่อสัปดาห์!I131,'3.ชั่วโมงสอนตามตารางสอน'!L$7:L$56) -> 0 | F131: =SUMIF('4.งานสนับสนุนการจัดการเรียนรู้'!#REF!,สรุปชั่วโมงสอนต่อสัปดาห์!I131,'4.งานสนับสนุนการจัดการเรียนรู้'!I$7:I$58) ->  | G131: =SUMIF('5.งานตอบสนองนโยบายและจุดเน้น'!#REF!,สรุปชั่วโมงสอนต่อสัปดาห์!I131,'5.งานตอบสนองนโยบายและจุดเน้น'!I$7:I$58) ->  | I131: 323 | J131: =IF(H131>ตัวแปร!C$37,1,"") -> 
B132: 3 | D132: 24 | E132: =SUMIF('3.ชั่วโมงสอนตามตารางสอน'!T$7:T$56,สรุปชั่วโมงสอนต่อสัปดาห์!I132,'3.ชั่วโมงสอนตามตารางสอน'!L$7:L$56) -> 0 | F132: =SUMIF('4.งานสนับสนุนการจัดการเรียนรู้'!#REF!,สรุปชั่วโมงสอนต่อสัปดาห์!I132,'4.งานสนับสนุนการจัดการเรียนรู้'!I$7:I$58) ->  | G132: =SUMIF('5.งานตอบสนองนโยบายและจุดเน้น'!#REF!,สรุปชั่วโมงสอนต่อสัปดาห์!I132,'5.งานตอบสนองนโยบายและจุดเน้น'!I$7:I$58) ->  | I132: 324 | J132: =IF(H132>ตัวแปร!C$37,1,"") -> 
B133: 3 | D133: 25 | E133: =SUMIF('3.ชั่วโมงสอนตามตารางสอน'!T$7:T$56,สรุปชั่วโมงสอนต่อสัปดาห์!I133,'3.ชั่วโมงสอนตามตารางสอน'!L$7:L$56) -> 0 | F133: =SUMIF('4.งานสนับสนุนการจัดการเรียนรู้'!#REF!,สรุปชั่วโมงสอนต่อสัปดาห์!I133,'4.งานสนับสนุนการจัดการเรียนรู้'!I$7:I$58) ->  | G133: =SUMIF('5.งานตอบสนองนโยบายและจุดเน้น'!#REF!,สรุปชั่วโมงสอนต่อสัปดาห์!I133,'5.งานตอบสนองนโยบายและจุดเน้น'!I$7:I$58) ->  | I133: 325 | J133: =IF(H133>ตัวแปร!C$37,1,"") -> 
B134: 3 | D134: 26 | E134: =SUMIF('3.ชั่วโมงสอนตามตารางสอน'!T$7:T$56,สรุปชั่วโมงสอนต่อสัปดาห์!I134,'3.ชั่วโมงสอนตามตารางสอน'!L$7:L$56) -> 0 | F134: =SUMIF('4.งานสนับสนุนการจัดการเรียนรู้'!#REF!,สรุปชั่วโมงสอนต่อสัปดาห์!I134,'4.งานสนับสนุนการจัดการเรียนรู้'!I$7:I$58) ->  | G134: =SUMIF('5.งานตอบสนองนโยบายและจุดเน้น'!#REF!,สรุปชั่วโมงสอนต่อสัปดาห์!I134,'5.งานตอบสนองนโยบายและจุดเน้น'!I$7:I$58) ->  | H134: =SUM(E134:G134) ->  | I134: =B134&+D134 -> 326 | J134: =IF(H134>ตัวแปร!C$37,1,"") ->  | K134: =IF(J134=1,"ตรวจสอบ","") -> 
B135: =IF(D134=52,B134+1,B134) -> 3 | D135: 27 | E135: =SUMIF('3.ชั่วโมงสอนตามตารางสอน'!T$7:T$56,สรุปชั่วโมงสอนต่อสัปดาห์!I135,'3.ชั่วโมงสอนตามตารางสอน'!L$7:L$56) -> 0 | F135: =SUMIF('4.งานสนับสนุนการจัดการเรียนรู้'!#REF!,สรุปชั่วโมงสอนต่อสัปดาห์!I135,'4.งานสนับสนุนการจัดการเรียนรู้'!I$7:I$58) ->  | G135: =SUMIF('5.งานตอบสนองนโยบายและจุดเน้น'!#REF!,สรุปชั่วโมงสอนต่อสัปดาห์!I135,'5.งานตอบสนองนโยบายและจุดเน้น'!I$7:I$58) ->  | I135: 327 | J135: =IF(H135>ตัวแปร!C$37,1,"") -> 
B136: 3 | D136: 28 | E136: =SUMIF('3.ชั่วโมงสอนตามตารางสอน'!T$7:T$56,สรุปชั่วโมงสอนต่อสัปดาห์!I136,'3.ชั่วโมงสอนตามตารางสอน'!L$7:L$56) -> 0 | F136: =SUMIF('4.งานสนับสนุนการจัดการเรียนรู้'!#REF!,สรุปชั่วโมงสอนต่อสัปดาห์!I136,'4.งานสนับสนุนการจัดการเรียนรู้'!I$7:I$58) ->  | G136: =SUMIF('5.งานตอบสนองนโยบายและจุดเน้น'!#REF!,สรุปชั่วโมงสอนต่อสัปดาห์!I136,'5.งานตอบสนองนโยบายและจุดเน้น'!I$7:I$58) ->  | I136: 328 | J136: =IF(H136>ตัวแปร!C$37,1,"") -> 
B137: 3 | D137: 29 | E137: =SUMIF('3.ชั่วโมงสอนตามตารางสอน'!T$7:T$56,สรุปชั่วโมงสอนต่อสัปดาห์!I137,'3.ชั่วโมงสอนตามตารางสอน'!L$7:L$56) -> 0 | F137: =SUMIF('4.งานสนับสนุนการจัดการเรียนรู้'!#REF!,สรุปชั่วโมงสอนต่อสัปดาห์!I137,'4.งานสนับสนุนการจัดการเรียนรู้'!I$7:I$58) ->  | G137: =SUMIF('5.งานตอบสนองนโยบายและจุดเน้น'!#REF!,สรุปชั่วโมงสอนต่อสัปดาห์!I137,'5.งานตอบสนองนโยบายและจุดเน้น'!I$7:I$58) ->  | I137: 329 | J137: =IF(H137>ตัวแปร!C$37,1,"") -> 
B138: 3 | D138: 30 | E138: =SUMIF('3.ชั่วโมงสอนตามตารางสอน'!T$7:T$56,สรุปชั่วโมงสอนต่อสัปดาห์!I138,'3.ชั่วโมงสอนตามตารางสอน'!L$7:L$56) -> 0 | F138: =SUMIF('4.งานสนับสนุนการจัดการเรียนรู้'!#REF!,สรุปชั่วโมงสอนต่อสัปดาห์!I138,'4.งานสนับสนุนการจัดการเรียนรู้'!I$7:I$58) ->  | G138: =SUMIF('5.งานตอบสนองนโยบายและจุดเน้น'!#REF!,สรุปชั่วโมงสอนต่อสัปดาห์!I138,'5.งานตอบสนองนโยบายและจุดเน้น'!I$7:I$58) ->  | I138: 330 | J138: =IF(H138>ตัวแปร!C$37,1,"") -> 
B139: 3 | D139: 31 | E139: =SUMIF('3.ชั่วโมงสอนตามตารางสอน'!T$7:T$56,สรุปชั่วโมงสอนต่อสัปดาห์!I139,'3.ชั่วโมงสอนตามตารางสอน'!L$7:L$56) -> 0 | F139: =SUMIF('4.งานสนับสนุนการจัดการเรียนรู้'!#REF!,สรุปชั่วโมงสอนต่อสัปดาห์!I139,'4.งานสนับสนุนการจัดการเรียนรู้'!I$7:I$58) ->  | G139: =SUMIF('5.งานตอบสนองนโยบายและจุดเน้น'!#REF!,สรุปชั่วโมงสอนต่อสัปดาห์!I139,'5.งานตอบสนองนโยบายและจุดเน้น'!I$7:I$58) ->  | I139: 331 | J139: =IF(H139>ตัวแปร!C$37,1,"") -> 
B140: 3 | D140: 32 | E140: =SUMIF('3.ชั่วโมงสอนตามตารางสอน'!T$7:T$56,สรุปชั่วโมงสอนต่อสัปดาห์!I140,'3.ชั่วโมงสอนตามตารางสอน'!L$7:L$56) -> 0 | F140: =SUMIF('4.งานสนับสนุนการจัดการเรียนรู้'!#REF!,สรุปชั่วโมงสอนต่อสัปดาห์!I140,'4.งานสนับสนุนการจัดการเรียนรู้'!I$7:I$58) ->  | G140: =SUMIF('5.งานตอบสนองนโยบายและจุดเน้น'!#REF!,สรุปชั่วโมงสอนต่อสัปดาห์!I140,'5.งานตอบสนองนโยบายและจุดเน้น'!I$7:I$58) ->  | I140: 332 | J140: =IF(H140>ตัวแปร!C$37,1,"") -> 
B141: 3 | D141: 33 | E141: =SUMIF('3.ชั่วโมงสอนตามตารางสอน'!T$7:T$56,สรุปชั่วโมงสอนต่อสัปดาห์!I141,'3.ชั่วโมงสอนตามตารางสอน'!L$7:L$56) -> 0 | F141: =SUMIF('4.งานสนับสนุนการจัดการเรียนรู้'!#REF!,สรุปชั่วโมงสอนต่อสัปดาห์!I141,'4.งานสนับสนุนการจัดการเรียนรู้'!I$7:I$58) ->  | G141: =SUMIF('5.งานตอบสนองนโยบายและจุดเน้น'!#REF!,สรุปชั่วโมงสอนต่อสัปดาห์!I141,'5.งานตอบสนองนโยบายและจุดเน้น'!I$7:I$58) ->  | I141: 333 | J141: =IF(H141>ตัวแปร!C$37,1,"") -> 
B142: 3 | D142: 34 | E142: =SUMIF('3.ชั่วโมงสอนตามตารางสอน'!T$7:T$56,สรุปชั่วโมงสอนต่อสัปดาห์!I142,'3.ชั่วโมงสอนตามตารางสอน'!L$7:L$56) -> 0 | F142: =SUMIF('4.งานสนับสนุนการจัดการเรียนรู้'!#REF!,สรุปชั่วโมงสอนต่อสัปดาห์!I142,'4.งานสนับสนุนการจัดการเรียนรู้'!I$7:I$58) ->  | G142: =SUMIF('5.งานตอบสนองนโยบายและจุดเน้น'!#REF!,สรุปชั่วโมงสอนต่อสัปดาห์!I142,'5.งานตอบสนองนโยบายและจุดเน้น'!I$7:I$58) ->  | I142: 334 | J142: =IF(H142>ตัวแปร!C$37,1,"") -> 
B143: 3 | D143: 35 | E143: =SUMIF('3.ชั่วโมงสอนตามตารางสอน'!T$7:T$56,สรุปชั่วโมงสอนต่อสัปดาห์!I143,'3.ชั่วโมงสอนตามตารางสอน'!L$7:L$56) -> 0 | F143: =SUMIF('4.งานสนับสนุนการจัดการเรียนรู้'!#REF!,สรุปชั่วโมงสอนต่อสัปดาห์!I143,'4.งานสนับสนุนการจัดการเรียนรู้'!I$7:I$58) ->  | G143: =SUMIF('5.งานตอบสนองนโยบายและจุดเน้น'!#REF!,สรุปชั่วโมงสอนต่อสัปดาห์!I143,'5.งานตอบสนองนโยบายและจุดเน้น'!I$7:I$58) ->  | I143: 335 | J143: =IF(H143>ตัวแปร!C$37,1,"") -> 
B144: 3 | D144: 36 | E144: =SUMIF('3.ชั่วโมงสอนตามตารางสอน'!T$7:T$56,สรุปชั่วโมงสอนต่อสัปดาห์!I144,'3.ชั่วโมงสอนตามตารางสอน'!L$7:L$56) -> 0 | F144: =SUMIF('4.งานสนับสนุนการจัดการเรียนรู้'!#REF!,สรุปชั่วโมงสอนต่อสัปดาห์!I144,'4.งานสนับสนุนการจัดการเรียนรู้'!I$7:I$58) ->  | G144: =SUMIF('5.งานตอบสนองนโยบายและจุดเน้น'!#REF!,สรุปชั่วโมงสอนต่อสัปดาห์!I144,'5.งานตอบสนองนโยบายและจุดเน้น'!I$7:I$58) ->  | I144: 336 | J144: =IF(H144>ตัวแปร!C$37,1,"") -> 
B145: 3 | D145: 37 | E145: =SUMIF('3.ชั่วโมงสอนตามตารางสอน'!T$7:T$56,สรุปชั่วโมงสอนต่อสัปดาห์!I145,'3.ชั่วโมงสอนตามตารางสอน'!L$7:L$56) -> 0 | F145: =SUMIF('4.งานสนับสนุนการจัดการเรียนรู้'!#REF!,สรุปชั่วโมงสอนต่อสัปดาห์!I145,'4.งานสนับสนุนการจัดการเรียนรู้'!I$7:I$58) ->  | G145: =SUMIF('5.งานตอบสนองนโยบายและจุดเน้น'!#REF!,สรุปชั่วโมงสอนต่อสัปดาห์!I145,'5.งานตอบสนองนโยบายและจุดเน้น'!I$7:I$58) ->  | I145: 337 | J145: =IF(H145>ตัวแปร!C$37,1,"") -> 
B146: 3 | D146: 38 | E146: =SUMIF('3.ชั่วโมงสอนตามตารางสอน'!T$7:T$56,สรุปชั่วโมงสอนต่อสัปดาห์!I146,'3.ชั่วโมงสอนตามตารางสอน'!L$7:L$56) -> 0 | F146: =SUMIF('4.งานสนับสนุนการจัดการเรียนรู้'!#REF!,สรุปชั่วโมงสอนต่อสัปดาห์!I146,'4.งานสนับสนุนการจัดการเรียนรู้'!I$7:I$58) ->  | G146: =SUMIF('5.งานตอบสนองนโยบายและจุดเน้น'!#REF!,สรุปชั่วโมงสอนต่อสัปดาห์!I146,'5.งานตอบสนองนโยบายและจุดเน้น'!I$7:I$58) ->  | I146: 338 | J146: =IF(H146>ตัวแปร!C$37,1,"") -> 
B147: 3 | D147: 39 | E147: =SUMIF('3.ชั่วโมงสอนตามตารางสอน'!T$7:T$56,สรุปชั่วโมงสอนต่อสัปดาห์!I147,'3.ชั่วโมงสอนตามตารางสอน'!L$7:L$56) -> 0 | F147: =SUMIF('4.งานสนับสนุนการจัดการเรียนรู้'!#REF!,สรุปชั่วโมงสอนต่อสัปดาห์!I147,'4.งานสนับสนุนการจัดการเรียนรู้'!I$7:I$58) ->  | G147: =SUMIF('5.งานตอบสนองนโยบายและจุดเน้น'!#REF!,สรุปชั่วโมงสอนต่อสัปดาห์!I147,'5.งานตอบสนองนโยบายและจุดเน้น'!I$7:I$58) ->  | I147: 339 | J147: =IF(H147>ตัวแปร!C$37,1,"") -> 
B148: 3 | D148: 40 | E148: =SUMIF('3.ชั่วโมงสอนตามตารางสอน'!T$7:T$56,สรุปชั่วโมงสอนต่อสัปดาห์!I148,'3.ชั่วโมงสอนตามตารางสอน'!L$7:L$56) -> 0 | F148: =SUMIF('4.งานสนับสนุนการจัดการเรียนรู้'!#REF!,สรุปชั่วโมงสอนต่อสัปดาห์!I148,'4.งานสนับสนุนการจัดการเรียนรู้'!I$7:I$58) ->  | G148: =SUMIF('5.งานตอบสนองนโยบายและจุดเน้น'!#REF!,สรุปชั่วโมงสอนต่อสัปดาห์!I148,'5.งานตอบสนองนโยบายและจุดเน้น'!I$7:I$58) ->  | I148: 340 | J148: =IF(H148>ตัวแปร!C$37,1,"") -> 
B149: 3 | D149: 41 | E149: =SUMIF('3.ชั่วโมงสอนตามตารางสอน'!T$7:T$56,สรุปชั่วโมงสอนต่อสัปดาห์!I149,'3.ชั่วโมงสอนตามตารางสอน'!L$7:L$56) -> 0 | F149: =SUMIF('4.งานสนับสนุนการจัดการเรียนรู้'!#REF!,สรุปชั่วโมงสอนต่อสัปดาห์!I149,'4.งานสนับสนุนการจัดการเรียนรู้'!I$7:I$58) ->  | G149: =SUMIF('5.งานตอบสนองนโยบายและจุดเน้น'!#REF!,สรุปชั่วโมงสอนต่อสัปดาห์!I149,'5.งานตอบสนองนโยบายและจุดเน้น'!I$7:I$58) ->  | I149: 341 | J149: =IF(H149>ตัวแปร!C$37,1,"") -> 
B150: 3 | D150: 42 | E150: =SUMIF('3.ชั่วโมงสอนตามตารางสอน'!T$7:T$56,สรุปชั่วโมงสอนต่อสัปดาห์!I150,'3.ชั่วโมงสอนตามตารางสอน'!L$7:L$56) -> 0 | F150: =SUMIF('4.งานสนับสนุนการจัดการเรียนรู้'!#REF!,สรุปชั่วโมงสอนต่อสัปดาห์!I150,'4.งานสนับสนุนการจัดการเรียนรู้'!I$7:I$58) ->  | G150: =SUMIF('5.งานตอบสนองนโยบายและจุดเน้น'!#REF!,สรุปชั่วโมงสอนต่อสัปดาห์!I150,'5.งานตอบสนองนโยบายและจุดเน้น'!I$7:I$58) ->  | I150: 342 | J150: =IF(H150>ตัวแปร!C$37,1,"") -> 
B151: 3 | D151: 43 | E151: =SUMIF('3.ชั่วโมงสอนตามตารางสอน'!T$7:T$56,สรุปชั่วโมงสอนต่อสัปดาห์!I151,'3.ชั่วโมงสอนตามตารางสอน'!L$7:L$56) -> 0 | F151: =SUMIF('4.งานสนับสนุนการจัดการเรียนรู้'!#REF!,สรุปชั่วโมงสอนต่อสัปดาห์!I151,'4.งานสนับสนุนการจัดการเรียนรู้'!I$7:I$58) ->  | G151: =SUMIF('5.งานตอบสนองนโยบายและจุดเน้น'!#REF!,สรุปชั่วโมงสอนต่อสัปดาห์!I151,'5.งานตอบสนองนโยบายและจุดเน้น'!I$7:I$58) ->  | I151: 343 | J151: =IF(H151>ตัวแปร!C$37,1,"") -> 
B152: 3 | D152: 44 | E152: =SUMIF('3.ชั่วโมงสอนตามตารางสอน'!T$7:T$56,สรุปชั่วโมงสอนต่อสัปดาห์!I152,'3.ชั่วโมงสอนตามตารางสอน'!L$7:L$56) -> 0 | F152: =SUMIF('4.งานสนับสนุนการจัดการเรียนรู้'!#REF!,สรุปชั่วโมงสอนต่อสัปดาห์!I152,'4.งานสนับสนุนการจัดการเรียนรู้'!I$7:I$58) ->  | G152: =SUMIF('5.งานตอบสนองนโยบายและจุดเน้น'!#REF!,สรุปชั่วโมงสอนต่อสัปดาห์!I152,'5.งานตอบสนองนโยบายและจุดเน้น'!I$7:I$58) ->  | I152: 344 | J152: =IF(H152>ตัวแปร!C$37,1,"") -> 
B153: 3 | D153: 45 | E153: =SUMIF('3.ชั่วโมงสอนตามตารางสอน'!T$7:T$56,สรุปชั่วโมงสอนต่อสัปดาห์!I153,'3.ชั่วโมงสอนตามตารางสอน'!L$7:L$56) -> 0 | F153: =SUMIF('4.งานสนับสนุนการจัดการเรียนรู้'!#REF!,สรุปชั่วโมงสอนต่อสัปดาห์!I153,'4.งานสนับสนุนการจัดการเรียนรู้'!I$7:I$58) ->  | G153: =SUMIF('5.งานตอบสนองนโยบายและจุดเน้น'!#REF!,สรุปชั่วโมงสอนต่อสัปดาห์!I153,'5.งานตอบสนองนโยบายและจุดเน้น'!I$7:I$58) ->  | I153: 345 | J153: =IF(H153>ตัวแปร!C$37,1,"") -> 
B154: 3 | D154: 46 | E154: =SUMIF('3.ชั่วโมงสอนตามตารางสอน'!T$7:T$56,สรุปชั่วโมงสอนต่อสัปดาห์!I154,'3.ชั่วโมงสอนตามตารางสอน'!L$7:L$56) -> 0 | F154: =SUMIF('4.งานสนับสนุนการจัดการเรียนรู้'!#REF!,สรุปชั่วโมงสอนต่อสัปดาห์!I154,'4.งานสนับสนุนการจัดการเรียนรู้'!I$7:I$58) ->  | G154: =SUMIF('5.งานตอบสนองนโยบายและจุดเน้น'!#REF!,สรุปชั่วโมงสอนต่อสัปดาห์!I154,'5.งานตอบสนองนโยบายและจุดเน้น'!I$7:I$58) ->  | I154: 346 | J154: =IF(H154>ตัวแปร!C$37,1,"") -> 
B155: 3 | D155: 47 | E155: =SUMIF('3.ชั่วโมงสอนตามตารางสอน'!T$7:T$56,สรุปชั่วโมงสอนต่อสัปดาห์!I155,'3.ชั่วโมงสอนตามตารางสอน'!L$7:L$56) -> 0 | F155: =SUMIF('4.งานสนับสนุนการจัดการเรียนรู้'!#REF!,สรุปชั่วโมงสอนต่อสัปดาห์!I155,'4.งานสนับสนุนการจัดการเรียนรู้'!I$7:I$58) ->  | G155: =SUMIF('5.งานตอบสนองนโยบายและจุดเน้น'!#REF!,สรุปชั่วโมงสอนต่อสัปดาห์!I155,'5.งานตอบสนองนโยบายและจุดเน้น'!I$7:I$58) ->  | I155: 347 | J155: =IF(H155>ตัวแปร!C$37,1,"") -> 
B156: 3 | D156: 48 | E156: =SUMIF('3.ชั่วโมงสอนตามตารางสอน'!T$7:T$56,สรุปชั่วโมงสอนต่อสัปดาห์!I156,'3.ชั่วโมงสอนตามตารางสอน'!L$7:L$56) -> 0 | F156: =SUMIF('4.งานสนับสนุนการจัดการเรียนรู้'!#REF!,สรุปชั่วโมงสอนต่อสัปดาห์!I156,'4.งานสนับสนุนการจัดการเรียนรู้'!I$7:I$58) ->  | G156: =SUMIF('5.งานตอบสนองนโยบายและจุดเน้น'!#REF!,สรุปชั่วโมงสอนต่อสัปดาห์!I156,'5.งานตอบสนองนโยบายและจุดเน้น'!I$7:I$58) ->  | I156: 348 | J156: =IF(H156>ตัวแปร!C$37,1,"") -> 
B157: 3 | D157: 49 | E157: =SUMIF('3.ชั่วโมงสอนตามตารางสอน'!T$7:T$56,สรุปชั่วโมงสอนต่อสัปดาห์!I157,'3.ชั่วโมงสอนตามตารางสอน'!L$7:L$56) -> 0 | F157: =SUMIF('4.งานสนับสนุนการจัดการเรียนรู้'!#REF!,สรุปชั่วโมงสอนต่อสัปดาห์!I157,'4.งานสนับสนุนการจัดการเรียนรู้'!I$7:I$58) ->  | G157: =SUMIF('5.งานตอบสนองนโยบายและจุดเน้น'!#REF!,สรุปชั่วโมงสอนต่อสัปดาห์!I157,'5.งานตอบสนองนโยบายและจุดเน้น'!I$7:I$58) ->  | I157: 349 | J157: =IF(H157>ตัวแปร!C$37,1,"") -> 
B158: 3 | D158: 50 | E158: =SUMIF('3.ชั่วโมงสอนตามตารางสอน'!T$7:T$56,สรุปชั่วโมงสอนต่อสัปดาห์!I158,'3.ชั่วโมงสอนตามตารางสอน'!L$7:L$56) -> 0 | F158: =SUMIF('4.งานสนับสนุนการจัดการเรียนรู้'!#REF!,สรุปชั่วโมงสอนต่อสัปดาห์!I158,'4.งานสนับสนุนการจัดการเรียนรู้'!I$7:I$58) ->  | G158: =SUMIF('5.งานตอบสนองนโยบายและจุดเน้น'!#REF!,สรุปชั่วโมงสอนต่อสัปดาห์!I158,'5.งานตอบสนองนโยบายและจุดเน้น'!I$7:I$58) ->  | I158: 350 | J158: =IF(H158>ตัวแปร!C$37,1,"") -> 
B159: 3 | D159: 51 | E159: =SUMIF('3.ชั่วโมงสอนตามตารางสอน'!T$7:T$56,สรุปชั่วโมงสอนต่อสัปดาห์!I159,'3.ชั่วโมงสอนตามตารางสอน'!L$7:L$56) -> 0 | F159: =SUMIF('4.งานสนับสนุนการจัดการเรียนรู้'!#REF!,สรุปชั่วโมงสอนต่อสัปดาห์!I159,'4.งานสนับสนุนการจัดการเรียนรู้'!I$7:I$58) ->  | G159: =SUMIF('5.งานตอบสนองนโยบายและจุดเน้น'!#REF!,สรุปชั่วโมงสอนต่อสัปดาห์!I159,'5.งานตอบสนองนโยบายและจุดเน้น'!I$7:I$58) ->  | I159: 351 | J159: =IF(H159>ตัวแปร!C$37,1,"") -> 
B160: 3 | D160: 52 | E160: =SUMIF('3.ชั่วโมงสอนตามตารางสอน'!T$7:T$56,สรุปชั่วโมงสอนต่อสัปดาห์!I160,'3.ชั่วโมงสอนตามตารางสอน'!L$7:L$56) -> 0 | F160: =SUMIF('4.งานสนับสนุนการจัดการเรียนรู้'!#REF!,สรุปชั่วโมงสอนต่อสัปดาห์!I160,'4.งานสนับสนุนการจัดการเรียนรู้'!I$7:I$58) ->  | G160: =SUMIF('5.งานตอบสนองนโยบายและจุดเน้น'!#REF!,สรุปชั่วโมงสอนต่อสัปดาห์!I160,'5.งานตอบสนองนโยบายและจุดเน้น'!I$7:I$58) ->  | I160: 352 | J160: =IF(H160>ตัวแปร!C$37,1,"") -> 
B161: 4 | D161: 1 | E161: =SUMIF('3.ชั่วโมงสอนตามตารางสอน'!T$7:T$56,สรุปชั่วโมงสอนต่อสัปดาห์!I161,'3.ชั่วโมงสอนตามตารางสอน'!L$7:L$56) -> 0 | F161: =SUMIF('4.งานสนับสนุนการจัดการเรียนรู้'!#REF!,สรุปชั่วโมงสอนต่อสัปดาห์!I161,'4.งานสนับสนุนการจัดการเรียนรู้'!I$7:I$58) ->  | G161: =SUMIF('5.งานตอบสนองนโยบายและจุดเน้น'!#REF!,สรุปชั่วโมงสอนต่อสัปดาห์!I161,'5.งานตอบสนองนโยบายและจุดเน้น'!I$7:I$58) ->  | I161: 41 | J161: =IF(H161>ตัวแปร!C$37,1,"") -> 
B162: 4 | D162: 2 | E162: =SUMIF('3.ชั่วโมงสอนตามตารางสอน'!T$7:T$56,สรุปชั่วโมงสอนต่อสัปดาห์!I162,'3.ชั่วโมงสอนตามตารางสอน'!L$7:L$56) -> 0 | F162: =SUMIF('4.งานสนับสนุนการจัดการเรียนรู้'!#REF!,สรุปชั่วโมงสอนต่อสัปดาห์!I162,'4.งานสนับสนุนการจัดการเรียนรู้'!I$7:I$58) ->  | G162: =SUMIF('5.งานตอบสนองนโยบายและจุดเน้น'!#REF!,สรุปชั่วโมงสอนต่อสัปดาห์!I162,'5.งานตอบสนองนโยบายและจุดเน้น'!I$7:I$58) ->  | I162: 42 | J162: =IF(H162>ตัวแปร!C$37,1,"") -> 
B163: 4 | D163: 3 | E163: =SUMIF('3.ชั่วโมงสอนตามตารางสอน'!T$7:T$56,สรุปชั่วโมงสอนต่อสัปดาห์!I163,'3.ชั่วโมงสอนตามตารางสอน'!L$7:L$56) -> 0 | F163: =SUMIF('4.งานสนับสนุนการจัดการเรียนรู้'!#REF!,สรุปชั่วโมงสอนต่อสัปดาห์!I163,'4.งานสนับสนุนการจัดการเรียนรู้'!I$7:I$58) ->  | G163: =SUMIF('5.งานตอบสนองนโยบายและจุดเน้น'!#REF!,สรุปชั่วโมงสอนต่อสัปดาห์!I163,'5.งานตอบสนองนโยบายและจุดเน้น'!I$7:I$58) ->  | I163: 43 | J163: =IF(H163>ตัวแปร!C$37,1,"") -> 
B164: 4 | D164: 4 | E164: =SUMIF('3.ชั่วโมงสอนตามตารางสอน'!T$7:T$56,สรุปชั่วโมงสอนต่อสัปดาห์!I164,'3.ชั่วโมงสอนตามตารางสอน'!L$7:L$56) -> 0 | F164: =SUMIF('4.งานสนับสนุนการจัดการเรียนรู้'!#REF!,สรุปชั่วโมงสอนต่อสัปดาห์!I164,'4.งานสนับสนุนการจัดการเรียนรู้'!I$7:I$58) ->  | G164: =SUMIF('5.งานตอบสนองนโยบายและจุดเน้น'!#REF!,สรุปชั่วโมงสอนต่อสัปดาห์!I164,'5.งานตอบสนองนโยบายและจุดเน้น'!I$7:I$58) ->  | I164: 44 | J164: =IF(H164>ตัวแปร!C$37,1,"") -> 
B165: 4 | D165: 5 | E165: =SUMIF('3.ชั่วโมงสอนตามตารางสอน'!T$7:T$56,สรุปชั่วโมงสอนต่อสัปดาห์!I165,'3.ชั่วโมงสอนตามตารางสอน'!L$7:L$56) -> 0 | F165: =SUMIF('4.งานสนับสนุนการจัดการเรียนรู้'!#REF!,สรุปชั่วโมงสอนต่อสัปดาห์!I165,'4.งานสนับสนุนการจัดการเรียนรู้'!I$7:I$58) ->  | G165: =SUMIF('5.งานตอบสนองนโยบายและจุดเน้น'!#REF!,สรุปชั่วโมงสอนต่อสัปดาห์!I165,'5.งานตอบสนองนโยบายและจุดเน้น'!I$7:I$58) ->  | I165: 45 | J165: =IF(H165>ตัวแปร!C$37,1,"") -> 
B166: 4 | D166: 6 | E166: =SUMIF('3.ชั่วโมงสอนตามตารางสอน'!T$7:T$56,สรุปชั่วโมงสอนต่อสัปดาห์!I166,'3.ชั่วโมงสอนตามตารางสอน'!L$7:L$56) -> 0 | F166: =SUMIF('4.งานสนับสนุนการจัดการเรียนรู้'!#REF!,สรุปชั่วโมงสอนต่อสัปดาห์!I166,'4.งานสนับสนุนการจัดการเรียนรู้'!I$7:I$58) ->  | G166: =SUMIF('5.งานตอบสนองนโยบายและจุดเน้น'!#REF!,สรุปชั่วโมงสอนต่อสัปดาห์!I166,'5.งานตอบสนองนโยบายและจุดเน้น'!I$7:I$58) ->  | I166: 46 | J166: =IF(H166>ตัวแปร!C$37,1,"") -> 
B167: 4 | D167: 7 | E167: =SUMIF('3.ชั่วโมงสอนตามตารางสอน'!T$7:T$56,สรุปชั่วโมงสอนต่อสัปดาห์!I167,'3.ชั่วโมงสอนตามตารางสอน'!L$7:L$56) -> 0 | F167: =SUMIF('4.งานสนับสนุนการจัดการเรียนรู้'!#REF!,สรุปชั่วโมงสอนต่อสัปดาห์!I167,'4.งานสนับสนุนการจัดการเรียนรู้'!I$7:I$58) ->  | G167: =SUMIF('5.งานตอบสนองนโยบายและจุดเน้น'!#REF!,สรุปชั่วโมงสอนต่อสัปดาห์!I167,'5.งานตอบสนองนโยบายและจุดเน้น'!I$7:I$58) ->  | I167: 47 | J167: =IF(H167>ตัวแปร!C$37,1,"") -> 
B168: 4 | D168: 8 | E168: =SUMIF('3.ชั่วโมงสอนตามตารางสอน'!T$7:T$56,สรุปชั่วโมงสอนต่อสัปดาห์!I168,'3.ชั่วโมงสอนตามตารางสอน'!L$7:L$56) -> 0 | F168: =SUMIF('4.งานสนับสนุนการจัดการเรียนรู้'!#REF!,สรุปชั่วโมงสอนต่อสัปดาห์!I168,'4.งานสนับสนุนการจัดการเรียนรู้'!I$7:I$58) ->  | G168: =SUMIF('5.งานตอบสนองนโยบายและจุดเน้น'!#REF!,สรุปชั่วโมงสอนต่อสัปดาห์!I168,'5.งานตอบสนองนโยบายและจุดเน้น'!I$7:I$58) ->  | I168: 48 | J168: =IF(H168>ตัวแปร!C$37,1,"") -> 
B169: 4 | D169: 9 | E169: =SUMIF('3.ชั่วโมงสอนตามตารางสอน'!T$7:T$56,สรุปชั่วโมงสอนต่อสัปดาห์!I169,'3.ชั่วโมงสอนตามตารางสอน'!L$7:L$56) -> 0 | F169: =SUMIF('4.งานสนับสนุนการจัดการเรียนรู้'!#REF!,สรุปชั่วโมงสอนต่อสัปดาห์!I169,'4.งานสนับสนุนการจัดการเรียนรู้'!I$7:I$58) ->  | G169: =SUMIF('5.งานตอบสนองนโยบายและจุดเน้น'!#REF!,สรุปชั่วโมงสอนต่อสัปดาห์!I169,'5.งานตอบสนองนโยบายและจุดเน้น'!I$7:I$58) ->  | I169: 49 | J169: =IF(H169>ตัวแปร!C$37,1,"") -> 
B170: 4 | D170: 10 | E170: =SUMIF('3.ชั่วโมงสอนตามตารางสอน'!T$7:T$56,สรุปชั่วโมงสอนต่อสัปดาห์!I170,'3.ชั่วโมงสอนตามตารางสอน'!L$7:L$56) -> 0 | F170: =SUMIF('4.งานสนับสนุนการจัดการเรียนรู้'!#REF!,สรุปชั่วโมงสอนต่อสัปดาห์!I170,'4.งานสนับสนุนการจัดการเรียนรู้'!I$7:I$58) ->  | G170: =SUMIF('5.งานตอบสนองนโยบายและจุดเน้น'!#REF!,สรุปชั่วโมงสอนต่อสัปดาห์!I170,'5.งานตอบสนองนโยบายและจุดเน้น'!I$7:I$58) ->  | I170: 410 | J170: =IF(H170>ตัวแปร!C$37,1,"") -> 
B171: 4 | D171: 11 | E171: =SUMIF('3.ชั่วโมงสอนตามตารางสอน'!T$7:T$56,สรุปชั่วโมงสอนต่อสัปดาห์!I171,'3.ชั่วโมงสอนตามตารางสอน'!L$7:L$56) -> 0 | F171: =SUMIF('4.งานสนับสนุนการจัดการเรียนรู้'!#REF!,สรุปชั่วโมงสอนต่อสัปดาห์!I171,'4.งานสนับสนุนการจัดการเรียนรู้'!I$7:I$58) ->  | G171: =SUMIF('5.งานตอบสนองนโยบายและจุดเน้น'!#REF!,สรุปชั่วโมงสอนต่อสัปดาห์!I171,'5.งานตอบสนองนโยบายและจุดเน้น'!I$7:I$58) ->  | I171: 411 | J171: =IF(H171>ตัวแปร!C$37,1,"") -> 
B172: 4 | D172: 12 | E172: =SUMIF('3.ชั่วโมงสอนตามตารางสอน'!T$7:T$56,สรุปชั่วโมงสอนต่อสัปดาห์!I172,'3.ชั่วโมงสอนตามตารางสอน'!L$7:L$56) -> 0 | F172: =SUMIF('4.งานสนับสนุนการจัดการเรียนรู้'!#REF!,สรุปชั่วโมงสอนต่อสัปดาห์!I172,'4.งานสนับสนุนการจัดการเรียนรู้'!I$7:I$58) ->  | G172: =SUMIF('5.งานตอบสนองนโยบายและจุดเน้น'!#REF!,สรุปชั่วโมงสอนต่อสัปดาห์!I172,'5.งานตอบสนองนโยบายและจุดเน้น'!I$7:I$58) ->  | I172: 412 | J172: =IF(H172>ตัวแปร!C$37,1,"") -> 
B173: 4 | D173: 13 | E173: =SUMIF('3.ชั่วโมงสอนตามตารางสอน'!T$7:T$56,สรุปชั่วโมงสอนต่อสัปดาห์!I173,'3.ชั่วโมงสอนตามตารางสอน'!L$7:L$56) -> 0 | F173: =SUMIF('4.งานสนับสนุนการจัดการเรียนรู้'!#REF!,สรุปชั่วโมงสอนต่อสัปดาห์!I173,'4.งานสนับสนุนการจัดการเรียนรู้'!I$7:I$58) ->  | G173: =SUMIF('5.งานตอบสนองนโยบายและจุดเน้น'!#REF!,สรุปชั่วโมงสอนต่อสัปดาห์!I173,'5.งานตอบสนองนโยบายและจุดเน้น'!I$7:I$58) ->  | I173: 413 | J173: =IF(H173>ตัวแปร!C$37,1,"") -> 
B174: 4 | D174: 14 | E174: =SUMIF('3.ชั่วโมงสอนตามตารางสอน'!T$7:T$56,สรุปชั่วโมงสอนต่อสัปดาห์!I174,'3.ชั่วโมงสอนตามตารางสอน'!L$7:L$56) -> 0 | F174: =SUMIF('4.งานสนับสนุนการจัดการเรียนรู้'!#REF!,สรุปชั่วโมงสอนต่อสัปดาห์!I174,'4.งานสนับสนุนการจัดการเรียนรู้'!I$7:I$58) ->  | G174: =SUMIF('5.งานตอบสนองนโยบายและจุดเน้น'!#REF!,สรุปชั่วโมงสอนต่อสัปดาห์!I174,'5.งานตอบสนองนโยบายและจุดเน้น'!I$7:I$58) ->  | I174: 414 | J174: =IF(H174>ตัวแปร!C$37,1,"") -> 
B175: 4 | D175: 15 | E175: =SUMIF('3.ชั่วโมงสอนตามตารางสอน'!T$7:T$56,สรุปชั่วโมงสอนต่อสัปดาห์!I175,'3.ชั่วโมงสอนตามตารางสอน'!L$7:L$56) -> 0 | F175: =SUMIF('4.งานสนับสนุนการจัดการเรียนรู้'!#REF!,สรุปชั่วโมงสอนต่อสัปดาห์!I175,'4.งานสนับสนุนการจัดการเรียนรู้'!I$7:I$58) ->  | G175: =SUMIF('5.งานตอบสนองนโยบายและจุดเน้น'!#REF!,สรุปชั่วโมงสอนต่อสัปดาห์!I175,'5.งานตอบสนองนโยบายและจุดเน้น'!I$7:I$58) ->  | I175: 415 | J175: =IF(H175>ตัวแปร!C$37,1,"") -> 
B176: 4 | D176: 16 | E176: =SUMIF('3.ชั่วโมงสอนตามตารางสอน'!T$7:T$56,สรุปชั่วโมงสอนต่อสัปดาห์!I176,'3.ชั่วโมงสอนตามตารางสอน'!L$7:L$56) -> 0 | F176: =SUMIF('4.งานสนับสนุนการจัดการเรียนรู้'!#REF!,สรุปชั่วโมงสอนต่อสัปดาห์!I176,'4.งานสนับสนุนการจัดการเรียนรู้'!I$7:I$58) ->  | G176: =SUMIF('5.งานตอบสนองนโยบายและจุดเน้น'!#REF!,สรุปชั่วโมงสอนต่อสัปดาห์!I176,'5.งานตอบสนองนโยบายและจุดเน้น'!I$7:I$58) ->  | I176: 416 | J176: =IF(H176>ตัวแปร!C$37,1,"") -> 
B177: 4 | D177: 17 | E177: =SUMIF('3.ชั่วโมงสอนตามตารางสอน'!T$7:T$56,สรุปชั่วโมงสอนต่อสัปดาห์!I177,'3.ชั่วโมงสอนตามตารางสอน'!L$7:L$56) -> 0 | F177: =SUMIF('4.งานสนับสนุนการจัดการเรียนรู้'!#REF!,สรุปชั่วโมงสอนต่อสัปดาห์!I177,'4.งานสนับสนุนการจัดการเรียนรู้'!I$7:I$58) ->  | G177: =SUMIF('5.งานตอบสนองนโยบายและจุดเน้น'!#REF!,สรุปชั่วโมงสอนต่อสัปดาห์!I177,'5.งานตอบสนองนโยบายและจุดเน้น'!I$7:I$58) ->  | I177: 417 | J177: =IF(H177>ตัวแปร!C$37,1,"") -> 
B178: 4 | D178: 18 | E178: =SUMIF('3.ชั่วโมงสอนตามตารางสอน'!T$7:T$56,สรุปชั่วโมงสอนต่อสัปดาห์!I178,'3.ชั่วโมงสอนตามตารางสอน'!L$7:L$56) -> 0 | F178: =SUMIF('4.งานสนับสนุนการจัดการเรียนรู้'!#REF!,สรุปชั่วโมงสอนต่อสัปดาห์!I178,'4.งานสนับสนุนการจัดการเรียนรู้'!I$7:I$58) ->  | G178: =SUMIF('5.งานตอบสนองนโยบายและจุดเน้น'!#REF!,สรุปชั่วโมงสอนต่อสัปดาห์!I178,'5.งานตอบสนองนโยบายและจุดเน้น'!I$7:I$58) ->  | I178: 418 | J178: =IF(H178>ตัวแปร!C$37,1,"") -> 
B179: 4 | D179: 19 | E179: =SUMIF('3.ชั่วโมงสอนตามตารางสอน'!T$7:T$56,สรุปชั่วโมงสอนต่อสัปดาห์!I179,'3.ชั่วโมงสอนตามตารางสอน'!L$7:L$56) -> 0 | F179: =SUMIF('4.งานสนับสนุนการจัดการเรียนรู้'!#REF!,สรุปชั่วโมงสอนต่อสัปดาห์!I179,'4.งานสนับสนุนการจัดการเรียนรู้'!I$7:I$58) ->  | G179: =SUMIF('5.งานตอบสนองนโยบายและจุดเน้น'!#REF!,สรุปชั่วโมงสอนต่อสัปดาห์!I179,'5.งานตอบสนองนโยบายและจุดเน้น'!I$7:I$58) ->  | I179: 419 | J179: =IF(H179>ตัวแปร!C$37,1,"") -> 
B180: 4 | D180: 20 | E180: =SUMIF('3.ชั่วโมงสอนตามตารางสอน'!T$7:T$56,สรุปชั่วโมงสอนต่อสัปดาห์!I180,'3.ชั่วโมงสอนตามตารางสอน'!L$7:L$56) -> 0 | F180: =SUMIF('4.งานสนับสนุนการจัดการเรียนรู้'!#REF!,สรุปชั่วโมงสอนต่อสัปดาห์!I180,'4.งานสนับสนุนการจัดการเรียนรู้'!I$7:I$58) ->  | G180: =SUMIF('5.งานตอบสนองนโยบายและจุดเน้น'!#REF!,สรุปชั่วโมงสอนต่อสัปดาห์!I180,'5.งานตอบสนองนโยบายและจุดเน้น'!I$7:I$58) ->  | I180: 420 | J180: =IF(H180>ตัวแปร!C$37,1,"") -> 
B181: 4 | D181: 21 | E181: =SUMIF('3.ชั่วโมงสอนตามตารางสอน'!T$7:T$56,สรุปชั่วโมงสอนต่อสัปดาห์!I181,'3.ชั่วโมงสอนตามตารางสอน'!L$7:L$56) -> 0 | F181: =SUMIF('4.งานสนับสนุนการจัดการเรียนรู้'!#REF!,สรุปชั่วโมงสอนต่อสัปดาห์!I181,'4.งานสนับสนุนการจัดการเรียนรู้'!I$7:I$58) ->  | G181: =SUMIF('5.งานตอบสนองนโยบายและจุดเน้น'!#REF!,สรุปชั่วโมงสอนต่อสัปดาห์!I181,'5.งานตอบสนองนโยบายและจุดเน้น'!I$7:I$58) ->  | I181: 421 | J181: =IF(H181>ตัวแปร!C$37,1,"") -> 
B182: 4 | D182: 22 | E182: =SUMIF('3.ชั่วโมงสอนตามตารางสอน'!T$7:T$56,สรุปชั่วโมงสอนต่อสัปดาห์!I182,'3.ชั่วโมงสอนตามตารางสอน'!L$7:L$56) -> 0 | F182: =SUMIF('4.งานสนับสนุนการจัดการเรียนรู้'!#REF!,สรุปชั่วโมงสอนต่อสัปดาห์!I182,'4.งานสนับสนุนการจัดการเรียนรู้'!I$7:I$58) ->  | G182: =SUMIF('5.งานตอบสนองนโยบายและจุดเน้น'!#REF!,สรุปชั่วโมงสอนต่อสัปดาห์!I182,'5.งานตอบสนองนโยบายและจุดเน้น'!I$7:I$58) ->  | I182: 422 | J182: =IF(H182>ตัวแปร!C$37,1,"") -> 
B183: 4 | D183: 23 | E183: =SUMIF('3.ชั่วโมงสอนตามตารางสอน'!T$7:T$56,สรุปชั่วโมงสอนต่อสัปดาห์!I183,'3.ชั่วโมงสอนตามตารางสอน'!L$7:L$56) -> 0 | F183: =SUMIF('4.งานสนับสนุนการจัดการเรียนรู้'!#REF!,สรุปชั่วโมงสอนต่อสัปดาห์!I183,'4.งานสนับสนุนการจัดการเรียนรู้'!I$7:I$58) ->  | G183: =SUMIF('5.งานตอบสนองนโยบายและจุดเน้น'!#REF!,สรุปชั่วโมงสอนต่อสัปดาห์!I183,'5.งานตอบสนองนโยบายและจุดเน้น'!I$7:I$58) ->  | I183: 423 | J183: =IF(H183>ตัวแปร!C$37,1,"") -> 
B184: 4 | D184: 24 | E184: =SUMIF('3.ชั่วโมงสอนตามตารางสอน'!T$7:T$56,สรุปชั่วโมงสอนต่อสัปดาห์!I184,'3.ชั่วโมงสอนตามตารางสอน'!L$7:L$56) -> 0 | F184: =SUMIF('4.งานสนับสนุนการจัดการเรียนรู้'!#REF!,สรุปชั่วโมงสอนต่อสัปดาห์!I184,'4.งานสนับสนุนการจัดการเรียนรู้'!I$7:I$58) ->  | G184: =SUMIF('5.งานตอบสนองนโยบายและจุดเน้น'!#REF!,สรุปชั่วโมงสอนต่อสัปดาห์!I184,'5.งานตอบสนองนโยบายและจุดเน้น'!I$7:I$58) ->  | I184: 424 | J184: =IF(H184>ตัวแปร!C$37,1,"") -> 
B185: 4 | D185: 25 | E185: =SUMIF('3.ชั่วโมงสอนตามตารางสอน'!T$7:T$56,สรุปชั่วโมงสอนต่อสัปดาห์!I185,'3.ชั่วโมงสอนตามตารางสอน'!L$7:L$56) -> 0 | F185: =SUMIF('4.งานสนับสนุนการจัดการเรียนรู้'!#REF!,สรุปชั่วโมงสอนต่อสัปดาห์!I185,'4.งานสนับสนุนการจัดการเรียนรู้'!I$7:I$58) ->  | G185: =SUMIF('5.งานตอบสนองนโยบายและจุดเน้น'!#REF!,สรุปชั่วโมงสอนต่อสัปดาห์!I185,'5.งานตอบสนองนโยบายและจุดเน้น'!I$7:I$58) ->  | I185: 425 | J185: =IF(H185>ตัวแปร!C$37,1,"") -> 
B186: 4 | D186: 26 | E186: =SUMIF('3.ชั่วโมงสอนตามตารางสอน'!T$7:T$56,สรุปชั่วโมงสอนต่อสัปดาห์!I186,'3.ชั่วโมงสอนตามตารางสอน'!L$7:L$56) -> 0 | F186: =SUMIF('4.งานสนับสนุนการจัดการเรียนรู้'!#REF!,สรุปชั่วโมงสอนต่อสัปดาห์!I186,'4.งานสนับสนุนการจัดการเรียนรู้'!I$7:I$58) ->  | G186: =SUMIF('5.งานตอบสนองนโยบายและจุดเน้น'!#REF!,สรุปชั่วโมงสอนต่อสัปดาห์!I186,'5.งานตอบสนองนโยบายและจุดเน้น'!I$7:I$58) ->  | I186: 426 | J186: =IF(H186>ตัวแปร!C$37,1,"") -> 
B187: 4 | D187: 27 | E187: =SUMIF('3.ชั่วโมงสอนตามตารางสอน'!T$7:T$56,สรุปชั่วโมงสอนต่อสัปดาห์!I187,'3.ชั่วโมงสอนตามตารางสอน'!L$7:L$56) -> 0 | F187: =SUMIF('4.งานสนับสนุนการจัดการเรียนรู้'!#REF!,สรุปชั่วโมงสอนต่อสัปดาห์!I187,'4.งานสนับสนุนการจัดการเรียนรู้'!I$7:I$58) ->  | G187: =SUMIF('5.งานตอบสนองนโยบายและจุดเน้น'!#REF!,สรุปชั่วโมงสอนต่อสัปดาห์!I187,'5.งานตอบสนองนโยบายและจุดเน้น'!I$7:I$58) ->  | I187: 427 | J187: =IF(H187>ตัวแปร!C$37,1,"") -> 
B188: 4 | D188: 28 | E188: =SUMIF('3.ชั่วโมงสอนตามตารางสอน'!T$7:T$56,สรุปชั่วโมงสอนต่อสัปดาห์!I188,'3.ชั่วโมงสอนตามตารางสอน'!L$7:L$56) -> 0 | F188: =SUMIF('4.งานสนับสนุนการจัดการเรียนรู้'!#REF!,สรุปชั่วโมงสอนต่อสัปดาห์!I188,'4.งานสนับสนุนการจัดการเรียนรู้'!I$7:I$58) ->  | G188: =SUMIF('5.งานตอบสนองนโยบายและจุดเน้น'!#REF!,สรุปชั่วโมงสอนต่อสัปดาห์!I188,'5.งานตอบสนองนโยบายและจุดเน้น'!I$7:I$58) ->  | I188: 428 | J188: =IF(H188>ตัวแปร!C$37,1,"") -> 
B189: 4 | D189: 29 | E189: =SUMIF('3.ชั่วโมงสอนตามตารางสอน'!T$7:T$56,สรุปชั่วโมงสอนต่อสัปดาห์!I189,'3.ชั่วโมงสอนตามตารางสอน'!L$7:L$56) -> 0 | F189: =SUMIF('4.งานสนับสนุนการจัดการเรียนรู้'!#REF!,สรุปชั่วโมงสอนต่อสัปดาห์!I189,'4.งานสนับสนุนการจัดการเรียนรู้'!I$7:I$58) ->  | G189: =SUMIF('5.งานตอบสนองนโยบายและจุดเน้น'!#REF!,สรุปชั่วโมงสอนต่อสัปดาห์!I189,'5.งานตอบสนองนโยบายและจุดเน้น'!I$7:I$58) ->  | I189: 429 | J189: =IF(H189>ตัวแปร!C$37,1,"") -> 
B190: 4 | D190: 30 | E190: =SUMIF('3.ชั่วโมงสอนตามตารางสอน'!T$7:T$56,สรุปชั่วโมงสอนต่อสัปดาห์!I190,'3.ชั่วโมงสอนตามตารางสอน'!L$7:L$56) -> 0 | F190: =SUMIF('4.งานสนับสนุนการจัดการเรียนรู้'!#REF!,สรุปชั่วโมงสอนต่อสัปดาห์!I190,'4.งานสนับสนุนการจัดการเรียนรู้'!I$7:I$58) ->  | G190: =SUMIF('5.งานตอบสนองนโยบายและจุดเน้น'!#REF!,สรุปชั่วโมงสอนต่อสัปดาห์!I190,'5.งานตอบสนองนโยบายและจุดเน้น'!I$7:I$58) ->  | I190: 430 | J190: =IF(H190>ตัวแปร!C$37,1,"") -> 
B191: 4 | D191: 31 | E191: =SUMIF('3.ชั่วโมงสอนตามตารางสอน'!T$7:T$56,สรุปชั่วโมงสอนต่อสัปดาห์!I191,'3.ชั่วโมงสอนตามตารางสอน'!L$7:L$56) -> 0 | F191: =SUMIF('4.งานสนับสนุนการจัดการเรียนรู้'!#REF!,สรุปชั่วโมงสอนต่อสัปดาห์!I191,'4.งานสนับสนุนการจัดการเรียนรู้'!I$7:I$58) ->  | G191: =SUMIF('5.งานตอบสนองนโยบายและจุดเน้น'!#REF!,สรุปชั่วโมงสอนต่อสัปดาห์!I191,'5.งานตอบสนองนโยบายและจุดเน้น'!I$7:I$58) ->  | I191: 431 | J191: =IF(H191>ตัวแปร!C$37,1,"") -> 
B192: 4 | D192: 32 | E192: =SUMIF('3.ชั่วโมงสอนตามตารางสอน'!T$7:T$56,สรุปชั่วโมงสอนต่อสัปดาห์!I192,'3.ชั่วโมงสอนตามตารางสอน'!L$7:L$56) -> 0 | F192: =SUMIF('4.งานสนับสนุนการจัดการเรียนรู้'!#REF!,สรุปชั่วโมงสอนต่อสัปดาห์!I192,'4.งานสนับสนุนการจัดการเรียนรู้'!I$7:I$58) ->  | G192: =SUMIF('5.งานตอบสนองนโยบายและจุดเน้น'!#REF!,สรุปชั่วโมงสอนต่อสัปดาห์!I192,'5.งานตอบสนองนโยบายและจุดเน้น'!I$7:I$58) ->  | I192: 432 | J192: =IF(H192>ตัวแปร!C$37,1,"") -> 
B193: 4 | D193: 33 | E193: =SUMIF('3.ชั่วโมงสอนตามตารางสอน'!T$7:T$56,สรุปชั่วโมงสอนต่อสัปดาห์!I193,'3.ชั่วโมงสอนตามตารางสอน'!L$7:L$56) -> 0 | F193: =SUMIF('4.งานสนับสนุนการจัดการเรียนรู้'!#REF!,สรุปชั่วโมงสอนต่อสัปดาห์!I193,'4.งานสนับสนุนการจัดการเรียนรู้'!I$7:I$58) ->  | G193: =SUMIF('5.งานตอบสนองนโยบายและจุดเน้น'!#REF!,สรุปชั่วโมงสอนต่อสัปดาห์!I193,'5.งานตอบสนองนโยบายและจุดเน้น'!I$7:I$58) ->  | I193: 433 | J193: =IF(H193>ตัวแปร!C$37,1,"") -> 
B194: 4 | D194: 34 | E194: =SUMIF('3.ชั่วโมงสอนตามตารางสอน'!T$7:T$56,สรุปชั่วโมงสอนต่อสัปดาห์!I194,'3.ชั่วโมงสอนตามตารางสอน'!L$7:L$56) -> 0 | F194: =SUMIF('4.งานสนับสนุนการจัดการเรียนรู้'!#REF!,สรุปชั่วโมงสอนต่อสัปดาห์!I194,'4.งานสนับสนุนการจัดการเรียนรู้'!I$7:I$58) ->  | G194: =SUMIF('5.งานตอบสนองนโยบายและจุดเน้น'!#REF!,สรุปชั่วโมงสอนต่อสัปดาห์!I194,'5.งานตอบสนองนโยบายและจุดเน้น'!I$7:I$58) ->  | I194: 434 | J194: =IF(H194>ตัวแปร!C$37,1,"") -> 
B195: 4 | D195: 35 | E195: =SUMIF('3.ชั่วโมงสอนตามตารางสอน'!T$7:T$56,สรุปชั่วโมงสอนต่อสัปดาห์!I195,'3.ชั่วโมงสอนตามตารางสอน'!L$7:L$56) -> 0 | F195: =SUMIF('4.งานสนับสนุนการจัดการเรียนรู้'!#REF!,สรุปชั่วโมงสอนต่อสัปดาห์!I195,'4.งานสนับสนุนการจัดการเรียนรู้'!I$7:I$58) ->  | G195: =SUMIF('5.งานตอบสนองนโยบายและจุดเน้น'!#REF!,สรุปชั่วโมงสอนต่อสัปดาห์!I195,'5.งานตอบสนองนโยบายและจุดเน้น'!I$7:I$58) ->  | I195: 435 | J195: =IF(H195>ตัวแปร!C$37,1,"") -> 
B196: 4 | D196: 36 | E196: =SUMIF('3.ชั่วโมงสอนตามตารางสอน'!T$7:T$56,สรุปชั่วโมงสอนต่อสัปดาห์!I196,'3.ชั่วโมงสอนตามตารางสอน'!L$7:L$56) -> 0 | F196: =SUMIF('4.งานสนับสนุนการจัดการเรียนรู้'!#REF!,สรุปชั่วโมงสอนต่อสัปดาห์!I196,'4.งานสนับสนุนการจัดการเรียนรู้'!I$7:I$58) ->  | G196: =SUMIF('5.งานตอบสนองนโยบายและจุดเน้น'!#REF!,สรุปชั่วโมงสอนต่อสัปดาห์!I196,'5.งานตอบสนองนโยบายและจุดเน้น'!I$7:I$58) ->  | I196: 436 | J196: =IF(H196>ตัวแปร!C$37,1,"") -> 
B197: 4 | D197: 37 | E197: =SUMIF('3.ชั่วโมงสอนตามตารางสอน'!T$7:T$56,สรุปชั่วโมงสอนต่อสัปดาห์!I197,'3.ชั่วโมงสอนตามตารางสอน'!L$7:L$56) -> 0 | F197: =SUMIF('4.งานสนับสนุนการจัดการเรียนรู้'!#REF!,สรุปชั่วโมงสอนต่อสัปดาห์!I197,'4.งานสนับสนุนการจัดการเรียนรู้'!I$7:I$58) ->  | G197: =SUMIF('5.งานตอบสนองนโยบายและจุดเน้น'!#REF!,สรุปชั่วโมงสอนต่อสัปดาห์!I197,'5.งานตอบสนองนโยบายและจุดเน้น'!I$7:I$58) ->  | I197: 437 | J197: =IF(H197>ตัวแปร!C$37,1,"") -> 
B198: 4 | D198: 38 | E198: =SUMIF('3.ชั่วโมงสอนตามตารางสอน'!T$7:T$56,สรุปชั่วโมงสอนต่อสัปดาห์!I198,'3.ชั่วโมงสอนตามตารางสอน'!L$7:L$56) -> 0 | F198: =SUMIF('4.งานสนับสนุนการจัดการเรียนรู้'!#REF!,สรุปชั่วโมงสอนต่อสัปดาห์!I198,'4.งานสนับสนุนการจัดการเรียนรู้'!I$7:I$58) ->  | G198: =SUMIF('5.งานตอบสนองนโยบายและจุดเน้น'!#REF!,สรุปชั่วโมงสอนต่อสัปดาห์!I198,'5.งานตอบสนองนโยบายและจุดเน้น'!I$7:I$58) ->  | H198: =SUM(E198:G198) ->  | I198: =B198&+D198 -> 438 | J198: =IF(H198>ตัวแปร!C$37,1,"") ->  | K198: =IF(J198=1,"ตรวจสอบ","") -> 
B199: =IF(D198=52,B198+1,B198) -> 4 | D199: 39 | E199: =SUMIF('3.ชั่วโมงสอนตามตารางสอน'!T$7:T$56,สรุปชั่วโมงสอนต่อสัปดาห์!I199,'3.ชั่วโมงสอนตามตารางสอน'!L$7:L$56) -> 0 | F199: =SUMIF('4.งานสนับสนุนการจัดการเรียนรู้'!#REF!,สรุปชั่วโมงสอนต่อสัปดาห์!I199,'4.งานสนับสนุนการจัดการเรียนรู้'!I$7:I$58) ->  | G199: =SUMIF('5.งานตอบสนองนโยบายและจุดเน้น'!#REF!,สรุปชั่วโมงสอนต่อสัปดาห์!I199,'5.งานตอบสนองนโยบายและจุดเน้น'!I$7:I$58) ->  | I199: 439 | J199: =IF(H199>ตัวแปร!C$37,1,"") -> 
B200: 4 | D200: 40 | E200: =SUMIF('3.ชั่วโมงสอนตามตารางสอน'!T$7:T$56,สรุปชั่วโมงสอนต่อสัปดาห์!I200,'3.ชั่วโมงสอนตามตารางสอน'!L$7:L$56) -> 0 | F200: =SUMIF('4.งานสนับสนุนการจัดการเรียนรู้'!#REF!,สรุปชั่วโมงสอนต่อสัปดาห์!I200,'4.งานสนับสนุนการจัดการเรียนรู้'!I$7:I$58) ->  | G200: =SUMIF('5.งานตอบสนองนโยบายและจุดเน้น'!#REF!,สรุปชั่วโมงสอนต่อสัปดาห์!I200,'5.งานตอบสนองนโยบายและจุดเน้น'!I$7:I$58) ->  | I200: 440 | J200: =IF(H200>ตัวแปร!C$37,1,"") -> 
... 64 more rows

Sheet 1.ข้อมูลส่วนบุคคล
A1: Logbook
A2: ข้อมูลส่วนบุคคล
A3: ลำดับที่ | B3: วัน เดือน ปี ที่บันทึก | C3: หลักสูตรที่พัฒนา | E3: ระดับวิทยฐานะ | F3: วัน เดือน ปี ที่พัฒนา
A5: 1 | B5: คำนำหน้าชื่อ | C5: นาย | E5: เลขที่บัตรประชาชน | F5: 12345678912345
B6: ชื่อ | C6: สมชาย | E6: คุณวุฒิ | F6: ปริญญาตรี (4 ปี) คบ. การสอนภาษาไทย
B7: นามสกุล | C7: ใจดี
A9: 2 | B9: ตำแหน่งปัจจุบัน | C9: ครู | E9: เลขที่ตำแหน่ง | F9: 1234
B10: วิทยฐานะ ครู | C10: ชำนาญการ | E10: ตั้งแต่วันที่ | F10: 2558-01-10 | G10: =DAY(F10)&+"/"&+MONTH(F10)&+"/"&+YEAR(F10) -> 10/1/2558 | H10: 2560-07-05
B11: เงินเดือน | C11: 30,000 | D11: บาท | G11: =DAY(F10)&+"/"&+MONTH(F10)&+"/"&+(YEAR(F10)) -> 10/1/2558
A13: 3 | B13: ชื่อสถานศึกษา | E13: แขวง/ตำบล | G13: =IF(ISBLANK(E33),NOW(),E33) -> 2018-05-15T20:46:02.560
B14: เขต/อำเภอ | E14: จังหวัด | G14: =IF(ISBLANK(E33),DAY(G13)&+"/"&+MONTH(G13)&+"/"&+(YEAR(G13)+543),E33) -> 15/5/2561
B15: รหัสไปรษณีย์
A17: 4 | B17: สังกัด | C17: สำนักงานคณะกรรมการการศึกษาขั้นพื้นฐาน
B18: หน่วยงาน | C18: สำนักงานเขตพื้นที่การศึกษา | E18: ชื่อหน่วยงาน (ถ้ามี)
A20: 5 | B20: มีความประสงค์จะยื่นขอรับการประเมินเพื่อขอมีหรือเลื่อนวิทยฐานะใด
B21: ครู | C21: =IF(C10="","โปรดระบุวิทยฐานะในข้อที่ 2",VLOOKUP(C10,ตั้งค่าข้อมูล!A4:B8,2,FALSE)) -> ชำนาญการพิเศษ | D21: =IF(C21="ชำนาญการ","",IF(C21="ชำนาญการพิเศษ","",IF(C21="เชี่ยวชาญ","โปรดกรอกข้อมูลในข้อ 6",IF(C21="เชี่ยวชาญพิเศษ","โปรดกรอกข้อมูลในข้อ 6","")))) -> 
A23: 6 | B23: สังกัดหน่วยงานการศึกษา ระดับการศึกษา และกลุ่มสาระ/สาขาวิชา/วิชาที่เสนอขอผลงานทางวิชาการ(กรณีที่ยื่นขอวิทยฐานะเชี่ยวชาญขึ้นไป)
B25: สังกัดหน่วยงานการศึกษา… | D25: ระดับการศึกษา | F25: กลุ่มสาระ/สาขาวิชา/วิชาที่เสนอขอ
B26: สำนักงานเขตพื้นที่การศึกษา
D28: การลงนามเพื่อรับรองข้อมูล
E29: การรับรองของตนเอง
D30: ลงชื่อ | E30: =C6&+" "&+C7 -> สมชาย ใจดี
E31: ="("&+C5&+C6&+" "&+C7&+")" -> (นายสมชาย ใจดี) | G31: =DATEDIF(G11,G14,"y") -> 3
D32: วัน/เดือน/ปี ที่เริ่มบันทึก | E32: =IF(ISBLANK(F10),"",IF(F10<H10,H10,F10)) -> 2560-07-05 | G32: =IF(ISBLANK(E33),E32,DATE(YEAR(E33)-5,MONTH(E33),DAY(E33))) -> 2560-07-05 | H32: 0
B33: วัน/เดือน/ปี ที่ขอมีวิทยฐานะหรือเลื่อนวิทยฐานะ หมายเหตุ กรอกวันเดียวกันกับแบบ วฐ.1 หน้า 5 | G33: =IF(H33=1,"วันที่ขอมีวิทยฐานะหรือเลื่อนวิทยฐานะต้องหลังจากวันที่เริ่มบันทึก",IF(H32=1,"วันที่ขอมีวิทยฐานะหรือเลื่อนวิทยฐานะน้อยกว่า 5 ปี","")) ->  | H33: 0
E34: =DAY(E32) -> 5 | F34: =MONTH(E32) -> 7 | G34: =YEAR(E32)+543 -> 3103
B35: การรับรองของ ผอ.สถานศึกษา | F35: =TEXT(E32,"MMMM") -> กรกฎาคม
A36: ลงชื่อ | B36: สมหวัง ดังใจ
B37: (นาย | C37: =B36&+")" -> สมหวัง ดังใจ) | D37: วัน/เดือน/ปี
A38: ตำแหน่ง
A39: กรณีที่ในปีใดมีการปรับปรุงหรือแก้ไขข้อมูลในหน้านี้ ให้ผอ.สถานศึกษาที่เป็นผู้บังคับบัญชาในขณะนั้นทำการรับรองใหม่
A40: ลงชื่อ
B41: (นาย | C41: =B40&+")" -> ) | D41: วัน/เดือน/ปี
A42: ตำแหน่ง
A44: ลงชื่อ
B45: (นาย | C45: =B44&+")" -> ) | D45: วัน/เดือน/ปี
A46: ตำแหน่ง
A48: ลงชื่อ
B49: (นาย | C49: =B48&+")" -> ) | D49: วัน/เดือน/ปี
A50: ตำแหน่ง
A52: ลงชื่อ
B53: (นาย | C53: =B52&+")" -> ) | D53: วัน/เดือน/ปี
A54: ตำแหน่ง
A56: ลงชื่อ
B57: (นาย | C57: =B56&+")" -> ) | D57: วัน/เดือน/ปี
A58: ตำแหน่ง
A60: ลงชื่อ
B61: (นาย | C61: =B60&+")" -> ) | D61: วัน/เดือน/ปี
A62: ตำแหน่ง
A64: ลงชื่อ
B65: (นาย | C65: =B64&+")" -> ) | D65: วัน/เดือน/ปี
A66: ตำแหน่ง
A68: ลงชื่อ
B69: (นาย | C69: =B68&+")" -> ) | D69: วัน/เดือน/ปี
A70: ตำแหน่ง
A72: ลงชื่อ
B73: (นาย | C73: =B72&+")" -> ) | D73: วัน/เดือน/ปี
A74: ตำแหน่ง
A76: ลงชื่อ
B77: (นาย | C77: =B76&+")" -> ) | D77: วัน/เดือน/ปี
A78: ตำแหน่ง

Sheet 2.การมอบหมายงานสอน
A1: การมอบหมายงานสอน
E2: เป็นการกรอกข้อมูลการมอบหมายงานสอนตามตารางสอนที่อยู่ในหลักสูตรแกนกลางฯ/หลักสูตร ปวช., ปวส., ระยะสั้น/หลักสูตรการศึกษานอกระบบ/หลักสูตรฝึกอบรม สคบศ.
Q3: =MIN(Q5:Q354) -> 0 | R3: =MIN(R5:R354) -> 0 | S3: =MIN(S5:S354) -> 0 | T3: 0 | U3: 0 | V3: 0 | W3: 0 | X3: 0 | Y3: 0 | Z3: 0 | AA3: 0 | AB3: 0 | AC3: 0 | AD3: 0 | AE3: 0 | AF3: 0 | AG3: 0 | AH3: 0 | AI3: 0 | AJ3: 0
B4: NO | C4: ปีการศึกษา/ปีงบประมาณ | D4: ภาคเรียนที่ | E4: หน่วยงานการศึกษา | F4: ชื่อสถานศึกษา | G4: ประเภทการสอน/ระดับการศึกษาที่สอน | H4: กลุ่มสาระที่สอน/สาขาวิชาที่สอน/วิชาที่สอน | I4: สาขาวิชา/กลุ่มวิชาที่สอน (ถ้ามี) | J4: ชื่อวิชาที่สอน/วิชาที่อบรม | K4: จำนวนคาบต่อสัปดาห์/หลักสูตร | L4: การรับรองของ ผอ. สถานศึกษา | M4: รหัสเอกสารสำหรับตรวจสอบ | N4: Gen รหัสเอกสาร | O4: แสดงจำนวนชั่วโมงขั้นต่ำ | P4: ปี+เทอม | Q4: =IF(ISBLANK(D5),C5*10+0,C5*10+D5) -> 25601 | R4: =IF(ISBLANK(D5),C5*10+0,($C$5)*10+2) -> 25602 | S4: =IF(ISBLANK(D5),C5*10+(10*1),($C$5+1)*10+1) -> 25611 | T4: =IF(ISBLANK(D5),C5*10+(10*1),($C$5+1)*10+2) -> 25612 | U4: =IF(ISBLANK(D5),C5*10+(10*2),($C$5+2)*10+1) -> 25621 | V4: =IF(ISBLANK(D5),C5*10+(10*2),($C$5+2)*10+2) -> 25622 | W4: =IF(ISBLANK(D5),C5*10+(10*3),($C$5+3)*10+1) -> 25631 | X4: =IF(ISBLANK(D5),C5*10+(10*3),($C$5+3)*10+2) -> 25632 | Y4: =IF(ISBLANK(D5),C5*10+(10*4),($C$5+4)*10+1) -> 25641 | Z4: =IF(ISBLANK(D5),C5*10+(10*4),($C$5+4)*10+2) -> 25642 | AA4: =IF(ISBLANK(D5),C5*10+(10*5),($C$5+5)*10+1) -> 25651 | AB4: =IF(ISBLANK(D5),C5*10+(10*5),($C$5+5)*10+2) -> 25652 | AC4: =IF(ISBLANK(D5),C5*10+(10*6),($C$5+6)*10+1) -> 25661 | AD4: =IF(ISBLANK(D5),C5*10+(10*6),($C$5+6)*10+2) -> 25662 | AE4: =IF(ISBLANK(D5),C5*10+(10*7),($C$5+7)*10+1) -> 25671 | AF4: =IF(ISBLANK(D5),C5*10+(10*7),($C$5+7)*10+2) -> 25672 | AG4: =IF(ISBLANK(D5),C5*10+(10*8),($C$5+8)*10+1) -> 25681 | AH4: =IF(ISBLANK(D5),C5*10+(10*8),($C$5+8)*10+2) -> 25682 | AI4: =IF(ISBLANK(D5),C5*10+(10*9),($C$5+9)*10+1) -> 25691 | AJ4: =IF(ISBLANK(D5),C5*10+(10*9),($C$5+9)*10+2) -> 25692 | AK4: Convert จากแถวด้านบน
A5: ='1.ข้อมูลส่วนบุคคล'!$F$5 -> 12345678912345 | B5: 1 | C5: 2560 | D5: 1 | M5: =N5 -> 2-125601... | N5: =IF(C5<>"","2-"&+B5&+C5&+D5&+"..."&+LEFT(J5,20),"") -> 2-125601... | O5: =IFERROR(VLOOKUP(G5,ตัวแปร!B$41:C$61,2,0),"") ->  | P5: =C5*10+D5 -> 25601 | Q5: =IF(Q$4=$P5,$O5,"") ->  | R5: =IF(R$4=$P5,$O5,"") ->  | S5: =IF(S$4=$P5,$O5,"") ->  | AK5: =Q$4 -> 25601 | AL5: =Q3 -> 0
A6: ='1.ข้อมูลส่วนบุคคล'!$F$5 -> 12345678912345 | B6: 2 | C6: 2560 | D6: 2 | M6: =N6 -> 2-225602... | N6: =IF(C6<>"","2-"&+B6&+C6&+D6&+"..."&+LEFT(J6,20),"") -> 2-225602... | O6: =IFERROR(VLOOKUP(G6,ตัวแปร!B$41:C$61,2,0),"") ->  | P6: 25602 | Q6: =IF(Q$4=P6,O6,"") ->  | R6: =IF(R$4=$P6,$O6,"") ->  | AK6: =R$4 -> 25602 | AL6: =R$3 -> 0
A7: ='1.ข้อมูลส่วนบุคคล'!$F$5 -> 12345678912345 | B7: 3 | O7: =IFERROR(VLOOKUP(G7,ตัวแปร!B$41:C$61,2,0),"") ->  | P7: 0 | AK7: =S$4 -> 25611 | AL7: =S3 -> 0
A8: ='1.ข้อมูลส่วนบุคคล'!$F$5 -> 12345678912345 | B8: 4 | O8: =IFERROR(VLOOKUP(G8,ตัวแปร!B$41:C$61,2,0),"") ->  | P8: 0 | AK8: =T$4 -> 25612 | AL8: =T3 -> 0
A9: ='1.ข้อมูลส่วนบุคคล'!$F$5 -> 12345678912345 | B9: 5 | O9: =IFERROR(VLOOKUP(G9,ตัวแปร!B$41:C$61,2,0),"") ->  | P9: 0 | AK9: =U$4 -> 25621 | AL9: =U3 -> 0
A10: ='1.ข้อมูลส่วนบุคคล'!$F$5 -> 12345678912345 | B10: 6 | O10: =IFERROR(VLOOKUP(G10,ตัวแปร!B$41:C$61,2,0),"") ->  | P10: 0 | AK10: =V$4 -> 25622 | AL10: =V3 -> 0
A11: ='1.ข้อมูลส่วนบุคคล'!$F$5 -> 12345678912345 | B11: 7 | O11: =IFERROR(VLOOKUP(G11,ตัวแปร!B$41:C$61,2,0),"") ->  | P11: 0 | AK11: =W$4 -> 25631 | AL11: =W3 -> 0
A12: ='1.ข้อมูลส่วนบุคคล'!$F$5 -> 12345678912345 | B12: 8 | O12: =IFERROR(VLOOKUP(G12,ตัวแปร!B$41:C$61,2,0),"") ->  | P12: 0 | AK12: =X$4 -> 25632 | AL12: =X3 -> 0
A13: ='1.ข้อมูลส่วนบุคคล'!$F$5 -> 12345678912345 | B13: 9 | O13: =IFERROR(VLOOKUP(G13,ตัวแปร!B$41:C$61,2,0),"") ->  | P13: 0 | AK13: =Y$4 -> 25641 | AL13: =Y3 -> 0
A14: ='1.ข้อมูลส่วนบุคคล'!$F$5 -> 12345678912345 | B14: 10 | O14: =IFERROR(VLOOKUP(G14,ตัวแปร!B$41:C$61,2,0),"") ->  | P14: 0 | AK14: =Z$4 -> 25642 | AL14: =Z3 -> 0
A15: ='1.ข้อมูลส่วนบุคคล'!$F$5 -> 12345678912345 | B15: 11 | O15: =IFERROR(VLOOKUP(G15,ตัวแปร!B$41:C$61,2,0),"") ->  | P15: 0 | AK15: =AA$4 -> 25651 | AL15: =AA3 -> 0
A16: ='1.ข้อมูลส่วนบุคคล'!$F$5 -> 12345678912345 | B16: 12 | O16: =IFERROR(VLOOKUP(G16,ตัวแปร!B$41:C$61,2,0),"") ->  | P16: 0 | AK16: =AB4 -> 25652 | AL16: =AB3 -> 0
A17: ='1.ข้อมูลส่วนบุคคล'!$F$5 -> 12345678912345 | B17: 13 | O17: =IFERROR(VLOOKUP(G17,ตัวแปร!B$41:C$61,2,0),"") ->  | P17: 0 | AK17: =AC4 -> 25661 | AL17: =AC3 -> 0
A18: ='1.ข้อมูลส่วนบุคคล'!$F$5 -> 12345678912345 | B18: 14 | O18: =IFERROR(VLOOKUP(G18,ตัวแปร!B$41:C$61,2,0),"") ->  | P18: 0 | AK18: =AD4 -> 25662 | AL18: =AD3 -> 0
A19: ='1.ข้อมูลส่วนบุคคล'!$F$5 -> 12345678912345 | B19: 15 | O19: =IFERROR(VLOOKUP(G19,ตัวแปร!B$41:C$61,2,0),"") ->  | P19: 0 | V19: =IF(V$4=$P19,$O19,"") ->  | AK19: =AE4 -> 25671 | AL19: =AE3 -> 0
A20: ='1.ข้อมูลส่วนบุคคล'!$F$5 -> 12345678912345 | B20: 16 | O20: =IFERROR(VLOOKUP(G20,ตัวแปร!B$41:C$61,2,0),"") ->  | P20: 0 | AK20: =AF4 -> 25672 | AL20: =AF3 -> 0
A21: ='1.ข้อมูลส่วนบุคคล'!$F$5 -> 12345678912345 | B21: 17 | O21: =IFERROR(VLOOKUP(G21,ตัวแปร!B$41:C$61,2,0),"") ->  | P21: 0 | AK21: =AG4 -> 25681 | AL21: =AG3 -> 0
A22: ='1.ข้อมูลส่วนบุคคล'!$F$5 -> 12345678912345 | B22: 18 | O22: =IFERROR(VLOOKUP(G22,ตัวแปร!B$41:C$61,2,0),"") ->  | P22: 0 | AK22: =AH4 -> 25682 | AL22: =AH3 -> 0
A23: ='1.ข้อมูลส่วนบุคคล'!$F$5 -> 12345678912345 | B23: 19 | O23: =IFERROR(VLOOKUP(G23,ตัวแปร!B$41:C$61,2,0),"") ->  | P23: 0 | AK23: =AI4 -> 25691 | AL23: =AI3 -> 0
A24: ='1.ข้อมูลส่วนบุคคล'!$F$5 -> 12345678912345 | B24: 20 | O24: =IFERROR(VLOOKUP(G24,ตัวแปร!B$41:C$61,2,0),"") ->  | P24: 0 | AK24: =AJ4 -> 25692 | AL24: =AJ3 -> 0
A25: ='1.ข้อมูลส่วนบุคคล'!$F$5 -> 12345678912345 | B25: 21 | O25: =IFERROR(VLOOKUP(G25,ตัวแปร!B$41:C$61,2,0),"") ->  | P25: 0
A26: ='1.ข้อมูลส่วนบุคคล'!$F$5 -> 12345678912345 | B26: 22 | O26: =IFERROR(VLOOKUP(G26,ตัวแปร!B$41:C$61,2,0),"") ->  | P26: 0
A27: ='1.ข้อมูลส่วนบุคคล'!$F$5 -> 12345678912345 | B27: 23 | O27: =IFERROR(VLOOKUP(G27,ตัวแปร!B$41:C$61,2,0),"") ->  | P27: 0
A28: ='1.ข้อมูลส่วนบุคคล'!$F$5 -> 12345678912345 | B28: 24 | O28: =IFERROR(VLOOKUP(G28,ตัวแปร!B$41:C$61,2,0),"") ->  | P28: 0
A29: ='1.ข้อมูลส่วนบุคคล'!$F$5 -> 12345678912345 | B29: 25 | O29: =IFERROR(VLOOKUP(G29,ตัวแปร!B$41:C$61,2,0),"") ->  | P29: 0
A30: ='1.ข้อมูลส่วนบุคคล'!$F$5 -> 12345678912345 | B30: 26 | O30: =IFERROR(VLOOKUP(G30,ตัวแปร!B$41:C$61,2,0),"") ->  | P30: 0
A31: ='1.ข้อมูลส่วนบุคคล'!$F$5 -> 12345678912345 | B31: 27 | O31: =IFERROR(VLOOKUP(G31,ตัวแปร!B$41:C$61,2,0),"") ->  | P31: 0
A32: ='1.ข้อมูลส่วนบุคคล'!$F$5 -> 12345678912345 | B32: 28 | O32: =IFERROR(VLOOKUP(G32,ตัวแปร!B$41:C$61,2,0),"") ->  | P32: 0
A33: ='1.ข้อมูลส่วนบุคคล'!$F$5 -> 12345678912345 | B33: 29 | O33: =IFERROR(VLOOKUP(G33,ตัวแปร!B$41:C$61,2,0),"") ->  | P33: 0
A34: ='1.ข้อมูลส่วนบุคคล'!$F$5 -> 12345678912345 | B34: 30 | O34: =IFERROR(VLOOKUP(G34,ตัวแปร!B$41:C$61,2,0),"") ->  | P34: 0
A35: ='1.ข้อมูลส่วนบุคคล'!$F$5 -> 12345678912345 | B35: 31 | O35: =IFERROR(VLOOKUP(G35,ตัวแปร!B$41:C$61,2,0),"") ->  | P35: 0 | S35: =IF(S$4=$P35,$O35,"") -> 
A36: ='1.ข้อมูลส่วนบุคคล'!$F$5 -> 12345678912345 | B36: 32 | O36: =IFERROR(VLOOKUP(G36,ตัวแปร!B$41:C$61,2,0),"") ->  | P36: 0 | R36: =IF(R$4=$P36,$O36,"") -> 
A37: ='1.ข้อมูลส่วนบุคคล'!$F$5 -> 12345678912345 | B37: 33 | O37: =IFERROR(VLOOKUP(G37,ตัวแปร!B$41:C$61,2,0),"") ->  | P37: 0
A38: ='1.ข้อมูลส่วนบุคคล'!$F$5 -> 12345678912345 | B38: 34 | O38: =IFERROR(VLOOKUP(G38,ตัวแปร!B$41:C$61,2,0),"") ->  | P38: 0
A39: ='1.ข้อมูลส่วนบุคคล'!$F$5 -> 12345678912345 | B39: 35 | O39: =IFERROR(VLOOKUP(G39,ตัวแปร!B$41:C$61,2,0),"") ->  | P39: 0
A40: ='1.ข้อมูลส่วนบุคคล'!$F$5 -> 12345678912345 | B40: 36 | O40: =IFERROR(VLOOKUP(G40,ตัวแปร!B$41:C$61,2,0),"") ->  | P40: 0
A41: ='1.ข้อมูลส่วนบุคคล'!$F$5 -> 12345678912345 | B41: 37 | O41: =IFERROR(VLOOKUP(G41,ตัวแปร!B$41:C$61,2,0),"") ->  | P41: 0
A42: ='1.ข้อมูลส่วนบุคคล'!$F$5 -> 12345678912345 | B42: 38 | O42: =IFERROR(VLOOKUP(G42,ตัวแปร!B$41:C$61,2,0),"") ->  | P42: 0
A43: ='1.ข้อมูลส่วนบุคคล'!$F$5 -> 12345678912345 | B43: 39 | O43: =IFERROR(VLOOKUP(G43,ตัวแปร!B$41:C$61,2,0),"") ->  | P43: 0
A44: ='1.ข้อมูลส่วนบุคคล'!$F$5 -> 12345678912345 | B44: 40 | O44: =IFERROR(VLOOKUP(G44,ตัวแปร!B$41:C$61,2,0),"") ->  | P44: 0
A45: ='1.ข้อมูลส่วนบุคคล'!$F$5 -> 12345678912345 | B45: 41 | O45: =IFERROR(VLOOKUP(G45,ตัวแปร!B$41:C$61,2,0),"") ->  | P45: 0
A46: ='1.ข้อมูลส่วนบุคคล'!$F$5 -> 12345678912345 | B46: 42 | O46: =IFERROR(VLOOKUP(G46,ตัวแปร!B$41:C$61,2,0),"") ->  | P46: 0
A47: ='1.ข้อมูลส่วนบุคคล'!$F$5 -> 12345678912345 | B47: 43 | O47: =IFERROR(VLOOKUP(G47,ตัวแปร!B$41:C$61,2,0),"") ->  | P47: 0
A48: ='1.ข้อมูลส่วนบุคคล'!$F$5 -> 12345678912345 | B48: 44 | O48: =IFERROR(VLOOKUP(G48,ตัวแปร!B$41:C$61,2,0),"") ->  | P48: 0
A49: ='1.ข้อมูลส่วนบุคคล'!$F$5 -> 12345678912345 | B49: 45 | O49: =IFERROR(VLOOKUP(G49,ตัวแปร!B$41:C$61,2,0),"") ->  | P49: 0
A50: ='1.ข้อมูลส่วนบุคคล'!$F$5 -> 12345678912345 | B50: 46 | O50: =IFERROR(VLOOKUP(G50,ตัวแปร!B$41:C$61,2,0),"") ->  | P50: 0 | AH50: =IF(AH$4=$P50,$O50,"") -> 
A51: ='1.ข้อมูลส่วนบุคคล'!$F$5 -> 12345678912345 | B51: 47 | O51: =IFERROR(VLOOKUP(G51,ตัวแปร!B$41:C$61,2,0),"") ->  | P51: 0
A52: ='1.ข้อมูลส่วนบุคคล'!$F$5 -> 12345678912345 | B52: 48 | O52: =IFERROR(VLOOKUP(G52,ตัวแปร!B$41:C$61,2,0),"") ->  | P52: 0
A53: ='1.ข้อมูลส่วนบุคคล'!$F$5 -> 12345678912345 | B53: 49 | O53: =IFERROR(VLOOKUP(G53,ตัวแปร!B$41:C$61,2,0),"") ->  | P53: 0
A54: ='1.ข้อมูลส่วนบุคคล'!$F$5 -> 12345678912345 | B54: 50 | O54: =IFERROR(VLOOKUP(G54,ตัวแปร!B$41:C$61,2,0),"") ->  | P54: 0
A55: ='1.ข้อมูลส่วนบุคคล'!$F$5 -> 12345678912345 | B55: 51 | O55: =IFERROR(VLOOKUP(G55,ตัวแปร!B$41:C$61,2,0),"") ->  | P55: 0
A56: ='1.ข้อมูลส่วนบุคคล'!$F$5 -> 12345678912345 | B56: 52 | O56: =IFERROR(VLOOKUP(G56,ตัวแปร!B$41:C$61,2,0),"") ->  | P56: 0
A57: ='1.ข้อมูลส่วนบุคคล'!$F$5 -> 12345678912345 | B57: 53 | O57: =IFERROR(VLOOKUP(G57,ตัวแปร!B$41:C$61,2,0),"") ->  | P57: 0
A58: ='1.ข้อมูลส่วนบุคคล'!$F$5 -> 12345678912345 | B58: 54 | O58: =IFERROR(VLOOKUP(G58,ตัวแปร!B$41:C$61,2,0),"") ->  | P58: 0
A59: ='1.ข้อมูลส่วนบุคคล'!$F$5 -> 12345678912345 | B59: 55 | O59: =IFERROR(VLOOKUP(G59,ตัวแปร!B$41:C$61,2,0),"") ->  | P59: 0
A60: ='1.ข้อมูลส่วนบุคคล'!$F$5 -> 12345678912345 | B60: 56 | O60: =IFERROR(VLOOKUP(G60,ตัวแปร!B$41:C$61,2,0),"") ->  | P60: 0
A61: ='1.ข้อมูลส่วนบุคคล'!$F$5 -> 12345678912345 | B61: 57 | O61: =IFERROR(VLOOKUP(G61,ตัวแปร!B$41:C$61,2,0),"") ->  | P61: 0
A62: ='1.ข้อมูลส่วนบุคคล'!$F$5 -> 12345678912345 | B62: 58 | O62: =IFERROR(VLOOKUP(G62,ตัวแปร!B$41:C$61,2,0),"") ->  | P62: 0
A63: ='1.ข้อมูลส่วนบุคคล'!$F$5 -> 12345678912345 | B63: 59 | O63: =IFERROR(VLOOKUP(G63,ตัวแปร!B$41:C$61,2,0),"") ->  | P63: 0
A64: ='1.ข้อมูลส่วนบุคคล'!$F$5 -> 12345678912345 | B64: 60 | O64: =IFERROR(VLOOKUP(G64,ตัวแปร!B$41:C$61,2,0),"") ->  | P64: 0
A65: ='1.ข้อมูลส่วนบุคคล'!$F$5 -> 12345678912345 | B65: 61 | O65: =IFERROR(VLOOKUP(G65,ตัวแปร!B$41:C$61,2,0),"") ->  | P65: 0
A66: ='1.ข้อมูลส่วนบุคคล'!$F$5 -> 12345678912345 | B66: 62 | O66: =IFERROR(VLOOKUP(G66,ตัวแปร!B$41:C$61,2,0),"") ->  | P66: 0 | R66: =IF(R$4=$P66,$O66,"") -> 
A67: ='1.ข้อมูลส่วนบุคคล'!$F$5 -> 12345678912345 | B67: 63 | O67: =IFERROR(VLOOKUP(G67,ตัวแปร!B$41:C$61,2,0),"") ->  | P67: 0
A68: ='1.ข้อมูลส่วนบุคคล'!$F$5 -> 12345678912345 | B68: 64 | O68: =IFERROR(VLOOKUP(G68,ตัวแปร!B$41:C$61,2,0),"") ->  | P68: 0
A69: ='1.ข้อมูลส่วนบุคคล'!$F$5 -> 12345678912345 | B69: 65 | O69: =IFERROR(VLOOKUP(G69,ตัวแปร!B$41:C$61,2,0),"") ->  | P69: =C69*10+D69 -> 0
A70: ='1.ข้อมูลส่วนบุคคล'!$F$5 -> 12345678912345 | B70: 66 | M70: =N70 ->  | N70: =IF(C70<>"","2-"&+B70&+C70&+D70&+"..."&+LEFT(J70,20),"") ->  | O70: =IFERROR(VLOOKUP(G70,ตัวแปร!B$41:C$61,2,0),"") ->  | P70: 0 | Q70: =IF(Q$4=P70,O70,"") -> 
A71: ='1.ข้อมูลส่วนบุคคล'!$F$5 -> 12345678912345 | B71: 67 | O71: =IFERROR(VLOOKUP(G71,ตัวแปร!B$41:C$61,2,0),"") ->  | P71: 0
A72: ='1.ข้อมูลส่วนบุคคล'!$F$5 -> 12345678912345 | B72: 68 | O72: =IFERROR(VLOOKUP(G72,ตัวแปร!B$41:C$61,2,0),"") ->  | P72: 0
A73: ='1.ข้อมูลส่วนบุคคล'!$F$5 -> 12345678912345 | B73: 69 | O73: =IFERROR(VLOOKUP(G73,ตัวแปร!B$41:C$61,2,0),"") ->  | P73: 0
A74: ='1.ข้อมูลส่วนบุคคล'!$F$5 -> 12345678912345 | B74: 70 | O74: =IFERROR(VLOOKUP(G74,ตัวแปร!B$41:C$61,2,0),"") ->  | P74: 0
A75: ='1.ข้อมูลส่วนบุคคล'!$F$5 -> 12345678912345 | B75: 71 | O75: =IFERROR(VLOOKUP(G75,ตัวแปร!B$41:C$61,2,0),"") ->  | P75: 0
A76: ='1.ข้อมูลส่วนบุคคล'!$F$5 -> 12345678912345 | B76: 72 | O76: =IFERROR(VLOOKUP(G76,ตัวแปร!B$41:C$61,2,0),"") ->  | P76: 0
A77: ='1.ข้อมูลส่วนบุคคล'!$F$5 -> 12345678912345 | B77: 73 | O77: =IFERROR(VLOOKUP(G77,ตัวแปร!B$41:C$61,2,0),"") ->  | P77: 0
A78: ='1.ข้อมูลส่วนบุคคล'!$F$5 -> 12345678912345 | B78: 74 | O78: =IFERROR(VLOOKUP(G78,ตัวแปร!B$41:C$61,2,0),"") ->  | P78: 0
A79: ='1.ข้อมูลส่วนบุคคล'!$F$5 -> 12345678912345 | B79: 75 | O79: =IFERROR(VLOOKUP(G79,ตัวแปร!B$41:C$61,2,0),"") ->  | P79: 0
A80: ='1.ข้อมูลส่วนบุคคล'!$F$5 -> 12345678912345 | B80: 76 | O80: =IFERROR(VLOOKUP(G80,ตัวแปร!B$41:C$61,2,0),"") ->  | P80: 0
A81: ='1.ข้อมูลส่วนบุคคล'!$F$5 -> 12345678912345 | B81: 77 | O81: =IFERROR(VLOOKUP(G81,ตัวแปร!B$41:C$61,2,0),"") ->  | P81: 0 | AG81: =IF(AG$4=$P81,$O81,"") -> 
A82: ='1.ข้อมูลส่วนบุคคล'!$F$5 -> 12345678912345 | B82: 78 | O82: =IFERROR(VLOOKUP(G82,ตัวแปร!B$41:C$61,2,0),"") ->  | P82: 0 | R82: =IF(R$4=$P82,$O82,"") -> 
A83: ='1.ข้อมูลส่วนบุคคล'!$F$5 -> 12345678912345 | B83: 79 | O83: =IFERROR(VLOOKUP(G83,ตัวแปร!B$41:C$61,2,0),"") ->  | P83: 0
A84: ='1.ข้อมูลส่วนบุคคล'!$F$5 -> 12345678912345 | B84: 80 | O84: =IFERROR(VLOOKUP(G84,ตัวแปร!B$41:C$61,2,0),"") ->  | P84: 0
A85: ='1.ข้อมูลส่วนบุคคล'!$F$5 -> 12345678912345 | B85: 81 | O85: =IFERROR(VLOOKUP(G85,ตัวแปร!B$41:C$61,2,0),"") ->  | P85: 0
A86: ='1.ข้อมูลส่วนบุคคล'!$F$5 -> 12345678912345 | B86: 82 | O86: =IFERROR(VLOOKUP(G86,ตัวแปร!B$41:C$61,2,0),"") ->  | P86: 0
A87: ='1.ข้อมูลส่วนบุคคล'!$F$5 -> 12345678912345 | B87: 83 | O87: =IFERROR(VLOOKUP(G87,ตัวแปร!B$41:C$61,2,0),"") ->  | P87: 0
A88: ='1.ข้อมูลส่วนบุคคล'!$F$5 -> 12345678912345 | B88: 84 | O88: =IFERROR(VLOOKUP(G88,ตัวแปร!B$41:C$61,2,0),"") ->  | P88: 0
A89: ='1.ข้อมูลส่วนบุคคล'!$F$5 -> 12345678912345 | B89: 85 | O89: =IFERROR(VLOOKUP(G89,ตัวแปร!B$41:C$61,2,0),"") ->  | P89: 0
A90: ='1.ข้อมูลส่วนบุคคล'!$F$5 -> 12345678912345 | B90: 86 | O90: =IFERROR(VLOOKUP(G90,ตัวแปร!B$41:C$61,2,0),"") ->  | P90: 0
A91: ='1.ข้อมูลส่วนบุคคล'!$F$5 -> 12345678912345 | B91: 87 | O91: =IFERROR(VLOOKUP(G91,ตัวแปร!B$41:C$61,2,0),"") ->  | P91: 0
A92: ='1.ข้อมูลส่วนบุคคล'!$F$5 -> 12345678912345 | B92: 88 | O92: =IFERROR(VLOOKUP(G92,ตัวแปร!B$41:C$61,2,0),"") ->  | P92: 0
A93: ='1.ข้อมูลส่วนบุคคล'!$F$5 -> 12345678912345 | B93: 89 | O93: =IFERROR(VLOOKUP(G93,ตัวแปร!B$41:C$61,2,0),"") ->  | P93: 0
A94: ='1.ข้อมูลส่วนบุคคล'!$F$5 -> 12345678912345 | B94: 90 | O94: =IFERROR(VLOOKUP(G94,ตัวแปร!B$41:C$61,2,0),"") ->  | P94: 0
A95: ='1.ข้อมูลส่วนบุคคล'!$F$5 -> 12345678912345 | B95: 91 | O95: =IFERROR(VLOOKUP(G95,ตัวแปร!B$41:C$61,2,0),"") ->  | P95: 0
A96: ='1.ข้อมูลส่วนบุคคล'!$F$5 -> 12345678912345 | B96: 92 | O96: =IFERROR(VLOOKUP(G96,ตัวแปร!B$41:C$61,2,0),"") ->  | P96: 0
A97: ='1.ข้อมูลส่วนบุคคล'!$F$5 -> 12345678912345 | B97: 93 | O97: =IFERROR(VLOOKUP(G97,ตัวแปร!B$41:C$61,2,0),"") ->  | P97: 0 | AG97: =IF(AG$4=$P97,$O97,"") -> 
A98: ='1.ข้อมูลส่วนบุคคล'!$F$5 -> 12345678912345 | B98: 94 | O98: =IFERROR(VLOOKUP(G98,ตัวแปร!B$41:C$61,2,0),"") ->  | P98: 0 | R98: =IF(R$4=$P98,$O98,"") -> 
A99: ='1.ข้อมูลส่วนบุคคล'!$F$5 -> 12345678912345 | B99: 95 | O99: =IFERROR(VLOOKUP(G99,ตัวแปร!B$41:C$61,2,0),"") ->  | P99: 0
A100: ='1.ข้อมูลส่วนบุคคล'!$F$5 -> 12345678912345 | B100: 96 | O100: =IFERROR(VLOOKUP(G100,ตัวแปร!B$41:C$61,2,0),"") ->  | P100: 0
A101: ='1.ข้อมูลส่วนบุคคล'!$F$5 -> 12345678912345 | B101: 97 | O101: =IFERROR(VLOOKUP(G101,ตัวแปร!B$41:C$61,2,0),"") ->  | P101: 0
A102: ='1.ข้อมูลส่วนบุคคล'!$F$5 -> 12345678912345 | B102: 98 | O102: =IFERROR(VLOOKUP(G102,ตัวแปร!B$41:C$61,2,0),"") ->  | P102: 0
A103: ='1.ข้อมูลส่วนบุคคล'!$F$5 -> 12345678912345 | B103: 99 | O103: =IFERROR(VLOOKUP(G103,ตัวแปร!B$41:C$61,2,0),"") ->  | P103: 0
A104: ='1.ข้อมูลส่วนบุคคล'!$F$5 -> 12345678912345 | B104: 100 | O104: =IFERROR(VLOOKUP(G104,ตัวแปร!B$41:C$61,2,0),"") ->  | P104: 0
A105: ='1.ข้อมูลส่วนบุคคล'!$F$5 -> 12345678912345 | B105: 101 | O105: =IFERROR(VLOOKUP(G105,ตัวแปร!B$41:C$61,2,0),"") ->  | P105: 0
A106: ='1.ข้อมูลส่วนบุคคล'!$F$5 -> 12345678912345 | B106: 102 | O106: =IFERROR(VLOOKUP(G106,ตัวแปร!B$41:C$61,2,0),"") ->  | P106: 0
A107: ='1.ข้อมูลส่วนบุคคล'!$F$5 -> 12345678912345 | B107: 103 | O107: =IFERROR(VLOOKUP(G107,ตัวแปร!B$41:C$61,2,0),"") ->  | P107: 0
A108: ='1.ข้อมูลส่วนบุคคล'!$F$5 -> 12345678912345 | B108: 104 | O108: =IFERROR(VLOOKUP(G108,ตัวแปร!B$41:C$61,2,0),"") ->  | P108: 0
A109: ='1.ข้อมูลส่วนบุคคล'!$F$5 -> 12345678912345 | B109: 105 | O109: =IFERROR(VLOOKUP(G109,ตัวแปร!B$41:C$61,2,0),"") ->  | P109: 0
A110: ='1.ข้อมูลส่วนบุคคล'!$F$5 -> 12345678912345 | B110: 106 | O110: =IFERROR(VLOOKUP(G110,ตัวแปร!B$41:C$61,2,0),"") ->  | P110: 0
A111: ='1.ข้อมูลส่วนบุคคล'!$F$5 -> 12345678912345 | B111: 107 | O111: =IFERROR(VLOOKUP(G111,ตัวแปร!B$41:C$61,2,0),"") ->  | P111: 0
A112: ='1.ข้อมูลส่วนบุคคล'!$F$5 -> 12345678912345 | B112: 108 | O112: =IFERROR(VLOOKUP(G112,ตัวแปร!B$41:C$61,2,0),"") ->  | P112: 0
A113: ='1.ข้อมูลส่วนบุคคล'!$F$5 -> 12345678912345 | B113: 109 | O113: =IFERROR(VLOOKUP(G113,ตัวแปร!B$41:C$61,2,0),"") ->  | P113: 0 | AG113: =IF(AG$4=$P113,$O113,"") -> 
A114: ='1.ข้อมูลส่วนบุคคล'!$F$5 -> 12345678912345 | B114: 110 | O114: =IFERROR(VLOOKUP(G114,ตัวแปร!B$41:C$61,2,0),"") ->  | P114: 0 | R114: =IF(R$4=$P114,$O114,"") -> 
A115: ='1.ข้อมูลส่วนบุคคล'!$F$5 -> 12345678912345 | B115: 111 | O115: =IFERROR(VLOOKUP(G115,ตัวแปร!B$41:C$61,2,0),"") ->  | P115: 0
A116: ='1.ข้อมูลส่วนบุคคล'!$F$5 -> 12345678912345 | B116: 112 | O116: =IFERROR(VLOOKUP(G116,ตัวแปร!B$41:C$61,2,0),"") ->  | P116: 0
A117: ='1.ข้อมูลส่วนบุคคล'!$F$5 -> 12345678912345 | B117: 113 | O117: =IFERROR(VLOOKUP(G117,ตัวแปร!B$41:C$61,2,0),"") ->  | P117: 0
A118: ='1.ข้อมูลส่วนบุคคล'!$F$5 -> 12345678912345 | B118: 114 | O118: =IFERROR(VLOOKUP(G118,ตัวแปร!B$41:C$61,2,0),"") ->  | P118: 0
A119: ='1.ข้อมูลส่วนบุคคล'!$F$5 -> 12345678912345 | B119: 115 | O119: =IFERROR(VLOOKUP(G119,ตัวแปร!B$41:C$61,2,0),"") ->  | P119: 0
A120: ='1.ข้อมูลส่วนบุคคล'!$F$5 -> 12345678912345 | B120: 116 | O120: =IFERROR(VLOOKUP(G120,ตัวแปร!B$41:C$61,2,0),"") ->  | P120: 0
A121: ='1.ข้อมูลส่วนบุคคล'!$F$5 -> 12345678912345 | B121: 117 | O121: =IFERROR(VLOOKUP(G121,ตัวแปร!B$41:C$61,2,0),"") ->  | P121: 0
A122: ='1.ข้อมูลส่วนบุคคล'!$F$5 -> 12345678912345 | B122: 118 | O122: =IFERROR(VLOOKUP(G122,ตัวแปร!B$41:C$61,2,0),"") ->  | P122: 0
A123: ='1.ข้อมูลส่วนบุคคล'!$F$5 -> 12345678912345 | B123: 119 | O123: =IFERROR(VLOOKUP(G123,ตัวแปร!B$41:C$61,2,0),"") ->  | P123: 0
A124: ='1.ข้อมูลส่วนบุคคล'!$F$5 -> 12345678912345 | B124: 120 | O124: =IFERROR(VLOOKUP(G124,ตัวแปร!B$41:C$61,2,0),"") ->  | P124: 0
A125: ='1.ข้อมูลส่วนบุคคล'!$F$5 -> 12345678912345 | B125: 121 | O125: =IFERROR(VLOOKUP(G125,ตัวแปร!B$41:C$61,2,0),"") ->  | P125: 0
A126: ='1.ข้อมูลส่วนบุคคล'!$F$5 -> 12345678912345 | B126: 122 | O126: =IFERROR(VLOOKUP(G126,ตัวแปร!B$41:C$61,2,0),"") ->  | P126: 0
A127: ='1.ข้อมูลส่วนบุคคล'!$F$5 -> 12345678912345 | B127: 123 | O127: =IFERROR(VLOOKUP(G127,ตัวแปร!B$41:C$61,2,0),"") ->  | P127: 0
A128: ='1.ข้อมูลส่วนบุคคล'!$F$5 -> 12345678912345 | B128: 124 | O128: =IFERROR(VLOOKUP(G128,ตัวแปร!B$41:C$61,2,0),"") ->  | P128: 0
A129: ='1.ข้อมูลส่วนบุคคล'!$F$5 -> 12345678912345 | B129: 125 | O129: =IFERROR(VLOOKUP(G129,ตัวแปร!B$41:C$61,2,0),"") ->  | P129: 0 | AG129: =IF(AG$4=$P129,$O129,"") -> 
A130: ='1.ข้อมูลส่วนบุคคล'!$F$5 -> 12345678912345 | B130: 126 | O130: =IFERROR(VLOOKUP(G130,ตัวแปร!B$41:C$61,2,0),"") ->  | P130: 0 | R130: =IF(R$4=$P130,$O130,"") -> 
A131: ='1.ข้อมูลส่วนบุคคล'!$F$5 -> 12345678912345 | B131: 127 | O131: =IFERROR(VLOOKUP(G131,ตัวแปร!B$41:C$61,2,0),"") ->  | P131: 0
A132: ='1.ข้อมูลส่วนบุคคล'!$F$5 -> 12345678912345 | B132: 128 | O132: =IFERROR(VLOOKUP(G132,ตัวแปร!B$41:C$61,2,0),"") ->  | P132: 0
A133: ='1.ข้อมูลส่วนบุคคล'!$F$5 -> 12345678912345 | B133: 129 | O133: =IFERROR(VLOOKUP(G133,ตัวแปร!B$41:C$61,2,0),"") ->  | P133: =C133*10+D133 -> 0
A134: ='1.ข้อมูลส่วนบุคคล'!$F$5 -> 12345678912345 | B134: 130 | M134: =N134 ->  | N134: =IF(C134<>"","2-"&+B134&+C134&+D134&+"..."&+LEFT(J134,20),"") ->  | O134: =IFERROR(VLOOKUP(G134,ตัวแปร!B$41:C$61,2,0),"") ->  | P134: 0 | Q134: =IF(Q$4=P134,O134,"") -> 
A135: ='1.ข้อมูลส่วนบุคคล'!$F$5 -> 12345678912345 | B135: 131 | O135: =IFERROR(VLOOKUP(G135,ตัวแปร!B$41:C$61,2,0),"") ->  | P135: 0
A136: ='1.ข้อมูลส่วนบุคคล'!$F$5 -> 12345678912345 | B136: 132 | O136: =IFERROR(VLOOKUP(G136,ตัวแปร!B$41:C$61,2,0),"") ->  | P136: 0
A137: ='1.ข้อมูลส่วนบุคคล'!$F$5 -> 12345678912345 | B137: 133 | O137: =IFERROR(VLOOKUP(G137,ตัวแปร!B$41:C$61,2,0),"") ->  | P137: 0
A138: ='1.ข้อมูลส่วนบุคคล'!$F$5 -> 12345678912345 | B138: 134 | O138: =IFERROR(VLOOKUP(G138,ตัวแปร!B$41:C$61,2,0),"") ->  | P138: 0
A139: ='1.ข้อมูลส่วนบุคคล'!$F$5 -> 12345678912345 | B139: 135 | O139: =IFERROR(VLOOKUP(G139,ตัวแปร!B$41:C$61,2,0),"") ->  | P139: 0
A140: ='1.ข้อมูลส่วนบุคคล'!$F$5 -> 12345678912345 | B140: 136 | O140: =IFERROR(VLOOKUP(G140,ตัวแปร!B$41:C$61,2,0),"") ->  | P140: 0
A141: ='1.ข้อมูลส่วนบุคคล'!$F$5 -> 12345678912345 | B141: 137 | O141: =IFERROR(VLOOKUP(G141,ตัวแปร!B$41:C$61,2,0),"") ->  | P141: 0
A142: ='1.ข้อมูลส่วนบุคคล'!$F$5 -> 12345678912345 | B142: 138 | O142: =IFERROR(VLOOKUP(G142,ตัวแปร!B$41:C$61,2,0),"") ->  | P142: 0
A143: ='1.ข้อมูลส่วนบุคคล'!$F$5 -> 12345678912345 | B143: 139 | O143: =IFERROR(VLOOKUP(G143,ตัวแปร!B$41:C$61,2,0),"") ->  | P143: 0
A144: ='1.ข้อมูลส่วนบุคคล'!$F$5 -> 12345678912345 | B144: 140 | O144: =IFERROR(VLOOKUP(G144,ตัวแปร!B$41:C$61,2,0),"") ->  | P144: 0
A145: ='1.ข้อมูลส่วนบุคคล'!$F$5 -> 12345678912345 | B145: 141 | O145: =IFERROR(VLOOKUP(G145,ตัวแปร!B$41:C$61,2,0),"") ->  | P145: 0 | AG145: =IF(AG$4=$P145,$O145,"") -> 
A146: ='1.ข้อมูลส่วนบุคคล'!$F$5 -> 12345678912345 | B146: 142 | O146: =IFERROR(VLOOKUP(G146,ตัวแปร!B$41:C$61,2,0),"") ->  | P146: 0 | R146: =IF(R$4=$P146,$O146,"") -> 
A147: ='1.ข้อมูลส่วนบุคคล'!$F$5 -> 12345678912345 | B147: 143 | O147: =IFERROR(VLOOKUP(G147,ตัวแปร!B$41:C$61,2,0),"") ->  | P147: 0
A148: ='1.ข้อมูลส่วนบุคคล'!$F$5 -> 12345678912345 | B148: 144 | O148: =IFERROR(VLOOKUP(G148,ตัวแปร!B$41:C$61,2,0),"") ->  | P148: 0
A149: ='1.ข้อมูลส่วนบุคคล'!$F$5 -> 12345678912345 | B149: 145 | O149: =IFERROR(VLOOKUP(G149,ตัวแปร!B$41:C$61,2,0),"") ->  | P149: 0
A150: ='1.ข้อมูลส่วนบุคคล'!$F$5 -> 12345678912345 | B150: 146 | O150: =IFERROR(VLOOKUP(G150,ตัวแปร!B$41:C$61,2,0),"") ->  | P150: 0
A151: ='1.ข้อมูลส่วนบุคคล'!$F$5 -> 12345678912345 | B151: 147 | O151: =IFERROR(VLOOKUP(G151,ตัวแปร!B$41:C$61,2,0),"") ->  | P151: 0
A152: ='1.ข้อมูลส่วนบุคคล'!$F$5 -> 12345678912345 | B152: 148 | O152: =IFERROR(VLOOKUP(G152,ตัวแปร!B$41:C$61,2,0),"") ->  | P152: 0
A153: ='1.ข้อมูลส่วนบุคคล'!$F$5 -> 12345678912345 | B153: 149 | O153: =IFERROR(VLOOKUP(G153,ตัวแปร!B$41:C$61,2,0),"") ->  | P153: 0
A154: ='1.ข้อมูลส่วนบุคคล'!$F$5 -> 12345678912345 | B154: 150 | O154: =IFERROR(VLOOKUP(G154,ตัวแปร!B$41:C$61,2,0),"") ->  | P154: 0
A155: ='1.ข้อมูลส่วนบุคคล'!$F$5 -> 12345678912345 | B155: 151 | O155: =IFERROR(VLOOKUP(G155,ตัวแปร!B$41:C$61,2,0),"") ->  | P155: 0
A156: ='1.ข้อมูลส่วนบุคคล'!$F$5 -> 12345678912345 | B156: 152 | O156: =IFERROR(VLOOKUP(G156,ตัวแปร!B$41:C$61,2,0),"") ->  | P156: 0
A157: ='1.ข้อมูลส่วนบุคคล'!$F$5 -> 12345678912345 | B157: 153 | O157: =IFERROR(VLOOKUP(G157,ตัวแปร!B$41:C$61,2,0),"") ->  | P157: 0
A158: ='1.ข้อมูลส่วนบุคคล'!$F$5 -> 12345678912345 | B158: 154 | O158: =IFERROR(VLOOKUP(G158,ตัวแปร!B$41:C$61,2,0),"") ->  | P158: 0
A159: ='1.ข้อมูลส่วนบุคคล'!$F$5 -> 12345678912345 | B159: 155 | O159: =IFERROR(VLOOKUP(G159,ตัวแปร!B$41:C$61,2,0),"") ->  | P159: 0
A160: ='1.ข้อมูลส่วนบุคคล'!$F$5 -> 12345678912345 | B160: 156 | O160: =IFERROR(VLOOKUP(G160,ตัวแปร!B$41:C$61,2,0),"") ->  | P160: 0
A161: ='1.ข้อมูลส่วนบุคคล'!$F$5 -> 12345678912345 | B161: 157 | O161: =IFERROR(VLOOKUP(G161,ตัวแปร!B$41:C$61,2,0),"") ->  | P161: 0 | AG161: =IF(AG$4=$P161,$O161,"") -> 
A162: ='1.ข้อมูลส่วนบุคคล'!$F$5 -> 12345678912345 | B162: 158 | O162: =IFERROR(VLOOKUP(G162,ตัวแปร!B$41:C$61,2,0),"") ->  | P162: 0 | R162: =IF(R$4=$P162,$O162,"") -> 
A163: ='1.ข้อมูลส่วนบุคคล'!$F$5 -> 12345678912345 | B163: 159 | O163: =IFERROR(VLOOKUP(G163,ตัวแปร!B$41:C$61,2,0),"") ->  | P163: 0
A164: ='1.ข้อมูลส่วนบุคคล'!$F$5 -> 12345678912345 | B164: 160 | O164: =IFERROR(VLOOKUP(G164,ตัวแปร!B$41:C$61,2,0),"") ->  | P164: 0
A165: ='1.ข้อมูลส่วนบุคคล'!$F$5 -> 12345678912345 | B165: 161 | O165: =IFERROR(VLOOKUP(G165,ตัวแปร!B$41:C$61,2,0),"") ->  | P165: 0
A166: ='1.ข้อมูลส่วนบุคคล'!$F$5 -> 12345678912345 | B166: 162 | O166: =IFERROR(VLOOKUP(G166,ตัวแปร!B$41:C$61,2,0),"") ->  | P166: 0
A167: ='1.ข้อมูลส่วนบุคคล'!$F$5 -> 12345678912345 | B167: 163 | O167: =IFERROR(VLOOKUP(G167,ตัวแปร!B$41:C$61,2,0),"") ->  | P167: 0
A168: ='1.ข้อมูลส่วนบุคคล'!$F$5 -> 12345678912345 | B168: 164 | O168: =IFERROR(VLOOKUP(G168,ตัวแปร!B$41:C$61,2,0),"") ->  | P168: 0
A169: ='1.ข้อมูลส่วนบุคคล'!$F$5 -> 12345678912345 | B169: 165 | O169: =IFERROR(VLOOKUP(G169,ตัวแปร!B$41:C$61,2,0),"") ->  | P169: 0
A170: ='1.ข้อมูลส่วนบุคคล'!$F$5 -> 12345678912345 | B170: 166 | O170: =IFERROR(VLOOKUP(G170,ตัวแปร!B$41:C$61,2,0),"") ->  | P170: 0
A171: ='1.ข้อมูลส่วนบุคคล'!$F$5 -> 12345678912345 | B171: 167 | O171: =IFERROR(VLOOKUP(G171,ตัวแปร!B$41:C$61,2,0),"") ->  | P171: 0
A172: ='1.ข้อมูลส่วนบุคคล'!$F$5 -> 12345678912345 | B172: 168 | O172: =IFERROR(VLOOKUP(G172,ตัวแปร!B$41:C$61,2,0),"") ->  | P172: 0
A173: ='1.ข้อมูลส่วนบุคคล'!$F$5 -> 12345678912345 | B173: 169 | O173: =IFERROR(VLOOKUP(G173,ตัวแปร!B$41:C$61,2,0),"") ->  | P173: 0
A174: ='1.ข้อมูลส่วนบุคคล'!$F$5 -> 12345678912345 | B174: 170 | O174: =IFERROR(VLOOKUP(G174,ตัวแปร!B$41:C$61,2,0),"") ->  | P174: 0
A175: ='1.ข้อมูลส่วนบุคคล'!$F$5 -> 12345678912345 | B175: 171 | O175: =IFERROR(VLOOKUP(G175,ตัวแปร!B$41:C$61,2,0),"") ->  | P175: 0
A176: ='1.ข้อมูลส่วนบุคคล'!$F$5 -> 12345678912345 | B176: 172 | O176: =IFERROR(VLOOKUP(G176,ตัวแปร!B$41:C$61,2,0),"") ->  | P176: 0
A177: ='1.ข้อมูลส่วนบุคคล'!$F$5 -> 12345678912345 | B177: 173 | O177: =IFERROR(VLOOKUP(G177,ตัวแปร!B$41:C$61,2,0),"") ->  | P177: 0 | AG177: =IF(AG$4=$P177,$O177,"") -> 
A178: ='1.ข้อมูลส่วนบุคคล'!$F$5 -> 12345678912345 | B178: 174 | O178: =IFERROR(VLOOKUP(G178,ตัวแปร!B$41:C$61,2,0),"") ->  | P178: 0 | R178: =IF(R$4=$P178,$O178,"") -> 
A179: ='1.ข้อมูลส่วนบุคคล'!$F$5 -> 12345678912345 | B179: 175 | O179: =IFERROR(VLOOKUP(G179,ตัวแปร!B$41:C$61,2,0),"") ->  | P179: 0
A180: ='1.ข้อมูลส่วนบุคคล'!$F$5 -> 12345678912345 | B180: 176 | O180: =IFERROR(VLOOKUP(G180,ตัวแปร!B$41:C$61,2,0),"") ->  | P180: 0
A181: ='1.ข้อมูลส่วนบุคคล'!$F$5 -> 12345678912345 | B181: 177 | O181: =IFERROR(VLOOKUP(G181,ตัวแปร!B$41:C$61,2,0),"") ->  | P181: 0
A182: ='1.ข้อมูลส่วนบุคคล'!$F$5 -> 12345678912345 | B182: 178 | O182: =IFERROR(VLOOKUP(G182,ตัวแปร!B$41:C$61,2,0),"") ->  | P182: 0
A183: ='1.ข้อมูลส่วนบุคคล'!$F$5 -> 12345678912345 | B183: 179 | O183: =IFERROR(VLOOKUP(G183,ตัวแปร!B$41:C$61,2,0),"") ->  | P183: 0
A184: ='1.ข้อมูลส่วนบุคคล'!$F$5 -> 12345678912345 | B184: 180 | O184: =IFERROR(VLOOKUP(G184,ตัวแปร!B$41:C$61,2,0),"") ->  | P184: 0
A185: ='1.ข้อมูลส่วนบุคคล'!$F$5 -> 12345678912345 | B185: 181 | O185: =IFERROR(VLOOKUP(G185,ตัวแปร!B$41:C$61,2,0),"") ->  | P185: 0
A186: ='1.ข้อมูลส่วนบุคคล'!$F$5 -> 12345678912345 | B186: 182 | O186: =IFERROR(VLOOKUP(G186,ตัวแปร!B$41:C$61,2,0),"") ->  | P186: 0
A187: ='1.ข้อมูลส่วนบุคคล'!$F$5 -> 12345678912345 | B187: 183 | O187: =IFERROR(VLOOKUP(G187,ตัวแปร!B$41:C$61,2,0),"") ->  | P187: 0
A188: ='1.ข้อมูลส่วนบุคคล'!$F$5 -> 12345678912345 | B188: 184 | O188: =IFERROR(VLOOKUP(G188,ตัวแปร!B$41:C$61,2,0),"") ->  | P188: 0
A189: ='1.ข้อมูลส่วนบุคคล'!$F$5 -> 12345678912345 | B189: 185 | O189: =IFERROR(VLOOKUP(G189,ตัวแปร!B$41:C$61,2,0),"") ->  | P189: 0
A190: ='1.ข้อมูลส่วนบุคคล'!$F$5 -> 12345678912345 | B190: 186 | O190: =IFERROR(VLOOKUP(G190,ตัวแปร!B$41:C$61,2,0),"") ->  | P190: 0
A191: ='1.ข้อมูลส่วนบุคคล'!$F$5 -> 12345678912345 | B191: 187 | O191: =IFERROR(VLOOKUP(G191,ตัวแปร!B$41:C$61,2,0),"") ->  | P191: 0
A192: ='1.ข้อมูลส่วนบุคคล'!$F$5 -> 12345678912345 | B192: 188 | O192: =IFERROR(VLOOKUP(G192,ตัวแปร!B$41:C$61,2,0),"") ->  | P192: 0
A193: ='1.ข้อมูลส่วนบุคคล'!$F$5 -> 12345678912345 | B193: 189 | O193: =IFERROR(VLOOKUP(G193,ตัวแปร!B$41:C$61,2,0),"") ->  | P193: 0 | AG193: =IF(AG$4=$P193,$O193,"") -> 
A194: ='1.ข้อมูลส่วนบุคคล'!$F$5 -> 12345678912345 | B194: 190 | O194: =IFERROR(VLOOKUP(G194,ตัวแปร!B$41:C$61,2,0),"") ->  | P194: 0 | R194: =IF(R$4=$P194,$O194,"") -> 
A195: ='1.ข้อมูลส่วนบุคคล'!$F$5 -> 12345678912345 | B195: 191 | O195: =IFERROR(VLOOKUP(G195,ตัวแปร!B$41:C$61,2,0),"") ->  | P195: 0
A196: ='1.ข้อมูลส่วนบุคคล'!$F$5 -> 12345678912345 | B196: 192 | O196: =IFERROR(VLOOKUP(G196,ตัวแปร!B$41:C$61,2,0),"") ->  | P196: 0
A197: ='1.ข้อมูลส่วนบุคคล'!$F$5 -> 12345678912345 | B197: 193 | O197: =IFERROR(VLOOKUP(G197,ตัวแปร!B$41:C$61,2,0),"") ->  | P197: =C197*10+D197 -> 0
A198: ='1.ข้อมูลส่วนบุคคล'!$F$5 -> 12345678912345 | B198: 194 | M198: =N198 ->  | N198: =IF(C198<>"","2-"&+B198&+C198&+D198&+"..."&+LEFT(J198,20),"") ->  | O198: =IFERROR(VLOOKUP(G198,ตัวแปร!B$41:C$61,2,0),"") ->  | P198: 0 | Q198: =IF(Q$4=P198,O198,"") -> 
A199: ='1.ข้อมูลส่วนบุคคล'!$F$5 -> 12345678912345 | B199: 195 | O199: =IFERROR(VLOOKUP(G199,ตัวแปร!B$41:C$61,2,0),"") ->  | P199: 0
A200: ='1.ข้อมูลส่วนบุคคล'!$F$5 -> 12345678912345 | B200: 196 | O200: =IFERROR(VLOOKUP(G200,ตัวแปร!B$41:C$61,2,0),"") ->  | P200: 0
... 154 more rows

Sheet 3.ชั่วโมงสอนตามตารางสอน
C1: ชั่วโมงการปฏิบัติงาน (ชั่วโมงสอนตามตารางสอน)
F2: จำนวนชั่วโมงสอนในวิชา/สาขา/กลุ่มสาระการเรียนรู้ ที่กำหนดไว้ตามหลักสูตร การจัดประสบการณ์การเรียนรู้ กิจกรรมฟื้นฟูสมรรถภาพผู้เรียน | O2: =IF(IFERROR(VLOOKUP(N2,AQ$7:AS$26,2,FALSE),0)-IFERROR(VLOOKUP(N2,AQ$7:AS$26,3,FALSE),0)<0,0,IFERROR(VLOOKUP(N2,AQ$7:AS$26,2,FALSE),0)-IFERROR(VLOOKUP(N2,AQ$7:AS$26,3,FALSE),0)) -> 0
E3: =IF(SUMIF(AA7:AA22,1)>0,"โปรดตรวจสอบการบันทึกในช่อง 'ปีการศึกษา/ปีงบประมาณ ภาคเรียนที่ และสัปดาห์ที่' เนื่องจากมีการบันทึกไม่ถูกต้อง","") ->  | L3: =IF(SUMIF(AJ$7:AJ$7000,1,AJ$7:AJ$7000)>0,"ต้องสอนซ่อมเสริมหรือสอนแทนในปี "&+L2&+" ภาคเรียนที่ "&+M2&+" อีก "&+INT(O2*24)&+" ชั่วโมง"&+" "&+MINUTE(O2)&+" นาที","") -> 
A5: เลขบัตรประชาชน | B5: ปีที่ | C5: ปีการศึกษา/ปีงบประมาณ | D5: ภาคเรียนที่ | E5: สัปดาห์ที่ | F5: ว/ด/ป ของสัปดาห์ | H5: กลุ่มสาระที่สอน/สาขาวิชาที่สอน/วิชาที่สอน | I5: ชื่อวิชาที่สอน | J5: รหัสวิชา | K5: เกี่ยวข้องกับการขอวิทยฐานะเชี่ยวชาญ/เชี่ยวชาญพิเศษ | L5: จำนวนคาบ/หลักสูตร | M5: หน่วยเวลาที่ใช้ต่อคาบ/หลักสูตร | N5: หน่วยนับเวลาที่ใช้ | O5: ลักษณะการสอน | P5: หมายเหตุ | Q5: การรับรองของ | R5: รหัสเอกสารสำหรับตรวจสอบ | S5: รหัสเอกสารสำหรับตรวจสอบ | W5: คือคิดในหน้าสรุปตรวจสอบชั่วโมงขั้นต่ำ | AA5: 2560-07-05 | AQ5: สรุปจำนวนชั่วโมงขาดและสอนซ่อมเสริมเป็นรายเทอม
F6: วันแรกของสัปดาห์ | G6: วันสุดท้ายของสัปดาห์ | P6: (กรณี ชม.สอนน้อยกว่าเกณฑ์ขั้นต่ำ) | Q6: ผอ. สถานศึกษา | W6: ตรวจสอบว่าชั่วโมงในสัปดาห์ไม่ครบตามชั่วโมงขั้นต่ำ (ไม่นับชั่วโมงสอนซ่อมเสริมในสัปดาห์นั้น) | Z6: ชั่วโมงจริง | AA6: ตรวจสอบการบันทึกไม่เรียงลำดับปี ภาคเรียน สัปดาห์ ตามที่ควรจะเป็น | AB6: คำนวณปีรายบุคคล | AG6: สัปดาห์ที่ ผอ. มอบหมาย | AH6: จำนวนชั่วโมงที่ขาด ในสัปดาห์ที่สอนไม่ครบ (คิดสัปดาห์เดียว) | AI6: จำนวนชั่วโมงที่สอนซ่อมเสริม | AJ6: ตรวจสอบว่าชั่วโมงสอนซ่อมเสริมทดแทนอาทิตย์ที่ ผอ. มอบหมายงานได้ ภายในเทอมนั้น | AK6: รายการที่สอนซ่อมเสริม | AL6: ปีที่ ภาคเรียน สัปดาห์ ผอ.รับรอง | AM6: ปีการศึกษา ภาคเรียน | AN6: ปีการศึกษา สัปดาห์ | AO6: ปีการศึกษา ภาคเรียน (ไว้เช็คกับชีท2) | AP6: ชั่วโมงขั้นต่ำที่ต้องสอนในเทอมนั้นๆ | AQ6: ปีการศึกษา ภาคเรียน แบบ 10 ปี | AR6: ชั่วโมงสอนที่ขาดไปในเทอมหรือปีนั้นๆ | AS6: ชั่วโมงสอนซ่อมเสริมในเทอมหรือปีนั้นๆ
A7: ='1.ข้อมูลส่วนบุคคล'!$F$5 -> 12345678912345 | B7: =IF(AF7<0,"",IF(AND(AD7>=AB7,AD7<DATE(YEAR(AB7)+1,MONTH(AB7),DAY(AB7))),1,IF(AND(AD7>=DATE(YEAR(AB7)+1,MONTH(AB7),DAY(AB7)),AD7<DATE(YEAR(AB7)+2,MONTH(AB7),DAY(AB7))),2,IF(AND(AD7>=DATE(YEAR(AB7)+2,MONTH(AB7),DAY(AB7)),AD7<DATE(YEAR(AB7)+3,MONTH(AB7),DAY(AB7))),3,IF(AND(AD7>=DATE(YEAR(AB7)+3,MONTH(AB7),DAY(AB7)),AD7<DATE(YEAR(AB7)+4,MONTH(AB7),DAY(AB7))),4,IF(AND(AD7>=DATE(YEAR(AB7)+4,MONTH(AB7),DAY(AB7)),AD7<DATE(YEAR(AB7)+5,MONTH(AB7),DAY(AB7))),5,IF(AND(AD7>=DATE(YEAR(AB7)+5,MONTH(AB7),DAY(AB7)),AD7<DATE(YEAR(AB7)+6,MONTH(AB7),DAY(AB7))),6,IF(AND(AD7>=DATE(YEAR(AB7)+6,MONTH(AB7),DAY(AB7)),AD7<DATE(YEAR(AB7)+7,MONTH(AB7),DAY(AB7))),7,IF(AND(AD7>=DATE(YEAR(AB7)+7,MONTH(AB7),DAY(AB7)),AD7<DATE(YEAR(AB7)+8,MONTH(AB7),DAY(AB7))),8,IF(AND(AD7>=DATE(YEAR(AB7)+8,MONTH(AB7),DAY(AB7)),AD7<DATE(YEAR(AB7)+9,MONTH(AB7),DAY(AB7))),9,IF(AND(AD7>=DATE(YEAR(AB7)+9,MONTH(AB7),DAY(AB7)),AD7<DATE(YEAR(AB7)+100,MONTH(AB7),DAY(AB7))),10,0))))))))))) -> 1 | C7: ='2.การมอบหมายงานสอน'!C5 -> 2560 | D7: 1 | E7: 8 | F7: 2560-07-05 | G7: 2560-07-09 | K7: =IF('1.ข้อมูลส่วนบุคคล'!C$21="เชี่ยวชาญ",IF(H7="-","",IF(H7='1.ข้อมูลส่วนบุคคล'!F$26,"เกี่ยวข้อง","ไม่เกี่ยวข้อง")),IF('1.ข้อมูลส่วนบุคคล'!C$21="เชี่ยวชาญพิเศษ",IF(H7="-","",IF(H7='1.ข้อมูลส่วนบุคคล'!F$26,"เกี่ยวข้อง","ไม่เกี่ยวข้อง")),"")) ->  | R7: =S7 -> 3-256018... | S7: =IF(C7<>"","3-"&+C7&+D7&+E7&+J7&+"..."&+LEFT(I7,20),"") -> 3-256018... | T7: =B7&+E7 -> 18 | U7: =IF(LEFT(Q7,3)="ไม่",0,IF(L7="","",B7)) ->  | V7: =IF(K7="เกี่ยวข้อง",1,0) -> 0 | W7: =IF(OR(LEFT(Q7,3)="ไม่",Q7=""),"",IF(OR(LEFT(P7,1)="1",LEFT(P7,1)="2",LEFT(P7,1)="3",LEFT(P7,1)="4",LEFT(P7,1)="5"),0,IF(SUMIFS(Z7:Z57,AL7:AL57,B7&+D7&+E7&+"ถูกต้อง",AK7:AK57,0)<AP7,1,0))) ->  | Z7: =IF(Q7="ไม่ถูกต้อง",0,IF(N7="นาที",(L7*M7)/1440,(L7*M7*60)/1440)) -> 0 | AA7: =IF(AA5='1.ข้อมูลส่วนบุคคล'!E32,0,IF(E7<>1,1,0)) -> 0 | AB7: ='1.ข้อมูลส่วนบุคคล'!G$32 -> 2560-07-05 | AC7: =TEXT(AB7,"yyyy")&+IF(TEXT(AB7,"mm")>9,TEXT(AB7,"mm"),"0"&+TEXT(AB7,"mm"))&+IF(TEXT(AB7,"dd")>9,TEXT(AB7,"dd"),"0"&+TEXT(AB7,"dd")) -> 25600705 | AD7: =G7 -> 2560-07-09 | AE7: =TEXT(AD7,"yyyy")&+IF(TEXT(AD7,"mm")>9,TEXT(AD7,"mm"),"0"&+TEXT(AD7,"mm"))&+IF(TEXT(AD7,"dd")>9,TEXT(AD7,"dd"),"0"&+TEXT(AD7,"dd")) -> 25600709 | AF7: =AE7-AC7 -> 4 | AG7: =IF(LEFT(P7,1)="5",1,0) -> 0 | AH7: =IF(AG7=1,IF((AP7-IF(AND(LEFT(Q7,3)<>"ไม่",AK7=0),SUMIF(AN$7:AN57,AN7,Z$7:Z57),0))<0,0,AP7-IF(AND(LEFT(Q7,3)<>"ไม่",AK7=0),SUMIF(AN$7:AN57,AN7,Z$7:Z57),0)),0) -> 0 | AI7: =IF(OR(O7="สอนซ่อมเสริม",O7="สอนแทน"),Z7,0) -> 0 | AJ7: =IF(IFERROR(VLOOKUP(AO7,AQ$7:AS$26,3,FALSE),0)-IFERROR(VLOOKUP(AO7,AQ$7:AS$26,2,FALSE),0)<0,1,0) -> 0 | AK7: =IF(O7="สอนซ่อมเสริม",1,0) -> 0 | AL7: =B7&+D7&+E7&+Q7 -> 118 | AM7: =C7&+D7 -> 25601 | AN7: =C7&+D7&+E7 -> 256018 | AO7: =C7*10+D7 -> 25601 | AP7: =IFERROR((VLOOKUP(AO7,'2.การมอบหมายงานสอน'!$AK$5:$AL$24,2,FALSE)*60/1440),0) -> 0 | AQ7: =IF(ISBLANK(D$7),C$7*10+0,C$7*10+D$7) -> 25601 | AR7: =SUMIF(AO$7:AO$7000,AQ7,AH$7:AH$7000) -> 0 | AS7: =SUMIF(AO$7:AO$7000,AQ7,AI$7:AI$7000) -> 0
A8: ='1.ข้อมูลส่วนบุคคล'!$F$5 -> 12345678912345 | B8: =IF(AF8<0,"",IF(AND(AD8>=AB8,AD8<DATE(YEAR(AB8)+1,MONTH(AB8),DAY(AB8))),1,IF(AND(AD8>=DATE(YEAR(AB8)+1,MONTH(AB8),DAY(AB8)),AD8<DATE(YEAR(AB8)+2,MONTH(AB8),DAY(AB8))),2,IF(AND(AD8>=DATE(YEAR(AB8)+2,MONTH(AB8),DAY(AB8)),AD8<DATE(YEAR(AB8)+3,MONTH(AB8),DAY(AB8))),3,IF(AND(AD8>=DATE(YEAR(AB8)+3,MONTH(AB8),DAY(AB8)),AD8<DATE(YEAR(AB8)+4,MONTH(AB8),DAY(AB8))),4,IF(AND(AD8>=DATE(YEAR(AB8)+4,MONTH(AB8),DAY(AB8)),AD8<DATE(YEAR(AB8)+5,MONTH(AB8),DAY(AB8))),5,IF(AND(AD8>=DATE(YEAR(AB8)+5,MONTH(AB8),DAY(AB8)),AD8<DATE(YEAR(AB8)+6,MONTH(AB8),DAY(AB8))),6,IF(AND(AD8>=DATE(YEAR(AB8)+6,MONTH(AB8),DAY(AB8)),AD8<DATE(YEAR(AB8)+7,MONTH(AB8),DAY(AB8))),7,IF(AND(AD8>=DATE(YEAR(AB8)+7,MONTH(AB8),DAY(AB8)),AD8<DATE(YEAR(AB8)+8,MONTH(AB8),DAY(AB8))),8,IF(AND(AD8>=DATE(YEAR(AB8)+8,MONTH(AB8),DAY(AB8)),AD8<DATE(YEAR(AB8)+9,MONTH(AB8),DAY(AB8))),9,IF(AND(AD8>=DATE(YEAR(AB8)+9,MONTH(AB8),DAY(AB8)),AD8<DATE(YEAR(AB8)+100,MONTH(AB8),DAY(AB8))),10,0))))))))))) -> 1 | C8: 2560 | D8: 1 | E8: 9 | F8: 2560-07-10 | G8: 2560-07-16 | K8: =IF('1.ข้อมูลส่วนบุคคล'!C$21="เชี่ยวชาญ",IF(H8="-","",IF(H8='1.ข้อมูลส่วนบุคคล'!F$26,"เกี่ยวข้อง","ไม่เกี่ยวข้อง")),IF('1.ข้อมูลส่วนบุคคล'!C$21="เชี่ยวชาญพิเศษ",IF(H8="-","",IF(H8='1.ข้อมูลส่วนบุคคล'!F$26,"เกี่ยวข้อง","ไม่เกี่ยวข้อง")),"")) ->  | R8: =S8 -> 3-256019... | S8: =IF(C8<>"","3-"&+C8&+D8&+E8&+J8&+"..."&+LEFT(I8,20),"") -> 3-256019... | T8: =B8&+E8 -> 19 | U8: =IF(LEFT(Q8,3)="ไม่",0,IF(L8="","",B8)) ->  | V8: =IF(K8="เกี่ยวข้อง",1,0) -> 0 | W8: =IF(AN8=AN7,0,IF(OR(LEFT(Q8,3)="ไม่",Q8=""),"",IF(OR(LEFT(P8,1)="1",LEFT(P8,1)="2",LEFT(P8,1)="3",LEFT(P8,1)="4",LEFT(P8,1)="5"),0,IF(SUMIFS(Z8:Z58,AL8:AL58,B8&+D8&+E8&+"ถูกต้อง",AK8:AK58,0)<AP8,1,0)))) ->  | Z8: =IF(Q8="ไม่ถูกต้อง",0,IF(N8="นาที",(L8*M8)/1440,(L8*M8*60)/1440)) -> 0 | AA8: =IF(ISBLANK(E8),0,IF(ISBLANK(D8),IF(AND(C8=C7,E8=E7),0,IF(AND(C8=C7,E8=(E7+1)),0,IF(AND(C8=(C7+1),E8=1,E7>=18),0,1))),IF(AND(C8=C7,D8=D7,E8=E7),0,IF(AND(C8=C7,D8=D7,E8=(E7+1)),0,IF(AND(C8=C7,D8=(D7+1),E8=1,E7>=18),0,IF(AND(C8=(C7+1),D8=1,E8=1,E7>=18),0,1)))))) -> 0 | AB8: ='1.ข้อมูลส่วนบุคคล'!G$32 -> 2560-07-05 | AC8: =TEXT(AB8,"yyyy")&+IF(TEXT(AB8,"mm")>9,TEXT(AB8,"mm"),"0"&+TEXT(AB8,"mm"))&+IF(TEXT(AB8,"dd")>9,TEXT(AB8,"dd"),"0"&+TEXT(AB8,"dd")) -> 25600705 | AD8: =G8 -> 2560-07-16 | AE8: =TEXT(AD8,"yyyy")&+IF(TEXT(AD8,"mm")>9,TEXT(AD8,"mm"),"0"&+TEXT(AD8,"mm"))&+IF(TEXT(AD8,"dd")>9,TEXT(AD8,"dd"),"0"&+TEXT(AD8,"dd")) -> 25600716 | AF8: =AE8-AC8 -> 11 | AG8: =IF(LEFT(P8,1)="5",1,0) -> 0 | AH8: =IF(AG8=1,IF(IF(AN8=AN7,0,AP8-IF(AND(LEFT(Q8,3)<>"ไม่",AK8=0),SUMIFS(Z8:Z58,AN8:AN58,AN8,AK8:AK58,0),0))<0,0,IF(AN8=AN7,0,AP8-IF(AND(LEFT(Q8,3)<>"ไม่",AK8=0),SUMIFS(Z8:Z58,AN8:AN58,AN8,AK8:AK58,0),0))),0) -> 0 | AI8: =IF(OR(O8="สอนซ่อมเสริม",O8="สอนแทน"),Z8,0) -> 0 | AJ8: =IF(IFERROR(VLOOKUP(AO8,AQ$7:AS$26,3,FALSE),0)-IFERROR(VLOOKUP(AO8,AQ$7:AS$26,2,FALSE),0)<0,1,0) -> 0 | AK8: 0 | AL8: 119 | AM8: 25601 | AN8: =C8&+D8&+E8 -> 256019 | AO8: 25601 | AP8: =IFERROR((VLOOKUP(AO8,'2.การมอบหมายงานสอน'!$AK$5:$AL$24,2,FALSE)*60/1440),0) -> 0 | AQ8: =IF(ISBLANK(D7),C7*10+0,($C$7)*10+2) -> 25602 | AR8: 0 | AS8: 0
A9: ='1.ข้อมูลส่วนบุคคล'!$F$5 -> 12345678912345 | B9: 1 | C9: 2560 | D9: 1 | E9: 10 | F9: 2560-07-17 | G9: 2560-07-23 | K9: =IF('1.ข้อมูลส่วนบุคคล'!C$21="เชี่ยวชาญ",IF(H9="-","",IF(H9='1.ข้อมูลส่วนบุคคล'!F$26,"เกี่ยวข้อง","ไม่เกี่ยวข้อง")),IF('1.ข้อมูลส่วนบุคคล'!C$21="เชี่ยวชาญพิเศษ",IF(H9="-","",IF(H9='1.ข้อมูลส่วนบุคคล'!F$26,"เกี่ยวข้อง","ไม่เกี่ยวข้อง")),"")) ->  | R9: =S9 -> 3-2560110... | S9: 3-2560110... | T9: 110 | U9: =IF(LEFT(Q9,3)="ไม่",0,IF(L9="","",B9)) ->  | V9: 0 | W9: =IF(AN9=AN8,0,IF(OR(LEFT(Q9,3)="ไม่",Q9=""),"",IF(OR(LEFT(P9,1)="1",LEFT(P9,1)="2",LEFT(P9,1)="3",LEFT(P9,1)="4",LEFT(P9,1)="5"),0,IF(SUMIFS(Z9:Z59,AL9:AL59,B9&+D9&+E9&+"ถูกต้อง",AK9:AK59,0)<AP9,1,0)))) ->  | Z9: 0 | AA9: =IF(ISBLANK(E9),0,IF(ISBLANK(D9),IF(AND(C9=C8,E9=E8),0,IF(AND(C9=C8,E9=(E8+1)),0,IF(AND(C9=(C8+1),E9=1,E8>=18),0,1))),IF(AND(C9=C8,D9=D8,E9=E8),0,IF(AND(C9=C8,D9=D8,E9=(E8+1)),0,IF(AND(C9=C8,D9=(D8+1),E9=1,E8>=18),0,IF(AND(C9=(C8+1),D9=1,E9=1,E8>=18),0,1)))))) -> 0 | AB9: ='1.ข้อมูลส่วนบุคคล'!G$32 -> 2560-07-05 | AC9: =TEXT(AB9,"yyyy")&+IF(TEXT(AB9,"mm")>9,TEXT(AB9,"mm"),"0"&+TEXT(AB9,"mm"))&+IF(TEXT(AB9,"dd")>9,TEXT(AB9,"dd"),"0"&+TEXT(AB9,"dd")) -> 25600705 | AD9: 2560-07-23 | AE9: =TEXT(AD9,"yyyy")&+IF(TEXT(AD9,"mm")>9,TEXT(AD9,"mm"),"0"&+TEXT(AD9,"mm"))&+IF(TEXT(AD9,"dd")>9,TEXT(AD9,"dd"),"0"&+TEXT(AD9,"dd")) -> 25600723 | AF9: =AE9-AC9 -> 18 | AG9: 0 | AH9: 0 | AI9: =IF(OR(O9="สอนซ่อมเสริม",O9="สอนแทน"),Z9,0) -> 0 | AJ9: 0 | AK9: 0 | AL9: 1110 | AM9: 25601 | AN9: 2560110 | AO9: 25601 | AP9: =IFERROR((VLOOKUP(AO9,'2.การมอบหมายงานสอน'!$AK$5:$AL$24,2,FALSE)*60/1440),0) -> 0 | AQ9: =IF(ISBLANK(D$7),C$7*10+(10*1),($C$7+1)*10+1) -> 25611 | AR9: 0 | AS9: 0
A10: ='1.ข้อมูลส่วนบุคคล'!$F$5 -> 12345678912345 | B10: 1 | C10: 2560 | D10: 1 | E10: 11 | F10: 2560-07-24 | G10: 2560-07-30 | K10: =IF('1.ข้อมูลส่วนบุคคล'!C$21="เชี่ยวชาญ",IF(H10="-","",IF(H10='1.ข้อมูลส่วนบุคคล'!F$26,"เกี่ยวข้อง","ไม่เกี่ยวข้อง")),IF('1.ข้อมูลส่วนบุคคล'!C$21="เชี่ยวชาญพิเศษ",IF(H10="-","",IF(H10='1.ข้อมูลส่วนบุคคล'!F$26,"เกี่ยวข้อง","ไม่เกี่ยวข้อง")),"")) ->  | R10: =S10 -> 3-2560111... | S10: 3-2560111... | T10: 111 | V10: 0 | Z10: 0 | AA10: =IF(ISBLANK(E10),0,IF(ISBLANK(D10),IF(AND(C10=C9,E10=E9),0,IF(AND(C10=C9,E10=(E9+1)),0,IF(AND(C10=(C9+1),E10=1,E9>=18),0,1))),IF(AND(C10=C9,D10=D9,E10=E9),0,IF(AND(C10=C9,D10=D9,E10=(E9+1)),0,IF(AND(C10=C9,D10=(D9+1),E10=1,E9>=18),0,IF(AND(C10=(C9+1),D10=1,E10=1,E9>=18),0,1)))))) -> 0 | AB10: ='1.ข้อมูลส่วนบุคคล'!G$32 -> 2560-07-05 | AC10: =TEXT(AB10,"yyyy")&+IF(TEXT(AB10,"mm")>9,TEXT(AB10,"mm"),"0"&+TEXT(AB10,"mm"))&+IF(TEXT(AB10,"dd")>9,TEXT(AB10,"dd"),"0"&+TEXT(AB10,"dd")) -> 25600705 | AD10: 2560-07-30 | AE10: 25600730 | AF10: =AE10-AC10 -> 25 | AG10: 0 | AH10: 0 | AI10: =IF(OR(O10="สอนซ่อมเสริม",O10="สอนแทน"),Z10,0) -> 0 | AJ10: 0 | AK10: 0 | AL10: 1111 | AM10: 25601 | AN10: 2560111 | AO10: 25601 | AP10: =IFERROR((VLOOKUP(AO10,'2.การมอบหมายงานสอน'!$AK$5:$AL$24,2,FALSE)*60/1440),0) -> 0 | AQ10: =IF(ISBLANK(D$7),C$7*10+(10*1),($C$7+1)*10+2) -> 25612 | AR10: 0 | AS10: 0
A11: ='1.ข้อมูลส่วนบุคคล'!$F$5 -> 12345678912345 | B11: 1 | C11: 2560 | D11: 1 | E11: 12 | F11: 2560-07-31 | G11: 2560-08-06 | K11: =IF('1.ข้อมูลส่วนบุคคล'!C$21="เชี่ยวชาญ",IF(H11="-","",IF(H11='1.ข้อมูลส่วนบุคคล'!F$26,"เกี่ยวข้อง","ไม่เกี่ยวข้อง")),IF('1.ข้อมูลส่วนบุคคล'!C$21="เชี่ยวชาญพิเศษ",IF(H11="-","",IF(H11='1.ข้อมูลส่วนบุคคล'!F$26,"เกี่ยวข้อง","ไม่เกี่ยวข้อง")),"")) ->  | R11: 3-2560112... | S11: 3-2560112... | T11: 112 | V11: 0 | Z11: 0 | AA11: 0 | AB11: ='1.ข้อมูลส่วนบุคคล'!G$32 -> 2560-07-05 | AC11: 25600705 | AD11: 2560-08-06 | AE11: 25600806 | AF11: 101 | AG11: 0 | AH11: 0 | AI11: =IF(OR(O11="สอนซ่อมเสริม",O11="สอนแทน"),Z11,0) -> 0 | AJ11: 0 | AK11: 0 | AL11: 1112 | AM11: 25601 | AN11: 2560112 | AO11: 25601 | AP11: =IFERROR((VLOOKUP(AO11,'2.การมอบหมายงานสอน'!$AK$5:$AL$24,2,FALSE)*60/1440),0) -> 0 | AQ11: =IF(ISBLANK(D$7),C$7*10+(10*2),($C$7+2)*10+1) -> 25621 | AR11: 0 | AS11: 0
A12: ='1.ข้อมูลส่วนบุคคล'!$F$5 -> 12345678912345 | B12: 1 | C12: 2560 | D12: 1 | E12: 13 | F12: 2560-08-07 | G12: 2560-08-13 | K12: =IF('1.ข้อมูลส่วนบุคคล'!C$21="เชี่ยวชาญ",IF(H12="-","",IF(H12='1.ข้อมูลส่วนบุคคล'!F$26,"เกี่ยวข้อง","ไม่เกี่ยวข้อง")),IF('1.ข้อมูลส่วนบุคคล'!C$21="เชี่ยวชาญพิเศษ",IF(H12="-","",IF(H12='1.ข้อมูลส่วนบุคคล'!F$26,"เกี่ยวข้อง","ไม่เกี่ยวข้อง")),"")) ->  | R12: 3-2560113... | S12: 3-2560113... | T12: 113 | V12: 0 | Z12: 0 | AA12: 0 | AB12: ='1.ข้อมูลส่วนบุคคล'!G$32 -> 2560-07-05 | AC12: 25600705 | AD12: 2560-08-13 | AE12: 25600813 | AF12: 108 | AG12: 0 | AH12: 0 | AI12: 0 | AJ12: 0 | AK12: 0 | AL12: 1113 | AM12: 25601 | AN12: 2560113 | AO12: 25601 | AP12: =IFERROR((VLOOKUP(AO12,'2.การมอบหมายงานสอน'!$AK$5:$AL$24,2,FALSE)*60/1440),0) -> 0 | AQ12: =IF(ISBLANK(D$7),C$7*10+(10*2),($C$7+2)*10+2) -> 25622 | AR12: 0 | AS12: 0
A13: ='1.ข้อมูลส่วนบุคคล'!$F$5 -> 12345678912345 | B13: 1 | C13: 2560 | D13: 1 | E13: 14 | F13: 2560-08-14 | G13: 2560-08-20 | K13: =IF('1.ข้อมูลส่วนบุคคล'!C$21="เชี่ยวชาญ",IF(H13="-","",IF(H13='1.ข้อมูลส่วนบุคคล'!F$26,"เกี่ยวข้อง","ไม่เกี่ยวข้อง")),IF('1.ข้อมูลส่วนบุคคล'!C$21="เชี่ยวชาญพิเศษ",IF(H13="-","",IF(H13='1.ข้อมูลส่วนบุคคล'!F$26,"เกี่ยวข้อง","ไม่เกี่ยวข้อง")),"")) ->  | R13: 3-2560114... | S13: 3-2560114... | T13: 114 | V13: 0 | Z13: 0 | AA13: 0 | AB13: ='1.ข้อมูลส่วนบุคคล'!G$32 -> 2560-07-05 | AC13: 25600705 | AD13: 2560-08-20 | AE13: 25600820 | AF13: 115 | AG13: 0 | AH13: 0 | AI13: 0 | AJ13: 0 | AK13: 0 | AL13: 1114 | AM13: 25601 | AN13: 2560114 | AO13: 25601 | AP13: =IFERROR((VLOOKUP(AO13,'2.การมอบหมายงานสอน'!$AK$5:$AL$24,2,FALSE)*60/1440),0) -> 0 | AQ13: =IF(ISBLANK(D$7),C$7*10+(10*3),($C$7+3)*10+1) -> 25631 | AR13: 0 | AS13: 0
A14: ='1.ข้อมูลส่วนบุคคล'!$F$5 -> 12345678912345 | K14: =IF('1.ข้อมูลส่วนบุคคล'!C$21="เชี่ยวชาญ",IF(H14="-","",IF(H14='1.ข้อมูลส่วนบุคคล'!F$26,"เกี่ยวข้อง","ไม่เกี่ยวข้อง")),IF('1.ข้อมูลส่วนบุคคล'!C$21="เชี่ยวชาญพิเศษ",IF(H14="-","",IF(H14='1.ข้อมูลส่วนบุคคล'!F$26,"เกี่ยวข้อง","ไม่เกี่ยวข้อง")),"")) ->  | V14: 0 | Z14: 0 | AA14: 0 | AB14: ='1.ข้อมูลส่วนบุคคล'!G$32 -> 2560-07-05 | AC14: 25600705 | AD14: 00:00:00 | AE14: 19000100 | AF14: -6600605 | AG14: 0 | AH14: 0 | AI14: 0 | AJ14: 0 | AK14: 0 | AO14: 0 | AP14: =IFERROR((VLOOKUP(AO14,'2.การมอบหมายงานสอน'!$AK$5:$AL$24,2,FALSE)*60/1440),0) -> 0 | AQ14: =IF(ISBLANK(D$7),C$7*10+(10*3),($C$7+3)*10+2) -> 25632 | AR14: 0 | AS14: 0
A15: ='1.ข้อมูลส่วนบุคคล'!$F$5 -> 12345678912345 | K15: =IF('1.ข้อมูลส่วนบุคคล'!C$21="เชี่ยวชาญ",IF(H15="-","",IF(H15='1.ข้อมูลส่วนบุคคล'!F$26,"เกี่ยวข้อง","ไม่เกี่ยวข้อง")),IF('1.ข้อมูลส่วนบุคคล'!C$21="เชี่ยวชาญพิเศษ",IF(H15="-","",IF(H15='1.ข้อมูลส่วนบุคคล'!F$26,"เกี่ยวข้อง","ไม่เกี่ยวข้อง")),"")) ->  | V15: 0 | W15: 0 | Z15: 0 | AA15: 0 | AB15: ='1.ข้อมูลส่วนบุคคล'!G$32 -> 2560-07-05 | AC15: 25600705 | AD15: 00:00:00 | AE15: 19000100 | AF15: -6600605 | AG15: 0 | AH15: 0 | AI15: 0 | AJ15: 0 | AK15: 0 | AO15: 0 | AP15: =IFERROR((VLOOKUP(AO15,'2.การมอบหมายงานสอน'!$AK$5:$AL$24,2,FALSE)*60/1440),0) -> 0 | AQ15: =IF(ISBLANK(D$7),C$7*10+(10*4),($C$7+4)*10+1) -> 25641 | AR15: 0 | AS15: 0
A16: ='1.ข้อมูลส่วนบุคคล'!$F$5 -> 12345678912345 | K16: =IF('1.ข้อมูลส่วนบุคคล'!C$21="เชี่ยวชาญ",IF(H16="-","",IF(H16='1.ข้อมูลส่วนบุคคล'!F$26,"เกี่ยวข้อง","ไม่เกี่ยวข้อง")),IF('1.ข้อมูลส่วนบุคคล'!C$21="เชี่ยวชาญพิเศษ",IF(H16="-","",IF(H16='1.ข้อมูลส่วนบุคคล'!F$26,"เกี่ยวข้อง","ไม่เกี่ยวข้อง")),"")) ->  | V16: 0 | W16: 0 | Z16: 0 | AA16: 0 | AB16: ='1.ข้อมูลส่วนบุคคล'!G$32 -> 2560-07-05 | AC16: 25600705 | AD16: 00:00:00 | AE16: 19000100 | AF16: -6600605 | AG16: 0 | AH16: 0 | AI16: 0 | AJ16: 0 | AK16: 0 | AO16: 0 | AP16: =IFERROR((VLOOKUP(AO16,'2.การมอบหมายงานสอน'!$AK$5:$AL$24,2,FALSE)*60/1440),0) -> 0 | AQ16: =IF(ISBLANK(D$7),C$7*10+(10*4),($C$7+4)*10+2) -> 25642 | AR16: 0 | AS16: 0
A17: ='1.ข้อมูลส่วนบุคคล'!$F$5 -> 12345678912345 | K17: =IF('1.ข้อมูลส่วนบุคคล'!C$21="เชี่ยวชาญ",IF(H17="-","",IF(H17='1.ข้อมูลส่วนบุคคล'!F$26,"เกี่ยวข้อง","ไม่เกี่ยวข้อง")),IF('1.ข้อมูลส่วนบุคคล'!C$21="เชี่ยวชาญพิเศษ",IF(H17="-","",IF(H17='1.ข้อมูลส่วนบุคคล'!F$26,"เกี่ยวข้อง","ไม่เกี่ยวข้อง")),"")) ->  | V17: 0 | W17: 0 | Z17: 0 | AA17: 0 | AB17: ='1.ข้อมูลส่วนบุคคล'!G$32 -> 2560-07-05 | AC17: 25600705 | AD17: 00:00:00 | AE17: 19000100 | AF17: -6600605 | AG17: 0 | AH17: 0 | AI17: 0 | AJ17: 0 | AK17: 0 | AO17: 0 | AP17: =IFERROR((VLOOKUP(AO17,'2.การมอบหมายงานสอน'!$AK$5:$AL$24,2,FALSE)*60/1440),0) -> 0 | AQ17: =IF(ISBLANK(D$7),C$7*10+(10*5),($C$7+5)*10+1) -> 25651 | AR17: 0 | AS17: 0
A18: ='1.ข้อมูลส่วนบุคคล'!$F$5 -> 12345678912345 | K18: =IF('1.ข้อมูลส่วนบุคคล'!C$21="เชี่ยวชาญ",IF(H18="-","",IF(H18='1.ข้อมูลส่วนบุคคล'!F$26,"เกี่ยวข้อง","ไม่เกี่ยวข้อง")),IF('1.ข้อมูลส่วนบุคคล'!C$21="เชี่ยวชาญพิเศษ",IF(H18="-","",IF(H18='1.ข้อมูลส่วนบุคคล'!F$26,"เกี่ยวข้อง","ไม่เกี่ยวข้อง")),"")) ->  | V18: 0 | W18: 0 | Z18: 0 | AA18: 0 | AB18: ='1.ข้อมูลส่วนบุคคล'!G$32 -> 2560-07-05 | AC18: 25600705 | AD18: 00:00:00 | AE18: 19000100 | AF18: -6600605 | AG18: 0 | AH18: 0 | AI18: 0 | AJ18: 0 | AK18: 0 | AO18: 0 | AP18: =IFERROR((VLOOKUP(AO18,'2.การมอบหมายงานสอน'!$AK$5:$AL$24,2,FALSE)*60/1440),0) -> 0 | AQ18: =IF(ISBLANK(D$7),C$7*10+(10*5),($C$7+5)*10+2) -> 25652 | AR18: 0 | AS18: 0
A19: ='1.ข้อมูลส่วนบุคคล'!$F$5 -> 12345678912345 | K19: =IF('1.ข้อมูลส่วนบุคคล'!C$21="เชี่ยวชาญ",IF(H19="-","",IF(H19='1.ข้อมูลส่วนบุคคล'!F$26,"เกี่ยวข้อง","ไม่เกี่ยวข้อง")),IF('1.ข้อมูลส่วนบุคคล'!C$21="เชี่ยวชาญพิเศษ",IF(H19="-","",IF(H19='1.ข้อมูลส่วนบุคคล'!F$26,"เกี่ยวข้อง","ไม่เกี่ยวข้อง")),"")) ->  | V19: 0 | W19: 0 | Z19: 0 | AA19: 0 | AB19: ='1.ข้อมูลส่วนบุคคล'!G$32 -> 2560-07-05 | AC19: 25600705 | AD19: 00:00:00 | AE19: 19000100 | AF19: -6600605 | AG19: 0 | AH19: 0 | AI19: 0 | AJ19: 0 | AK19: 0 | AO19: 0 | AP19: =IFERROR((VLOOKUP(AO19,'2.การมอบหมายงานสอน'!$AK$5:$AL$24,2,FALSE)*60/1440),0) -> 0 | AQ19: =IF(ISBLANK(D$7),C$7*10+(10*6),($C$7+6)*10+1) -> 25661 | AR19: 0 | AS19: 0
A20: ='1.ข้อมูลส่วนบุคคล'!$F$5 -> 12345678912345 | K20: =IF('1.ข้อมูลส่วนบุคคล'!C$21="เชี่ยวชาญ",IF(H20="-","",IF(H20='1.ข้อมูลส่วนบุคคล'!F$26,"เกี่ยวข้อง","ไม่เกี่ยวข้อง")),IF('1.ข้อมูลส่วนบุคคล'!C$21="เชี่ยวชาญพิเศษ",IF(H20="-","",IF(H20='1.ข้อมูลส่วนบุคคล'!F$26,"เกี่ยวข้อง","ไม่เกี่ยวข้อง")),"")) ->  | V20: 0 | W20: 0 | Z20: 0 | AA20: 0 | AB20: ='1.ข้อมูลส่วนบุคคล'!G$32 -> 2560-07-05 | AC20: 25600705 | AD20: 00:00:00 | AE20: 19000100 | AF20: -6600605 | AG20: 0 | AH20: 0 | AI20: 0 | AJ20: 0 | AK20: 0 | AO20: 0 | AP20: =IFERROR((VLOOKUP(AO20,'2.การมอบหมายงานสอน'!$AK$5:$AL$24,2,FALSE)*60/1440),0) -> 0 | AQ20: =IF(ISBLANK(D$7),C$7*10+(10*6),($C$7+6)*10+2) -> 25662 | AR20: 0 | AS20: 0
A21: ='1.ข้อมูลส่วนบุคคล'!$F$5 -> 12345678912345 | K21: =IF('1.ข้อมูลส่วนบุคคล'!C$21="เชี่ยวชาญ",IF(H21="-","",IF(H21='1.ข้อมูลส่วนบุคคล'!F$26,"เกี่ยวข้อง","ไม่เกี่ยวข้อง")),IF('1.ข้อมูลส่วนบุคคล'!C$21="เชี่ยวชาญพิเศษ",IF(H21="-","",IF(H21='1.ข้อมูลส่วนบุคคล'!F$26,"เกี่ยวข้อง","ไม่เกี่ยวข้อง")),"")) ->  | V21: 0 | W21: 0 | Z21: 0 | AA21: 0 | AB21: ='1.ข้อมูลส่วนบุคคล'!G$32 -> 2560-07-05 | AC21: 25600705 | AD21: 00:00:00 | AE21: 19000100 | AF21: -6600605 | AG21: 0 | AH21: 0 | AI21: 0 | AJ21: 0 | AK21: 0 | AO21: 0 | AP21: =IFERROR((VLOOKUP(AO21,'2.การมอบหมายงานสอน'!$AK$5:$AL$24,2,FALSE)*60/1440),0) -> 0 | AQ21: =IF(ISBLANK(D$7),C$7*10+(10*7),($C$7+7)*10+1) -> 25671 | AR21: 0 | AS21: 0
A22: ='1.ข้อมูลส่วนบุคคล'!$F$5 -> 12345678912345 | K22: =IF('1.ข้อมูลส่วนบุคคล'!C$21="เชี่ยวชาญ",IF(H22="-","",IF(H22='1.ข้อมูลส่วนบุคคล'!F$26,"เกี่ยวข้อง","ไม่เกี่ยวข้อง")),IF('1.ข้อมูลส่วนบุคคล'!C$21="เชี่ยวชาญพิเศษ",IF(H22="-","",IF(H22='1.ข้อมูลส่วนบุคคล'!F$26,"เกี่ยวข้อง","ไม่เกี่ยวข้อง")),"")) ->  | V22: 0 | W22: 0 | Z22: 0 | AA22: 0 | AB22: ='1.ข้อมูลส่วนบุคคล'!G$32 -> 2560-07-05 | AC22: 25600705 | AD22: 00:00:00 | AE22: 19000100 | AF22: -6600605 | AG22: 0 | AH22: 0 | AI22: 0 | AJ22: 0 | AK22: 0 | AO22: 0 | AP22: =IFERROR((VLOOKUP(AO22,'2.การมอบหมายงานสอน'!$AK$5:$AL$24,2,FALSE)*60/1440),0) -> 0 | AQ22: =IF(ISBLANK(D$7),C$7*10+(10*7),($C$7+7)*10+2) -> 25672 | AR22: 0 | AS22: 0
A23: ='1.ข้อมูลส่วนบุคคล'!$F$5 -> 12345678912345 | K23: =IF('1.ข้อมูลส่วนบุคคล'!C$21="เชี่ยวชาญ",IF(H23="-","",IF(H23='1.ข้อมูลส่วนบุคคล'!F$26,"เกี่ยวข้อง","ไม่เกี่ยวข้อง")),IF('1.ข้อมูลส่วนบุคคล'!C$21="เชี่ยวชาญพิเศษ",IF(H23="-","",IF(H23='1.ข้อมูลส่วนบุคคล'!F$26,"เกี่ยวข้อง","ไม่เกี่ยวข้อง")),"")) ->  | V23: 0 | W23: 0 | Z23: 0 | AA23: 0 | AB23: ='1.ข้อมูลส่วนบุคคล'!G$32 -> 2560-07-05 | AC23: 25600705 | AD23: 00:00:00 | AE23: 19000100 | AF23: -6600605 | AG23: 0 | AH23: 0 | AI23: 0 | AJ23: 0 | AK23: 0 | AO23: 0 | AP23: =IFERROR((VLOOKUP(AO23,'2.การมอบหมายงานสอน'!$AK$5:$AL$24,2,FALSE)*60/1440),0) -> 0 | AQ23: =IF(ISBLANK(D$7),C$7*10+(10*8),($C$7+8)*10+1) -> 25681 | AR23: 0 | AS23: 0
A24: ='1.ข้อมูลส่วนบุคคล'!$F$5 -> 12345678912345 | K24: =IF('1.ข้อมูลส่วนบุคคล'!C$21="เชี่ยวชาญ",IF(H24="-","",IF(H24='1.ข้อมูลส่วนบุคคล'!F$26,"เกี่ยวข้อง","ไม่เกี่ยวข้อง")),IF('1.ข้อมูลส่วนบุคคล'!C$21="เชี่ยวชาญพิเศษ",IF(H24="-","",IF(H24='1.ข้อมูลส่วนบุคคล'!F$26,"เกี่ยวข้อง","ไม่เกี่ยวข้อง")),"")) ->  | V24: 0 | W24: 0 | Z24: 0 | AA24: 0 | AB24: ='1.ข้อมูลส่วนบุคคล'!G$32 -> 2560-07-05 | AC24: 25600705 | AD24: 00:00:00 | AE24: 19000100 | AF24: -6600605 | AG24: 0 | AH24: 0 | AI24: 0 | AJ24: 0 | AK24: 0 | AO24: 0 | AP24: =IFERROR((VLOOKUP(AO24,'2.การมอบหมายงานสอน'!$AK$5:$AL$24,2,FALSE)*60/1440),0) -> 0 | AQ24: =IF(ISBLANK(D$7),C$7*10+(10*8),($C$7+8)*10+2) -> 25682 | AR24: 0 | AS24: 0
A25: ='1.ข้อมูลส่วนบุคคล'!$F$5 -> 12345678912345 | K25: =IF('1.ข้อมูลส่วนบุคคล'!C$21="เชี่ยวชาญ",IF(H25="-","",IF(H25='1.ข้อมูลส่วนบุคคล'!F$26,"เกี่ยวข้อง","ไม่เกี่ยวข้อง")),IF('1.ข้อมูลส่วนบุคคล'!C$21="เชี่ยวชาญพิเศษ",IF(H25="-","",IF(H25='1.ข้อมูลส่วนบุคคล'!F$26,"เกี่ยวข้อง","ไม่เกี่ยวข้อง")),"")) ->  | V25: 0 | W25: 0 | Z25: 0 | AA25: 0 | AB25: ='1.ข้อมูลส่วนบุคคล'!G$32 -> 2560-07-05 | AC25: 25600705 | AD25: 00:00:00 | AE25: 19000100 | AF25: -6600605 | AG25: 0 | AH25: 0 | AI25: 0 | AJ25: 0 | AK25: 0 | AO25: 0 | AP25: =IFERROR((VLOOKUP(AO25,'2.การมอบหมายงานสอน'!$AK$5:$AL$24,2,FALSE)*60/1440),0) -> 0 | AQ25: =IF(ISBLANK(D$7),C$7*10+(10*9),($C$7+9)*10+1) -> 25691 | AR25: 0 | AS25: 0
A26: ='1.ข้อมูลส่วนบุคคล'!$F$5 -> 12345678912345 | K26: =IF('1.ข้อมูลส่วนบุคคล'!C$21="เชี่ยวชาญ",IF(H26="-","",IF(H26='1.ข้อมูลส่วนบุคคล'!F$26,"เกี่ยวข้อง","ไม่เกี่ยวข้อง")),IF('1.ข้อมูลส่วนบุคคล'!C$21="เชี่ยวชาญพิเศษ",IF(H26="-","",IF(H26='1.ข้อมูลส่วนบุคคล'!F$26,"เกี่ยวข้อง","ไม่เกี่ยวข้อง")),"")) ->  | V26: 0 | W26: 0 | Z26: 0 | AA26: 0 | AB26: ='1.ข้อมูลส่วนบุคคล'!G$32 -> 2560-07-05 | AC26: 25600705 | AD26: 00:00:00 | AE26: 19000100 | AF26: -6600605 | AG26: 0 | AH26: 0 | AI26: 0 | AJ26: 0 | AK26: 0 | AO26: 0 | AP26: =IFERROR((VLOOKUP(AO26,'2.การมอบหมายงานสอน'!$AK$5:$AL$24,2,FALSE)*60/1440),0) -> 0 | AQ26: =IF(ISBLANK(D$7),C$7*10+(10*9),($C$7+9)*10+2) -> 25692 | AR26: 0 | AS26: 0
A27: ='1.ข้อมูลส่วนบุคคล'!$F$5 -> 12345678912345 | K27: =IF('1.ข้อมูลส่วนบุคคล'!C$21="เชี่ยวชาญ",IF(H27="-","",IF(H27='1.ข้อมูลส่วนบุคคล'!F$26,"เกี่ยวข้อง","ไม่เกี่ยวข้อง")),IF('1.ข้อมูลส่วนบุคคล'!C$21="เชี่ยวชาญพิเศษ",IF(H27="-","",IF(H27='1.ข้อมูลส่วนบุคคล'!F$26,"เกี่ยวข้อง","ไม่เกี่ยวข้อง")),"")) ->  | V27: 0 | W27: 0 | Z27: 0 | AA27: 0 | AB27: ='1.ข้อมูลส่วนบุคคล'!G$32 -> 2560-07-05 | AC27: 25600705 | AD27: 00:00:00 | AE27: 19000100 | AF27: -6600605 | AG27: 0 | AH27: 0 | AI27: 0 | AJ27: 0 | AK27: 0 | AO27: 0 | AP27: =IFERROR((VLOOKUP(AO27,'2.การมอบหมายงานสอน'!$AK$5:$AL$24,2,FALSE)*60/1440),0) -> 0
A28: ='1.ข้อมูลส่วนบุคคล'!$F$5 -> 12345678912345 | K28: =IF('1.ข้อมูลส่วนบุคคล'!C$21="เชี่ยวชาญ",IF(H28="-","",IF(H28='1.ข้อมูลส่วนบุคคล'!F$26,"เกี่ยวข้อง","ไม่เกี่ยวข้อง")),IF('1.ข้อมูลส่วนบุคคล'!C$21="เชี่ยวชาญพิเศษ",IF(H28="-","",IF(H28='1.ข้อมูลส่วนบุคคล'!F$26,"เกี่ยวข้อง","ไม่เกี่ยวข้อง")),"")) ->  | V28: 0 | W28: 0 | Z28: 0 | AA28: 0 | AB28: ='1.ข้อมูลส่วนบุคคล'!G$32 -> 2560-07-05 | AC28: 25600705 | AD28: 00:00:00 | AE28: 19000100 | AF28: -6600605 | AG28: 0 | AH28: 0 | AI28: 0 | AJ28: 0 | AK28: 0 | AO28: 0 | AP28: =IFERROR((VLOOKUP(AO28,'2.การมอบหมายงานสอน'!$AK$5:$AL$24,2,FALSE)*60/1440),0) -> 0
A29: ='1.ข้อมูลส่วนบุคคล'!$F$5 -> 12345678912345 | K29: =IF('1.ข้อมูลส่วนบุคคล'!C$21="เชี่ยวชาญ",IF(H29="-","",IF(H29='1.ข้อมูลส่วนบุคคล'!F$26,"เกี่ยวข้อง","ไม่เกี่ยวข้อง")),IF('1.ข้อมูลส่วนบุคคล'!C$21="เชี่ยวชาญพิเศษ",IF(H29="-","",IF(H29='1.ข้อมูลส่วนบุคคล'!F$26,"เกี่ยวข้อง","ไม่เกี่ยวข้อง")),"")) ->  | V29: 0 | W29: 0 | Z29: 0 | AA29: 0 | AB29: ='1.ข้อมูลส่วนบุคคล'!G$32 -> 2560-07-05 | AC29: 25600705 | AD29: 00:00:00 | AE29: 19000100 | AF29: -6600605 | AG29: 0 | AH29: 0 | AI29: 0 | AJ29: 0 | AK29: 0 | AO29: 0 | AP29: =IFERROR((VLOOKUP(AO29,'2.การมอบหมายงานสอน'!$AK$5:$AL$24,2,FALSE)*60/1440),0) -> 0
A30: ='1.ข้อมูลส่วนบุคคล'!$F$5 -> 12345678912345 | K30: =IF('1.ข้อมูลส่วนบุคคล'!C$21="เชี่ยวชาญ",IF(H30="-","",IF(H30='1.ข้อมูลส่วนบุคคล'!F$26,"เกี่ยวข้อง","ไม่เกี่ยวข้อง")),IF('1.ข้อมูลส่วนบุคคล'!C$21="เชี่ยวชาญพิเศษ",IF(H30="-","",IF(H30='1.ข้อมูลส่วนบุคคล'!F$26,"เกี่ยวข้อง","ไม่เกี่ยวข้อง")),"")) ->  | V30: 0 | W30: 0 | Z30: 0 | AA30: 0 | AB30: ='1.ข้อมูลส่วนบุคคล'!G$32 -> 2560-07-05 | AC30: 25600705 | AD30: 00:00:00 | AE30: 19000100 | AF30: -6600605 | AG30: 0 | AH30: 0 | AI30: 0 | AJ30: 0 | AK30: 0 | AO30: 0 | AP30: =IFERROR((VLOOKUP(AO30,'2.การมอบหมายงานสอน'!$AK$5:$AL$24,2,FALSE)*60/1440),0) -> 0
A31: ='1.ข้อมูลส่วนบุคคล'!$F$5 -> 12345678912345 | K31: =IF('1.ข้อมูลส่วนบุคคล'!C$21="เชี่ยวชาญ",IF(H31="-","",IF(H31='1.ข้อมูลส่วนบุคคล'!F$26,"เกี่ยวข้อง","ไม่เกี่ยวข้อง")),IF('1.ข้อมูลส่วนบุคคล'!C$21="เชี่ยวชาญพิเศษ",IF(H31="-","",IF(H31='1.ข้อมูลส่วนบุคคล'!F$26,"เกี่ยวข้อง","ไม่เกี่ยวข้อง")),"")) ->  | V31: 0 | W31: 0 | Z31: 0 | AA31: 0 | AB31: ='1.ข้อมูลส่วนบุคคล'!G$32 -> 2560-07-05 | AC31: 25600705 | AD31: 00:00:00 | AE31: 19000100 | AF31: -6600605 | AG31: 0 | AH31: 0 | AI31: 0 | AJ31: 0 | AK31: 0 | AO31: 0 | AP31: =IFERROR((VLOOKUP(AO31,'2.การมอบหมายงานสอน'!$AK$5:$AL$24,2,FALSE)*60/1440),0) -> 0
A32: ='1.ข้อมูลส่วนบุคคล'!$F$5 -> 12345678912345 | K32: =IF('1.ข้อมูลส่วนบุคคล'!C$21="เชี่ยวชาญ",IF(H32="-","",IF(H32='1.ข้อมูลส่วนบุคคล'!F$26,"เกี่ยวข้อง","ไม่เกี่ยวข้อง")),IF('1.ข้อมูลส่วนบุคคล'!C$21="เชี่ยวชาญพิเศษ",IF(H32="-","",IF(H32='1.ข้อมูลส่วนบุคคล'!F$26,"เกี่ยวข้อง","ไม่เกี่ยวข้อง")),"")) ->  | V32: 0 | W32: 0 | Z32: 0 | AA32: 0 | AB32: ='1.ข้อมูลส่วนบุคคล'!G$32 -> 2560-07-05 | AC32: 25600705 | AD32: 00:00:00 | AE32: 19000100 | AF32: -6600605 | AG32: 0 | AH32: 0 | AI32: 0 | AJ32: 0 | AK32: 0 | AO32: 0 | AP32: =IFERROR((VLOOKUP(AO32,'2.การมอบหมายงานสอน'!$AK$5:$AL$24,2,FALSE)*60/1440),0) -> 0
A33: ='1.ข้อมูลส่วนบุคคล'!$F$5 -> 12345678912345 | K33: =IF('1.ข้อมูลส่วนบุคคล'!C$21="เชี่ยวชาญ",IF(H33="-","",IF(H33='1.ข้อมูลส่วนบุคคล'!F$26,"เกี่ยวข้อง","ไม่เกี่ยวข้อง")),IF('1.ข้อมูลส่วนบุคคล'!C$21="เชี่ยวชาญพิเศษ",IF(H33="-","",IF(H33='1.ข้อมูลส่วนบุคคล'!F$26,"เกี่ยวข้อง","ไม่เกี่ยวข้อง")),"")) ->  | V33: 0 | W33: 0 | Z33: 0 | AA33: 0 | AB33: ='1.ข้อมูลส่วนบุคคล'!G$32 -> 2560-07-05 | AC33: 25600705 | AD33: 00:00:00 | AE33: 19000100 | AF33: -6600605 | AG33: 0 | AH33: 0 | AI33: 0 | AJ33: 0 | AK33: 0 | AO33: 0 | AP33: =IFERROR((VLOOKUP(AO33,'2.การมอบหมายงานสอน'!$AK$5:$AL$24,2,FALSE)*60/1440),0) -> 0
A34: ='1.ข้อมูลส่วนบุคคล'!$F$5 -> 12345678912345 | K34: =IF('1.ข้อมูลส่วนบุคคล'!C$21="เชี่ยวชาญ",IF(H34="-","",IF(H34='1.ข้อมูลส่วนบุคคล'!F$26,"เกี่ยวข้อง","ไม่เกี่ยวข้อง")),IF('1.ข้อมูลส่วนบุคคล'!C$21="เชี่ยวชาญพิเศษ",IF(H34="-","",IF(H34='1.ข้อมูลส่วนบุคคล'!F$26,"เกี่ยวข้อง","ไม่เกี่ยวข้อง")),"")) ->  | V34: 0 | W34: 0 | Z34: 0 | AA34: 0 | AB34: ='1.ข้อมูลส่วนบุคคล'!G$32 -> 2560-07-05 | AC34: 25600705 | AD34: 00:00:00 | AE34: 19000100 | AF34: -6600605 | AG34: 0 | AH34: 0 | AI34: 0 | AJ34: 0 | AK34: 0 | AO34: 0 | AP34: =IFERROR((VLOOKUP(AO34,'2.การมอบหมายงานสอน'!$AK$5:$AL$24,2,FALSE)*60/1440),0) -> 0
A35: ='1.ข้อมูลส่วนบุคคล'!$F$5 -> 12345678912345 | K35: =IF('1.ข้อมูลส่วนบุคคล'!C$21="เชี่ยวชาญ",IF(H35="-","",IF(H35='1.ข้อมูลส่วนบุคคล'!F$26,"เกี่ยวข้อง","ไม่เกี่ยวข้อง")),IF('1.ข้อมูลส่วนบุคคล'!C$21="เชี่ยวชาญพิเศษ",IF(H35="-","",IF(H35='1.ข้อมูลส่วนบุคคล'!F$26,"เกี่ยวข้อง","ไม่เกี่ยวข้อง")),"")) ->  | V35: 0 | W35: 0 | Z35: 0 | AA35: 0 | AB35: ='1.ข้อมูลส่วนบุคคล'!G$32 -> 2560-07-05 | AC35: 25600705 | AD35: 00:00:00 | AE35: 19000100 | AF35: -6600605 | AG35: 0 | AH35: 0 | AI35: 0 | AJ35: 0 | AK35: 0 | AO35: 0 | AP35: =IFERROR((VLOOKUP(AO35,'2.การมอบหมายงานสอน'!$AK$5:$AL$24,2,FALSE)*60/1440),0) -> 0
A36: ='1.ข้อมูลส่วนบุคคล'!$F$5 -> 12345678912345 | K36: =IF('1.ข้อมูลส่วนบุคคล'!C$21="เชี่ยวชาญ",IF(H36="-","",IF(H36='1.ข้อมูลส่วนบุคคล'!F$26,"เกี่ยวข้อง","ไม่เกี่ยวข้อง")),IF('1.ข้อมูลส่วนบุคคล'!C$21="เชี่ยวชาญพิเศษ",IF(H36="-","",IF(H36='1.ข้อมูลส่วนบุคคล'!F$26,"เกี่ยวข้อง","ไม่เกี่ยวข้อง")),"")) ->  | V36: 0 | W36: 0 | Z36: 0 | AA36: 0 | AB36: ='1.ข้อมูลส่วนบุคคล'!G$32 -> 2560-07-05 | AC36: 25600705 | AD36: 00:00:00 | AE36: 19000100 | AF36: -6600605 | AG36: 0 | AH36: 0 | AI36: 0 | AJ36: 0 | AK36: 0 | AO36: 0 | AP36: =IFERROR((VLOOKUP(AO36,'2.การมอบหมายงานสอน'!$AK$5:$AL$24,2,FALSE)*60/1440),0) -> 0
A37: ='1.ข้อมูลส่วนบุคคล'!$F$5 -> 12345678912345 | K37: =IF('1.ข้อมูลส่วนบุคคล'!C$21="เชี่ยวชาญ",IF(H37="-","",IF(H37='1.ข้อมูลส่วนบุคคล'!F$26,"เกี่ยวข้อง","ไม่เกี่ยวข้อง")),IF('1.ข้อมูลส่วนบุคคล'!C$21="เชี่ยวชาญพิเศษ",IF(H37="-","",IF(H37='1.ข้อมูลส่วนบุคคล'!F$26,"เกี่ยวข้อง","ไม่เกี่ยวข้อง")),"")) ->  | V37: 0 | W37: 0 | Z37: 0 | AA37: 0 | AB37: ='1.ข้อมูลส่วนบุคคล'!G$32 -> 2560-07-05 | AC37: 25600705 | AD37: 00:00:00 | AE37: 19000100 | AF37: -6600605 | AG37: 0 | AH37: 0 | AI37: 0 | AJ37: 0 | AK37: 0 | AO37: 0 | AP37: =IFERROR((VLOOKUP(AO37,'2.การมอบหมายงานสอน'!$AK$5:$AL$24,2,FALSE)*60/1440),0) -> 0
A38: ='1.ข้อมูลส่วนบุคคล'!$F$5 -> 12345678912345 | K38: =IF('1.ข้อมูลส่วนบุคคล'!C$21="เชี่ยวชาญ",IF(H38="-","",IF(H38='1.ข้อมูลส่วนบุคคล'!F$26,"เกี่ยวข้อง","ไม่เกี่ยวข้อง")),IF('1.ข้อมูลส่วนบุคคล'!C$21="เชี่ยวชาญพิเศษ",IF(H38="-","",IF(H38='1.ข้อมูลส่วนบุคคล'!F$26,"เกี่ยวข้อง","ไม่เกี่ยวข้อง")),"")) ->  | V38: 0 | W38: 0 | Z38: 0 | AA38: 0 | AB38: ='1.ข้อมูลส่วนบุคคล'!G$32 -> 2560-07-05 | AC38: 25600705 | AD38: 00:00:00 | AE38: 19000100 | AF38: -6600605 | AG38: 0 | AH38: 0 | AI38: 0 | AJ38: 0 | AK38: 0 | AO38: 0 | AP38: =IFERROR((VLOOKUP(AO38,'2.การมอบหมายงานสอน'!$AK$5:$AL$24,2,FALSE)*60/1440),0) -> 0
A39: ='1.ข้อมูลส่วนบุคคล'!$F$5 -> 12345678912345 | K39: =IF('1.ข้อมูลส่วนบุคคล'!C$21="เชี่ยวชาญ",IF(H39="-","",IF(H39='1.ข้อมูลส่วนบุคคล'!F$26,"เกี่ยวข้อง","ไม่เกี่ยวข้อง")),IF('1.ข้อมูลส่วนบุคคล'!C$21="เชี่ยวชาญพิเศษ",IF(H39="-","",IF(H39='1.ข้อมูลส่วนบุคคล'!F$26,"เกี่ยวข้อง","ไม่เกี่ยวข้อง")),"")) ->  | V39: 0 | W39: 0 | Z39: 0 | AA39: 0 | AB39: ='1.ข้อมูลส่วนบุคคล'!G$32 -> 2560-07-05 | AC39: 25600705 | AD39: 00:00:00 | AE39: 19000100 | AF39: -6600605 | AG39: 0 | AH39: 0 | AI39: 0 | AJ39: 0 | AK39: 0 | AO39: 0 | AP39: =IFERROR((VLOOKUP(AO39,'2.การมอบหมายงานสอน'!$AK$5:$AL$24,2,FALSE)*60/1440),0) -> 0
A40: ='1.ข้อมูลส่วนบุคคล'!$F$5 -> 12345678912345 | K40: =IF('1.ข้อมูลส่วนบุคคล'!C$21="เชี่ยวชาญ",IF(H40="-","",IF(H40='1.ข้อมูลส่วนบุคคล'!F$26,"เกี่ยวข้อง","ไม่เกี่ยวข้อง")),IF('1.ข้อมูลส่วนบุคคล'!C$21="เชี่ยวชาญพิเศษ",IF(H40="-","",IF(H40='1.ข้อมูลส่วนบุคคล'!F$26,"เกี่ยวข้อง","ไม่เกี่ยวข้อง")),"")) ->  | V40: 0 | W40: 0 | Z40: 0 | AA40: 0 | AB40: ='1.ข้อมูลส่วนบุคคล'!G$32 -> 2560-07-05 | AC40: 25600705 | AD40: 00:00:00 | AE40: 19000100 | AF40: -6600605 | AG40: 0 | AH40: 0 | AI40: 0 | AJ40: 0 | AK40: 0 | AO40: 0 | AP40: =IFERROR((VLOOKUP(AO40,'2.การมอบหมายงานสอน'!$AK$5:$AL$24,2,FALSE)*60/1440),0) -> 0
A41: ='1.ข้อมูลส่วนบุคคล'!$F$5 -> 12345678912345 | K41: =IF('1.ข้อมูลส่วนบุคคล'!C$21="เชี่ยวชาญ",IF(H41="-","",IF(H41='1.ข้อมูลส่วนบุคคล'!F$26,"เกี่ยวข้อง","ไม่เกี่ยวข้อง")),IF('1.ข้อมูลส่วนบุคคล'!C$21="เชี่ยวชาญพิเศษ",IF(H41="-","",IF(H41='1.ข้อมูลส่วนบุคคล'!F$26,"เกี่ยวข้อง","ไม่เกี่ยวข้อง")),"")) ->  | V41: 0 | W41: 0 | Z41: 0 | AA41: 0 | AB41: ='1.ข้อมูลส่วนบุคคล'!G$32 -> 2560-07-05 | AC41: 25600705 | AD41: 00:00:00 | AE41: 19000100 | AF41: -6600605 | AG41: 0 | AH41: 0 | AI41: 0 | AJ41: 0 | AK41: 0 | AO41: 0 | AP41: =IFERROR((VLOOKUP(AO41,'2.การมอบหมายงานสอน'!$AK$5:$AL$24,2,FALSE)*60/1440),0) -> 0
A42: ='1.ข้อมูลส่วนบุคคล'!$F$5 -> 12345678912345 | K42: =IF('1.ข้อมูลส่วนบุคคล'!C$21="เชี่ยวชาญ",IF(H42="-","",IF(H42='1.ข้อมูลส่วนบุคคล'!F$26,"เกี่ยวข้อง","ไม่เกี่ยวข้อง")),IF('1.ข้อมูลส่วนบุคคล'!C$21="เชี่ยวชาญพิเศษ",IF(H42="-","",IF(H42='1.ข้อมูลส่วนบุคคล'!F$26,"เกี่ยวข้อง","ไม่เกี่ยวข้อง")),"")) ->  | V42: 0 | W42: 0 | Z42: 0 | AA42: 0 | AB42: ='1.ข้อมูลส่วนบุคคล'!G$32 -> 2560-07-05 | AC42: 25600705 | AD42: 00:00:00 | AE42: 19000100 | AF42: -6600605 | AG42: 0 | AH42: 0 | AI42: 0 | AJ42: 0 | AK42: 0 | AO42: 0 | AP42: =IFERROR((VLOOKUP(AO42,'2.การมอบหมายงานสอน'!$AK$5:$AL$24,2,FALSE)*60/1440),0) -> 0
A43: ='1.ข้อมูลส่วนบุคคล'!$F$5 -> 12345678912345 | K43: =IF('1.ข้อมูลส่วนบุคคล'!C$21="เชี่ยวชาญ",IF(H43="-","",IF(H43='1.ข้อมูลส่วนบุคคล'!F$26,"เกี่ยวข้อง","ไม่เกี่ยวข้อง")),IF('1.ข้อมูลส่วนบุคคล'!C$21="เชี่ยวชาญพิเศษ",IF(H43="-","",IF(H43='1.ข้อมูลส่วนบุคคล'!F$26,"เกี่ยวข้อง","ไม่เกี่ยวข้อง")),"")) ->  | V43: 0 | W43: 0 | Z43: 0 | AA43: 0 | AB43: ='1.ข้อมูลส่วนบุคคล'!G$32 -> 2560-07-05 | AC43: 25600705 | AD43: 00:00:00 | AE43: 19000100 | AF43: -6600605 | AG43: 0 | AH43: 0 | AI43: 0 | AJ43: 0 | AK43: 0 | AO43: 0 | AP43: =IFERROR((VLOOKUP(AO43,'2.การมอบหมายงานสอน'!$AK$5:$AL$24,2,FALSE)*60/1440),0) -> 0
A44: ='1.ข้อมูลส่วนบุคคล'!$F$5 -> 12345678912345 | K44: =IF('1.ข้อมูลส่วนบุคคล'!C$21="เชี่ยวชาญ",IF(H44="-","",IF(H44='1.ข้อมูลส่วนบุคคล'!F$26,"เกี่ยวข้อง","ไม่เกี่ยวข้อง")),IF('1.ข้อมูลส่วนบุคคล'!C$21="เชี่ยวชาญพิเศษ",IF(H44="-","",IF(H44='1.ข้อมูลส่วนบุคคล'!F$26,"เกี่ยวข้อง","ไม่เกี่ยวข้อง")),"")) ->  | V44: 0 | W44: 0 | Z44: 0 | AA44: 0 | AB44: ='1.ข้อมูลส่วนบุคคล'!G$32 -> 2560-07-05 | AC44: 25600705 | AD44: 00:00:00 | AE44: 19000100 | AF44: -6600605 | AG44: 0 | AH44: 0 | AI44: 0 | AJ44: 0 | AK44: 0 | AO44: 0 | AP44: =IFERROR((VLOOKUP(AO44,'2.การมอบหมายงานสอน'!$AK$5:$AL$24,2,FALSE)*60/1440),0) -> 0
A45: ='1.ข้อมูลส่วนบุคคล'!$F$5 -> 12345678912345 | K45: =IF('1.ข้อมูลส่วนบุคคล'!C$21="เชี่ยวชาญ",IF(H45="-","",IF(H45='1.ข้อมูลส่วนบุคคล'!F$26,"เกี่ยวข้อง","ไม่เกี่ยวข้อง")),IF('1.ข้อมูลส่วนบุคคล'!C$21="เชี่ยวชาญพิเศษ",IF(H45="-","",IF(H45='1.ข้อมูลส่วนบุคคล'!F$26,"เกี่ยวข้อง","ไม่เกี่ยวข้อง")),"")) ->  | V45: 0 | W45: 0 | Z45: 0 | AA45: 0 | AB45: ='1.ข้อมูลส่วนบุคคล'!G$32 -> 2560-07-05 | AC45: 25600705 | AD45: 00:00:00 | AE45: 19000100 | AF45: -6600605 | AG45: 0 | AH45: 0 | AI45: 0 | AJ45: 0 | AK45: 0 | AO45: 0 | AP45: =IFERROR((VLOOKUP(AO45,'2.การมอบหมายงานสอน'!$AK$5:$AL$24,2,FALSE)*60/1440),0) -> 0
A46: ='1.ข้อมูลส่วนบุคคล'!$F$5 -> 12345678912345 | K46: =IF('1.ข้อมูลส่วนบุคคล'!C$21="เชี่ยวชาญ",IF(H46="-","",IF(H46='1.ข้อมูลส่วนบุคคล'!F$26,"เกี่ยวข้อง","ไม่เกี่ยวข้อง")),IF('1.ข้อมูลส่วนบุคคล'!C$21="เชี่ยวชาญพิเศษ",IF(H46="-","",IF(H46='1.ข้อมูลส่วนบุคคล'!F$26,"เกี่ยวข้อง","ไม่เกี่ยวข้อง")),"")) ->  | V46: 0 | W46: 0 | Z46: 0 | AA46: 0 | AB46: ='1.ข้อมูลส่วนบุคคล'!G$32 -> 2560-07-05 | AC46: 25600705 | AD46: 00:00:00 | AE46: 19000100 | AF46: -6600605 | AG46: 0 | AH46: 0 | AI46: 0 | AJ46: 0 | AK46: 0 | AO46: 0 | AP46: =IFERROR((VLOOKUP(AO46,'2.การมอบหมายงานสอน'!$AK$5:$AL$24,2,FALSE)*60/1440),0) -> 0
A47: ='1.ข้อมูลส่วนบุคคล'!$F$5 -> 12345678912345 | K47: =IF('1.ข้อมูลส่วนบุคคล'!C$21="เชี่ยวชาญ",IF(H47="-","",IF(H47='1.ข้อมูลส่วนบุคคล'!F$26,"เกี่ยวข้อง","ไม่เกี่ยวข้อง")),IF('1.ข้อมูลส่วนบุคคล'!C$21="เชี่ยวชาญพิเศษ",IF(H47="-","",IF(H47='1.ข้อมูลส่วนบุคคล'!F$26,"เกี่ยวข้อง","ไม่เกี่ยวข้อง")),"")) ->  | V47: 0 | W47: 0 | Z47: 0 | AA47: 0 | AB47: ='1.ข้อมูลส่วนบุคคล'!G$32 -> 2560-07-05 | AC47: 25600705 | AD47: 00:00:00 | AE47: 19000100 | AF47: -6600605 | AG47: 0 | AH47: 0 | AI47: 0 | AJ47: 0 | AK47: 0 | AO47: 0 | AP47: =IFERROR((VLOOKUP(AO47,'2.การมอบหมายงานสอน'!$AK$5:$AL$24,2,FALSE)*60/1440),0) -> 0
A48: ='1.ข้อมูลส่วนบุคคล'!$F$5 -> 12345678912345 | K48: =IF('1.ข้อมูลส่วนบุคคล'!C$21="เชี่ยวชาญ",IF(H48="-","",IF(H48='1.ข้อมูลส่วนบุคคล'!F$26,"เกี่ยวข้อง","ไม่เกี่ยวข้อง")),IF('1.ข้อมูลส่วนบุคคล'!C$21="เชี่ยวชาญพิเศษ",IF(H48="-","",IF(H48='1.ข้อมูลส่วนบุคคล'!F$26,"เกี่ยวข้อง","ไม่เกี่ยวข้อง")),"")) ->  | V48: 0 | W48: 0 | Z48: 0 | AA48: 0 | AB48: ='1.ข้อมูลส่วนบุคคล'!G$32 -> 2560-07-05 | AC48: 25600705 | AD48: 00:00:00 | AE48: 19000100 | AF48: -6600605 | AG48: 0 | AH48: 0 | AI48: 0 | AJ48: 0 | AK48: 0 | AO48: 0 | AP48: =IFERROR((VLOOKUP(AO48,'2.การมอบหมายงานสอน'!$AK$5:$AL$24,2,FALSE)*60/1440),0) -> 0
A49: ='1.ข้อมูลส่วนบุคคล'!$F$5 -> 12345678912345 | K49: =IF('1.ข้อมูลส่วนบุคคล'!C$21="เชี่ยวชาญ",IF(H49="-","",IF(H49='1.ข้อมูลส่วนบุคคล'!F$26,"เกี่ยวข้อง","ไม่เกี่ยวข้อง")),IF('1.ข้อมูลส่วนบุคคล'!C$21="เชี่ยวชาญพิเศษ",IF(H49="-","",IF(H49='1.ข้อมูลส่วนบุคคล'!F$26,"เกี่ยวข้อง","ไม่เกี่ยวข้อง")),"")) ->  | V49: 0 | W49: 0 | Z49: 0 | AA49: 0 | AB49: ='1.ข้อมูลส่วนบุคคล'!G$32 -> 2560-07-05 | AC49: 25600705 | AD49: 00:00:00 | AE49: 19000100 | AF49: -6600605 | AG49: 0 | AH49: 0 | AI49: 0 | AJ49: 0 | AK49: 0 | AO49: 0 | AP49: =IFERROR((VLOOKUP(AO49,'2.การมอบหมายงานสอน'!$AK$5:$AL$24,2,FALSE)*60/1440),0) -> 0
A50: ='1.ข้อมูลส่วนบุคคล'!$F$5 -> 12345678912345 | K50: =IF('1.ข้อมูลส่วนบุคคล'!C$21="เชี่ยวชาญ",IF(H50="-","",IF(H50='1.ข้อมูลส่วนบุคคล'!F$26,"เกี่ยวข้อง","ไม่เกี่ยวข้อง")),IF('1.ข้อมูลส่วนบุคคล'!C$21="เชี่ยวชาญพิเศษ",IF(H50="-","",IF(H50='1.ข้อมูลส่วนบุคคล'!F$26,"เกี่ยวข้อง","ไม่เกี่ยวข้อง")),"")) ->  | V50: 0 | W50: 0 | Z50: 0 | AA50: 0 | AB50: ='1.ข้อมูลส่วนบุคคล'!G$32 -> 2560-07-05 | AC50: 25600705 | AD50: 00:00:00 | AE50: 19000100 | AF50: -6600605 | AG50: 0 | AH50: 0 | AI50: 0 | AJ50: 0 | AK50: 0 | AO50: 0 | AP50: =IFERROR((VLOOKUP(AO50,'2.การมอบหมายงานสอน'!$AK$5:$AL$24,2,FALSE)*60/1440),0) -> 0
A51: ='1.ข้อมูลส่วนบุคคล'!$F$5 -> 12345678912345 | K51: =IF('1.ข้อมูลส่วนบุคคล'!C$21="เชี่ยวชาญ",IF(H51="-","",IF(H51='1.ข้อมูลส่วนบุคคล'!F$26,"เกี่ยวข้อง","ไม่เกี่ยวข้อง")),IF('1.ข้อมูลส่วนบุคคล'!C$21="เชี่ยวชาญพิเศษ",IF(H51="-","",IF(H51='1.ข้อมูลส่วนบุคคล'!F$26,"เกี่ยวข้อง","ไม่เกี่ยวข้อง")),"")) ->  | V51: 0 | W51: 0 | Z51: 0 | AA51: 0 | AB51: ='1.ข้อมูลส่วนบุคคล'!G$32 -> 2560-07-05 | AC51: 25600705 | AD51: 00:00:00 | AE51: 19000100 | AF51: -6600605 | AG51: 0 | AH51: 0 | AI51: 0 | AJ51: 0 | AK51: 0 | AO51: 0 | AP51: =IFERROR((VLOOKUP(AO51,'2.การมอบหมายงานสอน'!$AK$5:$AL$24,2,FALSE)*60/1440),0) -> 0
A52: ='1.ข้อมูลส่วนบุคคล'!$F$5 -> 12345678912345 | K52: =IF('1.ข้อมูลส่วนบุคคล'!C$21="เชี่ยวชาญ",IF(H52="-","",IF(H52='1.ข้อมูลส่วนบุคคล'!F$26,"เกี่ยวข้อง","ไม่เกี่ยวข้อง")),IF('1.ข้อมูลส่วนบุคคล'!C$21="เชี่ยวชาญพิเศษ",IF(H52="-","",IF(H52='1.ข้อมูลส่วนบุคคล'!F$26,"เกี่ยวข้อง","ไม่เกี่ยวข้อง")),"")) ->  | T52: =B52&+E52&+I52 ->  | V52: 0 | W52: 0 | Z52: 0 | AA52: 0 | AB52: ='1.ข้อมูลส่วนบุคคล'!G$32 -> 2560-07-05 | AC52: 25600705 | AD52: 00:00:00 | AE52: 19000100 | AF52: -6600605 | AG52: 0 | AH52: 0 | AI52: 0 | AJ52: 0 | AK52: 0 | AO52: 0 | AP52: =IFERROR((VLOOKUP(AO52,'2.การมอบหมายงานสอน'!$AK$5:$AL$24,2,FALSE)*60/1440),0) -> 0
A53: ='1.ข้อมูลส่วนบุคคล'!$F$5 -> 12345678912345 | K53: =IF('1.ข้อมูลส่วนบุคคล'!C$21="เชี่ยวชาญ",IF(H53="-","",IF(H53='1.ข้อมูลส่วนบุคคล'!F$26,"เกี่ยวข้อง","ไม่เกี่ยวข้อง")),IF('1.ข้อมูลส่วนบุคคล'!C$21="เชี่ยวชาญพิเศษ",IF(H53="-","",IF(H53='1.ข้อมูลส่วนบุคคล'!F$26,"เกี่ยวข้อง","ไม่เกี่ยวข้อง")),"")) ->  | T53: =B53&+E53 ->  | V53: 0 | W53: 0 | Z53: 0 | AA53: 0 | AB53: ='1.ข้อมูลส่วนบุคคล'!G$32 -> 2560-07-05 | AC53: 25600705 | AD53: 00:00:00 | AE53: 19000100 | AF53: -6600605 | AG53: 0 | AH53: 0 | AI53: 0 | AJ53: 0 | AK53: 0 | AO53: 0 | AP53: =IFERROR((VLOOKUP(AO53,'2.การมอบหมายงานสอน'!$AK$5:$AL$24,2,FALSE)*60/1440),0) -> 0
A54: ='1.ข้อมูลส่วนบุคคล'!$F$5 -> 12345678912345 | K54: =IF('1.ข้อมูลส่วนบุคคล'!C$21="เชี่ยวชาญ",IF(H54="-","",IF(H54='1.ข้อมูลส่วนบุคคล'!F$26,"เกี่ยวข้อง","ไม่เกี่ยวข้อง")),IF('1.ข้อมูลส่วนบุคคล'!C$21="เชี่ยวชาญพิเศษ",IF(H54="-","",IF(H54='1.ข้อมูลส่วนบุคคล'!F$26,"เกี่ยวข้อง","ไม่เกี่ยวข้อง")),"")) ->  | V54: 0 | W54: 0 | Z54: 0 | AA54: 0 | AB54: ='1.ข้อมูลส่วนบุคคล'!G$32 -> 2560-07-05 | AC54: 25600705 | AD54: 00:00:00 | AE54: 19000100 | AF54: -6600605 | AG54: 0 | AH54: 0 | AI54: 0 | AJ54: 0 | AK54: 0 | AO54: 0 | AP54: =IFERROR((VLOOKUP(AO54,'2.การมอบหมายงานสอน'!$AK$5:$AL$24,2,FALSE)*60/1440),0) -> 0
A55: ='1.ข้อมูลส่วนบุคคล'!$F$5 -> 12345678912345 | K55: =IF('1.ข้อมูลส่วนบุคคล'!C$21="เชี่ยวชาญ",IF(H55="-","",IF(H55='1.ข้อมูลส่วนบุคคล'!F$26,"เกี่ยวข้อง","ไม่เกี่ยวข้อง")),IF('1.ข้อมูลส่วนบุคคล'!C$21="เชี่ยวชาญพิเศษ",IF(H55="-","",IF(H55='1.ข้อมูลส่วนบุคคล'!F$26,"เกี่ยวข้อง","ไม่เกี่ยวข้อง")),"")) ->  | V55: 0 | W55: 0 | Z55: 0 | AA55: 0 | AB55: ='1.ข้อมูลส่วนบุคคล'!G$32 -> 2560-07-05 | AC55: 25600705 | AD55: 00:00:00 | AE55: 19000100 | AF55: -6600605 | AG55: 0 | AH55: 0 | AI55: 0 | AJ55: 0 | AK55: 0 | AO55: 0 | AP55: =IFERROR((VLOOKUP(AO55,'2.การมอบหมายงานสอน'!$AK$5:$AL$24,2,FALSE)*60/1440),0) -> 0
A56: ='1.ข้อมูลส่วนบุคคล'!$F$5 -> 12345678912345 | K56: =IF('1.ข้อมูลส่วนบุคคล'!C$21="เชี่ยวชาญ",IF(H56="-","",IF(H56='1.ข้อมูลส่วนบุคคล'!F$26,"เกี่ยวข้อง","ไม่เกี่ยวข้อง")),IF('1.ข้อมูลส่วนบุคคล'!C$21="เชี่ยวชาญพิเศษ",IF(H56="-","",IF(H56='1.ข้อมูลส่วนบุคคล'!F$26,"เกี่ยวข้อง","ไม่เกี่ยวข้อง")),"")) ->  | V56: 0 | W56: 0 | Z56: 0 | AA56: 0 | AB56: ='1.ข้อมูลส่วนบุคคล'!G$32 -> 2560-07-05 | AC56: 25600705 | AD56: 00:00:00 | AE56: 19000100 | AF56: -6600605 | AG56: 0 | AH56: 0 | AI56: 0 | AJ56: 0 | AK56: 0 | AO56: 0 | AP56: =IFERROR((VLOOKUP(AO56,'2.การมอบหมายงานสอน'!$AK$5:$AL$24,2,FALSE)*60/1440),0) -> 0
A57: ='1.ข้อมูลส่วนบุคคล'!$F$5 -> 12345678912345 | K57: =IF('1.ข้อมูลส่วนบุคคล'!C$21="เชี่ยวชาญ",IF(H57="-","",IF(H57='1.ข้อมูลส่วนบุคคล'!F$26,"เกี่ยวข้อง","ไม่เกี่ยวข้อง")),IF('1.ข้อมูลส่วนบุคคล'!C$21="เชี่ยวชาญพิเศษ",IF(H57="-","",IF(H57='1.ข้อมูลส่วนบุคคล'!F$26,"เกี่ยวข้อง","ไม่เกี่ยวข้อง")),"")) ->  | V57: 0 | W57: 0 | Z57: 0 | AA57: 0 | AB57: ='1.ข้อมูลส่วนบุคคล'!G$32 -> 2560-07-05 | AC57: 25600705 | AD57: 00:00:00 | AE57: 19000100 | AF57: -6600605 | AG57: 0 | AH57: 0 | AI57: 0 | AJ57: 0 | AK57: 0 | AO57: 0 | AP57: =IFERROR((VLOOKUP(AO57,'2.การมอบหมายงานสอน'!$AK$5:$AL$24,2,FALSE)*60/1440),0) -> 0
A58: ='1.ข้อมูลส่วนบุคคล'!$F$5 -> 12345678912345 | K58: =IF('1.ข้อมูลส่วนบุคคล'!C$21="เชี่ยวชาญ",IF(H58="-","",IF(H58='1.ข้อมูลส่วนบุคคล'!F$26,"เกี่ยวข้อง","ไม่เกี่ยวข้อง")),IF('1.ข้อมูลส่วนบุคคล'!C$21="เชี่ยวชาญพิเศษ",IF(H58="-","",IF(H58='1.ข้อมูลส่วนบุคคล'!F$26,"เกี่ยวข้อง","ไม่เกี่ยวข้อง")),"")) ->  | V58: 0 | W58: 0 | Z58: 0 | AA58: 0 | AB58: ='1.ข้อมูลส่วนบุคคล'!G$32 -> 2560-07-05 | AC58: 25600705 | AD58: 00:00:00 | AE58: 19000100 | AF58: -6600605 | AG58: 0 | AH58: 0 | AI58: 0 | AJ58: 0 | AK58: 0 | AO58: 0 | AP58: =IFERROR((VLOOKUP(AO58,'2.การมอบหมายงานสอน'!$AK$5:$AL$24,2,FALSE)*60/1440),0) -> 0
A59: ='1.ข้อมูลส่วนบุคคล'!$F$5 -> 12345678912345 | K59: =IF('1.ข้อมูลส่วนบุคคล'!C$21="เชี่ยวชาญ",IF(H59="-","",IF(H59='1.ข้อมูลส่วนบุคคล'!F$26,"เกี่ยวข้อง","ไม่เกี่ยวข้อง")),IF('1.ข้อมูลส่วนบุคคล'!C$21="เชี่ยวชาญพิเศษ",IF(H59="-","",IF(H59='1.ข้อมูลส่วนบุคคล'!F$26,"เกี่ยวข้อง","ไม่เกี่ยวข้อง")),"")) ->  | V59: 0 | W59: 0 | Z59: 0 | AA59: 0 | AB59: ='1.ข้อมูลส่วนบุคคล'!G$32 -> 2560-07-05 | AC59: 25600705 | AD59: 00:00:00 | AE59: 19000100 | AF59: -6600605 | AG59: 0 | AH59: 0 | AI59: 0 | AJ59: 0 | AK59: 0 | AO59: 0 | AP59: =IFERROR((VLOOKUP(AO59,'2.การมอบหมายงานสอน'!$AK$5:$AL$24,2,FALSE)*60/1440),0) -> 0
A60: ='1.ข้อมูลส่วนบุคคล'!$F$5 -> 12345678912345 | K60: =IF('1.ข้อมูลส่วนบุคคล'!C$21="เชี่ยวชาญ",IF(H60="-","",IF(H60='1.ข้อมูลส่วนบุคคล'!F$26,"เกี่ยวข้อง","ไม่เกี่ยวข้อง")),IF('1.ข้อมูลส่วนบุคคล'!C$21="เชี่ยวชาญพิเศษ",IF(H60="-","",IF(H60='1.ข้อมูลส่วนบุคคล'!F$26,"เกี่ยวข้อง","ไม่เกี่ยวข้อง")),"")) ->  | V60: 0 | W60: 0 | Z60: 0 | AA60: 0 | AB60: ='1.ข้อมูลส่วนบุคคล'!G$32 -> 2560-07-05 | AC60: 25600705 | AD60: 00:00:00 | AE60: 19000100 | AF60: -6600605 | AG60: 0 | AH60: 0 | AI60: 0 | AJ60: 0 | AK60: 0 | AO60: 0 | AP60: =IFERROR((VLOOKUP(AO60,'2.การมอบหมายงานสอน'!$AK$5:$AL$24,2,FALSE)*60/1440),0) -> 0
A61: ='1.ข้อมูลส่วนบุคคล'!$F$5 -> 12345678912345 | K61: =IF('1.ข้อมูลส่วนบุคคล'!C$21="เชี่ยวชาญ",IF(H61="-","",IF(H61='1.ข้อมูลส่วนบุคคล'!F$26,"เกี่ยวข้อง","ไม่เกี่ยวข้อง")),IF('1.ข้อมูลส่วนบุคคล'!C$21="เชี่ยวชาญพิเศษ",IF(H61="-","",IF(H61='1.ข้อมูลส่วนบุคคล'!F$26,"เกี่ยวข้อง","ไม่เกี่ยวข้อง")),"")) ->  | V61: 0 | W61: 0 | Z61: 0 | AA61: 0 | AB61: ='1.ข้อมูลส่วนบุคคล'!G$32 -> 2560-07-05 | AC61: 25600705 | AD61: 00:00:00 | AE61: 19000100 | AF61: -6600605 | AG61: 0 | AH61: 0 | AI61: 0 | AJ61: 0 | AK61: 0 | AO61: 0 | AP61: =IFERROR((VLOOKUP(AO61,'2.การมอบหมายงานสอน'!$AK$5:$AL$24,2,FALSE)*60/1440),0) -> 0
A62: ='1.ข้อมูลส่วนบุคคล'!$F$5 -> 12345678912345 | K62: =IF('1.ข้อมูลส่วนบุคคล'!C$21="เชี่ยวชาญ",IF(H62="-","",IF(H62='1.ข้อมูลส่วนบุคคล'!F$26,"เกี่ยวข้อง","ไม่เกี่ยวข้อง")),IF('1.ข้อมูลส่วนบุคคล'!C$21="เชี่ยวชาญพิเศษ",IF(H62="-","",IF(H62='1.ข้อมูลส่วนบุคคล'!F$26,"เกี่ยวข้อง","ไม่เกี่ยวข้อง")),"")) ->  | V62: 0 | W62: 0 | Z62: 0 | AA62: 0 | AB62: ='1.ข้อมูลส่วนบุคคล'!G$32 -> 2560-07-05 | AC62: 25600705 | AD62: 00:00:00 | AE62: 19000100 | AF62: -6600605 | AG62: 0 | AH62: 0 | AI62: 0 | AJ62: 0 | AK62: 0 | AO62: 0 | AP62: =IFERROR((VLOOKUP(AO62,'2.การมอบหมายงานสอน'!$AK$5:$AL$24,2,FALSE)*60/1440),0) -> 0
A63: ='1.ข้อมูลส่วนบุคคล'!$F$5 -> 12345678912345 | K63: =IF('1.ข้อมูลส่วนบุคคล'!C$21="เชี่ยวชาญ",IF(H63="-","",IF(H63='1.ข้อมูลส่วนบุคคล'!F$26,"เกี่ยวข้อง","ไม่เกี่ยวข้อง")),IF('1.ข้อมูลส่วนบุคคล'!C$21="เชี่ยวชาญพิเศษ",IF(H63="-","",IF(H63='1.ข้อมูลส่วนบุคคล'!F$26,"เกี่ยวข้อง","ไม่เกี่ยวข้อง")),"")) ->  | V63: 0 | W63: 0 | Z63: 0 | AA63: 0 | AB63: ='1.ข้อมูลส่วนบุคคล'!G$32 -> 2560-07-05 | AC63: 25600705 | AD63: 00:00:00 | AE63: 19000100 | AF63: -6600605 | AG63: 0 | AH63: 0 | AI63: 0 | AJ63: 0 | AK63: 0 | AO63: 0 | AP63: =IFERROR((VLOOKUP(AO63,'2.การมอบหมายงานสอน'!$AK$5:$AL$24,2,FALSE)*60/1440),0) -> 0
A64: ='1.ข้อมูลส่วนบุคคล'!$F$5 -> 12345678912345 | K64: =IF('1.ข้อมูลส่วนบุคคล'!C$21="เชี่ยวชาญ",IF(H64="-","",IF(H64='1.ข้อมูลส่วนบุคคล'!F$26,"เกี่ยวข้อง","ไม่เกี่ยวข้อง")),IF('1.ข้อมูลส่วนบุคคล'!C$21="เชี่ยวชาญพิเศษ",IF(H64="-","",IF(H64='1.ข้อมูลส่วนบุคคล'!F$26,"เกี่ยวข้อง","ไม่เกี่ยวข้อง")),"")) ->  | V64: 0 | W64: 0 | Z64: 0 | AA64: 0 | AB64: ='1.ข้อมูลส่วนบุคคล'!G$32 -> 2560-07-05 | AC64: 25600705 | AD64: 00:00:00 | AE64: 19000100 | AF64: -6600605 | AG64: 0 | AH64: 0 | AI64: 0 | AJ64: 0 | AK64: 0 | AO64: 0 | AP64: =IFERROR((VLOOKUP(AO64,'2.การมอบหมายงานสอน'!$AK$5:$AL$24,2,FALSE)*60/1440),0) -> 0
A65: ='1.ข้อมูลส่วนบุคคล'!$F$5 -> 12345678912345 | K65: =IF('1.ข้อมูลส่วนบุคคล'!C$21="เชี่ยวชาญ",IF(H65="-","",IF(H65='1.ข้อมูลส่วนบุคคล'!F$26,"เกี่ยวข้อง","ไม่เกี่ยวข้อง")),IF('1.ข้อมูลส่วนบุคคล'!C$21="เชี่ยวชาญพิเศษ",IF(H65="-","",IF(H65='1.ข้อมูลส่วนบุคคล'!F$26,"เกี่ยวข้อง","ไม่เกี่ยวข้อง")),"")) ->  | V65: 0 | W65: 0 | Z65: 0 | AA65: 0 | AB65: ='1.ข้อมูลส่วนบุคคล'!G$32 -> 2560-07-05 | AC65: 25600705 | AD65: 00:00:00 | AE65: 19000100 | AF65: -6600605 | AG65: 0 | AH65: 0 | AI65: 0 | AJ65: 0 | AK65: 0 | AO65: 0 | AP65: =IFERROR((VLOOKUP(AO65,'2.การมอบหมายงานสอน'!$AK$5:$AL$24,2,FALSE)*60/1440),0) -> 0
A66: ='1.ข้อมูลส่วนบุคคล'!$F$5 -> 12345678912345 | K66: =IF('1.ข้อมูลส่วนบุคคล'!C$21="เชี่ยวชาญ",IF(H66="-","",IF(H66='1.ข้อมูลส่วนบุคคล'!F$26,"เกี่ยวข้อง","ไม่เกี่ยวข้อง")),IF('1.ข้อมูลส่วนบุคคล'!C$21="เชี่ยวชาญพิเศษ",IF(H66="-","",IF(H66='1.ข้อมูลส่วนบุคคล'!F$26,"เกี่ยวข้อง","ไม่เกี่ยวข้อง")),"")) ->  | V66: 0 | W66: 0 | Z66: 0 | AA66: 0 | AB66: ='1.ข้อมูลส่วนบุคคล'!G$32 -> 2560-07-05 | AC66: 25600705 | AD66: 00:00:00 | AE66: 19000100 | AF66: -6600605 | AG66: 0 | AH66: 0 | AI66: 0 | AJ66: 0 | AK66: 0 | AO66: 0 | AP66: =IFERROR((VLOOKUP(AO66,'2.การมอบหมายงานสอน'!$AK$5:$AL$24,2,FALSE)*60/1440),0) -> 0
A67: ='1.ข้อมูลส่วนบุคคล'!$F$5 -> 12345678912345 | K67: =IF('1.ข้อมูลส่วนบุคคล'!C$21="เชี่ยวชาญ",IF(H67="-","",IF(H67='1.ข้อมูลส่วนบุคคล'!F$26,"เกี่ยวข้อง","ไม่เกี่ยวข้อง")),IF('1.ข้อมูลส่วนบุคคล'!C$21="เชี่ยวชาญพิเศษ",IF(H67="-","",IF(H67='1.ข้อมูลส่วนบุคคล'!F$26,"เกี่ยวข้อง","ไม่เกี่ยวข้อง")),"")) ->  | V67: 0 | W67: 0 | Z67: 0 | AA67: 0 | AB67: ='1.ข้อมูลส่วนบุคคล'!G$32 -> 2560-07-05 | AC67: 25600705 | AD67: 00:00:00 | AE67: 19000100 | AF67: -6600605 | AG67: 0 | AH67: 0 | AI67: 0 | AJ67: 0 | AK67: 0 | AO67: 0 | AP67: =IFERROR((VLOOKUP(AO67,'2.การมอบหมายงานสอน'!$AK$5:$AL$24,2,FALSE)*60/1440),0) -> 0
A68: ='1.ข้อมูลส่วนบุคคล'!$F$5 -> 12345678912345 | K68: =IF('1.ข้อมูลส่วนบุคคล'!C$21="เชี่ยวชาญ",IF(H68="-","",IF(H68='1.ข้อมูลส่วนบุคคล'!F$26,"เกี่ยวข้อง","ไม่เกี่ยวข้อง")),IF('1.ข้อมูลส่วนบุคคล'!C$21="เชี่ยวชาญพิเศษ",IF(H68="-","",IF(H68='1.ข้อมูลส่วนบุคคล'!F$26,"เกี่ยวข้อง","ไม่เกี่ยวข้อง")),"")) ->  | V68: 0 | W68: 0 | Z68: 0 | AA68: 0 | AB68: ='1.ข้อมูลส่วนบุคคล'!G$32 -> 2560-07-05 | AC68: 25600705 | AD68: 00:00:00 | AE68: 19000100 | AF68: -6600605 | AG68: 0 | AH68: 0 | AI68: 0 | AJ68: 0 | AK68: 0 | AO68: 0 | AP68: =IFERROR((VLOOKUP(AO68,'2.การมอบหมายงานสอน'!$AK$5:$AL$24,2,FALSE)*60/1440),0) -> 0
A69: ='1.ข้อมูลส่วนบุคคล'!$F$5 -> 12345678912345 | K69: =IF('1.ข้อมูลส่วนบุคคล'!C$21="เชี่ยวชาญ",IF(H69="-","",IF(H69='1.ข้อมูลส่วนบุคคล'!F$26,"เกี่ยวข้อง","ไม่เกี่ยวข้อง")),IF('1.ข้อมูลส่วนบุคคล'!C$21="เชี่ยวชาญพิเศษ",IF(H69="-","",IF(H69='1.ข้อมูลส่วนบุคคล'!F$26,"เกี่ยวข้อง","ไม่เกี่ยวข้อง")),"")) ->  | V69: 0 | W69: 0 | Z69: 0 | AA69: 0 | AB69: ='1.ข้อมูลส่วนบุคคล'!G$32 -> 2560-07-05 | AC69: 25600705 | AD69: 00:00:00 | AE69: 19000100 | AF69: -6600605 | AG69: 0 | AH69: 0 | AI69: 0 | AJ69: 0 | AK69: 0 | AO69: 0 | AP69: =IFERROR((VLOOKUP(AO69,'2.การมอบหมายงานสอน'!$AK$5:$AL$24,2,FALSE)*60/1440),0) -> 0
A70: ='1.ข้อมูลส่วนบุคคล'!$F$5 -> 12345678912345 | K70: =IF('1.ข้อมูลส่วนบุคคล'!C$21="เชี่ยวชาญ",IF(H70="-","",IF(H70='1.ข้อมูลส่วนบุคคล'!F$26,"เกี่ยวข้อง","ไม่เกี่ยวข้อง")),IF('1.ข้อมูลส่วนบุคคล'!C$21="เชี่ยวชาญพิเศษ",IF(H70="-","",IF(H70='1.ข้อมูลส่วนบุคคล'!F$26,"เกี่ยวข้อง","ไม่เกี่ยวข้อง")),"")) ->  | V70: 0 | W70: 0 | Z70: 0 | AA70: 0 | AB70: ='1.ข้อมูลส่วนบุคคล'!G$32 -> 2560-07-05 | AC70: 25600705 | AD70: 00:00:00 | AE70: 19000100 | AF70: -6600605 | AG70: 0 | AH70: 0 | AI70: 0 | AJ70: 0 | AK70: 0 | AO70: 0 | AP70: =IFERROR((VLOOKUP(AO70,'2.การมอบหมายงานสอน'!$AK$5:$AL$24,2,FALSE)*60/1440),0) -> 0
A71: ='1.ข้อมูลส่วนบุคคล'!$F$5 -> 12345678912345 | K71: =IF('1.ข้อมูลส่วนบุคคล'!C$21="เชี่ยวชาญ",IF(H71="-","",IF(H71='1.ข้อมูลส่วนบุคคล'!F$26,"เกี่ยวข้อง","ไม่เกี่ยวข้อง")),IF('1.ข้อมูลส่วนบุคคล'!C$21="เชี่ยวชาญพิเศษ",IF(H71="-","",IF(H71='1.ข้อมูลส่วนบุคคล'!F$26,"เกี่ยวข้อง","ไม่เกี่ยวข้อง")),"")) ->  | U71: =IF(LEFT(Q71,3)="ไม่",0,IF(L71="","",B71)) ->  | V71: =IF(K71="เกี่ยวข้อง",1,0) -> 0 | W71: 0 | Z71: 0 | AA71: 0 | AB71: ='1.ข้อมูลส่วนบุคคล'!G$32 -> 2560-07-05 | AC71: 25600705 | AD71: 00:00:00 | AE71: 19000100 | AF71: -6600605 | AG71: 0 | AH71: 0 | AI71: 0 | AJ71: 0 | AK71: =IF(O71="สอนซ่อมเสริม",1,0) -> 0 | AL71: =B71&+D71&+E71&+Q71 ->  | AM71: =C71&+D71 ->  | AO71: =C71*10+D71 -> 0 | AP71: =IFERROR((VLOOKUP(AO71,'2.การมอบหมายงานสอน'!$AK$5:$AL$24,2,FALSE)*60/1440),0) -> 0
A72: ='1.ข้อมูลส่วนบุคคล'!$F$5 -> 12345678912345 | B72: =IF(AF72<0,"",IF(AND(AD72>=AB72,AD72<DATE(YEAR(AB72)+1,MONTH(AB72),DAY(AB72))),1,IF(AND(AD72>=DATE(YEAR(AB72)+1,MONTH(AB72),DAY(AB72)),AD72<DATE(YEAR(AB72)+2,MONTH(AB72),DAY(AB72))),2,IF(AND(AD72>=DATE(YEAR(AB72)+2,MONTH(AB72),DAY(AB72)),AD72<DATE(YEAR(AB72)+3,MONTH(AB72),DAY(AB72))),3,IF(AND(AD72>=DATE(YEAR(AB72)+3,MONTH(AB72),DAY(AB72)),AD72<DATE(YEAR(AB72)+4,MONTH(AB72),DAY(AB72))),4,IF(AND(AD72>=DATE(YEAR(AB72)+4,MONTH(AB72),DAY(AB72)),AD72<DATE(YEAR(AB72)+5,MONTH(AB72),DAY(AB72))),5,IF(AND(AD72>=DATE(YEAR(AB72)+5,MONTH(AB72),DAY(AB72)),AD72<DATE(YEAR(AB72)+6,MONTH(AB72),DAY(AB72))),6,IF(AND(AD72>=DATE(YEAR(AB72)+6,MONTH(AB72),DAY(AB72)),AD72<DATE(YEAR(AB72)+7,MONTH(AB72),DAY(AB72))),7,IF(AND(AD72>=DATE(YEAR(AB72)+7,MONTH(AB72),DAY(AB72)),AD72<DATE(YEAR(AB72)+8,MONTH(AB72),DAY(AB72))),8,IF(AND(AD72>=DATE(YEAR(AB72)+8,MONTH(AB72),DAY(AB72)),AD72<DATE(YEAR(AB72)+9,MONTH(AB72),DAY(AB72))),9,IF(AND(AD72>=DATE(YEAR(AB72)+9,MONTH(AB72),DAY(AB72)),AD72<DATE(YEAR(AB72)+100,MONTH(AB72),DAY(AB72))),10,0))))))))))) ->  | K72: =IF('1.ข้อมูลส่วนบุคคล'!C$21="เชี่ยวชาญ",IF(H72="-","",IF(H72='1.ข้อมูลส่วนบุคคล'!F$26,"เกี่ยวข้อง","ไม่เกี่ยวข้อง")),IF('1.ข้อมูลส่วนบุคคล'!C$21="เชี่ยวชาญพิเศษ",IF(H72="-","",IF(H72='1.ข้อมูลส่วนบุคคล'!F$26,"เกี่ยวข้อง","ไม่เกี่ยวข้อง")),"")) ->  | R72: =S72 ->  | S72: =IF(C72<>"","3-"&+C72&+D72&+E72&+J72&+"..."&+LEFT(I72,20),"") ->  | V72: 0 | W72: 0 | Z72: =IF(Q72="ไม่ถูกต้อง",0,IF(N72="นาที",(L72*M72)/1440,(L72*M72*60)/1440)) -> 0 | AA72: =IF(ISBLANK(E72),0,IF(ISBLANK(D72),IF(AND(C72=C71,E72=E71),0,IF(AND(C72=C71,E72=(E71+1)),0,IF(AND(C72=(C71+1),E72=1,E71>=18),0,1))),IF(AND(C72=C71,D72=D71,E72=E71),0,IF(AND(C72=C71,D72=D71,E72=(E71+1)),0,IF(AND(C72=C71,D72=(D71+1),E72=1,E71>=18),0,IF(AND(C72=(C71+1),D72=1,E72=1,E71>=18),0,1)))))) -> 0 | AB72: ='1.ข้อมูลส่วนบุคคล'!G$32 -> 2560-07-05 | AC72: =TEXT(AB72,"yyyy")&+IF(TEXT(AB72,"mm")>9,TEXT(AB72,"mm"),"0"&+TEXT(AB72,"mm"))&+IF(TEXT(AB72,"dd")>9,TEXT(AB72,"dd"),"0"&+TEXT(AB72,"dd")) -> 25600705 | AD72: =G72 -> 00:00:00 | AE72: =TEXT(AD72,"yyyy")&+IF(TEXT(AD72,"mm")>9,TEXT(AD72,"mm"),"0"&+TEXT(AD72,"mm"))&+IF(TEXT(AD72,"dd")>9,TEXT(AD72,"dd"),"0"&+TEXT(AD72,"dd")) -> 19000100 | AF72: =AE72-AC72 -> -6600605 | AG72: =IF(LEFT(P72,1)="5",1,0) -> 0 | AH72: =IF(AG72=1,IF(IF(AN72=AN71,0,AP72-IF(AND(LEFT(Q72,3)<>"ไม่",AK72=0),SUMIFS(Z72:Z122,AN72:AN122,AN72,AK72:AK122,0),0))<0,0,IF(AN72=AN71,0,AP72-IF(AND(LEFT(Q72,3)<>"ไม่",AK72=0),SUMIFS(Z72:Z122,AN72:AN122,AN72,AK72:AK122,0),0))),0) -> 0 | AI72: 0 | AJ72: =IF(IFERROR(VLOOKUP(AO72,AQ$7:AS$26,3,FALSE),0)-IFERROR(VLOOKUP(AO72,AQ$7:AS$26,2,FALSE),0)<0,1,0) -> 0 | AK72: 0 | AN72: =C72&+D72&+E72 ->  | AO72: 0 | AP72: =IFERROR((VLOOKUP(AO72,'2.การมอบหมายงานสอน'!$AK$5:$AL$24,2,FALSE)*60/1440),0) -> 0
A73: ='1.ข้อมูลส่วนบุคคล'!$F$5 -> 12345678912345 | K73: =IF('1.ข้อมูลส่วนบุคคล'!C$21="เชี่ยวชาญ",IF(H73="-","",IF(H73='1.ข้อมูลส่วนบุคคล'!F$26,"เกี่ยวข้อง","ไม่เกี่ยวข้อง")),IF('1.ข้อมูลส่วนบุคคล'!C$21="เชี่ยวชาญพิเศษ",IF(H73="-","",IF(H73='1.ข้อมูลส่วนบุคคล'!F$26,"เกี่ยวข้อง","ไม่เกี่ยวข้อง")),"")) ->  | V73: 0 | W73: =IF(AN73=AN72,0,IF(OR(LEFT(Q73,3)="ไม่",Q73=""),"",IF(OR(LEFT(P73,1)="1",LEFT(P73,1)="2",LEFT(P73,1)="3",LEFT(P73,1)="4",LEFT(P73,1)="5"),0,IF(SUMIFS(Z73:Z123,AL73:AL123,B73&+D73&+E73&+"ถูกต้อง",AK73:AK123,0)<AP73,1,0)))) -> 0 | Z73: 0 | AA73: 0 | AB73: ='1.ข้อมูลส่วนบุคคล'!G$32 -> 2560-07-05 | AC73: 25600705 | AD73: 00:00:00 | AE73: 19000100 | AF73: -6600605 | AG73: 0 | AH73: 0 | AI73: 0 | AJ73: 0 | AK73: 0 | AO73: 0 | AP73: =IFERROR((VLOOKUP(AO73,'2.การมอบหมายงานสอน'!$AK$5:$AL$24,2,FALSE)*60/1440),0) -> 0
A74: ='1.ข้อมูลส่วนบุคคล'!$F$5 -> 12345678912345 | K74: =IF('1.ข้อมูลส่วนบุคคล'!C$21="เชี่ยวชาญ",IF(H74="-","",IF(H74='1.ข้อมูลส่วนบุคคล'!F$26,"เกี่ยวข้อง","ไม่เกี่ยวข้อง")),IF('1.ข้อมูลส่วนบุคคล'!C$21="เชี่ยวชาญพิเศษ",IF(H74="-","",IF(H74='1.ข้อมูลส่วนบุคคล'!F$26,"เกี่ยวข้อง","ไม่เกี่ยวข้อง")),"")) ->  | V74: 0 | W74: 0 | Z74: 0 | AA74: 0 | AB74: ='1.ข้อมูลส่วนบุคคล'!G$32 -> 2560-07-05 | AC74: 25600705 | AD74: 00:00:00 | AE74: 19000100 | AF74: -6600605 | AG74: 0 | AH74: 0 | AI74: 0 | AJ74: 0 | AK74: 0 | AO74: 0 | AP74: =IFERROR((VLOOKUP(AO74,'2.การมอบหมายงานสอน'!$AK$5:$AL$24,2,FALSE)*60/1440),0) -> 0
A75: ='1.ข้อมูลส่วนบุคคล'!$F$5 -> 12345678912345 | K75: =IF('1.ข้อมูลส่วนบุคคล'!C$21="เชี่ยวชาญ",IF(H75="-","",IF(H75='1.ข้อมูลส่วนบุคคล'!F$26,"เกี่ยวข้อง","ไม่เกี่ยวข้อง")),IF('1.ข้อมูลส่วนบุคคล'!C$21="เชี่ยวชาญพิเศษ",IF(H75="-","",IF(H75='1.ข้อมูลส่วนบุคคล'!F$26,"เกี่ยวข้อง","ไม่เกี่ยวข้อง")),"")) ->  | V75: 0 | W75: 0 | Z75: 0 | AA75: 0 | AB75: ='1.ข้อมูลส่วนบุคคล'!G$32 -> 2560-07-05 | AC75: 25600705 | AD75: 00:00:00 | AE75: 19000100 | AF75: -6600605 | AG75: 0 | AH75: 0 | AI75: =IF(OR(O75="สอนซ่อมเสริม",O75="สอนแทน"),Z75,0) -> 0 | AJ75: 0 | AK75: 0 | AO75: 0 | AP75: =IFERROR((VLOOKUP(AO75,'2.การมอบหมายงานสอน'!$AK$5:$AL$24,2,FALSE)*60/1440),0) -> 0
A76: ='1.ข้อมูลส่วนบุคคล'!$F$5 -> 12345678912345 | K76: =IF('1.ข้อมูลส่วนบุคคล'!C$21="เชี่ยวชาญ",IF(H76="-","",IF(H76='1.ข้อมูลส่วนบุคคล'!F$26,"เกี่ยวข้อง","ไม่เกี่ยวข้อง")),IF('1.ข้อมูลส่วนบุคคล'!C$21="เชี่ยวชาญพิเศษ",IF(H76="-","",IF(H76='1.ข้อมูลส่วนบุคคล'!F$26,"เกี่ยวข้อง","ไม่เกี่ยวข้อง")),"")) ->  | V76: 0 | W76: 0 | Z76: 0 | AA76: 0 | AB76: ='1.ข้อมูลส่วนบุคคล'!G$32 -> 2560-07-05 | AC76: 25600705 | AD76: 00:00:00 | AE76: 19000100 | AF76: -6600605 | AG76: 0 | AH76: 0 | AI76: 0 | AJ76: 0 | AK76: 0 | AO76: 0 | AP76: =IFERROR((VLOOKUP(AO76,'2.การมอบหมายงานสอน'!$AK$5:$AL$24,2,FALSE)*60/1440),0) -> 0
A77: ='1.ข้อมูลส่วนบุคคล'!$F$5 -> 12345678912345 | K77: =IF('1.ข้อมูลส่วนบุคคล'!C$21="เชี่ยวชาญ",IF(H77="-","",IF(H77='1.ข้อมูลส่วนบุคคล'!F$26,"เกี่ยวข้อง","ไม่เกี่ยวข้อง")),IF('1.ข้อมูลส่วนบุคคล'!C$21="เชี่ยวชาญพิเศษ",IF(H77="-","",IF(H77='1.ข้อมูลส่วนบุคคล'!F$26,"เกี่ยวข้อง","ไม่เกี่ยวข้อง")),"")) ->  | V77: 0 | W77: 0 | Z77: 0 | AA77: 0 | AB77: ='1.ข้อมูลส่วนบุคคล'!G$32 -> 2560-07-05 | AC77: 25600705 | AD77: 00:00:00 | AE77: 19000100 | AF77: -6600605 | AG77: 0 | AH77: 0 | AI77: 0 | AJ77: 0 | AK77: 0 | AO77: 0 | AP77: =IFERROR((VLOOKUP(AO77,'2.การมอบหมายงานสอน'!$AK$5:$AL$24,2,FALSE)*60/1440),0) -> 0
A78: ='1.ข้อมูลส่วนบุคคล'!$F$5 -> 12345678912345 | K78: =IF('1.ข้อมูลส่วนบุคคล'!C$21="เชี่ยวชาญ",IF(H78="-","",IF(H78='1.ข้อมูลส่วนบุคคล'!F$26,"เกี่ยวข้อง","ไม่เกี่ยวข้อง")),IF('1.ข้อมูลส่วนบุคคล'!C$21="เชี่ยวชาญพิเศษ",IF(H78="-","",IF(H78='1.ข้อมูลส่วนบุคคล'!F$26,"เกี่ยวข้อง","ไม่เกี่ยวข้อง")),"")) ->  | V78: 0 | W78: 0 | Z78: 0 | AA78: 0 | AB78: ='1.ข้อมูลส่วนบุคคล'!G$32 -> 2560-07-05 | AC78: 25600705 | AD78: 00:00:00 | AE78: 19000100 | AF78: -6600605 | AG78: 0 | AH78: 0 | AI78: 0 | AJ78: 0 | AK78: 0 | AO78: 0 | AP78: =IFERROR((VLOOKUP(AO78,'2.การมอบหมายงานสอน'!$AK$5:$AL$24,2,FALSE)*60/1440),0) -> 0
A79: ='1.ข้อมูลส่วนบุคคล'!$F$5 -> 12345678912345 | K79: =IF('1.ข้อมูลส่วนบุคคล'!C$21="เชี่ยวชาญ",IF(H79="-","",IF(H79='1.ข้อมูลส่วนบุคคล'!F$26,"เกี่ยวข้อง","ไม่เกี่ยวข้อง")),IF('1.ข้อมูลส่วนบุคคล'!C$21="เชี่ยวชาญพิเศษ",IF(H79="-","",IF(H79='1.ข้อมูลส่วนบุคคล'!F$26,"เกี่ยวข้อง","ไม่เกี่ยวข้อง")),"")) ->  | V79: 0 | W79: 0 | Z79: 0 | AA79: 0 | AB79: ='1.ข้อมูลส่วนบุคคล'!G$32 -> 2560-07-05 | AC79: 25600705 | AD79: 00:00:00 | AE79: 19000100 | AF79: -6600605 | AG79: 0 | AH79: 0 | AI79: 0 | AJ79: 0 | AK79: 0 | AO79: 0 | AP79: =IFERROR((VLOOKUP(AO79,'2.การมอบหมายงานสอน'!$AK$5:$AL$24,2,FALSE)*60/1440),0) -> 0
A80: ='1.ข้อมูลส่วนบุคคล'!$F$5 -> 12345678912345 | K80: =IF('1.ข้อมูลส่วนบุคคล'!C$21="เชี่ยวชาญ",IF(H80="-","",IF(H80='1.ข้อมูลส่วนบุคคล'!F$26,"เกี่ยวข้อง","ไม่เกี่ยวข้อง")),IF('1.ข้อมูลส่วนบุคคล'!C$21="เชี่ยวชาญพิเศษ",IF(H80="-","",IF(H80='1.ข้อมูลส่วนบุคคล'!F$26,"เกี่ยวข้อง","ไม่เกี่ยวข้อง")),"")) ->  | V80: 0 | W80: 0 | Z80: 0 | AA80: 0 | AB80: ='1.ข้อมูลส่วนบุคคล'!G$32 -> 2560-07-05 | AC80: 25600705 | AD80: 00:00:00 | AE80: 19000100 | AF80: -6600605 | AG80: 0 | AH80: 0 | AI80: 0 | AJ80: 0 | AK80: 0 | AO80: 0 | AP80: =IFERROR((VLOOKUP(AO80,'2.การมอบหมายงานสอน'!$AK$5:$AL$24,2,FALSE)*60/1440),0) -> 0
A81: ='1.ข้อมูลส่วนบุคคล'!$F$5 -> 12345678912345 | K81: =IF('1.ข้อมูลส่วนบุคคล'!C$21="เชี่ยวชาญ",IF(H81="-","",IF(H81='1.ข้อมูลส่วนบุคคล'!F$26,"เกี่ยวข้อง","ไม่เกี่ยวข้อง")),IF('1.ข้อมูลส่วนบุคคล'!C$21="เชี่ยวชาญพิเศษ",IF(H81="-","",IF(H81='1.ข้อมูลส่วนบุคคล'!F$26,"เกี่ยวข้อง","ไม่เกี่ยวข้อง")),"")) ->  | V81: 0 | W81: 0 | Z81: 0 | AA81: 0 | AB81: ='1.ข้อมูลส่วนบุคคล'!G$32 -> 2560-07-05 | AC81: 25600705 | AD81: 00:00:00 | AE81: 19000100 | AF81: -6600605 | AG81: 0 | AH81: 0 | AI81: 0 | AJ81: 0 | AK81: 0 | AO81: 0 | AP81: =IFERROR((VLOOKUP(AO81,'2.การมอบหมายงานสอน'!$AK$5:$AL$24,2,FALSE)*60/1440),0) -> 0
A82: ='1.ข้อมูลส่วนบุคคล'!$F$5 -> 12345678912345 | K82: =IF('1.ข้อมูลส่วนบุคคล'!C$21="เชี่ยวชาญ",IF(H82="-","",IF(H82='1.ข้อมูลส่วนบุคคล'!F$26,"เกี่ยวข้อง","ไม่เกี่ยวข้อง")),IF('1.ข้อมูลส่วนบุคคล'!C$21="เชี่ยวชาญพิเศษ",IF(H82="-","",IF(H82='1.ข้อมูลส่วนบุคคล'!F$26,"เกี่ยวข้อง","ไม่เกี่ยวข้อง")),"")) ->  | V82: 0 | W82: 0 | Z82: 0 | AA82: 0 | AB82: ='1.ข้อมูลส่วนบุคคล'!G$32 -> 2560-07-05 | AC82: 25600705 | AD82: 00:00:00 | AE82: 19000100 | AF82: -6600605 | AG82: 0 | AH82: 0 | AI82: 0 | AJ82: 0 | AK82: 0 | AO82: 0 | AP82: =IFERROR((VLOOKUP(AO82,'2.การมอบหมายงานสอน'!$AK$5:$AL$24,2,FALSE)*60/1440),0) -> 0
A83: ='1.ข้อมูลส่วนบุคคล'!$F$5 -> 12345678912345 | K83: =IF('1.ข้อมูลส่วนบุคคล'!C$21="เชี่ยวชาญ",IF(H83="-","",IF(H83='1.ข้อมูลส่วนบุคคล'!F$26,"เกี่ยวข้อง","ไม่เกี่ยวข้อง")),IF('1.ข้อมูลส่วนบุคคล'!C$21="เชี่ยวชาญพิเศษ",IF(H83="-","",IF(H83='1.ข้อมูลส่วนบุคคล'!F$26,"เกี่ยวข้อง","ไม่เกี่ยวข้อง")),"")) ->  | V83: 0 | W83: 0 | Z83: 0 | AA83: 0 | AB83: ='1.ข้อมูลส่วนบุคคล'!G$32 -> 2560-07-05 | AC83: 25600705 | AD83: 00:00:00 | AE83: 19000100 | AF83: -6600605 | AG83: 0 | AH83: 0 | AI83: 0 | AJ83: 0 | AK83: 0 | AO83: 0 | AP83: =IFERROR((VLOOKUP(AO83,'2.การมอบหมายงานสอน'!$AK$5:$AL$24,2,FALSE)*60/1440),0) -> 0
A84: ='1.ข้อมูลส่วนบุคคล'!$F$5 -> 12345678912345 | K84: =IF('1.ข้อมูลส่วนบุคคล'!C$21="เชี่ยวชาญ",IF(H84="-","",IF(H84='1.ข้อมูลส่วนบุคคล'!F$26,"เกี่ยวข้อง","ไม่เกี่ยวข้อง")),IF('1.ข้อมูลส่วนบุคคล'!C$21="เชี่ยวชาญพิเศษ",IF(H84="-","",IF(H84='1.ข้อมูลส่วนบุคคล'!F$26,"เกี่ยวข้อง","ไม่เกี่ยวข้อง")),"")) ->  | V84: 0 | W84: 0 | Z84: 0 | AA84: 0 | AB84: ='1.ข้อมูลส่วนบุคคล'!G$32 -> 2560-07-05 | AC84: 25600705 | AD84: 00:00:00 | AE84: 19000100 | AF84: -6600605 | AG84: 0 | AH84: 0 | AI84: 0 | AJ84: 0 | AK84: 0 | AO84: 0 | AP84: =IFERROR((VLOOKUP(AO84,'2.การมอบหมายงานสอน'!$AK$5:$AL$24,2,FALSE)*60/1440),0) -> 0
A85: ='1.ข้อมูลส่วนบุคคล'!$F$5 -> 12345678912345 | K85: =IF('1.ข้อมูลส่วนบุคคล'!C$21="เชี่ยวชาญ",IF(H85="-","",IF(H85='1.ข้อมูลส่วนบุคคล'!F$26,"เกี่ยวข้อง","ไม่เกี่ยวข้อง")),IF('1.ข้อมูลส่วนบุคคล'!C$21="เชี่ยวชาญพิเศษ",IF(H85="-","",IF(H85='1.ข้อมูลส่วนบุคคล'!F$26,"เกี่ยวข้อง","ไม่เกี่ยวข้อง")),"")) ->  | V85: 0 | W85: 0 | Z85: 0 | AA85: 0 | AB85: ='1.ข้อมูลส่วนบุคคล'!G$32 -> 2560-07-05 | AC85: 25600705 | AD85: 00:00:00 | AE85: 19000100 | AF85: -6600605 | AG85: 0 | AH85: 0 | AI85: 0 | AJ85: 0 | AK85: 0 | AO85: 0 | AP85: =IFERROR((VLOOKUP(AO85,'2.การมอบหมายงานสอน'!$AK$5:$AL$24,2,FALSE)*60/1440),0) -> 0
A86: ='1.ข้อมูลส่วนบุคคล'!$F$5 -> 12345678912345 | K86: =IF('1.ข้อมูลส่วนบุคคล'!C$21="เชี่ยวชาญ",IF(H86="-","",IF(H86='1.ข้อมูลส่วนบุคคล'!F$26,"เกี่ยวข้อง","ไม่เกี่ยวข้อง")),IF('1.ข้อมูลส่วนบุคคล'!C$21="เชี่ยวชาญพิเศษ",IF(H86="-","",IF(H86='1.ข้อมูลส่วนบุคคล'!F$26,"เกี่ยวข้อง","ไม่เกี่ยวข้อง")),"")) ->  | V86: 0 | W86: 0 | Z86: 0 | AA86: 0 | AB86: ='1.ข้อมูลส่วนบุคคล'!G$32 -> 2560-07-05 | AC86: 25600705 | AD86: 00:00:00 | AE86: 19000100 | AF86: -6600605 | AG86: 0 | AH86: 0 | AI86: 0 | AJ86: 0 | AK86: 0 | AO86: 0 | AP86: =IFERROR((VLOOKUP(AO86,'2.การมอบหมายงานสอน'!$AK$5:$AL$24,2,FALSE)*60/1440),0) -> 0
A87: ='1.ข้อมูลส่วนบุคคล'!$F$5 -> 12345678912345 | K87: =IF('1.ข้อมูลส่วนบุคคล'!C$21="เชี่ยวชาญ",IF(H87="-","",IF(H87='1.ข้อมูลส่วนบุคคล'!F$26,"เกี่ยวข้อง","ไม่เกี่ยวข้อง")),IF('1.ข้อมูลส่วนบุคคล'!C$21="เชี่ยวชาญพิเศษ",IF(H87="-","",IF(H87='1.ข้อมูลส่วนบุคคล'!F$26,"เกี่ยวข้อง","ไม่เกี่ยวข้อง")),"")) ->  | V87: 0 | W87: 0 | Z87: 0 | AA87: 0 | AB87: ='1.ข้อมูลส่วนบุคคล'!G$32 -> 2560-07-05 | AC87: 25600705 | AD87: 00:00:00 | AE87: 19000100 | AF87: -6600605 | AG87: 0 | AH87: 0 | AI87: 0 | AJ87: 0 | AK87: 0 | AO87: 0 | AP87: =IFERROR((VLOOKUP(AO87,'2.การมอบหมายงานสอน'!$AK$5:$AL$24,2,FALSE)*60/1440),0) -> 0
A88: ='1.ข้อมูลส่วนบุคคล'!$F$5 -> 12345678912345 | K88: =IF('1.ข้อมูลส่วนบุคคล'!C$21="เชี่ยวชาญ",IF(H88="-","",IF(H88='1.ข้อมูลส่วนบุคคล'!F$26,"เกี่ยวข้อง","ไม่เกี่ยวข้อง")),IF('1.ข้อมูลส่วนบุคคล'!C$21="เชี่ยวชาญพิเศษ",IF(H88="-","",IF(H88='1.ข้อมูลส่วนบุคคล'!F$26,"เกี่ยวข้อง","ไม่เกี่ยวข้อง")),"")) ->  | V88: 0 | W88: 0 | Z88: 0 | AA88: 0 | AB88: ='1.ข้อมูลส่วนบุคคล'!G$32 -> 2560-07-05 | AC88: 25600705 | AD88: 00:00:00 | AE88: 19000100 | AF88: -6600605 | AG88: 0 | AH88: 0 | AI88: 0 | AJ88: 0 | AK88: 0 | AO88: 0 | AP88: =IFERROR((VLOOKUP(AO88,'2.การมอบหมายงานสอน'!$AK$5:$AL$24,2,FALSE)*60/1440),0) -> 0
A89: ='1.ข้อมูลส่วนบุคคล'!$F$5 -> 12345678912345 | K89: =IF('1.ข้อมูลส่วนบุคคล'!C$21="เชี่ยวชาญ",IF(H89="-","",IF(H89='1.ข้อมูลส่วนบุคคล'!F$26,"เกี่ยวข้อง","ไม่เกี่ยวข้อง")),IF('1.ข้อมูลส่วนบุคคล'!C$21="เชี่ยวชาญพิเศษ",IF(H89="-","",IF(H89='1.ข้อมูลส่วนบุคคล'!F$26,"เกี่ยวข้อง","ไม่เกี่ยวข้อง")),"")) ->  | V89: 0 | W89: 0 | Z89: 0 | AA89: 0 | AB89: ='1.ข้อมูลส่วนบุคคล'!G$32 -> 2560-07-05 | AC89: 25600705 | AD89: 00:00:00 | AE89: 19000100 | AF89: -6600605 | AG89: 0 | AH89: 0 | AI89: 0 | AJ89: 0 | AK89: 0 | AO89: 0 | AP89: =IFERROR((VLOOKUP(AO89,'2.การมอบหมายงานสอน'!$AK$5:$AL$24,2,FALSE)*60/1440),0) -> 0
A90: ='1.ข้อมูลส่วนบุคคล'!$F$5 -> 12345678912345 | K90: =IF('1.ข้อมูลส่วนบุคคล'!C$21="เชี่ยวชาญ",IF(H90="-","",IF(H90='1.ข้อมูลส่วนบุคคล'!F$26,"เกี่ยวข้อง","ไม่เกี่ยวข้อง")),IF('1.ข้อมูลส่วนบุคคล'!C$21="เชี่ยวชาญพิเศษ",IF(H90="-","",IF(H90='1.ข้อมูลส่วนบุคคล'!F$26,"เกี่ยวข้อง","ไม่เกี่ยวข้อง")),"")) ->  | V90: 0 | W90: 0 | Z90: 0 | AA90: 0 | AB90: ='1.ข้อมูลส่วนบุคคล'!G$32 -> 2560-07-05 | AC90: 25600705 | AD90: 00:00:00 | AE90: 19000100 | AF90: -6600605 | AG90: 0 | AH90: 0 | AI90: 0 | AJ90: 0 | AK90: 0 | AO90: 0 | AP90: =IFERROR((VLOOKUP(AO90,'2.การมอบหมายงานสอน'!$AK$5:$AL$24,2,FALSE)*60/1440),0) -> 0
A91: ='1.ข้อมูลส่วนบุคคล'!$F$5 -> 12345678912345 | K91: =IF('1.ข้อมูลส่วนบุคคล'!C$21="เชี่ยวชาญ",IF(H91="-","",IF(H91='1.ข้อมูลส่วนบุคคล'!F$26,"เกี่ยวข้อง","ไม่เกี่ยวข้อง")),IF('1.ข้อมูลส่วนบุคคล'!C$21="เชี่ยวชาญพิเศษ",IF(H91="-","",IF(H91='1.ข้อมูลส่วนบุคคล'!F$26,"เกี่ยวข้อง","ไม่เกี่ยวข้อง")),"")) ->  | V91: 0 | W91: 0 | Z91: 0 | AA91: 0 | AB91: ='1.ข้อมูลส่วนบุคคล'!G$32 -> 2560-07-05 | AC91: 25600705 | AD91: 00:00:00 | AE91: 19000100 | AF91: -6600605 | AG91: 0 | AH91: 0 | AI91: 0 | AJ91: 0 | AK91: 0 | AO91: 0 | AP91: =IFERROR((VLOOKUP(AO91,'2.การมอบหมายงานสอน'!$AK$5:$AL$24,2,FALSE)*60/1440),0) -> 0
A92: ='1.ข้อมูลส่วนบุคคล'!$F$5 -> 12345678912345 | K92: =IF('1.ข้อมูลส่วนบุคคล'!C$21="เชี่ยวชาญ",IF(H92="-","",IF(H92='1.ข้อมูลส่วนบุคคล'!F$26,"เกี่ยวข้อง","ไม่เกี่ยวข้อง")),IF('1.ข้อมูลส่วนบุคคล'!C$21="เชี่ยวชาญพิเศษ",IF(H92="-","",IF(H92='1.ข้อมูลส่วนบุคคล'!F$26,"เกี่ยวข้อง","ไม่เกี่ยวข้อง")),"")) ->  | V92: 0 | W92: 0 | Z92: 0 | AA92: 0 | AB92: ='1.ข้อมูลส่วนบุคคล'!G$32 -> 2560-07-05 | AC92: 25600705 | AD92: 00:00:00 | AE92: 19000100 | AF92: -6600605 | AG92: 0 | AH92: 0 | AI92: 0 | AJ92: 0 | AK92: 0 | AO92: 0 | AP92: =IFERROR((VLOOKUP(AO92,'2.การมอบหมายงานสอน'!$AK$5:$AL$24,2,FALSE)*60/1440),0) -> 0
A93: ='1.ข้อมูลส่วนบุคคล'!$F$5 -> 12345678912345 | K93: =IF('1.ข้อมูลส่วนบุคคล'!C$21="เชี่ยวชาญ",IF(H93="-","",IF(H93='1.ข้อมูลส่วนบุคคล'!F$26,"เกี่ยวข้อง","ไม่เกี่ยวข้อง")),IF('1.ข้อมูลส่วนบุคคล'!C$21="เชี่ยวชาญพิเศษ",IF(H93="-","",IF(H93='1.ข้อมูลส่วนบุคคล'!F$26,"เกี่ยวข้อง","ไม่เกี่ยวข้อง")),"")) ->  | V93: 0 | W93: 0 | Z93: 0 | AA93: 0 | AB93: ='1.ข้อมูลส่วนบุคคล'!G$32 -> 2560-07-05 | AC93: 25600705 | AD93: 00:00:00 | AE93: 19000100 | AF93: -6600605 | AG93: 0 | AH93: 0 | AI93: 0 | AJ93: 0 | AK93: 0 | AO93: 0 | AP93: =IFERROR((VLOOKUP(AO93,'2.การมอบหมายงานสอน'!$AK$5:$AL$24,2,FALSE)*60/1440),0) -> 0
A94: ='1.ข้อมูลส่วนบุคคล'!$F$5 -> 12345678912345 | K94: =IF('1.ข้อมูลส่วนบุคคล'!C$21="เชี่ยวชาญ",IF(H94="-","",IF(H94='1.ข้อมูลส่วนบุคคล'!F$26,"เกี่ยวข้อง","ไม่เกี่ยวข้อง")),IF('1.ข้อมูลส่วนบุคคล'!C$21="เชี่ยวชาญพิเศษ",IF(H94="-","",IF(H94='1.ข้อมูลส่วนบุคคล'!F$26,"เกี่ยวข้อง","ไม่เกี่ยวข้อง")),"")) ->  | V94: 0 | W94: 0 | Z94: 0 | AA94: 0 | AB94: ='1.ข้อมูลส่วนบุคคล'!G$32 -> 2560-07-05 | AC94: 25600705 | AD94: 00:00:00 | AE94: 19000100 | AF94: -6600605 | AG94: 0 | AH94: 0 | AI94: 0 | AJ94: 0 | AK94: 0 | AO94: 0 | AP94: =IFERROR((VLOOKUP(AO94,'2.การมอบหมายงานสอน'!$AK$5:$AL$24,2,FALSE)*60/1440),0) -> 0
A95: ='1.ข้อมูลส่วนบุคคล'!$F$5 -> 12345678912345 | K95: =IF('1.ข้อมูลส่วนบุคคล'!C$21="เชี่ยวชาญ",IF(H95="-","",IF(H95='1.ข้อมูลส่วนบุคคล'!F$26,"เกี่ยวข้อง","ไม่เกี่ยวข้อง")),IF('1.ข้อมูลส่วนบุคคล'!C$21="เชี่ยวชาญพิเศษ",IF(H95="-","",IF(H95='1.ข้อมูลส่วนบุคคล'!F$26,"เกี่ยวข้อง","ไม่เกี่ยวข้อง")),"")) ->  | V95: 0 | W95: 0 | Z95: 0 | AA95: 0 | AB95: ='1.ข้อมูลส่วนบุคคล'!G$32 -> 2560-07-05 | AC95: 25600705 | AD95: 00:00:00 | AE95: 19000100 | AF95: -6600605 | AG95: 0 | AH95: 0 | AI95: 0 | AJ95: 0 | AK95: 0 | AO95: 0 | AP95: =IFERROR((VLOOKUP(AO95,'2.การมอบหมายงานสอน'!$AK$5:$AL$24,2,FALSE)*60/1440),0) -> 0
A96: ='1.ข้อมูลส่วนบุคคล'!$F$5 -> 12345678912345 | K96: =IF('1.ข้อมูลส่วนบุคคล'!C$21="เชี่ยวชาญ",IF(H96="-","",IF(H96='1.ข้อมูลส่วนบุคคล'!F$26,"เกี่ยวข้อง","ไม่เกี่ยวข้อง")),IF('1.ข้อมูลส่วนบุคคล'!C$21="เชี่ยวชาญพิเศษ",IF(H96="-","",IF(H96='1.ข้อมูลส่วนบุคคล'!F$26,"เกี่ยวข้อง","ไม่เกี่ยวข้อง")),"")) ->  | V96: 0 | W96: 0 | Z96: 0 | AA96: 0 | AB96: ='1.ข้อมูลส่วนบุคคล'!G$32 -> 2560-07-05 | AC96: 25600705 | AD96: 00:00:00 | AE96: 19000100 | AF96: -6600605 | AG96: 0 | AH96: 0 | AI96: 0 | AJ96: 0 | AK96: 0 | AO96: 0 | AP96: =IFERROR((VLOOKUP(AO96,'2.การมอบหมายงานสอน'!$AK$5:$AL$24,2,FALSE)*60/1440),0) -> 0
A97: ='1.ข้อมูลส่วนบุคคล'!$F$5 -> 12345678912345 | K97: =IF('1.ข้อมูลส่วนบุคคล'!C$21="เชี่ยวชาญ",IF(H97="-","",IF(H97='1.ข้อมูลส่วนบุคคล'!F$26,"เกี่ยวข้อง","ไม่เกี่ยวข้อง")),IF('1.ข้อมูลส่วนบุคคล'!C$21="เชี่ยวชาญพิเศษ",IF(H97="-","",IF(H97='1.ข้อมูลส่วนบุคคล'!F$26,"เกี่ยวข้อง","ไม่เกี่ยวข้อง")),"")) ->  | V97: 0 | W97: 0 | Z97: 0 | AA97: 0 | AB97: ='1.ข้อมูลส่วนบุคคล'!G$32 -> 2560-07-05 | AC97: 25600705 | AD97: 00:00:00 | AE97: 19000100 | AF97: -6600605 | AG97: 0 | AH97: 0 | AI97: 0 | AJ97: 0 | AK97: 0 | AO97: 0 | AP97: =IFERROR((VLOOKUP(AO97,'2.การมอบหมายงานสอน'!$AK$5:$AL$24,2,FALSE)*60/1440),0) -> 0
A98: ='1.ข้อมูลส่วนบุคคล'!$F$5 -> 12345678912345 | K98: =IF('1.ข้อมูลส่วนบุคคล'!C$21="เชี่ยวชาญ",IF(H98="-","",IF(H98='1.ข้อมูลส่วนบุคคล'!F$26,"เกี่ยวข้อง","ไม่เกี่ยวข้อง")),IF('1.ข้อมูลส่วนบุคคล'!C$21="เชี่ยวชาญพิเศษ",IF(H98="-","",IF(H98='1.ข้อมูลส่วนบุคคล'!F$26,"เกี่ยวข้อง","ไม่เกี่ยวข้อง")),"")) ->  | V98: 0 | W98: 0 | Z98: 0 | AA98: 0 | AB98: ='1.ข้อมูลส่วนบุคคล'!G$32 -> 2560-07-05 | AC98: 25600705 | AD98: 00:00:00 | AE98: 19000100 | AF98: -6600605 | AG98: 0 | AH98: 0 | AI98: 0 | AJ98: 0 | AK98: 0 | AO98: 0 | AP98: =IFERROR((VLOOKUP(AO98,'2.การมอบหมายงานสอน'!$AK$5:$AL$24,2,FALSE)*60/1440),0) -> 0
A99: ='1.ข้อมูลส่วนบุคคล'!$F$5 -> 12345678912345 | K99: =IF('1.ข้อมูลส่วนบุคคล'!C$21="เชี่ยวชาญ",IF(H99="-","",IF(H99='1.ข้อมูลส่วนบุคคล'!F$26,"เกี่ยวข้อง","ไม่เกี่ยวข้อง")),IF('1.ข้อมูลส่วนบุคคล'!C$21="เชี่ยวชาญพิเศษ",IF(H99="-","",IF(H99='1.ข้อมูลส่วนบุคคล'!F$26,"เกี่ยวข้อง","ไม่เกี่ยวข้อง")),"")) ->  | V99: 0 | W99: 0 | Z99: 0 | AA99: 0 | AB99: ='1.ข้อมูลส่วนบุคคล'!G$32 -> 2560-07-05 | AC99: 25600705 | AD99: 00:00:00 | AE99: 19000100 | AF99: -6600605 | AG99: 0 | AH99: 0 | AI99: 0 | AJ99: 0 | AK99: 0 | AO99: 0 | AP99: =IFERROR((VLOOKUP(AO99,'2.การมอบหมายงานสอน'!$AK$5:$AL$24,2,FALSE)*60/1440),0) -> 0
A100: ='1.ข้อมูลส่วนบุคคล'!$F$5 -> 12345678912345 | K100: =IF('1.ข้อมูลส่วนบุคคล'!C$21="เชี่ยวชาญ",IF(H100="-","",IF(H100='1.ข้อมูลส่วนบุคคล'!F$26,"เกี่ยวข้อง","ไม่เกี่ยวข้อง")),IF('1.ข้อมูลส่วนบุคคล'!C$21="เชี่ยวชาญพิเศษ",IF(H100="-","",IF(H100='1.ข้อมูลส่วนบุคคล'!F$26,"เกี่ยวข้อง","ไม่เกี่ยวข้อง")),"")) ->  | V100: 0 | W100: 0 | Z100: 0 | AA100: 0 | AB100: ='1.ข้อมูลส่วนบุคคล'!G$32 -> 2560-07-05 | AC100: 25600705 | AD100: 00:00:00 | AE100: 19000100 | AF100: -6600605 | AG100: 0 | AH100: 0 | AI100: 0 | AJ100: 0 | AK100: 0 | AO100: 0 | AP100: =IFERROR((VLOOKUP(AO100,'2.การมอบหมายงานสอน'!$AK$5:$AL$24,2,FALSE)*60/1440),0) -> 0
A101: ='1.ข้อมูลส่วนบุคคล'!$F$5 -> 12345678912345 | K101: =IF('1.ข้อมูลส่วนบุคคล'!C$21="เชี่ยวชาญ",IF(H101="-","",IF(H101='1.ข้อมูลส่วนบุคคล'!F$26,"เกี่ยวข้อง","ไม่เกี่ยวข้อง")),IF('1.ข้อมูลส่วนบุคคล'!C$21="เชี่ยวชาญพิเศษ",IF(H101="-","",IF(H101='1.ข้อมูลส่วนบุคคล'!F$26,"เกี่ยวข้อง","ไม่เกี่ยวข้อง")),"")) ->  | V101: 0 | W101: 0 | Z101: 0 | AA101: 0 | AB101: ='1.ข้อมูลส่วนบุคคล'!G$32 -> 2560-07-05 | AC101: 25600705 | AD101: 00:00:00 | AE101: 19000100 | AF101: -6600605 | AG101: 0 | AH101: 0 | AI101: 0 | AJ101: 0 | AK101: 0 | AO101: 0 | AP101: =IFERROR((VLOOKUP(AO101,'2.การมอบหมายงานสอน'!$AK$5:$AL$24,2,FALSE)*60/1440),0) -> 0
A102: ='1.ข้อมูลส่วนบุคคล'!$F$5 -> 12345678912345 | K102: =IF('1.ข้อมูลส่วนบุคคล'!C$21="เชี่ยวชาญ",IF(H102="-","",IF(H102='1.ข้อมูลส่วนบุคคล'!F$26,"เกี่ยวข้อง","ไม่เกี่ยวข้อง")),IF('1.ข้อมูลส่วนบุคคล'!C$21="เชี่ยวชาญพิเศษ",IF(H102="-","",IF(H102='1.ข้อมูลส่วนบุคคล'!F$26,"เกี่ยวข้อง","ไม่เกี่ยวข้อง")),"")) ->  | V102: 0 | W102: 0 | Z102: 0 | AA102: 0 | AB102: ='1.ข้อมูลส่วนบุคคล'!G$32 -> 2560-07-05 | AC102: 25600705 | AD102: 00:00:00 | AE102: 19000100 | AF102: -6600605 | AG102: 0 | AH102: 0 | AI102: 0 | AJ102: 0 | AK102: 0 | AO102: 0 | AP102: =IFERROR((VLOOKUP(AO102,'2.การมอบหมายงานสอน'!$AK$5:$AL$24,2,FALSE)*60/1440),0) -> 0
A103: ='1.ข้อมูลส่วนบุคคล'!$F$5 -> 12345678912345 | K103: =IF('1.ข้อมูลส่วนบุคคล'!C$21="เชี่ยวชาญ",IF(H103="-","",IF(H103='1.ข้อมูลส่วนบุคคล'!F$26,"เกี่ยวข้อง","ไม่เกี่ยวข้อง")),IF('1.ข้อมูลส่วนบุคคล'!C$21="เชี่ยวชาญพิเศษ",IF(H103="-","",IF(H103='1.ข้อมูลส่วนบุคคล'!F$26,"เกี่ยวข้อง","ไม่เกี่ยวข้อง")),"")) ->  | V103: 0 | W103: 0 | Z103: 0 | AA103: 0 | AB103: ='1.ข้อมูลส่วนบุคคล'!G$32 -> 2560-07-05 | AC103: 25600705 | AD103: 00:00:00 | AE103: 19000100 | AF103: -6600605 | AG103: 0 | AH103: 0 | AI103: 0 | AJ103: 0 | AK103: 0 | AO103: 0 | AP103: =IFERROR((VLOOKUP(AO103,'2.การมอบหมายงานสอน'!$AK$5:$AL$24,2,FALSE)*60/1440),0) -> 0
A104: ='1.ข้อมูลส่วนบุคคล'!$F$5 -> 12345678912345 | K104: =IF('1.ข้อมูลส่วนบุคคล'!C$21="เชี่ยวชาญ",IF(H104="-","",IF(H104='1.ข้อมูลส่วนบุคคล'!F$26,"เกี่ยวข้อง","ไม่เกี่ยวข้อง")),IF('1.ข้อมูลส่วนบุคคล'!C$21="เชี่ยวชาญพิเศษ",IF(H104="-","",IF(H104='1.ข้อมูลส่วนบุคคล'!F$26,"เกี่ยวข้อง","ไม่เกี่ยวข้อง")),"")) ->  | V104: 0 | W104: 0 | Z104: 0 | AA104: 0 | AB104: ='1.ข้อมูลส่วนบุคคล'!G$32 -> 2560-07-05 | AC104: 25600705 | AD104: 00:00:00 | AE104: 19000100 | AF104: -6600605 | AG104: 0 | AH104: 0 | AI104: 0 | AJ104: 0 | AK104: 0 | AO104: 0 | AP104: =IFERROR((VLOOKUP(AO104,'2.การมอบหมายงานสอน'!$AK$5:$AL$24,2,FALSE)*60/1440),0) -> 0
A105: ='1.ข้อมูลส่วนบุคคล'!$F$5 -> 12345678912345 | K105: =IF('1.ข้อมูลส่วนบุคคล'!C$21="เชี่ยวชาญ",IF(H105="-","",IF(H105='1.ข้อมูลส่วนบุคคล'!F$26,"เกี่ยวข้อง","ไม่เกี่ยวข้อง")),IF('1.ข้อมูลส่วนบุคคล'!C$21="เชี่ยวชาญพิเศษ",IF(H105="-","",IF(H105='1.ข้อมูลส่วนบุคคล'!F$26,"เกี่ยวข้อง","ไม่เกี่ยวข้อง")),"")) ->  | V105: 0 | W105: 0 | Z105: 0 | AA105: 0 | AB105: ='1.ข้อมูลส่วนบุคคล'!G$32 -> 2560-07-05 | AC105: 25600705 | AD105: 00:00:00 | AE105: 19000100 | AF105: -6600605 | AG105: 0 | AH105: 0 | AI105: 0 | AJ105: 0 | AK105: 0 | AO105: 0 | AP105: =IFERROR((VLOOKUP(AO105,'2.การมอบหมายงานสอน'!$AK$5:$AL$24,2,FALSE)*60/1440),0) -> 0
A106: ='1.ข้อมูลส่วนบุคคล'!$F$5 -> 12345678912345 | K106: =IF('1.ข้อมูลส่วนบุคคล'!C$21="เชี่ยวชาญ",IF(H106="-","",IF(H106='1.ข้อมูลส่วนบุคคล'!F$26,"เกี่ยวข้อง","ไม่เกี่ยวข้อง")),IF('1.ข้อมูลส่วนบุคคล'!C$21="เชี่ยวชาญพิเศษ",IF(H106="-","",IF(H106='1.ข้อมูลส่วนบุคคล'!F$26,"เกี่ยวข้อง","ไม่เกี่ยวข้อง")),"")) ->  | V106: 0 | W106: 0 | Z106: 0 | AA106: 0 | AB106: ='1.ข้อมูลส่วนบุคคล'!G$32 -> 2560-07-05 | AC106: 25600705 | AD106: 00:00:00 | AE106: 19000100 | AF106: -6600605 | AG106: 0 | AH106: 0 | AI106: 0 | AJ106: 0 | AK106: 0 | AO106: 0 | AP106: =IFERROR((VLOOKUP(AO106,'2.การมอบหมายงานสอน'!$AK$5:$AL$24,2,FALSE)*60/1440),0) -> 0
A107: ='1.ข้อมูลส่วนบุคคล'!$F$5 -> 12345678912345 | K107: =IF('1.ข้อมูลส่วนบุคคล'!C$21="เชี่ยวชาญ",IF(H107="-","",IF(H107='1.ข้อมูลส่วนบุคคล'!F$26,"เกี่ยวข้อง","ไม่เกี่ยวข้อง")),IF('1.ข้อมูลส่วนบุคคล'!C$21="เชี่ยวชาญพิเศษ",IF(H107="-","",IF(H107='1.ข้อมูลส่วนบุคคล'!F$26,"เกี่ยวข้อง","ไม่เกี่ยวข้อง")),"")) ->  | V107: 0 | W107: 0 | Z107: 0 | AA107: 0 | AB107: ='1.ข้อมูลส่วนบุคคล'!G$32 -> 2560-07-05 | AC107: 25600705 | AD107: 00:00:00 | AE107: 19000100 | AF107: -6600605 | AG107: 0 | AH107: 0 | AI107: 0 | AJ107: 0 | AK107: 0 | AO107: 0 | AP107: =IFERROR((VLOOKUP(AO107,'2.การมอบหมายงานสอน'!$AK$5:$AL$24,2,FALSE)*60/1440),0) -> 0
A108: ='1.ข้อมูลส่วนบุคคล'!$F$5 -> 12345678912345 | K108: =IF('1.ข้อมูลส่วนบุคคล'!C$21="เชี่ยวชาญ",IF(H108="-","",IF(H108='1.ข้อมูลส่วนบุคคล'!F$26,"เกี่ยวข้อง","ไม่เกี่ยวข้อง")),IF('1.ข้อมูลส่วนบุคคล'!C$21="เชี่ยวชาญพิเศษ",IF(H108="-","",IF(H108='1.ข้อมูลส่วนบุคคล'!F$26,"เกี่ยวข้อง","ไม่เกี่ยวข้อง")),"")) ->  | V108: 0 | W108: 0 | Z108: 0 | AA108: 0 | AB108: ='1.ข้อมูลส่วนบุคคล'!G$32 -> 2560-07-05 | AC108: 25600705 | AD108: 00:00:00 | AE108: 19000100 | AF108: -6600605 | AG108: 0 | AH108: 0 | AI108: 0 | AJ108: 0 | AK108: 0 | AO108: 0 | AP108: =IFERROR((VLOOKUP(AO108,'2.การมอบหมายงานสอน'!$AK$5:$AL$24,2,FALSE)*60/1440),0) -> 0
A109: ='1.ข้อมูลส่วนบุคคล'!$F$5 -> 12345678912345 | K109: =IF('1.ข้อมูลส่วนบุคคล'!C$21="เชี่ยวชาญ",IF(H109="-","",IF(H109='1.ข้อมูลส่วนบุคคล'!F$26,"เกี่ยวข้อง","ไม่เกี่ยวข้อง")),IF('1.ข้อมูลส่วนบุคคล'!C$21="เชี่ยวชาญพิเศษ",IF(H109="-","",IF(H109='1.ข้อมูลส่วนบุคคล'!F$26,"เกี่ยวข้อง","ไม่เกี่ยวข้อง")),"")) ->  | V109: 0 | W109: 0 | Z109: 0 | AA109: 0 | AB109: ='1.ข้อมูลส่วนบุคคล'!G$32 -> 2560-07-05 | AC109: 25600705 | AD109: 00:00:00 | AE109: 19000100 | AF109: -6600605 | AG109: 0 | AH109: 0 | AI109: 0 | AJ109: 0 | AK109: 0 | AO109: 0 | AP109: =IFERROR((VLOOKUP(AO109,'2.การมอบหมายงานสอน'!$AK$5:$AL$24,2,FALSE)*60/1440),0) -> 0
A110: ='1.ข้อมูลส่วนบุคคล'!$F$5 -> 12345678912345 | K110: =IF('1.ข้อมูลส่วนบุคคล'!C$21="เชี่ยวชาญ",IF(H110="-","",IF(H110='1.ข้อมูลส่วนบุคคล'!F$26,"เกี่ยวข้อง","ไม่เกี่ยวข้อง")),IF('1.ข้อมูลส่วนบุคคล'!C$21="เชี่ยวชาญพิเศษ",IF(H110="-","",IF(H110='1.ข้อมูลส่วนบุคคล'!F$26,"เกี่ยวข้อง","ไม่เกี่ยวข้อง")),"")) ->  | V110: 0 | W110: 0 | Z110: 0 | AA110: 0 | AB110: ='1.ข้อมูลส่วนบุคคล'!G$32 -> 2560-07-05 | AC110: 25600705 | AD110: 00:00:00 | AE110: 19000100 | AF110: -6600605 | AG110: 0 | AH110: 0 | AI110: 0 | AJ110: 0 | AK110: 0 | AO110: 0 | AP110: =IFERROR((VLOOKUP(AO110,'2.การมอบหมายงานสอน'!$AK$5:$AL$24,2,FALSE)*60/1440),0) -> 0
A111: ='1.ข้อมูลส่วนบุคคล'!$F$5 -> 12345678912345 | K111: =IF('1.ข้อมูลส่วนบุคคล'!C$21="เชี่ยวชาญ",IF(H111="-","",IF(H111='1.ข้อมูลส่วนบุคคล'!F$26,"เกี่ยวข้อง","ไม่เกี่ยวข้อง")),IF('1.ข้อมูลส่วนบุคคล'!C$21="เชี่ยวชาญพิเศษ",IF(H111="-","",IF(H111='1.ข้อมูลส่วนบุคคล'!F$26,"เกี่ยวข้อง","ไม่เกี่ยวข้อง")),"")) ->  | V111: 0 | W111: 0 | Z111: 0 | AA111: 0 | AB111: ='1.ข้อมูลส่วนบุคคล'!G$32 -> 2560-07-05 | AC111: 25600705 | AD111: 00:00:00 | AE111: 19000100 | AF111: -6600605 | AG111: 0 | AH111: 0 | AI111: 0 | AJ111: 0 | AK111: 0 | AO111: 0 | AP111: =IFERROR((VLOOKUP(AO111,'2.การมอบหมายงานสอน'!$AK$5:$AL$24,2,FALSE)*60/1440),0) -> 0
A112: ='1.ข้อมูลส่วนบุคคล'!$F$5 -> 12345678912345 | K112: =IF('1.ข้อมูลส่วนบุคคล'!C$21="เชี่ยวชาญ",IF(H112="-","",IF(H112='1.ข้อมูลส่วนบุคคล'!F$26,"เกี่ยวข้อง","ไม่เกี่ยวข้อง")),IF('1.ข้อมูลส่วนบุคคล'!C$21="เชี่ยวชาญพิเศษ",IF(H112="-","",IF(H112='1.ข้อมูลส่วนบุคคล'!F$26,"เกี่ยวข้อง","ไม่เกี่ยวข้อง")),"")) ->  | V112: 0 | W112: 0 | Z112: 0 | AA112: 0 | AB112: ='1.ข้อมูลส่วนบุคคล'!G$32 -> 2560-07-05 | AC112: 25600705 | AD112: 00:00:00 | AE112: 19000100 | AF112: -6600605 | AG112: 0 | AH112: 0 | AI112: 0 | AJ112: 0 | AK112: 0 | AO112: 0 | AP112: =IFERROR((VLOOKUP(AO112,'2.การมอบหมายงานสอน'!$AK$5:$AL$24,2,FALSE)*60/1440),0) -> 0
A113: ='1.ข้อมูลส่วนบุคคล'!$F$5 -> 12345678912345 | K113: =IF('1.ข้อมูลส่วนบุคคล'!C$21="เชี่ยวชาญ",IF(H113="-","",IF(H113='1.ข้อมูลส่วนบุคคล'!F$26,"เกี่ยวข้อง","ไม่เกี่ยวข้อง")),IF('1.ข้อมูลส่วนบุคคล'!C$21="เชี่ยวชาญพิเศษ",IF(H113="-","",IF(H113='1.ข้อมูลส่วนบุคคล'!F$26,"เกี่ยวข้อง","ไม่เกี่ยวข้อง")),"")) ->  | V113: 0 | W113: 0 | Z113: 0 | AA113: 0 | AB113: ='1.ข้อมูลส่วนบุคคล'!G$32 -> 2560-07-05 | AC113: 25600705 | AD113: 00:00:00 | AE113: 19000100 | AF113: -6600605 | AG113: 0 | AH113: 0 | AI113: 0 | AJ113: 0 | AK113: 0 | AO113: 0 | AP113: =IFERROR((VLOOKUP(AO113,'2.การมอบหมายงานสอน'!$AK$5:$AL$24,2,FALSE)*60/1440),0) -> 0
A114: ='1.ข้อมูลส่วนบุคคล'!$F$5 -> 12345678912345 | K114: =IF('1.ข้อมูลส่วนบุคคล'!C$21="เชี่ยวชาญ",IF(H114="-","",IF(H114='1.ข้อมูลส่วนบุคคล'!F$26,"เกี่ยวข้อง","ไม่เกี่ยวข้อง")),IF('1.ข้อมูลส่วนบุคคล'!C$21="เชี่ยวชาญพิเศษ",IF(H114="-","",IF(H114='1.ข้อมูลส่วนบุคคล'!F$26,"เกี่ยวข้อง","ไม่เกี่ยวข้อง")),"")) ->  | V114: 0 | W114: 0 | Z114: 0 | AA114: 0 | AB114: ='1.ข้อมูลส่วนบุคคล'!G$32 -> 2560-07-05 | AC114: 25600705 | AD114: 00:00:00 | AE114: 19000100 | AF114: -6600605 | AG114: 0 | AH114: 0 | AI114: 0 | AJ114: 0 | AK114: 0 | AO114: 0 | AP114: =IFERROR((VLOOKUP(AO114,'2.การมอบหมายงานสอน'!$AK$5:$AL$24,2,FALSE)*60/1440),0) -> 0
A115: ='1.ข้อมูลส่วนบุคคล'!$F$5 -> 12345678912345 | K115: =IF('1.ข้อมูลส่วนบุคคล'!C$21="เชี่ยวชาญ",IF(H115="-","",IF(H115='1.ข้อมูลส่วนบุคคล'!F$26,"เกี่ยวข้อง","ไม่เกี่ยวข้อง")),IF('1.ข้อมูลส่วนบุคคล'!C$21="เชี่ยวชาญพิเศษ",IF(H115="-","",IF(H115='1.ข้อมูลส่วนบุคคล'!F$26,"เกี่ยวข้อง","ไม่เกี่ยวข้อง")),"")) ->  | V115: 0 | W115: 0 | Z115: 0 | AA115: 0 | AB115: ='1.ข้อมูลส่วนบุคคล'!G$32 -> 2560-07-05 | AC115: 25600705 | AD115: 00:00:00 | AE115: 19000100 | AF115: -6600605 | AG115: 0 | AH115: 0 | AI115: 0 | AJ115: 0 | AK115: 0 | AO115: 0 | AP115: =IFERROR((VLOOKUP(AO115,'2.การมอบหมายงานสอน'!$AK$5:$AL$24,2,FALSE)*60/1440),0) -> 0
A116: ='1.ข้อมูลส่วนบุคคล'!$F$5 -> 12345678912345 | K116: =IF('1.ข้อมูลส่วนบุคคล'!C$21="เชี่ยวชาญ",IF(H116="-","",IF(H116='1.ข้อมูลส่วนบุคคล'!F$26,"เกี่ยวข้อง","ไม่เกี่ยวข้อง")),IF('1.ข้อมูลส่วนบุคคล'!C$21="เชี่ยวชาญพิเศษ",IF(H116="-","",IF(H116='1.ข้อมูลส่วนบุคคล'!F$26,"เกี่ยวข้อง","ไม่เกี่ยวข้อง")),"")) ->  | V116: 0 | W116: 0 | Z116: 0 | AA116: 0 | AB116: ='1.ข้อมูลส่วนบุคคล'!G$32 -> 2560-07-05 | AC116: 25600705 | AD116: 00:00:00 | AE116: 19000100 | AF116: -6600605 | AG116: 0 | AH116: 0 | AI116: 0 | AJ116: 0 | AK116: 0 | AO116: 0 | AP116: =IFERROR((VLOOKUP(AO116,'2.การมอบหมายงานสอน'!$AK$5:$AL$24,2,FALSE)*60/1440),0) -> 0
A117: ='1.ข้อมูลส่วนบุคคล'!$F$5 -> 12345678912345 | K117: =IF('1.ข้อมูลส่วนบุคคล'!C$21="เชี่ยวชาญ",IF(H117="-","",IF(H117='1.ข้อมูลส่วนบุคคล'!F$26,"เกี่ยวข้อง","ไม่เกี่ยวข้อง")),IF('1.ข้อมูลส่วนบุคคล'!C$21="เชี่ยวชาญพิเศษ",IF(H117="-","",IF(H117='1.ข้อมูลส่วนบุคคล'!F$26,"เกี่ยวข้อง","ไม่เกี่ยวข้อง")),"")) ->  | T117: =B117&+E117 ->  | V117: 0 | W117: 0 | Z117: 0 | AA117: 0 | AB117: ='1.ข้อมูลส่วนบุคคล'!G$32 -> 2560-07-05 | AC117: 25600705 | AD117: 00:00:00 | AE117: 19000100 | AF117: -6600605 | AG117: 0 | AH117: 0 | AI117: 0 | AJ117: 0 | AK117: 0 | AO117: 0 | AP117: =IFERROR((VLOOKUP(AO117,'2.การมอบหมายงานสอน'!$AK$5:$AL$24,2,FALSE)*60/1440),0) -> 0
A118: ='1.ข้อมูลส่วนบุคคล'!$F$5 -> 12345678912345 | K118: =IF('1.ข้อมูลส่วนบุคคล'!C$21="เชี่ยวชาญ",IF(H118="-","",IF(H118='1.ข้อมูลส่วนบุคคล'!F$26,"เกี่ยวข้อง","ไม่เกี่ยวข้อง")),IF('1.ข้อมูลส่วนบุคคล'!C$21="เชี่ยวชาญพิเศษ",IF(H118="-","",IF(H118='1.ข้อมูลส่วนบุคคล'!F$26,"เกี่ยวข้อง","ไม่เกี่ยวข้อง")),"")) ->  | V118: 0 | W118: 0 | Z118: 0 | AA118: 0 | AB118: ='1.ข้อมูลส่วนบุคคล'!G$32 -> 2560-07-05 | AC118: 25600705 | AD118: 00:00:00 | AE118: 19000100 | AF118: -6600605 | AG118: 0 | AH118: 0 | AI118: 0 | AJ118: 0 | AK118: 0 | AO118: 0 | AP118: =IFERROR((VLOOKUP(AO118,'2.การมอบหมายงานสอน'!$AK$5:$AL$24,2,FALSE)*60/1440),0) -> 0
A119: ='1.ข้อมูลส่วนบุคคล'!$F$5 -> 12345678912345 | K119: =IF('1.ข้อมูลส่วนบุคคล'!C$21="เชี่ยวชาญ",IF(H119="-","",IF(H119='1.ข้อมูลส่วนบุคคล'!F$26,"เกี่ยวข้อง","ไม่เกี่ยวข้อง")),IF('1.ข้อมูลส่วนบุคคล'!C$21="เชี่ยวชาญพิเศษ",IF(H119="-","",IF(H119='1.ข้อมูลส่วนบุคคล'!F$26,"เกี่ยวข้อง","ไม่เกี่ยวข้อง")),"")) ->  | V119: 0 | W119: 0 | Z119: 0 | AA119: 0 | AB119: ='1.ข้อมูลส่วนบุคคล'!G$32 -> 2560-07-05 | AC119: 25600705 | AD119: 00:00:00 | AE119: 19000100 | AF119: -6600605 | AG119: 0 | AH119: 0 | AI119: 0 | AJ119: 0 | AK119: 0 | AO119: 0 | AP119: =IFERROR((VLOOKUP(AO119,'2.การมอบหมายงานสอน'!$AK$5:$AL$24,2,FALSE)*60/1440),0) -> 0
A120: ='1.ข้อมูลส่วนบุคคล'!$F$5 -> 12345678912345 | K120: =IF('1.ข้อมูลส่วนบุคคล'!C$21="เชี่ยวชาญ",IF(H120="-","",IF(H120='1.ข้อมูลส่วนบุคคล'!F$26,"เกี่ยวข้อง","ไม่เกี่ยวข้อง")),IF('1.ข้อมูลส่วนบุคคล'!C$21="เชี่ยวชาญพิเศษ",IF(H120="-","",IF(H120='1.ข้อมูลส่วนบุคคล'!F$26,"เกี่ยวข้อง","ไม่เกี่ยวข้อง")),"")) ->  | V120: 0 | W120: 0 | Z120: 0 | AA120: 0 | AB120: ='1.ข้อมูลส่วนบุคคล'!G$32 -> 2560-07-05 | AC120: 25600705 | AD120: 00:00:00 | AE120: 19000100 | AF120: -6600605 | AG120: 0 | AH120: 0 | AI120: 0 | AJ120: 0 | AK120: 0 | AO120: 0 | AP120: =IFERROR((VLOOKUP(AO120,'2.การมอบหมายงานสอน'!$AK$5:$AL$24,2,FALSE)*60/1440),0) -> 0
A121: ='1.ข้อมูลส่วนบุคคล'!$F$5 -> 12345678912345 | K121: =IF('1.ข้อมูลส่วนบุคคล'!C$21="เชี่ยวชาญ",IF(H121="-","",IF(H121='1.ข้อมูลส่วนบุคคล'!F$26,"เกี่ยวข้อง","ไม่เกี่ยวข้อง")),IF('1.ข้อมูลส่วนบุคคล'!C$21="เชี่ยวชาญพิเศษ",IF(H121="-","",IF(H121='1.ข้อมูลส่วนบุคคล'!F$26,"เกี่ยวข้อง","ไม่เกี่ยวข้อง")),"")) ->  | V121: 0 | W121: 0 | Z121: 0 | AA121: 0 | AB121: ='1.ข้อมูลส่วนบุคคล'!G$32 -> 2560-07-05 | AC121: 25600705 | AD121: 00:00:00 | AE121: 19000100 | AF121: -6600605 | AG121: 0 | AH121: 0 | AI121: 0 | AJ121: 0 | AK121: 0 | AO121: 0 | AP121: =IFERROR((VLOOKUP(AO121,'2.การมอบหมายงานสอน'!$AK$5:$AL$24,2,FALSE)*60/1440),0) -> 0
A122: ='1.ข้อมูลส่วนบุคคล'!$F$5 -> 12345678912345 | K122: =IF('1.ข้อมูลส่วนบุคคล'!C$21="เชี่ยวชาญ",IF(H122="-","",IF(H122='1.ข้อมูลส่วนบุคคล'!F$26,"เกี่ยวข้อง","ไม่เกี่ยวข้อง")),IF('1.ข้อมูลส่วนบุคคล'!C$21="เชี่ยวชาญพิเศษ",IF(H122="-","",IF(H122='1.ข้อมูลส่วนบุคคล'!F$26,"เกี่ยวข้อง","ไม่เกี่ยวข้อง")),"")) ->  | V122: 0 | W122: 0 | Z122: 0 | AA122: 0 | AB122: ='1.ข้อมูลส่วนบุคคล'!G$32 -> 2560-07-05 | AC122: 25600705 | AD122: 00:00:00 | AE122: 19000100 | AF122: -6600605 | AG122: 0 | AH122: 0 | AI122: 0 | AJ122: 0 | AK122: 0 | AO122: 0 | AP122: =IFERROR((VLOOKUP(AO122,'2.การมอบหมายงานสอน'!$AK$5:$AL$24,2,FALSE)*60/1440),0) -> 0
A123: ='1.ข้อมูลส่วนบุคคล'!$F$5 -> 12345678912345 | K123: =IF('1.ข้อมูลส่วนบุคคล'!C$21="เชี่ยวชาญ",IF(H123="-","",IF(H123='1.ข้อมูลส่วนบุคคล'!F$26,"เกี่ยวข้อง","ไม่เกี่ยวข้อง")),IF('1.ข้อมูลส่วนบุคคล'!C$21="เชี่ยวชาญพิเศษ",IF(H123="-","",IF(H123='1.ข้อมูลส่วนบุคคล'!F$26,"เกี่ยวข้อง","ไม่เกี่ยวข้อง")),"")) ->  | V123: 0 | W123: 0 | Z123: 0 | AA123: 0 | AB123: ='1.ข้อมูลส่วนบุคคล'!G$32 -> 2560-07-05 | AC123: 25600705 | AD123: 00:00:00 | AE123: 19000100 | AF123: -6600605 | AG123: 0 | AH123: 0 | AI123: 0 | AJ123: 0 | AK123: 0 | AO123: 0 | AP123: =IFERROR((VLOOKUP(AO123,'2.การมอบหมายงานสอน'!$AK$5:$AL$24,2,FALSE)*60/1440),0) -> 0
A124: ='1.ข้อมูลส่วนบุคคล'!$F$5 -> 12345678912345 | K124: =IF('1.ข้อมูลส่วนบุคคล'!C$21="เชี่ยวชาญ",IF(H124="-","",IF(H124='1.ข้อมูลส่วนบุคคล'!F$26,"เกี่ยวข้อง","ไม่เกี่ยวข้อง")),IF('1.ข้อมูลส่วนบุคคล'!C$21="เชี่ยวชาญพิเศษ",IF(H124="-","",IF(H124='1.ข้อมูลส่วนบุคคล'!F$26,"เกี่ยวข้อง","ไม่เกี่ยวข้อง")),"")) ->  | V124: 0 | W124: 0 | Z124: 0 | AA124: 0 | AB124: ='1.ข้อมูลส่วนบุคคล'!G$32 -> 2560-07-05 | AC124: 25600705 | AD124: 00:00:00 | AE124: 19000100 | AF124: -6600605 | AG124: 0 | AH124: 0 | AI124: 0 | AJ124: 0 | AK124: 0 | AO124: 0 | AP124: =IFERROR((VLOOKUP(AO124,'2.การมอบหมายงานสอน'!$AK$5:$AL$24,2,FALSE)*60/1440),0) -> 0
A125: ='1.ข้อมูลส่วนบุคคล'!$F$5 -> 12345678912345 | K125: =IF('1.ข้อมูลส่วนบุคคล'!C$21="เชี่ยวชาญ",IF(H125="-","",IF(H125='1.ข้อมูลส่วนบุคคล'!F$26,"เกี่ยวข้อง","ไม่เกี่ยวข้อง")),IF('1.ข้อมูลส่วนบุคคล'!C$21="เชี่ยวชาญพิเศษ",IF(H125="-","",IF(H125='1.ข้อมูลส่วนบุคคล'!F$26,"เกี่ยวข้อง","ไม่เกี่ยวข้อง")),"")) ->  | V125: 0 | W125: 0 | Z125: 0 | AA125: 0 | AB125: ='1.ข้อมูลส่วนบุคคล'!G$32 -> 2560-07-05 | AC125: 25600705 | AD125: 00:00:00 | AE125: 19000100 | AF125: -6600605 | AG125: 0 | AH125: 0 | AI125: 0 | AJ125: 0 | AK125: 0 | AO125: 0 | AP125: =IFERROR((VLOOKUP(AO125,'2.การมอบหมายงานสอน'!$AK$5:$AL$24,2,FALSE)*60/1440),0) -> 0
A126: ='1.ข้อมูลส่วนบุคคล'!$F$5 -> 12345678912345 | K126: =IF('1.ข้อมูลส่วนบุคคล'!C$21="เชี่ยวชาญ",IF(H126="-","",IF(H126='1.ข้อมูลส่วนบุคคล'!F$26,"เกี่ยวข้อง","ไม่เกี่ยวข้อง")),IF('1.ข้อมูลส่วนบุคคล'!C$21="เชี่ยวชาญพิเศษ",IF(H126="-","",IF(H126='1.ข้อมูลส่วนบุคคล'!F$26,"เกี่ยวข้อง","ไม่เกี่ยวข้อง")),"")) ->  | V126: 0 | W126: 0 | Z126: 0 | AA126: 0 | AB126: ='1.ข้อมูลส่วนบุคคล'!G$32 -> 2560-07-05 | AC126: 25600705 | AD126: 00:00:00 | AE126: 19000100 | AF126: -6600605 | AG126: 0 | AH126: 0 | AI126: 0 | AJ126: 0 | AK126: 0 | AO126: 0 | AP126: =IFERROR((VLOOKUP(AO126,'2.การมอบหมายงานสอน'!$AK$5:$AL$24,2,FALSE)*60/1440),0) -> 0
A127: ='1.ข้อมูลส่วนบุคคล'!$F$5 -> 12345678912345 | K127: =IF('1.ข้อมูลส่วนบุคคล'!C$21="เชี่ยวชาญ",IF(H127="-","",IF(H127='1.ข้อมูลส่วนบุคคล'!F$26,"เกี่ยวข้อง","ไม่เกี่ยวข้อง")),IF('1.ข้อมูลส่วนบุคคล'!C$21="เชี่ยวชาญพิเศษ",IF(H127="-","",IF(H127='1.ข้อมูลส่วนบุคคล'!F$26,"เกี่ยวข้อง","ไม่เกี่ยวข้อง")),"")) ->  | V127: 0 | W127: 0 | Z127: 0 | AA127: 0 | AB127: ='1.ข้อมูลส่วนบุคคล'!G$32 -> 2560-07-05 | AC127: 25600705 | AD127: 00:00:00 | AE127: 19000100 | AF127: -6600605 | AG127: 0 | AH127: 0 | AI127: 0 | AJ127: 0 | AK127: 0 | AO127: 0 | AP127: =IFERROR((VLOOKUP(AO127,'2.การมอบหมายงานสอน'!$AK$5:$AL$24,2,FALSE)*60/1440),0) -> 0
A128: ='1.ข้อมูลส่วนบุคคล'!$F$5 -> 12345678912345 | K128: =IF('1.ข้อมูลส่วนบุคคล'!C$21="เชี่ยวชาญ",IF(H128="-","",IF(H128='1.ข้อมูลส่วนบุคคล'!F$26,"เกี่ยวข้อง","ไม่เกี่ยวข้อง")),IF('1.ข้อมูลส่วนบุคคล'!C$21="เชี่ยวชาญพิเศษ",IF(H128="-","",IF(H128='1.ข้อมูลส่วนบุคคล'!F$26,"เกี่ยวข้อง","ไม่เกี่ยวข้อง")),"")) ->  | V128: 0 | W128: 0 | Z128: 0 | AA128: 0 | AB128: ='1.ข้อมูลส่วนบุคคล'!G$32 -> 2560-07-05 | AC128: 25600705 | AD128: 00:00:00 | AE128: 19000100 | AF128: -6600605 | AG128: 0 | AH128: 0 | AI128: 0 | AJ128: 0 | AK128: 0 | AO128: 0 | AP128: =IFERROR((VLOOKUP(AO128,'2.การมอบหมายงานสอน'!$AK$5:$AL$24,2,FALSE)*60/1440),0) -> 0
A129: ='1.ข้อมูลส่วนบุคคล'!$F$5 -> 12345678912345 | K129: =IF('1.ข้อมูลส่วนบุคคล'!C$21="เชี่ยวชาญ",IF(H129="-","",IF(H129='1.ข้อมูลส่วนบุคคล'!F$26,"เกี่ยวข้อง","ไม่เกี่ยวข้อง")),IF('1.ข้อมูลส่วนบุคคล'!C$21="เชี่ยวชาญพิเศษ",IF(H129="-","",IF(H129='1.ข้อมูลส่วนบุคคล'!F$26,"เกี่ยวข้อง","ไม่เกี่ยวข้อง")),"")) ->  | V129: 0 | W129: 0 | Z129: 0 | AA129: 0 | AB129: ='1.ข้อมูลส่วนบุคคล'!G$32 -> 2560-07-05 | AC129: 25600705 | AD129: 00:00:00 | AE129: 19000100 | AF129: -6600605 | AG129: 0 | AH129: 0 | AI129: 0 | AJ129: 0 | AK129: 0 | AO129: 0 | AP129: =IFERROR((VLOOKUP(AO129,'2.การมอบหมายงานสอน'!$AK$5:$AL$24,2,FALSE)*60/1440),0) -> 0
A130: ='1.ข้อมูลส่วนบุคคล'!$F$5 -> 12345678912345 | K130: =IF('1.ข้อมูลส่วนบุคคล'!C$21="เชี่ยวชาญ",IF(H130="-","",IF(H130='1.ข้อมูลส่วนบุคคล'!F$26,"เกี่ยวข้อง","ไม่เกี่ยวข้อง")),IF('1.ข้อมูลส่วนบุคคล'!C$21="เชี่ยวชาญพิเศษ",IF(H130="-","",IF(H130='1.ข้อมูลส่วนบุคคล'!F$26,"เกี่ยวข้อง","ไม่เกี่ยวข้อง")),"")) ->  | V130: 0 | W130: 0 | Z130: 0 | AA130: 0 | AB130: ='1.ข้อมูลส่วนบุคคล'!G$32 -> 2560-07-05 | AC130: 25600705 | AD130: 00:00:00 | AE130: 19000100 | AF130: -6600605 | AG130: 0 | AH130: 0 | AI130: 0 | AJ130: 0 | AK130: 0 | AO130: 0 | AP130: =IFERROR((VLOOKUP(AO130,'2.การมอบหมายงานสอน'!$AK$5:$AL$24,2,FALSE)*60/1440),0) -> 0
A131: ='1.ข้อมูลส่วนบุคคล'!$F$5 -> 12345678912345 | K131: =IF('1.ข้อมูลส่วนบุคคล'!C$21="เชี่ยวชาญ",IF(H131="-","",IF(H131='1.ข้อมูลส่วนบุคคล'!F$26,"เกี่ยวข้อง","ไม่เกี่ยวข้อง")),IF('1.ข้อมูลส่วนบุคคล'!C$21="เชี่ยวชาญพิเศษ",IF(H131="-","",IF(H131='1.ข้อมูลส่วนบุคคล'!F$26,"เกี่ยวข้อง","ไม่เกี่ยวข้อง")),"")) ->  | V131: 0 | W131: 0 | Z131: 0 | AA131: 0 | AB131: ='1.ข้อมูลส่วนบุคคล'!G$32 -> 2560-07-05 | AC131: 25600705 | AD131: 00:00:00 | AE131: 19000100 | AF131: -6600605 | AG131: 0 | AH131: 0 | AI131: 0 | AJ131: 0 | AK131: 0 | AO131: 0 | AP131: =IFERROR((VLOOKUP(AO131,'2.การมอบหมายงานสอน'!$AK$5:$AL$24,2,FALSE)*60/1440),0) -> 0
A132: ='1.ข้อมูลส่วนบุคคล'!$F$5 -> 12345678912345 | K132: =IF('1.ข้อมูลส่วนบุคคล'!C$21="เชี่ยวชาญ",IF(H132="-","",IF(H132='1.ข้อมูลส่วนบุคคล'!F$26,"เกี่ยวข้อง","ไม่เกี่ยวข้อง")),IF('1.ข้อมูลส่วนบุคคล'!C$21="เชี่ยวชาญพิเศษ",IF(H132="-","",IF(H132='1.ข้อมูลส่วนบุคคล'!F$26,"เกี่ยวข้อง","ไม่เกี่ยวข้อง")),"")) ->  | V132: 0 | W132: 0 | Z132: 0 | AA132: 0 | AB132: ='1.ข้อมูลส่วนบุคคล'!G$32 -> 2560-07-05 | AC132: 25600705 | AD132: 00:00:00 | AE132: 19000100 | AF132: -6600605 | AG132: 0 | AH132: 0 | AI132: 0 | AJ132: 0 | AK132: 0 | AO132: 0 | AP132: =IFERROR((VLOOKUP(AO132,'2.การมอบหมายงานสอน'!$AK$5:$AL$24,2,FALSE)*60/1440),0) -> 0
A133: ='1.ข้อมูลส่วนบุคคล'!$F$5 -> 12345678912345 | K133: =IF('1.ข้อมูลส่วนบุคคล'!C$21="เชี่ยวชาญ",IF(H133="-","",IF(H133='1.ข้อมูลส่วนบุคคล'!F$26,"เกี่ยวข้อง","ไม่เกี่ยวข้อง")),IF('1.ข้อมูลส่วนบุคคล'!C$21="เชี่ยวชาญพิเศษ",IF(H133="-","",IF(H133='1.ข้อมูลส่วนบุคคล'!F$26,"เกี่ยวข้อง","ไม่เกี่ยวข้อง")),"")) ->  | V133: 0 | W133: 0 | Z133: 0 | AA133: 0 | AB133: ='1.ข้อมูลส่วนบุคคล'!G$32 -> 2560-07-05 | AC133: 25600705 | AD133: 00:00:00 | AE133: 19000100 | AF133: -6600605 | AG133: 0 | AH133: 0 | AI133: 0 | AJ133: 0 | AK133: 0 | AO133: 0 | AP133: =IFERROR((VLOOKUP(AO133,'2.การมอบหมายงานสอน'!$AK$5:$AL$24,2,FALSE)*60/1440),0) -> 0
A134: ='1.ข้อมูลส่วนบุคคล'!$F$5 -> 12345678912345 | K134: =IF('1.ข้อมูลส่วนบุคคล'!C$21="เชี่ยวชาญ",IF(H134="-","",IF(H134='1.ข้อมูลส่วนบุคคล'!F$26,"เกี่ยวข้อง","ไม่เกี่ยวข้อง")),IF('1.ข้อมูลส่วนบุคคล'!C$21="เชี่ยวชาญพิเศษ",IF(H134="-","",IF(H134='1.ข้อมูลส่วนบุคคล'!F$26,"เกี่ยวข้อง","ไม่เกี่ยวข้อง")),"")) ->  | V134: 0 | W134: 0 | Z134: 0 | AA134: 0 | AB134: ='1.ข้อมูลส่วนบุคคล'!G$32 -> 2560-07-05 | AC134: 25600705 | AD134: 00:00:00 | AE134: 19000100 | AF134: -6600605 | AG134: 0 | AH134: 0 | AI134: 0 | AJ134: 0 | AK134: 0 | AO134: 0 | AP134: =IFERROR((VLOOKUP(AO134,'2.การมอบหมายงานสอน'!$AK$5:$AL$24,2,FALSE)*60/1440),0) -> 0
A135: ='1.ข้อมูลส่วนบุคคล'!$F$5 -> 12345678912345 | K135: =IF('1.ข้อมูลส่วนบุคคล'!C$21="เชี่ยวชาญ",IF(H135="-","",IF(H135='1.ข้อมูลส่วนบุคคล'!F$26,"เกี่ยวข้อง","ไม่เกี่ยวข้อง")),IF('1.ข้อมูลส่วนบุคคล'!C$21="เชี่ยวชาญพิเศษ",IF(H135="-","",IF(H135='1.ข้อมูลส่วนบุคคล'!F$26,"เกี่ยวข้อง","ไม่เกี่ยวข้อง")),"")) ->  | U135: =IF(LEFT(Q135,3)="ไม่",0,IF(L135="","",B135)) ->  | V135: =IF(K135="เกี่ยวข้อง",1,0) -> 0 | W135: 0 | Z135: 0 | AA135: 0 | AB135: ='1.ข้อมูลส่วนบุคคล'!G$32 -> 2560-07-05 | AC135: 25600705 | AD135: 00:00:00 | AE135: 19000100 | AF135: -6600605 | AG135: 0 | AH135: 0 | AI135: 0 | AJ135: 0 | AK135: =IF(O135="สอนซ่อมเสริม",1,0) -> 0 | AL135: =B135&+D135&+E135&+Q135 ->  | AM135: =C135&+D135 ->  | AO135: =C135*10+D135 -> 0 | AP135: =IFERROR((VLOOKUP(AO135,'2.การมอบหมายงานสอน'!$AK$5:$AL$24,2,FALSE)*60/1440),0) -> 0
A136: ='1.ข้อมูลส่วนบุคคล'!$F$5 -> 12345678912345 | B136: =IF(AF136<0,"",IF(AND(AD136>=AB136,AD136<DATE(YEAR(AB136)+1,MONTH(AB136),DAY(AB136))),1,IF(AND(AD136>=DATE(YEAR(AB136)+1,MONTH(AB136),DAY(AB136)),AD136<DATE(YEAR(AB136)+2,MONTH(AB136),DAY(AB136))),2,IF(AND(AD136>=DATE(YEAR(AB136)+2,MONTH(AB136),DAY(AB136)),AD136<DATE(YEAR(AB136)+3,MONTH(AB136),DAY(AB136))),3,IF(AND(AD136>=DATE(YEAR(AB136)+3,MONTH(AB136),DAY(AB136)),AD136<DATE(YEAR(AB136)+4,MONTH(AB136),DAY(AB136))),4,IF(AND(AD136>=DATE(YEAR(AB136)+4,MONTH(AB136),DAY(AB136)),AD136<DATE(YEAR(AB136)+5,MONTH(AB136),DAY(AB136))),5,IF(AND(AD136>=DATE(YEAR(AB136)+5,MONTH(AB136),DAY(AB136)),AD136<DATE(YEAR(AB136)+6,MONTH(AB136),DAY(AB136))),6,IF(AND(AD136>=DATE(YEAR(AB136)+6,MONTH(AB136),DAY(AB136)),AD136<DATE(YEAR(AB136)+7,MONTH(AB136),DAY(AB136))),7,IF(AND(AD136>=DATE(YEAR(AB136)+7,MONTH(AB136),DAY(AB136)),AD136<DATE(YEAR(AB136)+8,MONTH(AB136),DAY(AB136))),8,IF(AND(AD136>=DATE(YEAR(AB136)+8,MONTH(AB136),DAY(AB136)),AD136<DATE(YEAR(AB136)+9,MONTH(AB136),DAY(AB136))),9,IF(AND(AD136>=DATE(YEAR(AB136)+9,MONTH(AB136),DAY(AB136)),AD136<DATE(YEAR(AB136)+100,MONTH(AB136),DAY(AB136))),10,0))))))))))) ->  | K136: =IF('1.ข้อมูลส่วนบุคคล'!C$21="เชี่ยวชาญ",IF(H136="-","",IF(H136='1.ข้อมูลส่วนบุคคล'!F$26,"เกี่ยวข้อง","ไม่เกี่ยวข้อง")),IF('1.ข้อมูลส่วนบุคคล'!C$21="เชี่ยวชาญพิเศษ",IF(H136="-","",IF(H136='1.ข้อมูลส่วนบุคคล'!F$26,"เกี่ยวข้อง","ไม่เกี่ยวข้อง")),"")) ->  | R136: =S136 ->  | S136: =IF(C136<>"","3-"&+C136&+D136&+E136&+J136&+"..."&+LEFT(I136,20),"") ->  | V136: 0 | W136: 0 | Z136: =IF(Q136="ไม่ถูกต้อง",0,IF(N136="นาที",(L136*M136)/1440,(L136*M136*60)/1440)) -> 0 | AA136: =IF(ISBLANK(E136),0,IF(ISBLANK(D136),IF(AND(C136=C135,E136=E135),0,IF(AND(C136=C135,E136=(E135+1)),0,IF(AND(C136=(C135+1),E136=1,E135>=18),0,1))),IF(AND(C136=C135,D136=D135,E136=E135),0,IF(AND(C136=C135,D136=D135,E136=(E135+1)),0,IF(AND(C136=C135,D136=(D135+1),E136=1,E135>=18),0,IF(AND(C136=(C135+1),D136=1,E136=1,E135>=18),0,1)))))) -> 0 | AB136: ='1.ข้อมูลส่วนบุคคล'!G$32 -> 2560-07-05 | AC136: =TEXT(AB136,"yyyy")&+IF(TEXT(AB136,"mm")>9,TEXT(AB136,"mm"),"0"&+TEXT(AB136,"mm"))&+IF(TEXT(AB136,"dd")>9,TEXT(AB136,"dd"),"0"&+TEXT(AB136,"dd")) -> 25600705 | AD136: =G136 -> 00:00:00 | AE136: =TEXT(AD136,"yyyy")&+IF(TEXT(AD136,"mm")>9,TEXT(AD136,"mm"),"0"&+TEXT(AD136,"mm"))&+IF(TEXT(AD136,"dd")>9,TEXT(AD136,"dd"),"0"&+TEXT(AD136,"dd")) -> 19000100 | AF136: =AE136-AC136 -> -6600605 | AG136: =IF(LEFT(P136,1)="5",1,0) -> 0 | AH136: =IF(AG136=1,IF(IF(AN136=AN135,0,AP136-IF(AND(LEFT(Q136,3)<>"ไม่",AK136=0),SUMIFS(Z136:Z186,AN136:AN186,AN136,AK136:AK186,0),0))<0,0,IF(AN136=AN135,0,AP136-IF(AND(LEFT(Q136,3)<>"ไม่",AK136=0),SUMIFS(Z136:Z186,AN136:AN186,AN136,AK136:AK186,0),0))),0) -> 0 | AI136: 0 | AJ136: =IF(IFERROR(VLOOKUP(AO136,AQ$7:AS$26,3,FALSE),0)-IFERROR(VLOOKUP(AO136,AQ$7:AS$26,2,FALSE),0)<0,1,0) -> 0 | AK136: 0 | AN136: =C136&+D136&+E136 ->  | AO136: 0 | AP136: =IFERROR((VLOOKUP(AO136,'2.การมอบหมายงานสอน'!$AK$5:$AL$24,2,FALSE)*60/1440),0) -> 0
A137: ='1.ข้อมูลส่วนบุคคล'!$F$5 -> 12345678912345 | K137: =IF('1.ข้อมูลส่วนบุคคล'!C$21="เชี่ยวชาญ",IF(H137="-","",IF(H137='1.ข้อมูลส่วนบุคคล'!F$26,"เกี่ยวข้อง","ไม่เกี่ยวข้อง")),IF('1.ข้อมูลส่วนบุคคล'!C$21="เชี่ยวชาญพิเศษ",IF(H137="-","",IF(H137='1.ข้อมูลส่วนบุคคล'!F$26,"เกี่ยวข้อง","ไม่เกี่ยวข้อง")),"")) ->  | V137: 0 | W137: =IF(AN137=AN136,0,IF(OR(LEFT(Q137,3)="ไม่",Q137=""),"",IF(OR(LEFT(P137,1)="1",LEFT(P137,1)="2",LEFT(P137,1)="3",LEFT(P137,1)="4",LEFT(P137,1)="5"),0,IF(SUMIFS(Z137:Z187,AL137:AL187,B137&+D137&+E137&+"ถูกต้อง",AK137:AK187,0)<AP137,1,0)))) -> 0 | Z137: 0 | AA137: 0 | AB137: ='1.ข้อมูลส่วนบุคคล'!G$32 -> 2560-07-05 | AC137: 25600705 | AD137: 00:00:00 | AE137: 19000100 | AF137: -6600605 | AG137: 0 | AH137: 0 | AI137: 0 | AJ137: 0 | AK137: 0 | AO137: 0 | AP137: =IFERROR((VLOOKUP(AO137,'2.การมอบหมายงานสอน'!$AK$5:$AL$24,2,FALSE)*60/1440),0) -> 0
A138: ='1.ข้อมูลส่วนบุคคล'!$F$5 -> 12345678912345 | K138: =IF('1.ข้อมูลส่วนบุคคล'!C$21="เชี่ยวชาญ",IF(H138="-","",IF(H138='1.ข้อมูลส่วนบุคคล'!F$26,"เกี่ยวข้อง","ไม่เกี่ยวข้อง")),IF('1.ข้อมูลส่วนบุคคล'!C$21="เชี่ยวชาญพิเศษ",IF(H138="-","",IF(H138='1.ข้อมูลส่วนบุคคล'!F$26,"เกี่ยวข้อง","ไม่เกี่ยวข้อง")),"")) ->  | V138: 0 | W138: 0 | Z138: 0 | AA138: 0 | AB138: ='1.ข้อมูลส่วนบุคคล'!G$32 -> 2560-07-05 | AC138: 25600705 | AD138: 00:00:00 | AE138: 19000100 | AF138: -6600605 | AG138: 0 | AH138: 0 | AI138: 0 | AJ138: 0 | AK138: 0 | AO138: 0 | AP138: =IFERROR((VLOOKUP(AO138,'2.การมอบหมายงานสอน'!$AK$5:$AL$24,2,FALSE)*60/1440),0) -> 0
A139: ='1.ข้อมูลส่วนบุคคล'!$F$5 -> 12345678912345 | K139: =IF('1.ข้อมูลส่วนบุคคล'!C$21="เชี่ยวชาญ",IF(H139="-","",IF(H139='1.ข้อมูลส่วนบุคคล'!F$26,"เกี่ยวข้อง","ไม่เกี่ยวข้อง")),IF('1.ข้อมูลส่วนบุคคล'!C$21="เชี่ยวชาญพิเศษ",IF(H139="-","",IF(H139='1.ข้อมูลส่วนบุคคล'!F$26,"เกี่ยวข้อง","ไม่เกี่ยวข้อง")),"")) ->  | V139: 0 | W139: 0 | Z139: 0 | AA139: 0 | AB139: ='1.ข้อมูลส่วนบุคคล'!G$32 -> 2560-07-05 | AC139: 25600705 | AD139: 00:00:00 | AE139: 19000100 | AF139: -6600605 | AG139: 0 | AH139: 0 | AI139: =IF(OR(O139="สอนซ่อมเสริม",O139="สอนแทน"),Z139,0) -> 0 | AJ139: 0 | AK139: 0 | AO139: 0 | AP139: =IFERROR((VLOOKUP(AO139,'2.การมอบหมายงานสอน'!$AK$5:$AL$24,2,FALSE)*60/1440),0) -> 0
A140: ='1.ข้อมูลส่วนบุคคล'!$F$5 -> 12345678912345 | K140: =IF('1.ข้อมูลส่วนบุคคล'!C$21="เชี่ยวชาญ",IF(H140="-","",IF(H140='1.ข้อมูลส่วนบุคคล'!F$26,"เกี่ยวข้อง","ไม่เกี่ยวข้อง")),IF('1.ข้อมูลส่วนบุคคล'!C$21="เชี่ยวชาญพิเศษ",IF(H140="-","",IF(H140='1.ข้อมูลส่วนบุคคล'!F$26,"เกี่ยวข้อง","ไม่เกี่ยวข้อง")),"")) ->  | V140: 0 | W140: 0 | Z140: 0 | AA140: 0 | AB140: ='1.ข้อมูลส่วนบุคคล'!G$32 -> 2560-07-05 | AC140: 25600705 | AD140: 00:00:00 | AE140: 19000100 | AF140: -6600605 | AG140: 0 | AH140: 0 | AI140: 0 | AJ140: 0 | AK140: 0 | AO140: 0 | AP140: =IFERROR((VLOOKUP(AO140,'2.การมอบหมายงานสอน'!$AK$5:$AL$24,2,FALSE)*60/1440),0) -> 0
A141: ='1.ข้อมูลส่วนบุคคล'!$F$5 -> 12345678912345 | K141: =IF('1.ข้อมูลส่วนบุคคล'!C$21="เชี่ยวชาญ",IF(H141="-","",IF(H141='1.ข้อมูลส่วนบุคคล'!F$26,"เกี่ยวข้อง","ไม่เกี่ยวข้อง")),IF('1.ข้อมูลส่วนบุคคล'!C$21="เชี่ยวชาญพิเศษ",IF(H141="-","",IF(H141='1.ข้อมูลส่วนบุคคล'!F$26,"เกี่ยวข้อง","ไม่เกี่ยวข้อง")),"")) ->  | V141: 0 | W141: 0 | Z141: 0 | AA141: 0 | AB141: ='1.ข้อมูลส่วนบุคคล'!G$32 -> 2560-07-05 | AC141: 25600705 | AD141: 00:00:00 | AE141: 19000100 | AF141: -6600605 | AG141: 0 | AH141: 0 | AI141: 0 | AJ141: 0 | AK141: 0 | AO141: 0 | AP141: =IFERROR((VLOOKUP(AO141,'2.การมอบหมายงานสอน'!$AK$5:$AL$24,2,FALSE)*60/1440),0) -> 0
A142: ='1.ข้อมูลส่วนบุคคล'!$F$5 -> 12345678912345 | K142: =IF('1.ข้อมูลส่วนบุคคล'!C$21="เชี่ยวชาญ",IF(H142="-","",IF(H142='1.ข้อมูลส่วนบุคคล'!F$26,"เกี่ยวข้อง","ไม่เกี่ยวข้อง")),IF('1.ข้อมูลส่วนบุคคล'!C$21="เชี่ยวชาญพิเศษ",IF(H142="-","",IF(H142='1.ข้อมูลส่วนบุคคล'!F$26,"เกี่ยวข้อง","ไม่เกี่ยวข้อง")),"")) ->  | V142: 0 | W142: 0 | Z142: 0 | AA142: 0 | AB142: ='1.ข้อมูลส่วนบุคคล'!G$32 -> 2560-07-05 | AC142: 25600705 | AD142: 00:00:00 | AE142: 19000100 | AF142: -6600605 | AG142: 0 | AH142: 0 | AI142: 0 | AJ142: 0 | AK142: 0 | AO142: 0 | AP142: =IFERROR((VLOOKUP(AO142,'2.การมอบหมายงานสอน'!$AK$5:$AL$24,2,FALSE)*60/1440),0) -> 0
A143: ='1.ข้อมูลส่วนบุคคล'!$F$5 -> 12345678912345 | K143: =IF('1.ข้อมูลส่วนบุคคล'!C$21="เชี่ยวชาญ",IF(H143="-","",IF(H143='1.ข้อมูลส่วนบุคคล'!F$26,"เกี่ยวข้อง","ไม่เกี่ยวข้อง")),IF('1.ข้อมูลส่วนบุคคล'!C$21="เชี่ยวชาญพิเศษ",IF(H143="-","",IF(H143='1.ข้อมูลส่วนบุคคล'!F$26,"เกี่ยวข้อง","ไม่เกี่ยวข้อง")),"")) ->  | V143: 0 | W143: 0 | Z143: 0 | AA143: 0 | AB143: ='1.ข้อมูลส่วนบุคคล'!G$32 -> 2560-07-05 | AC143: 25600705 | AD143: 00:00:00 | AE143: 19000100 | AF143: -6600605 | AG143: 0 | AH143: 0 | AI143: 0 | AJ143: 0 | AK143: 0 | AO143: 0 | AP143: =IFERROR((VLOOKUP(AO143,'2.การมอบหมายงานสอน'!$AK$5:$AL$24,2,FALSE)*60/1440),0) -> 0
A144: ='1.ข้อมูลส่วนบุคคล'!$F$5 -> 12345678912345 | K144: =IF('1.ข้อมูลส่วนบุคคล'!C$21="เชี่ยวชาญ",IF(H144="-","",IF(H144='1.ข้อมูลส่วนบุคคล'!F$26,"เกี่ยวข้อง","ไม่เกี่ยวข้อง")),IF('1.ข้อมูลส่วนบุคคล'!C$21="เชี่ยวชาญพิเศษ",IF(H144="-","",IF(H144='1.ข้อมูลส่วนบุคคล'!F$26,"เกี่ยวข้อง","ไม่เกี่ยวข้อง")),"")) ->  | V144: 0 | W144: 0 | Z144: 0 | AA144: 0 | AB144: ='1.ข้อมูลส่วนบุคคล'!G$32 -> 2560-07-05 | AC144: 25600705 | AD144: 00:00:00 | AE144: 19000100 | AF144: -6600605 | AG144: 0 | AH144: 0 | AI144: 0 | AJ144: 0 | AK144: 0 | AO144: 0 | AP144: =IFERROR((VLOOKUP(AO144,'2.การมอบหมายงานสอน'!$AK$5:$AL$24,2,FALSE)*60/1440),0) -> 0
A145: ='1.ข้อมูลส่วนบุคคล'!$F$5 -> 12345678912345 | K145: =IF('1.ข้อมูลส่วนบุคคล'!C$21="เชี่ยวชาญ",IF(H145="-","",IF(H145='1.ข้อมูลส่วนบุคคล'!F$26,"เกี่ยวข้อง","ไม่เกี่ยวข้อง")),IF('1.ข้อมูลส่วนบุคคล'!C$21="เชี่ยวชาญพิเศษ",IF(H145="-","",IF(H145='1.ข้อมูลส่วนบุคคล'!F$26,"เกี่ยวข้อง","ไม่เกี่ยวข้อง")),"")) ->  | V145: 0 | W145: 0 | Z145: 0 | AA145: 0 | AB145: ='1.ข้อมูลส่วนบุคคล'!G$32 -> 2560-07-05 | AC145: 25600705 | AD145: 00:00:00 | AE145: 19000100 | AF145: -6600605 | AG145: 0 | AH145: 0 | AI145: 0 | AJ145: 0 | AK145: 0 | AO145: 0 | AP145: =IFERROR((VLOOKUP(AO145,'2.การมอบหมายงานสอน'!$AK$5:$AL$24,2,FALSE)*60/1440),0) -> 0
A146: ='1.ข้อมูลส่วนบุคคล'!$F$5 -> 12345678912345 | K146: =IF('1.ข้อมูลส่วนบุคคล'!C$21="เชี่ยวชาญ",IF(H146="-","",IF(H146='1.ข้อมูลส่วนบุคคล'!F$26,"เกี่ยวข้อง","ไม่เกี่ยวข้อง")),IF('1.ข้อมูลส่วนบุคคล'!C$21="เชี่ยวชาญพิเศษ",IF(H146="-","",IF(H146='1.ข้อมูลส่วนบุคคล'!F$26,"เกี่ยวข้อง","ไม่เกี่ยวข้อง")),"")) ->  | V146: 0 | W146: 0 | Z146: 0 | AA146: 0 | AB146: ='1.ข้อมูลส่วนบุคคล'!G$32 -> 2560-07-05 | AC146: 25600705 | AD146: 00:00:00 | AE146: 19000100 | AF146: -6600605 | AG146: 0 | AH146: 0 | AI146: 0 | AJ146: 0 | AK146: 0 | AO146: 0 | AP146: =IFERROR((VLOOKUP(AO146,'2.การมอบหมายงานสอน'!$AK$5:$AL$24,2,FALSE)*60/1440),0) -> 0
A147: ='1.ข้อมูลส่วนบุคคล'!$F$5 -> 12345678912345 | K147: =IF('1.ข้อมูลส่วนบุคคล'!C$21="เชี่ยวชาญ",IF(H147="-","",IF(H147='1.ข้อมูลส่วนบุคคล'!F$26,"เกี่ยวข้อง","ไม่เกี่ยวข้อง")),IF('1.ข้อมูลส่วนบุคคล'!C$21="เชี่ยวชาญพิเศษ",IF(H147="-","",IF(H147='1.ข้อมูลส่วนบุคคล'!F$26,"เกี่ยวข้อง","ไม่เกี่ยวข้อง")),"")) ->  | V147: 0 | W147: 0 | Z147: 0 | AA147: 0 | AB147: ='1.ข้อมูลส่วนบุคคล'!G$32 -> 2560-07-05 | AC147: 25600705 | AD147: 00:00:00 | AE147: 19000100 | AF147: -6600605 | AG147: 0 | AH147: 0 | AI147: 0 | AJ147: 0 | AK147: 0 | AO147: 0 | AP147: =IFERROR((VLOOKUP(AO147,'2.การมอบหมายงานสอน'!$AK$5:$AL$24,2,FALSE)*60/1440),0) -> 0
A148: ='1.ข้อมูลส่วนบุคคล'!$F$5 -> 12345678912345 | K148: =IF('1.ข้อมูลส่วนบุคคล'!C$21="เชี่ยวชาญ",IF(H148="-","",IF(H148='1.ข้อมูลส่วนบุคคล'!F$26,"เกี่ยวข้อง","ไม่เกี่ยวข้อง")),IF('1.ข้อมูลส่วนบุคคล'!C$21="เชี่ยวชาญพิเศษ",IF(H148="-","",IF(H148='1.ข้อมูลส่วนบุคคล'!F$26,"เกี่ยวข้อง","ไม่เกี่ยวข้อง")),"")) ->  | V148: 0 | W148: 0 | Z148: 0 | AA148: 0 | AB148: ='1.ข้อมูลส่วนบุคคล'!G$32 -> 2560-07-05 | AC148: 25600705 | AD148: 00:00:00 | AE148: 19000100 | AF148: -6600605 | AG148: 0 | AH148: 0 | AI148: 0 | AJ148: 0 | AK148: 0 | AO148: 0 | AP148: =IFERROR((VLOOKUP(AO148,'2.การมอบหมายงานสอน'!$AK$5:$AL$24,2,FALSE)*60/1440),0) -> 0
A149: ='1.ข้อมูลส่วนบุคคล'!$F$5 -> 12345678912345 | K149: =IF('1.ข้อมูลส่วนบุคคล'!C$21="เชี่ยวชาญ",IF(H149="-","",IF(H149='1.ข้อมูลส่วนบุคคล'!F$26,"เกี่ยวข้อง","ไม่เกี่ยวข้อง")),IF('1.ข้อมูลส่วนบุคคล'!C$21="เชี่ยวชาญพิเศษ",IF(H149="-","",IF(H149='1.ข้อมูลส่วนบุคคล'!F$26,"เกี่ยวข้อง","ไม่เกี่ยวข้อง")),"")) ->  | V149: 0 | W149: 0 | Z149: 0 | AA149: 0 | AB149: ='1.ข้อมูลส่วนบุคคล'!G$32 -> 2560-07-05 | AC149: 25600705 | AD149: 00:00:00 | AE149: 19000100 | AF149: -6600605 | AG149: 0 | AH149: 0 | AI149: 0 | AJ149: 0 | AK149: 0 | AO149: 0 | AP149: =IFERROR((VLOOKUP(AO149,'2.การมอบหมายงานสอน'!$AK$5:$AL$24,2,FALSE)*60/1440),0) -> 0
A150: ='1.ข้อมูลส่วนบุคคล'!$F$5 -> 12345678912345 | K150: =IF('1.ข้อมูลส่วนบุคคล'!C$21="เชี่ยวชาญ",IF(H150="-","",IF(H150='1.ข้อมูลส่วนบุคคล'!F$26,"เกี่ยวข้อง","ไม่เกี่ยวข้อง")),IF('1.ข้อมูลส่วนบุคคล'!C$21="เชี่ยวชาญพิเศษ",IF(H150="-","",IF(H150='1.ข้อมูลส่วนบุคคล'!F$26,"เกี่ยวข้อง","ไม่เกี่ยวข้อง")),"")) ->  | V150: 0 | W150: 0 | Z150: 0 | AA150: 0 | AB150: ='1.ข้อมูลส่วนบุคคล'!G$32 -> 2560-07-05 | AC150: 25600705 | AD150: 00:00:00 | AE150: 19000100 | AF150: -6600605 | AG150: 0 | AH150: 0 | AI150: 0 | AJ150: 0 | AK150: 0 | AO150: 0 | AP150: =IFERROR((VLOOKUP(AO150,'2.การมอบหมายงานสอน'!$AK$5:$AL$24,2,FALSE)*60/1440),0) -> 0
A151: ='1.ข้อมูลส่วนบุคคล'!$F$5 -> 12345678912345 | K151: =IF('1.ข้อมูลส่วนบุคคล'!C$21="เชี่ยวชาญ",IF(H151="-","",IF(H151='1.ข้อมูลส่วนบุคคล'!F$26,"เกี่ยวข้อง","ไม่เกี่ยวข้อง")),IF('1.ข้อมูลส่วนบุคคล'!C$21="เชี่ยวชาญพิเศษ",IF(H151="-","",IF(H151='1.ข้อมูลส่วนบุคคล'!F$26,"เกี่ยวข้อง","ไม่เกี่ยวข้อง")),"")) ->  | V151: 0 | W151: 0 | Z151: 0 | AA151: 0 | AB151: ='1.ข้อมูลส่วนบุคคล'!G$32 -> 2560-07-05 | AC151: 25600705 | AD151: 00:00:00 | AE151: 19000100 | AF151: -6600605 | AG151: 0 | AH151: 0 | AI151: 0 | AJ151: 0 | AK151: 0 | AO151: 0 | AP151: =IFERROR((VLOOKUP(AO151,'2.การมอบหมายงานสอน'!$AK$5:$AL$24,2,FALSE)*60/1440),0) -> 0
A152: ='1.ข้อมูลส่วนบุคคล'!$F$5 -> 12345678912345 | K152: =IF('1.ข้อมูลส่วนบุคคล'!C$21="เชี่ยวชาญ",IF(H152="-","",IF(H152='1.ข้อมูลส่วนบุคคล'!F$26,"เกี่ยวข้อง","ไม่เกี่ยวข้อง")),IF('1.ข้อมูลส่วนบุคคล'!C$21="เชี่ยวชาญพิเศษ",IF(H152="-","",IF(H152='1.ข้อมูลส่วนบุคคล'!F$26,"เกี่ยวข้อง","ไม่เกี่ยวข้อง")),"")) ->  | V152: 0 | W152: 0 | Z152: 0 | AA152: 0 | AB152: ='1.ข้อมูลส่วนบุคคล'!G$32 -> 2560-07-05 | AC152: 25600705 | AD152: 00:00:00 | AE152: 19000100 | AF152: -6600605 | AG152: 0 | AH152: 0 | AI152: 0 | AJ152: 0 | AK152: 0 | AO152: 0 | AP152: =IFERROR((VLOOKUP(AO152,'2.การมอบหมายงานสอน'!$AK$5:$AL$24,2,FALSE)*60/1440),0) -> 0
A153: ='1.ข้อมูลส่วนบุคคล'!$F$5 -> 12345678912345 | K153: =IF('1.ข้อมูลส่วนบุคคล'!C$21="เชี่ยวชาญ",IF(H153="-","",IF(H153='1.ข้อมูลส่วนบุคคล'!F$26,"เกี่ยวข้อง","ไม่เกี่ยวข้อง")),IF('1.ข้อมูลส่วนบุคคล'!C$21="เชี่ยวชาญพิเศษ",IF(H153="-","",IF(H153='1.ข้อมูลส่วนบุคคล'!F$26,"เกี่ยวข้อง","ไม่เกี่ยวข้อง")),"")) ->  | V153: 0 | W153: 0 | Z153: 0 | AA153: 0 | AB153: ='1.ข้อมูลส่วนบุคคล'!G$32 -> 2560-07-05 | AC153: 25600705 | AD153: 00:00:00 | AE153: 19000100 | AF153: -6600605 | AG153: 0 | AH153: 0 | AI153: 0 | AJ153: 0 | AK153: 0 | AO153: 0 | AP153: =IFERROR((VLOOKUP(AO153,'2.การมอบหมายงานสอน'!$AK$5:$AL$24,2,FALSE)*60/1440),0) -> 0
A154: ='1.ข้อมูลส่วนบุคคล'!$F$5 -> 12345678912345 | K154: =IF('1.ข้อมูลส่วนบุคคล'!C$21="เชี่ยวชาญ",IF(H154="-","",IF(H154='1.ข้อมูลส่วนบุคคล'!F$26,"เกี่ยวข้อง","ไม่เกี่ยวข้อง")),IF('1.ข้อมูลส่วนบุคคล'!C$21="เชี่ยวชาญพิเศษ",IF(H154="-","",IF(H154='1.ข้อมูลส่วนบุคคล'!F$26,"เกี่ยวข้อง","ไม่เกี่ยวข้อง")),"")) ->  | V154: 0 | W154: 0 | Z154: 0 | AA154: 0 | AB154: ='1.ข้อมูลส่วนบุคคล'!G$32 -> 2560-07-05 | AC154: 25600705 | AD154: 00:00:00 | AE154: 19000100 | AF154: -6600605 | AG154: 0 | AH154: 0 | AI154: 0 | AJ154: 0 | AK154: 0 | AO154: 0 | AP154: =IFERROR((VLOOKUP(AO154,'2.การมอบหมายงานสอน'!$AK$5:$AL$24,2,FALSE)*60/1440),0) -> 0
A155: ='1.ข้อมูลส่วนบุคคล'!$F$5 -> 12345678912345 | K155: =IF('1.ข้อมูลส่วนบุคคล'!C$21="เชี่ยวชาญ",IF(H155="-","",IF(H155='1.ข้อมูลส่วนบุคคล'!F$26,"เกี่ยวข้อง","ไม่เกี่ยวข้อง")),IF('1.ข้อมูลส่วนบุคคล'!C$21="เชี่ยวชาญพิเศษ",IF(H155="-","",IF(H155='1.ข้อมูลส่วนบุคคล'!F$26,"เกี่ยวข้อง","ไม่เกี่ยวข้อง")),"")) ->  | V155: 0 | W155: 0 | Z155: 0 | AA155: 0 | AB155: ='1.ข้อมูลส่วนบุคคล'!G$32 -> 2560-07-05 | AC155: 25600705 | AD155: 00:00:00 | AE155: 19000100 | AF155: -6600605 | AG155: 0 | AH155: 0 | AI155: 0 | AJ155: 0 | AK155: 0 | AO155: 0 | AP155: =IFERROR((VLOOKUP(AO155,'2.การมอบหมายงานสอน'!$AK$5:$AL$24,2,FALSE)*60/1440),0) -> 0
A156: ='1.ข้อมูลส่วนบุคคล'!$F$5 -> 12345678912345 | K156: =IF('1.ข้อมูลส่วนบุคคล'!C$21="เชี่ยวชาญ",IF(H156="-","",IF(H156='1.ข้อมูลส่วนบุคคล'!F$26,"เกี่ยวข้อง","ไม่เกี่ยวข้อง")),IF('1.ข้อมูลส่วนบุคคล'!C$21="เชี่ยวชาญพิเศษ",IF(H156="-","",IF(H156='1.ข้อมูลส่วนบุคคล'!F$26,"เกี่ยวข้อง","ไม่เกี่ยวข้อง")),"")) ->  | V156: 0 | W156: 0 | Z156: 0 | AA156: 0 | AB156: ='1.ข้อมูลส่วนบุคคล'!G$32 -> 2560-07-05 | AC156: 25600705 | AD156: 00:00:00 | AE156: 19000100 | AF156: -6600605 | AG156: 0 | AH156: 0 | AI156: 0 | AJ156: 0 | AK156: 0 | AO156: 0 | AP156: =IFERROR((VLOOKUP(AO156,'2.การมอบหมายงานสอน'!$AK$5:$AL$24,2,FALSE)*60/1440),0) -> 0
A157: ='1.ข้อมูลส่วนบุคคล'!$F$5 -> 12345678912345 | K157: =IF('1.ข้อมูลส่วนบุคคล'!C$21="เชี่ยวชาญ",IF(H157="-","",IF(H157='1.ข้อมูลส่วนบุคคล'!F$26,"เกี่ยวข้อง","ไม่เกี่ยวข้อง")),IF('1.ข้อมูลส่วนบุคคล'!C$21="เชี่ยวชาญพิเศษ",IF(H157="-","",IF(H157='1.ข้อมูลส่วนบุคคล'!F$26,"เกี่ยวข้อง","ไม่เกี่ยวข้อง")),"")) ->  | V157: 0 | W157: 0 | Z157: 0 | AA157: 0 | AB157: ='1.ข้อมูลส่วนบุคคล'!G$32 -> 2560-07-05 | AC157: 25600705 | AD157: 00:00:00 | AE157: 19000100 | AF157: -6600605 | AG157: 0 | AH157: 0 | AI157: 0 | AJ157: 0 | AK157: 0 | AO157: 0 | AP157: =IFERROR((VLOOKUP(AO157,'2.การมอบหมายงานสอน'!$AK$5:$AL$24,2,FALSE)*60/1440),0) -> 0
A158: ='1.ข้อมูลส่วนบุคคล'!$F$5 -> 12345678912345 | K158: =IF('1.ข้อมูลส่วนบุคคล'!C$21="เชี่ยวชาญ",IF(H158="-","",IF(H158='1.ข้อมูลส่วนบุคคล'!F$26,"เกี่ยวข้อง","ไม่เกี่ยวข้อง")),IF('1.ข้อมูลส่วนบุคคล'!C$21="เชี่ยวชาญพิเศษ",IF(H158="-","",IF(H158='1.ข้อมูลส่วนบุคคล'!F$26,"เกี่ยวข้อง","ไม่เกี่ยวข้อง")),"")) ->  | V158: 0 | W158: 0 | Z158: 0 | AA158: 0 | AB158: ='1.ข้อมูลส่วนบุคคล'!G$32 -> 2560-07-05 | AC158: 25600705 | AD158: 00:00:00 | AE158: 19000100 | AF158: -6600605 | AG158: 0 | AH158: 0 | AI158: 0 | AJ158: 0 | AK158: 0 | AO158: 0 | AP158: =IFERROR((VLOOKUP(AO158,'2.การมอบหมายงานสอน'!$AK$5:$AL$24,2,FALSE)*60/1440),0) -> 0
A159: ='1.ข้อมูลส่วนบุคคล'!$F$5 -> 12345678912345 | K159: =IF('1.ข้อมูลส่วนบุคคล'!C$21="เชี่ยวชาญ",IF(H159="-","",IF(H159='1.ข้อมูลส่วนบุคคล'!F$26,"เกี่ยวข้อง","ไม่เกี่ยวข้อง")),IF('1.ข้อมูลส่วนบุคคล'!C$21="เชี่ยวชาญพิเศษ",IF(H159="-","",IF(H159='1.ข้อมูลส่วนบุคคล'!F$26,"เกี่ยวข้อง","ไม่เกี่ยวข้อง")),"")) ->  | V159: 0 | W159: 0 | Z159: 0 | AA159: 0 | AB159: ='1.ข้อมูลส่วนบุคคล'!G$32 -> 2560-07-05 | AC159: 25600705 | AD159: 00:00:00 | AE159: 19000100 | AF159: -6600605 | AG159: 0 | AH159: 0 | AI159: 0 | AJ159: 0 | AK159: 0 | AO159: 0 | AP159: =IFERROR((VLOOKUP(AO159,'2.การมอบหมายงานสอน'!$AK$5:$AL$24,2,FALSE)*60/1440),0) -> 0
A160: ='1.ข้อมูลส่วนบุคคล'!$F$5 -> 12345678912345 | K160: =IF('1.ข้อมูลส่วนบุคคล'!C$21="เชี่ยวชาญ",IF(H160="-","",IF(H160='1.ข้อมูลส่วนบุคคล'!F$26,"เกี่ยวข้อง","ไม่เกี่ยวข้อง")),IF('1.ข้อมูลส่วนบุคคล'!C$21="เชี่ยวชาญพิเศษ",IF(H160="-","",IF(H160='1.ข้อมูลส่วนบุคคล'!F$26,"เกี่ยวข้อง","ไม่เกี่ยวข้อง")),"")) ->  | V160: 0 | W160: 0 | Z160: 0 | AA160: 0 | AB160: ='1.ข้อมูลส่วนบุคคล'!G$32 -> 2560-07-05 | AC160: 25600705 | AD160: 00:00:00 | AE160: 19000100 | AF160: -6600605 | AG160: 0 | AH160: 0 | AI160: 0 | AJ160: 0 | AK160: 0 | AO160: 0 | AP160: =IFERROR((VLOOKUP(AO160,'2.การมอบหมายงานสอน'!$AK$5:$AL$24,2,FALSE)*60/1440),0) -> 0
A161: ='1.ข้อมูลส่วนบุคคล'!$F$5 -> 12345678912345 | K161: =IF('1.ข้อมูลส่วนบุคคล'!C$21="เชี่ยวชาญ",IF(H161="-","",IF(H161='1.ข้อมูลส่วนบุคคล'!F$26,"เกี่ยวข้อง","ไม่เกี่ยวข้อง")),IF('1.ข้อมูลส่วนบุคคล'!C$21="เชี่ยวชาญพิเศษ",IF(H161="-","",IF(H161='1.ข้อมูลส่วนบุคคล'!F$26,"เกี่ยวข้อง","ไม่เกี่ยวข้อง")),"")) ->  | V161: 0 | W161: 0 | Z161: 0 | AA161: 0 | AB161: ='1.ข้อมูลส่วนบุคคล'!G$32 -> 2560-07-05 | AC161: 25600705 | AD161: 00:00:00 | AE161: 19000100 | AF161: -6600605 | AG161: 0 | AH161: 0 | AI161: 0 | AJ161: 0 | AK161: 0 | AO161: 0 | AP161: =IFERROR((VLOOKUP(AO161,'2.การมอบหมายงานสอน'!$AK$5:$AL$24,2,FALSE)*60/1440),0) -> 0
A162: ='1.ข้อมูลส่วนบุคคล'!$F$5 -> 12345678912345 | K162: =IF('1.ข้อมูลส่วนบุคคล'!C$21="เชี่ยวชาญ",IF(H162="-","",IF(H162='1.ข้อมูลส่วนบุคคล'!F$26,"เกี่ยวข้อง","ไม่เกี่ยวข้อง")),IF('1.ข้อมูลส่วนบุคคล'!C$21="เชี่ยวชาญพิเศษ",IF(H162="-","",IF(H162='1.ข้อมูลส่วนบุคคล'!F$26,"เกี่ยวข้อง","ไม่เกี่ยวข้อง")),"")) ->  | V162: 0 | W162: 0 | Z162: 0 | AA162: 0 | AB162: ='1.ข้อมูลส่วนบุคคล'!G$32 -> 2560-07-05 | AC162: 25600705 | AD162: 00:00:00 | AE162: 19000100 | AF162: -6600605 | AG162: 0 | AH162: 0 | AI162: 0 | AJ162: 0 | AK162: 0 | AO162: 0 | AP162: =IFERROR((VLOOKUP(AO162,'2.การมอบหมายงานสอน'!$AK$5:$AL$24,2,FALSE)*60/1440),0) -> 0
A163: ='1.ข้อมูลส่วนบุคคล'!$F$5 -> 12345678912345 | K163: =IF('1.ข้อมูลส่วนบุคคล'!C$21="เชี่ยวชาญ",IF(H163="-","",IF(H163='1.ข้อมูลส่วนบุคคล'!F$26,"เกี่ยวข้อง","ไม่เกี่ยวข้อง")),IF('1.ข้อมูลส่วนบุคคล'!C$21="เชี่ยวชาญพิเศษ",IF(H163="-","",IF(H163='1.ข้อมูลส่วนบุคคล'!F$26,"เกี่ยวข้อง","ไม่เกี่ยวข้อง")),"")) ->  | V163: 0 | W163: 0 | Z163: 0 | AA163: 0 | AB163: ='1.ข้อมูลส่วนบุคคล'!G$32 -> 2560-07-05 | AC163: 25600705 | AD163: 00:00:00 | AE163: 19000100 | AF163: -6600605 | AG163: 0 | AH163: 0 | AI163: 0 | AJ163: 0 | AK163: 0 | AO163: 0 | AP163: =IFERROR((VLOOKUP(AO163,'2.การมอบหมายงานสอน'!$AK$5:$AL$24,2,FALSE)*60/1440),0) -> 0
A164: ='1.ข้อมูลส่วนบุคคล'!$F$5 -> 12345678912345 | K164: =IF('1.ข้อมูลส่วนบุคคล'!C$21="เชี่ยวชาญ",IF(H164="-","",IF(H164='1.ข้อมูลส่วนบุคคล'!F$26,"เกี่ยวข้อง","ไม่เกี่ยวข้อง")),IF('1.ข้อมูลส่วนบุคคล'!C$21="เชี่ยวชาญพิเศษ",IF(H164="-","",IF(H164='1.ข้อมูลส่วนบุคคล'!F$26,"เกี่ยวข้อง","ไม่เกี่ยวข้อง")),"")) ->  | V164: 0 | W164: 0 | Z164: 0 | AA164: 0 | AB164: ='1.ข้อมูลส่วนบุคคล'!G$32 -> 2560-07-05 | AC164: 25600705 | AD164: 00:00:00 | AE164: 19000100 | AF164: -6600605 | AG164: 0 | AH164: 0 | AI164: 0 | AJ164: 0 | AK164: 0 | AO164: 0 | AP164: =IFERROR((VLOOKUP(AO164,'2.การมอบหมายงานสอน'!$AK$5:$AL$24,2,FALSE)*60/1440),0) -> 0
A165: ='1.ข้อมูลส่วนบุคคล'!$F$5 -> 12345678912345 | K165: =IF('1.ข้อมูลส่วนบุคคล'!C$21="เชี่ยวชาญ",IF(H165="-","",IF(H165='1.ข้อมูลส่วนบุคคล'!F$26,"เกี่ยวข้อง","ไม่เกี่ยวข้อง")),IF('1.ข้อมูลส่วนบุคคล'!C$21="เชี่ยวชาญพิเศษ",IF(H165="-","",IF(H165='1.ข้อมูลส่วนบุคคล'!F$26,"เกี่ยวข้อง","ไม่เกี่ยวข้อง")),"")) ->  | V165: 0 | W165: 0 | Z165: 0 | AA165: 0 | AB165: ='1.ข้อมูลส่วนบุคคล'!G$32 -> 2560-07-05 | AC165: 25600705 | AD165: 00:00:00 | AE165: 19000100 | AF165: -6600605 | AG165: 0 | AH165: 0 | AI165: 0 | AJ165: 0 | AK165: 0 | AO165: 0 | AP165: =IFERROR((VLOOKUP(AO165,'2.การมอบหมายงานสอน'!$AK$5:$AL$24,2,FALSE)*60/1440),0) -> 0
A166: ='1.ข้อมูลส่วนบุคคล'!$F$5 -> 12345678912345 | K166: =IF('1.ข้อมูลส่วนบุคคล'!C$21="เชี่ยวชาญ",IF(H166="-","",IF(H166='1.ข้อมูลส่วนบุคคล'!F$26,"เกี่ยวข้อง","ไม่เกี่ยวข้อง")),IF('1.ข้อมูลส่วนบุคคล'!C$21="เชี่ยวชาญพิเศษ",IF(H166="-","",IF(H166='1.ข้อมูลส่วนบุคคล'!F$26,"เกี่ยวข้อง","ไม่เกี่ยวข้อง")),"")) ->  | V166: 0 | W166: 0 | Z166: 0 | AA166: 0 | AB166: ='1.ข้อมูลส่วนบุคคล'!G$32 -> 2560-07-05 | AC166: 25600705 | AD166: 00:00:00 | AE166: 19000100 | AF166: -6600605 | AG166: 0 | AH166: 0 | AI166: 0 | AJ166: 0 | AK166: 0 | AO166: 0 | AP166: =IFERROR((VLOOKUP(AO166,'2.การมอบหมายงานสอน'!$AK$5:$AL$24,2,FALSE)*60/1440),0) -> 0
A167: ='1.ข้อมูลส่วนบุคคล'!$F$5 -> 12345678912345 | K167: =IF('1.ข้อมูลส่วนบุคคล'!C$21="เชี่ยวชาญ",IF(H167="-","",IF(H167='1.ข้อมูลส่วนบุคคล'!F$26,"เกี่ยวข้อง","ไม่เกี่ยวข้อง")),IF('1.ข้อมูลส่วนบุคคล'!C$21="เชี่ยวชาญพิเศษ",IF(H167="-","",IF(H167='1.ข้อมูลส่วนบุคคล'!F$26,"เกี่ยวข้อง","ไม่เกี่ยวข้อง")),"")) ->  | V167: 0 | W167: 0 | Z167: 0 | AA167: 0 | AB167: ='1.ข้อมูลส่วนบุคคล'!G$32 -> 2560-07-05 | AC167: 25600705 | AD167: 00:00:00 | AE167: 19000100 | AF167: -6600605 | AG167: 0 | AH167: 0 | AI167: 0 | AJ167: 0 | AK167: 0 | AO167: 0 | AP167: =IFERROR((VLOOKUP(AO167,'2.การมอบหมายงานสอน'!$AK$5:$AL$24,2,FALSE)*60/1440),0) -> 0
A168: ='1.ข้อมูลส่วนบุคคล'!$F$5 -> 12345678912345 | K168: =IF('1.ข้อมูลส่วนบุคคล'!C$21="เชี่ยวชาญ",IF(H168="-","",IF(H168='1.ข้อมูลส่วนบุคคล'!F$26,"เกี่ยวข้อง","ไม่เกี่ยวข้อง")),IF('1.ข้อมูลส่วนบุคคล'!C$21="เชี่ยวชาญพิเศษ",IF(H168="-","",IF(H168='1.ข้อมูลส่วนบุคคล'!F$26,"เกี่ยวข้อง","ไม่เกี่ยวข้อง")),"")) ->  | V168: 0 | W168: 0 | Z168: 0 | AA168: 0 | AB168: ='1.ข้อมูลส่วนบุคคล'!G$32 -> 2560-07-05 | AC168: 25600705 | AD168: 00:00:00 | AE168: 19000100 | AF168: -6600605 | AG168: 0 | AH168: 0 | AI168: 0 | AJ168: 0 | AK168: 0 | AO168: 0 | AP168: =IFERROR((VLOOKUP(AO168,'2.การมอบหมายงานสอน'!$AK$5:$AL$24,2,FALSE)*60/1440),0) -> 0
A169: ='1.ข้อมูลส่วนบุคคล'!$F$5 -> 12345678912345 | K169: =IF('1.ข้อมูลส่วนบุคคล'!C$21="เชี่ยวชาญ",IF(H169="-","",IF(H169='1.ข้อมูลส่วนบุคคล'!F$26,"เกี่ยวข้อง","ไม่เกี่ยวข้อง")),IF('1.ข้อมูลส่วนบุคคล'!C$21="เชี่ยวชาญพิเศษ",IF(H169="-","",IF(H169='1.ข้อมูลส่วนบุคคล'!F$26,"เกี่ยวข้อง","ไม่เกี่ยวข้อง")),"")) ->  | V169: 0 | W169: 0 | Z169: 0 | AA169: 0 | AB169: ='1.ข้อมูลส่วนบุคคล'!G$32 -> 2560-07-05 | AC169: 25600705 | AD169: 00:00:00 | AE169: 19000100 | AF169: -6600605 | AG169: 0 | AH169: 0 | AI169: 0 | AJ169: 0 | AK169: 0 | AO169: 0 | AP169: =IFERROR((VLOOKUP(AO169,'2.การมอบหมายงานสอน'!$AK$5:$AL$24,2,FALSE)*60/1440),0) -> 0
A170: ='1.ข้อมูลส่วนบุคคล'!$F$5 -> 12345678912345 | K170: =IF('1.ข้อมูลส่วนบุคคล'!C$21="เชี่ยวชาญ",IF(H170="-","",IF(H170='1.ข้อมูลส่วนบุคคล'!F$26,"เกี่ยวข้อง","ไม่เกี่ยวข้อง")),IF('1.ข้อมูลส่วนบุคคล'!C$21="เชี่ยวชาญพิเศษ",IF(H170="-","",IF(H170='1.ข้อมูลส่วนบุคคล'!F$26,"เกี่ยวข้อง","ไม่เกี่ยวข้อง")),"")) ->  | V170: 0 | W170: 0 | Z170: 0 | AA170: 0 | AB170: ='1.ข้อมูลส่วนบุคคล'!G$32 -> 2560-07-05 | AC170: 25600705 | AD170: 00:00:00 | AE170: 19000100 | AF170: -6600605 | AG170: 0 | AH170: 0 | AI170: 0 | AJ170: 0 | AK170: 0 | AO170: 0 | AP170: =IFERROR((VLOOKUP(AO170,'2.การมอบหมายงานสอน'!$AK$5:$AL$24,2,FALSE)*60/1440),0) -> 0
A171: ='1.ข้อมูลส่วนบุคคล'!$F$5 -> 12345678912345 | K171: =IF('1.ข้อมูลส่วนบุคคล'!C$21="เชี่ยวชาญ",IF(H171="-","",IF(H171='1.ข้อมูลส่วนบุคคล'!F$26,"เกี่ยวข้อง","ไม่เกี่ยวข้อง")),IF('1.ข้อมูลส่วนบุคคล'!C$21="เชี่ยวชาญพิเศษ",IF(H171="-","",IF(H171='1.ข้อมูลส่วนบุคคล'!F$26,"เกี่ยวข้อง","ไม่เกี่ยวข้อง")),"")) ->  | V171: 0 | W171: 0 | Z171: 0 | AA171: 0 | AB171: ='1.ข้อมูลส่วนบุคคล'!G$32 -> 2560-07-05 | AC171: 25600705 | AD171: 00:00:00 | AE171: 19000100 | AF171: -6600605 | AG171: 0 | AH171: 0 | AI171: 0 | AJ171: 0 | AK171: 0 | AO171: 0 | AP171: =IFERROR((VLOOKUP(AO171,'2.การมอบหมายงานสอน'!$AK$5:$AL$24,2,FALSE)*60/1440),0) -> 0
A172: ='1.ข้อมูลส่วนบุคคล'!$F$5 -> 12345678912345 | K172: =IF('1.ข้อมูลส่วนบุคคล'!C$21="เชี่ยวชาญ",IF(H172="-","",IF(H172='1.ข้อมูลส่วนบุคคล'!F$26,"เกี่ยวข้อง","ไม่เกี่ยวข้อง")),IF('1.ข้อมูลส่วนบุคคล'!C$21="เชี่ยวชาญพิเศษ",IF(H172="-","",IF(H172='1.ข้อมูลส่วนบุคคล'!F$26,"เกี่ยวข้อง","ไม่เกี่ยวข้อง")),"")) ->  | V172: 0 | W172: 0 | Z172: 0 | AA172: 0 | AB172: ='1.ข้อมูลส่วนบุคคล'!G$32 -> 2560-07-05 | AC172: 25600705 | AD172: 00:00:00 | AE172: 19000100 | AF172: -6600605 | AG172: 0 | AH172: 0 | AI172: 0 | AJ172: 0 | AK172: 0 | AO172: 0 | AP172: =IFERROR((VLOOKUP(AO172,'2.การมอบหมายงานสอน'!$AK$5:$AL$24,2,FALSE)*60/1440),0) -> 0
A173: ='1.ข้อมูลส่วนบุคคล'!$F$5 -> 12345678912345 | K173: =IF('1.ข้อมูลส่วนบุคคล'!C$21="เชี่ยวชาญ",IF(H173="-","",IF(H173='1.ข้อมูลส่วนบุคคล'!F$26,"เกี่ยวข้อง","ไม่เกี่ยวข้อง")),IF('1.ข้อมูลส่วนบุคคล'!C$21="เชี่ยวชาญพิเศษ",IF(H173="-","",IF(H173='1.ข้อมูลส่วนบุคคล'!F$26,"เกี่ยวข้อง","ไม่เกี่ยวข้อง")),"")) ->  | V173: 0 | W173: 0 | Z173: 0 | AA173: 0 | AB173: ='1.ข้อมูลส่วนบุคคล'!G$32 -> 2560-07-05 | AC173: 25600705 | AD173: 00:00:00 | AE173: 19000100 | AF173: -6600605 | AG173: 0 | AH173: 0 | AI173: 0 | AJ173: 0 | AK173: 0 | AO173: 0 | AP173: =IFERROR((VLOOKUP(AO173,'2.การมอบหมายงานสอน'!$AK$5:$AL$24,2,FALSE)*60/1440),0) -> 0
A174: ='1.ข้อมูลส่วนบุคคล'!$F$5 -> 12345678912345 | K174: =IF('1.ข้อมูลส่วนบุคคล'!C$21="เชี่ยวชาญ",IF(H174="-","",IF(H174='1.ข้อมูลส่วนบุคคล'!F$26,"เกี่ยวข้อง","ไม่เกี่ยวข้อง")),IF('1.ข้อมูลส่วนบุคคล'!C$21="เชี่ยวชาญพิเศษ",IF(H174="-","",IF(H174='1.ข้อมูลส่วนบุคคล'!F$26,"เกี่ยวข้อง","ไม่เกี่ยวข้อง")),"")) ->  | V174: 0 | W174: 0 | Z174: 0 | AA174: 0 | AB174: ='1.ข้อมูลส่วนบุคคล'!G$32 -> 2560-07-05 | AC174: 25600705 | AD174: 00:00:00 | AE174: 19000100 | AF174: -6600605 | AG174: 0 | AH174: 0 | AI174: 0 | AJ174: 0 | AK174: 0 | AO174: 0 | AP174: =IFERROR((VLOOKUP(AO174,'2.การมอบหมายงานสอน'!$AK$5:$AL$24,2,FALSE)*60/1440),0) -> 0
A175: ='1.ข้อมูลส่วนบุคคล'!$F$5 -> 12345678912345 | K175: =IF('1.ข้อมูลส่วนบุคคล'!C$21="เชี่ยวชาญ",IF(H175="-","",IF(H175='1.ข้อมูลส่วนบุคคล'!F$26,"เกี่ยวข้อง","ไม่เกี่ยวข้อง")),IF('1.ข้อมูลส่วนบุคคล'!C$21="เชี่ยวชาญพิเศษ",IF(H175="-","",IF(H175='1.ข้อมูลส่วนบุคคล'!F$26,"เกี่ยวข้อง","ไม่เกี่ยวข้อง")),"")) ->  | V175: 0 | W175: 0 | Z175: 0 | AA175: 0 | AB175: ='1.ข้อมูลส่วนบุคคล'!G$32 -> 2560-07-05 | AC175: 25600705 | AD175: 00:00:00 | AE175: 19000100 | AF175: -6600605 | AG175: 0 | AH175: 0 | AI175: 0 | AJ175: 0 | AK175: 0 | AO175: 0 | AP175: =IFERROR((VLOOKUP(AO175,'2.การมอบหมายงานสอน'!$AK$5:$AL$24,2,FALSE)*60/1440),0) -> 0
A176: ='1.ข้อมูลส่วนบุคคล'!$F$5 -> 12345678912345 | K176: =IF('1.ข้อมูลส่วนบุคคล'!C$21="เชี่ยวชาญ",IF(H176="-","",IF(H176='1.ข้อมูลส่วนบุคคล'!F$26,"เกี่ยวข้อง","ไม่เกี่ยวข้อง")),IF('1.ข้อมูลส่วนบุคคล'!C$21="เชี่ยวชาญพิเศษ",IF(H176="-","",IF(H176='1.ข้อมูลส่วนบุคคล'!F$26,"เกี่ยวข้อง","ไม่เกี่ยวข้อง")),"")) ->  | V176: 0 | W176: 0 | Z176: 0 | AA176: 0 | AB176: ='1.ข้อมูลส่วนบุคคล'!G$32 -> 2560-07-05 | AC176: 25600705 | AD176: 00:00:00 | AE176: 19000100 | AF176: -6600605 | AG176: 0 | AH176: 0 | AI176: 0 | AJ176: 0 | AK176: 0 | AO176: 0 | AP176: =IFERROR((VLOOKUP(AO176,'2.การมอบหมายงานสอน'!$AK$5:$AL$24,2,FALSE)*60/1440),0) -> 0
A177: ='1.ข้อมูลส่วนบุคคล'!$F$5 -> 12345678912345 | K177: =IF('1.ข้อมูลส่วนบุคคล'!C$21="เชี่ยวชาญ",IF(H177="-","",IF(H177='1.ข้อมูลส่วนบุคคล'!F$26,"เกี่ยวข้อง","ไม่เกี่ยวข้อง")),IF('1.ข้อมูลส่วนบุคคล'!C$21="เชี่ยวชาญพิเศษ",IF(H177="-","",IF(H177='1.ข้อมูลส่วนบุคคล'!F$26,"เกี่ยวข้อง","ไม่เกี่ยวข้อง")),"")) ->  | V177: 0 | W177: 0 | Z177: 0 | AA177: 0 | AB177: ='1.ข้อมูลส่วนบุคคล'!G$32 -> 2560-07-05 | AC177: 25600705 | AD177: 00:00:00 | AE177: 19000100 | AF177: -6600605 | AG177: 0 | AH177: 0 | AI177: 0 | AJ177: 0 | AK177: 0 | AO177: 0 | AP177: =IFERROR((VLOOKUP(AO177,'2.การมอบหมายงานสอน'!$AK$5:$AL$24,2,FALSE)*60/1440),0) -> 0
A178: ='1.ข้อมูลส่วนบุคคล'!$F$5 -> 12345678912345 | K178: =IF('1.ข้อมูลส่วนบุคคล'!C$21="เชี่ยวชาญ",IF(H178="-","",IF(H178='1.ข้อมูลส่วนบุคคล'!F$26,"เกี่ยวข้อง","ไม่เกี่ยวข้อง")),IF('1.ข้อมูลส่วนบุคคล'!C$21="เชี่ยวชาญพิเศษ",IF(H178="-","",IF(H178='1.ข้อมูลส่วนบุคคล'!F$26,"เกี่ยวข้อง","ไม่เกี่ยวข้อง")),"")) ->  | V178: 0 | W178: 0 | Z178: 0 | AA178: 0 | AB178: ='1.ข้อมูลส่วนบุคคล'!G$32 -> 2560-07-05 | AC178: 25600705 | AD178: 00:00:00 | AE178: 19000100 | AF178: -6600605 | AG178: 0 | AH178: 0 | AI178: 0 | AJ178: 0 | AK178: 0 | AO178: 0 | AP178: =IFERROR((VLOOKUP(AO178,'2.การมอบหมายงานสอน'!$AK$5:$AL$24,2,FALSE)*60/1440),0) -> 0
A179: ='1.ข้อมูลส่วนบุคคล'!$F$5 -> 12345678912345 | K179: =IF('1.ข้อมูลส่วนบุคคล'!C$21="เชี่ยวชาญ",IF(H179="-","",IF(H179='1.ข้อมูลส่วนบุคคล'!F$26,"เกี่ยวข้อง","ไม่เกี่ยวข้อง")),IF('1.ข้อมูลส่วนบุคคล'!C$21="เชี่ยวชาญพิเศษ",IF(H179="-","",IF(H179='1.ข้อมูลส่วนบุคคล'!F$26,"เกี่ยวข้อง","ไม่เกี่ยวข้อง")),"")) ->  | V179: 0 | W179: 0 | Z179: 0 | AA179: 0 | AB179: ='1.ข้อมูลส่วนบุคคล'!G$32 -> 2560-07-05 | AC179: 25600705 | AD179: 00:00:00 | AE179: 19000100 | AF179: -6600605 | AG179: 0 | AH179: 0 | AI179: 0 | AJ179: 0 | AK179: 0 | AO179: 0 | AP179: =IFERROR((VLOOKUP(AO179,'2.การมอบหมายงานสอน'!$AK$5:$AL$24,2,FALSE)*60/1440),0) -> 0
A180: ='1.ข้อมูลส่วนบุคคล'!$F$5 -> 12345678912345 | K180: =IF('1.ข้อมูลส่วนบุคคล'!C$21="เชี่ยวชาญ",IF(H180="-","",IF(H180='1.ข้อมูลส่วนบุคคล'!F$26,"เกี่ยวข้อง","ไม่เกี่ยวข้อง")),IF('1.ข้อมูลส่วนบุคคล'!C$21="เชี่ยวชาญพิเศษ",IF(H180="-","",IF(H180='1.ข้อมูลส่วนบุคคล'!F$26,"เกี่ยวข้อง","ไม่เกี่ยวข้อง")),"")) ->  | V180: 0 | W180: 0 | Z180: 0 | AA180: 0 | AB180: ='1.ข้อมูลส่วนบุคคล'!G$32 -> 2560-07-05 | AC180: 25600705 | AD180: 00:00:00 | AE180: 19000100 | AF180: -6600605 | AG180: 0 | AH180: 0 | AI180: 0 | AJ180: 0 | AK180: 0 | AO180: 0 | AP180: =IFERROR((VLOOKUP(AO180,'2.การมอบหมายงานสอน'!$AK$5:$AL$24,2,FALSE)*60/1440),0) -> 0
A181: ='1.ข้อมูลส่วนบุคคล'!$F$5 -> 12345678912345 | K181: =IF('1.ข้อมูลส่วนบุคคล'!C$21="เชี่ยวชาญ",IF(H181="-","",IF(H181='1.ข้อมูลส่วนบุคคล'!F$26,"เกี่ยวข้อง","ไม่เกี่ยวข้อง")),IF('1.ข้อมูลส่วนบุคคล'!C$21="เชี่ยวชาญพิเศษ",IF(H181="-","",IF(H181='1.ข้อมูลส่วนบุคคล'!F$26,"เกี่ยวข้อง","ไม่เกี่ยวข้อง")),"")) ->  | T181: =B181&+E181 ->  | V181: 0 | W181: 0 | Z181: 0 | AA181: 0 | AB181: ='1.ข้อมูลส่วนบุคคล'!G$32 -> 2560-07-05 | AC181: 25600705 | AD181: 00:00:00 | AE181: 19000100 | AF181: -6600605 | AG181: 0 | AH181: 0 | AI181: 0 | AJ181: 0 | AK181: 0 | AO181: 0 | AP181: =IFERROR((VLOOKUP(AO181,'2.การมอบหมายงานสอน'!$AK$5:$AL$24,2,FALSE)*60/1440),0) -> 0
A182: ='1.ข้อมูลส่วนบุคคล'!$F$5 -> 12345678912345 | K182: =IF('1.ข้อมูลส่วนบุคคล'!C$21="เชี่ยวชาญ",IF(H182="-","",IF(H182='1.ข้อมูลส่วนบุคคล'!F$26,"เกี่ยวข้อง","ไม่เกี่ยวข้อง")),IF('1.ข้อมูลส่วนบุคคล'!C$21="เชี่ยวชาญพิเศษ",IF(H182="-","",IF(H182='1.ข้อมูลส่วนบุคคล'!F$26,"เกี่ยวข้อง","ไม่เกี่ยวข้อง")),"")) ->  | V182: 0 | W182: 0 | Z182: 0 | AA182: 0 | AB182: ='1.ข้อมูลส่วนบุคคล'!G$32 -> 2560-07-05 | AC182: 25600705 | AD182: 00:00:00 | AE182: 19000100 | AF182: -6600605 | AG182: 0 | AH182: 0 | AI182: 0 | AJ182: 0 | AK182: 0 | AO182: 0 | AP182: =IFERROR((VLOOKUP(AO182,'2.การมอบหมายงานสอน'!$AK$5:$AL$24,2,FALSE)*60/1440),0) -> 0
A183: ='1.ข้อมูลส่วนบุคคล'!$F$5 -> 12345678912345 | K183: =IF('1.ข้อมูลส่วนบุคคล'!C$21="เชี่ยวชาญ",IF(H183="-","",IF(H183='1.ข้อมูลส่วนบุคคล'!F$26,"เกี่ยวข้อง","ไม่เกี่ยวข้อง")),IF('1.ข้อมูลส่วนบุคคล'!C$21="เชี่ยวชาญพิเศษ",IF(H183="-","",IF(H183='1.ข้อมูลส่วนบุคคล'!F$26,"เกี่ยวข้อง","ไม่เกี่ยวข้อง")),"")) ->  | V183: 0 | W183: 0 | Z183: 0 | AA183: 0 | AB183: ='1.ข้อมูลส่วนบุคคล'!G$32 -> 2560-07-05 | AC183: 25600705 | AD183: 00:00:00 | AE183: 19000100 | AF183: -6600605 | AG183: 0 | AH183: 0 | AI183: 0 | AJ183: 0 | AK183: 0 | AO183: 0 | AP183: =IFERROR((VLOOKUP(AO183,'2.การมอบหมายงานสอน'!$AK$5:$AL$24,2,FALSE)*60/1440),0) -> 0
A184: ='1.ข้อมูลส่วนบุคคล'!$F$5 -> 12345678912345 | K184: =IF('1.ข้อมูลส่วนบุคคล'!C$21="เชี่ยวชาญ",IF(H184="-","",IF(H184='1.ข้อมูลส่วนบุคคล'!F$26,"เกี่ยวข้อง","ไม่เกี่ยวข้อง")),IF('1.ข้อมูลส่วนบุคคล'!C$21="เชี่ยวชาญพิเศษ",IF(H184="-","",IF(H184='1.ข้อมูลส่วนบุคคล'!F$26,"เกี่ยวข้อง","ไม่เกี่ยวข้อง")),"")) ->  | V184: 0 | W184: 0 | Z184: 0 | AA184: 0 | AB184: ='1.ข้อมูลส่วนบุคคล'!G$32 -> 2560-07-05 | AC184: 25600705 | AD184: 00:00:00 | AE184: 19000100 | AF184: -6600605 | AG184: 0 | AH184: 0 | AI184: 0 | AJ184: 0 | AK184: 0 | AO184: 0 | AP184: =IFERROR((VLOOKUP(AO184,'2.การมอบหมายงานสอน'!$AK$5:$AL$24,2,FALSE)*60/1440),0) -> 0
A185: ='1.ข้อมูลส่วนบุคคล'!$F$5 -> 12345678912345 | K185: =IF('1.ข้อมูลส่วนบุคคล'!C$21="เชี่ยวชาญ",IF(H185="-","",IF(H185='1.ข้อมูลส่วนบุคคล'!F$26,"เกี่ยวข้อง","ไม่เกี่ยวข้อง")),IF('1.ข้อมูลส่วนบุคคล'!C$21="เชี่ยวชาญพิเศษ",IF(H185="-","",IF(H185='1.ข้อมูลส่วนบุคคล'!F$26,"เกี่ยวข้อง","ไม่เกี่ยวข้อง")),"")) ->  | V185: 0 | W185: 0 | Z185: 0 | AA185: 0 | AB185: ='1.ข้อมูลส่วนบุคคล'!G$32 -> 2560-07-05 | AC185: 25600705 | AD185: 00:00:00 | AE185: 19000100 | AF185: -6600605 | AG185: 0 | AH185: 0 | AI185: 0 | AJ185: 0 | AK185: 0 | AO185: 0 | AP185: =IFERROR((VLOOKUP(AO185,'2.การมอบหมายงานสอน'!$AK$5:$AL$24,2,FALSE)*60/1440),0) -> 0
A186: ='1.ข้อมูลส่วนบุคคล'!$F$5 -> 12345678912345 | K186: =IF('1.ข้อมูลส่วนบุคคล'!C$21="เชี่ยวชาญ",IF(H186="-","",IF(H186='1.ข้อมูลส่วนบุคคล'!F$26,"เกี่ยวข้อง","ไม่เกี่ยวข้อง")),IF('1.ข้อมูลส่วนบุคคล'!C$21="เชี่ยวชาญพิเศษ",IF(H186="-","",IF(H186='1.ข้อมูลส่วนบุคคล'!F$26,"เกี่ยวข้อง","ไม่เกี่ยวข้อง")),"")) ->  | V186: 0 | W186: 0 | Z186: 0 | AA186: 0 | AB186: ='1.ข้อมูลส่วนบุคคล'!G$32 -> 2560-07-05 | AC186: 25600705 | AD186: 00:00:00 | AE186: 19000100 | AF186: -6600605 | AG186: 0 | AH186: 0 | AI186: 0 | AJ186: 0 | AK186: 0 | AO186: 0 | AP186: =IFERROR((VLOOKUP(AO186,'2.การมอบหมายงานสอน'!$AK$5:$AL$24,2,FALSE)*60/1440),0) -> 0
A187: ='1.ข้อมูลส่วนบุคคล'!$F$5 -> 12345678912345 | K187: =IF('1.ข้อมูลส่วนบุคคล'!C$21="เชี่ยวชาญ",IF(H187="-","",IF(H187='1.ข้อมูลส่วนบุคคล'!F$26,"เกี่ยวข้อง","ไม่เกี่ยวข้อง")),IF('1.ข้อมูลส่วนบุคคล'!C$21="เชี่ยวชาญพิเศษ",IF(H187="-","",IF(H187='1.ข้อมูลส่วนบุคคล'!F$26,"เกี่ยวข้อง","ไม่เกี่ยวข้อง")),"")) ->  | V187: 0 | W187: 0 | Z187: 0 | AA187: 0 | AB187: ='1.ข้อมูลส่วนบุคคล'!G$32 -> 2560-07-05 | AC187: 25600705 | AD187: 00:00:00 | AE187: 19000100 | AF187: -6600605 | AG187: 0 | AH187: 0 | AI187: 0 | AJ187: 0 | AK187: 0 | AO187: 0 | AP187: =IFERROR((VLOOKUP(AO187,'2.การมอบหมายงานสอน'!$AK$5:$AL$24,2,FALSE)*60/1440),0) -> 0
A188: ='1.ข้อมูลส่วนบุคคล'!$F$5 -> 12345678912345 | K188: =IF('1.ข้อมูลส่วนบุคคล'!C$21="เชี่ยวชาญ",IF(H188="-","",IF(H188='1.ข้อมูลส่วนบุคคล'!F$26,"เกี่ยวข้อง","ไม่เกี่ยวข้อง")),IF('1.ข้อมูลส่วนบุคคล'!C$21="เชี่ยวชาญพิเศษ",IF(H188="-","",IF(H188='1.ข้อมูลส่วนบุคคล'!F$26,"เกี่ยวข้อง","ไม่เกี่ยวข้อง")),"")) ->  | V188: 0 | W188: 0 | Z188: 0 | AA188: 0 | AB188: ='1.ข้อมูลส่วนบุคคล'!G$32 -> 2560-07-05 | AC188: 25600705 | AD188: 00:00:00 | AE188: 19000100 | AF188: -6600605 | AG188: 0 | AH188: 0 | AI188: 0 | AJ188: 0 | AK188: 0 | AO188: 0 | AP188: =IFERROR((VLOOKUP(AO188,'2.การมอบหมายงานสอน'!$AK$5:$AL$24,2,FALSE)*60/1440),0) -> 0
A189: ='1.ข้อมูลส่วนบุคคล'!$F$5 -> 12345678912345 | K189: =IF('1.ข้อมูลส่วนบุคคล'!C$21="เชี่ยวชาญ",IF(H189="-","",IF(H189='1.ข้อมูลส่วนบุคคล'!F$26,"เกี่ยวข้อง","ไม่เกี่ยวข้อง")),IF('1.ข้อมูลส่วนบุคคล'!C$21="เชี่ยวชาญพิเศษ",IF(H189="-","",IF(H189='1.ข้อมูลส่วนบุคคล'!F$26,"เกี่ยวข้อง","ไม่เกี่ยวข้อง")),"")) ->  | V189: 0 | W189: 0 | Z189: 0 | AA189: 0 | AB189: ='1.ข้อมูลส่วนบุคคล'!G$32 -> 2560-07-05 | AC189: 25600705 | AD189: 00:00:00 | AE189: 19000100 | AF189: -6600605 | AG189: 0 | AH189: 0 | AI189: 0 | AJ189: 0 | AK189: 0 | AO189: 0 | AP189: =IFERROR((VLOOKUP(AO189,'2.การมอบหมายงานสอน'!$AK$5:$AL$24,2,FALSE)*60/1440),0) -> 0
A190: ='1.ข้อมูลส่วนบุคคล'!$F$5 -> 12345678912345 | K190: =IF('1.ข้อมูลส่วนบุคคล'!C$21="เชี่ยวชาญ",IF(H190="-","",IF(H190='1.ข้อมูลส่วนบุคคล'!F$26,"เกี่ยวข้อง","ไม่เกี่ยวข้อง")),IF('1.ข้อมูลส่วนบุคคล'!C$21="เชี่ยวชาญพิเศษ",IF(H190="-","",IF(H190='1.ข้อมูลส่วนบุคคล'!F$26,"เกี่ยวข้อง","ไม่เกี่ยวข้อง")),"")) ->  | V190: 0 | W190: 0 | Z190: 0 | AA190: 0 | AB190: ='1.ข้อมูลส่วนบุคคล'!G$32 -> 2560-07-05 | AC190: 25600705 | AD190: 00:00:00 | AE190: 19000100 | AF190: -6600605 | AG190: 0 | AH190: 0 | AI190: 0 | AJ190: 0 | AK190: 0 | AO190: 0 | AP190: =IFERROR((VLOOKUP(AO190,'2.การมอบหมายงานสอน'!$AK$5:$AL$24,2,FALSE)*60/1440),0) -> 0
A191: ='1.ข้อมูลส่วนบุคคล'!$F$5 -> 12345678912345 | K191: =IF('1.ข้อมูลส่วนบุคคล'!C$21="เชี่ยวชาญ",IF(H191="-","",IF(H191='1.ข้อมูลส่วนบุคคล'!F$26,"เกี่ยวข้อง","ไม่เกี่ยวข้อง")),IF('1.ข้อมูลส่วนบุคคล'!C$21="เชี่ยวชาญพิเศษ",IF(H191="-","",IF(H191='1.ข้อมูลส่วนบุคคล'!F$26,"เกี่ยวข้อง","ไม่เกี่ยวข้อง")),"")) ->  | V191: 0 | W191: 0 | Z191: 0 | AA191: 0 | AB191: ='1.ข้อมูลส่วนบุคคล'!G$32 -> 2560-07-05 | AC191: 25600705 | AD191: 00:00:00 | AE191: 19000100 | AF191: -6600605 | AG191: 0 | AH191: 0 | AI191: 0 | AJ191: 0 | AK191: 0 | AO191: 0 | AP191: =IFERROR((VLOOKUP(AO191,'2.การมอบหมายงานสอน'!$AK$5:$AL$24,2,FALSE)*60/1440),0) -> 0
A192: ='1.ข้อมูลส่วนบุคคล'!$F$5 -> 12345678912345 | K192: =IF('1.ข้อมูลส่วนบุคคล'!C$21="เชี่ยวชาญ",IF(H192="-","",IF(H192='1.ข้อมูลส่วนบุคคล'!F$26,"เกี่ยวข้อง","ไม่เกี่ยวข้อง")),IF('1.ข้อมูลส่วนบุคคล'!C$21="เชี่ยวชาญพิเศษ",IF(H192="-","",IF(H192='1.ข้อมูลส่วนบุคคล'!F$26,"เกี่ยวข้อง","ไม่เกี่ยวข้อง")),"")) ->  | V192: 0 | W192: 0 | Z192: 0 | AA192: 0 | AB192: ='1.ข้อมูลส่วนบุคคล'!G$32 -> 2560-07-05 | AC192: 25600705 | AD192: 00:00:00 | AE192: 19000100 | AF192: -6600605 | AG192: 0 | AH192: 0 | AI192: 0 | AJ192: 0 | AK192: 0 | AO192: 0 | AP192: =IFERROR((VLOOKUP(AO192,'2.การมอบหมายงานสอน'!$AK$5:$AL$24,2,FALSE)*60/1440),0) -> 0
A193: ='1.ข้อมูลส่วนบุคคล'!$F$5 -> 12345678912345 | K193: =IF('1.ข้อมูลส่วนบุคคล'!C$21="เชี่ยวชาญ",IF(H193="-","",IF(H193='1.ข้อมูลส่วนบุคคล'!F$26,"เกี่ยวข้อง","ไม่เกี่ยวข้อง")),IF('1.ข้อมูลส่วนบุคคล'!C$21="เชี่ยวชาญพิเศษ",IF(H193="-","",IF(H193='1.ข้อมูลส่วนบุคคล'!F$26,"เกี่ยวข้อง","ไม่เกี่ยวข้อง")),"")) ->  | V193: 0 | W193: 0 | Z193: 0 | AA193: 0 | AB193: ='1.ข้อมูลส่วนบุคคล'!G$32 -> 2560-07-05 | AC193: 25600705 | AD193: 00:00:00 | AE193: 19000100 | AF193: -6600605 | AG193: 0 | AH193: 0 | AI193: 0 | AJ193: 0 | AK193: 0 | AO193: 0 | AP193: =IFERROR((VLOOKUP(AO193,'2.การมอบหมายงานสอน'!$AK$5:$AL$24,2,FALSE)*60/1440),0) -> 0
A194: ='1.ข้อมูลส่วนบุคคล'!$F$5 -> 12345678912345 | K194: =IF('1.ข้อมูลส่วนบุคคล'!C$21="เชี่ยวชาญ",IF(H194="-","",IF(H194='1.ข้อมูลส่วนบุคคล'!F$26,"เกี่ยวข้อง","ไม่เกี่ยวข้อง")),IF('1.ข้อมูลส่วนบุคคล'!C$21="เชี่ยวชาญพิเศษ",IF(H194="-","",IF(H194='1.ข้อมูลส่วนบุคคล'!F$26,"เกี่ยวข้อง","ไม่เกี่ยวข้อง")),"")) ->  | V194: 0 | W194: 0 | Z194: 0 | AA194: 0 | AB194: ='1.ข้อมูลส่วนบุคคล'!G$32 -> 2560-07-05 | AC194: 25600705 | AD194: 00:00:00 | AE194: 19000100 | AF194: -6600605 | AG194: 0 | AH194: 0 | AI194: 0 | AJ194: 0 | AK194: 0 | AO194: 0 | AP194: =IFERROR((VLOOKUP(AO194,'2.การมอบหมายงานสอน'!$AK$5:$AL$24,2,FALSE)*60/1440),0) -> 0
A195: ='1.ข้อมูลส่วนบุคคล'!$F$5 -> 12345678912345 | K195: =IF('1.ข้อมูลส่วนบุคคล'!C$21="เชี่ยวชาญ",IF(H195="-","",IF(H195='1.ข้อมูลส่วนบุคคล'!F$26,"เกี่ยวข้อง","ไม่เกี่ยวข้อง")),IF('1.ข้อมูลส่วนบุคคล'!C$21="เชี่ยวชาญพิเศษ",IF(H195="-","",IF(H195='1.ข้อมูลส่วนบุคคล'!F$26,"เกี่ยวข้อง","ไม่เกี่ยวข้อง")),"")) ->  | V195: 0 | W195: 0 | Z195: 0 | AA195: 0 | AB195: ='1.ข้อมูลส่วนบุคคล'!G$32 -> 2560-07-05 | AC195: 25600705 | AD195: 00:00:00 | AE195: 19000100 | AF195: -6600605 | AG195: 0 | AH195: 0 | AI195: 0 | AJ195: 0 | AK195: 0 | AO195: 0 | AP195: =IFERROR((VLOOKUP(AO195,'2.การมอบหมายงานสอน'!$AK$5:$AL$24,2,FALSE)*60/1440),0) -> 0
A196: ='1.ข้อมูลส่วนบุคคล'!$F$5 -> 12345678912345 | K196: =IF('1.ข้อมูลส่วนบุคคล'!C$21="เชี่ยวชาญ",IF(H196="-","",IF(H196='1.ข้อมูลส่วนบุคคล'!F$26,"เกี่ยวข้อง","ไม่เกี่ยวข้อง")),IF('1.ข้อมูลส่วนบุคคล'!C$21="เชี่ยวชาญพิเศษ",IF(H196="-","",IF(H196='1.ข้อมูลส่วนบุคคล'!F$26,"เกี่ยวข้อง","ไม่เกี่ยวข้อง")),"")) ->  | V196: 0 | W196: 0 | Z196: 0 | AA196: 0 | AB196: ='1.ข้อมูลส่วนบุคคล'!G$32 -> 2560-07-05 | AC196: 25600705 | AD196: 00:00:00 | AE196: 19000100 | AF196: -6600605 | AG196: 0 | AH196: 0 | AI196: 0 | AJ196: 0 | AK196: 0 | AO196: 0 | AP196: =IFERROR((VLOOKUP(AO196,'2.การมอบหมายงานสอน'!$AK$5:$AL$24,2,FALSE)*60/1440),0) -> 0
A197: ='1.ข้อมูลส่วนบุคคล'!$F$5 -> 12345678912345 | K197: =IF('1.ข้อมูลส่วนบุคคล'!C$21="เชี่ยวชาญ",IF(H197="-","",IF(H197='1.ข้อมูลส่วนบุคคล'!F$26,"เกี่ยวข้อง","ไม่เกี่ยวข้อง")),IF('1.ข้อมูลส่วนบุคคล'!C$21="เชี่ยวชาญพิเศษ",IF(H197="-","",IF(H197='1.ข้อมูลส่วนบุคคล'!F$26,"เกี่ยวข้อง","ไม่เกี่ยวข้อง")),"")) ->  | V197: 0 | W197: 0 | Z197: 0 | AA197: 0 | AB197: ='1.ข้อมูลส่วนบุคคล'!G$32 -> 2560-07-05 | AC197: 25600705 | AD197: 00:00:00 | AE197: 19000100 | AF197: -6600605 | AG197: 0 | AH197: 0 | AI197: 0 | AJ197: 0 | AK197: 0 | AO197: 0 | AP197: =IFERROR((VLOOKUP(AO197,'2.การมอบหมายงานสอน'!$AK$5:$AL$24,2,FALSE)*60/1440),0) -> 0
A198: ='1.ข้อมูลส่วนบุคคล'!$F$5 -> 12345678912345 | K198: =IF('1.ข้อมูลส่วนบุคคล'!C$21="เชี่ยวชาญ",IF(H198="-","",IF(H198='1.ข้อมูลส่วนบุคคล'!F$26,"เกี่ยวข้อง","ไม่เกี่ยวข้อง")),IF('1.ข้อมูลส่วนบุคคล'!C$21="เชี่ยวชาญพิเศษ",IF(H198="-","",IF(H198='1.ข้อมูลส่วนบุคคล'!F$26,"เกี่ยวข้อง","ไม่เกี่ยวข้อง")),"")) ->  | V198: 0 | W198: 0 | Z198: 0 | AA198: 0 | AB198: ='1.ข้อมูลส่วนบุคคล'!G$32 -> 2560-07-05 | AC198: 25600705 | AD198: 00:00:00 | AE198: 19000100 | AF198: -6600605 | AG198: 0 | AH198: 0 | AI198: 0 | AJ198: 0 | AK198: 0 | AO198: 0 | AP198: =IFERROR((VLOOKUP(AO198,'2.การมอบหมายงานสอน'!$AK$5:$AL$24,2,FALSE)*60/1440),0) -> 0
A199: ='1.ข้อมูลส่วนบุคคล'!$F$5 -> 12345678912345 | K199: =IF('1.ข้อมูลส่วนบุคคล'!C$21="เชี่ยวชาญ",IF(H199="-","",IF(H199='1.ข้อมูลส่วนบุคคล'!F$26,"เกี่ยวข้อง","ไม่เกี่ยวข้อง")),IF('1.ข้อมูลส่วนบุคคล'!C$21="เชี่ยวชาญพิเศษ",IF(H199="-","",IF(H199='1.ข้อมูลส่วนบุคคล'!F$26,"เกี่ยวข้อง","ไม่เกี่ยวข้อง")),"")) ->  | U199: =IF(LEFT(Q199,3)="ไม่",0,IF(L199="","",B199)) ->  | V199: =IF(K199="เกี่ยวข้อง",1,0) -> 0 | W199: 0 | Z199: 0 | AA199: 0 | AB199: ='1.ข้อมูลส่วนบุคคล'!G$32 -> 2560-07-05 | AC199: 25600705 | AD199: 00:00:00 | AE199: 19000100 | AF199: -6600605 | AG199: 0 | AH199: 0 | AI199: 0 | AJ199: 0 | AK199: =IF(O199="สอนซ่อมเสริม",1,0) -> 0 | AL199: =B199&+D199&+E199&+Q199 ->  | AM199: =C199&+D199 ->  | AO199: =C199*10+D199 -> 0 | AP199: =IFERROR((VLOOKUP(AO199,'2.การมอบหมายงานสอน'!$AK$5:$AL$24,2,FALSE)*60/1440),0) -> 0
A200: ='1.ข้อมูลส่วนบุคคล'!$F$5 -> 12345678912345 | B200: =IF(AF200<0,"",IF(AND(AD200>=AB200,AD200<DATE(YEAR(AB200)+1,MONTH(AB200),DAY(AB200))),1,IF(AND(AD200>=DATE(YEAR(AB200)+1,MONTH(AB200),DAY(AB200)),AD200<DATE(YEAR(AB200)+2,MONTH(AB200),DAY(AB200))),2,IF(AND(AD200>=DATE(YEAR(AB200)+2,MONTH(AB200),DAY(AB200)),AD200<DATE(YEAR(AB200)+3,MONTH(AB200),DAY(AB200))),3,IF(AND(AD200>=DATE(YEAR(AB200)+3,MONTH(AB200),DAY(AB200)),AD200<DATE(YEAR(AB200)+4,MONTH(AB200),DAY(AB200))),4,IF(AND(AD200>=DATE(YEAR(AB200)+4,MONTH(AB200),DAY(AB200)),AD200<DATE(YEAR(AB200)+5,MONTH(AB200),DAY(AB200))),5,IF(AND(AD200>=DATE(YEAR(AB200)+5,MONTH(AB200),DAY(AB200)),AD200<DATE(YEAR(AB200)+6,MONTH(AB200),DAY(AB200))),6,IF(AND(AD200>=DATE(YEAR(AB200)+6,MONTH(AB200),DAY(AB200)),AD200<DATE(YEAR(AB200)+7,MONTH(AB200),DAY(AB200))),7,IF(AND(AD200>=DATE(YEAR(AB200)+7,MONTH(AB200),DAY(AB200)),AD200<DATE(YEAR(AB200)+8,MONTH(AB200),DAY(AB200))),8,IF(AND(AD200>=DATE(YEAR(AB200)+8,MONTH(AB200),DAY(AB200)),AD200<DATE(YEAR(AB200)+9,MONTH(AB200),DAY(AB200))),9,IF(AND(AD200>=DATE(YEAR(AB200)+9,MONTH(AB200),DAY(AB200)),AD200<DATE(YEAR(AB200)+100,MONTH(AB200),DAY(AB200))),10,0))))))))))) ->  | K200: =IF('1.ข้อมูลส่วนบุคคล'!C$21="เชี่ยวชาญ",IF(H200="-","",IF(H200='1.ข้อมูลส่วนบุคคล'!F$26,"เกี่ยวข้อง","ไม่เกี่ยวข้อง")),IF('1.ข้อมูลส่วนบุคคล'!C$21="เชี่ยวชาญพิเศษ",IF(H200="-","",IF(H200='1.ข้อมูลส่วนบุคคล'!F$26,"เกี่ยวข้อง","ไม่เกี่ยวข้อง")),"")) ->  | R200: =S200 ->  | S200: =IF(C200<>"","3-"&+C200&+D200&+E200&+J200&+"..."&+LEFT(I200,20),"") ->  | V200: 0 | W200: 0 | Z200: =IF(Q200="ไม่ถูกต้อง",0,IF(N200="นาที",(L200*M200)/1440,(L200*M200*60)/1440)) -> 0 | AA200: =IF(ISBLANK(E200),0,IF(ISBLANK(D200),IF(AND(C200=C199,E200=E199),0,IF(AND(C200=C199,E200=(E199+1)),0,IF(AND(C200=(C199+1),E200=1,E199>=18),0,1))),IF(AND(C200=C199,D200=D199,E200=E199),0,IF(AND(C200=C199,D200=D199,E200=(E199+1)),0,IF(AND(C200=C199,D200=(D199+1),E200=1,E199>=18),0,IF(AND(C200=(C199+1),D200=1,E200=1,E199>=18),0,1)))))) -> 0 | AB200: ='1.ข้อมูลส่วนบุคคล'!G$32 -> 2560-07-05 | AC200: =TEXT(AB200,"yyyy")&+IF(TEXT(AB200,"mm")>9,TEXT(AB200,"mm"),"0"&+TEXT(AB200,"mm"))&+IF(TEXT(AB200,"dd")>9,TEXT(AB200,"dd"),"0"&+TEXT(AB200,"dd")) -> 25600705 | AD200: =G200 -> 00:00:00 | AE200: =TEXT(AD200,"yyyy")&+IF(TEXT(AD200,"mm")>9,TEXT(AD200,"mm"),"0"&+TEXT(AD200,"mm"))&+IF(TEXT(AD200,"dd")>9,TEXT(AD200,"dd"),"0"&+TEXT(AD200,"dd")) -> 19000100 | AF200: =AE200-AC200 -> -6600605 | AG200: =IF(LEFT(P200,1)="5",1,0) -> 0 | AH200: =IF(AG200=1,IF(IF(AN200=AN199,0,AP200-IF(AND(LEFT(Q200,3)<>"ไม่",AK200=0),SUMIFS(Z200:Z250,AN200:AN250,AN200,AK200:AK250,0),0))<0,0,IF(AN200=AN199,0,AP200-IF(AND(LEFT(Q200,3)<>"ไม่",AK200=0),SUMIFS(Z200:Z250,AN200:AN250,AN200,AK200:AK250,0),0))),0) -> 0 | AI200: 0 | AJ200: =IF(IFERROR(VLOOKUP(AO200,AQ$7:AS$26,3,FALSE),0)-IFERROR(VLOOKUP(AO200,AQ$7:AS$26,2,FALSE),0)<0,1,0) -> 0 | AK200: 0 | AN200: =C200&+D200&+E200 ->  | AO200: 0 | AP200: =IFERROR((VLOOKUP(AO200,'2.การมอบหมายงานสอน'!$AK$5:$AL$24,2,FALSE)*60/1440),0) -> 0
A201: ='1.ข้อมูลส่วนบุคคล'!$F$5 -> 12345678912345 | K201: =IF('1.ข้อมูลส่วนบุคคล'!C$21="เชี่ยวชาญ",IF(H201="-","",IF(H201='1.ข้อมูลส่วนบุคคล'!F$26,"เกี่ยวข้อง","ไม่เกี่ยวข้อง")),IF('1.ข้อมูลส่วนบุคคล'!C$21="เชี่ยวชาญพิเศษ",IF(H201="-","",IF(H201='1.ข้อมูลส่วนบุคคล'!F$26,"เกี่ยวข้อง","ไม่เกี่ยวข้อง")),"")) ->  | V201: 0 | W201: =IF(AN201=AN200,0,IF(OR(LEFT(Q201,3)="ไม่",Q201=""),"",IF(OR(LEFT(P201,1)="1",LEFT(P201,1)="2",LEFT(P201,1)="3",LEFT(P201,1)="4",LEFT(P201,1)="5"),0,IF(SUMIFS(Z201:Z251,AL201:AL251,B201&+D201&+E201&+"ถูกต้อง",AK201:AK251,0)<AP201,1,0)))) -> 0 | Z201: 0 | AA201: 0 | AB201: ='1.ข้อมูลส่วนบุคคล'!G$32 -> 2560-07-05 | AC201: 25600705 | AD201: 00:00:00 | AE201: 19000100 | AF201: -6600605 | AG201: 0 | AH201: 0 | AI201: 0 | AJ201: 0 | AK201: 0 | AO201: 0 | AP201: =IFERROR((VLOOKUP(AO201,'2.การมอบหมายงานสอน'!$AK$5:$AL$24,2,FALSE)*60/1440),0) -> 0
... 2049 more rows

Sheet 4.งานสนับสนุนการจัดการเรียนรู้
C1: ชั่วโมงการปฏิบัติงาน (ชั่วโมงสนับสนุนการเรียนรู้)
F2: การปฏิบัติงานที่เป็นประโยชน์ต่อการส่งเสริมและพัฒนาการจัดการเรียนรู้ของสถานศึกษา รวมทั้งงานสนับสนุนการบริหารสถานศึกษา เช่น งานวิชาการ งานบุคคล งานงบประมาณ และงานบริหารทั่วไป เป็นต้น
A5: เลขบัตรประชาชน | B5: ปีที่ | C5: ปีการศึกษา/ปีงบประมาณ | D5: ภาคเรียนที่ | E5: สัปดาห์ที่ | F5: ว/ด/ป ของสัปดาห์ | H5: รายการงานสนับสนุน | I5: จำนวน | J5: การรับรองของ | K5: รหัสเอกสารสำหรับตรวจสอบ | L5: รหัสเอกสารสำหรับตรวจสอบ
F6: วันแรกของสัปดาห์ | G6: วันสุดท้ายของสัปดาห์ | I6: ชั่วโมง | J6: ผอ. สถานศึกษา | N6: คำนวณปีรายบุคคล | S6: นับชั่วโมงที่ ผอ. รับรอง
A7: ='1.ข้อมูลส่วนบุคคล'!$F$5 -> 12345678912345 | B7: =IF(R7<0,"",IF(AND(P7>=N7,P7<DATE(YEAR(N7)+1,MONTH(N7),DAY(N7))),1,IF(AND(P7>=DATE(YEAR(N7)+1,MONTH(N7),DAY(N7)),P7<DATE(YEAR(N7)+2,MONTH(N7),DAY(N7))),2,IF(AND(P7>=DATE(YEAR(N7)+2,MONTH(N7),DAY(N7)),P7<DATE(YEAR(N7)+3,MONTH(N7),DAY(N7))),3,IF(AND(P7>=DATE(YEAR(N7)+3,MONTH(N7),DAY(N7)),P7<DATE(YEAR(N7)+4,MONTH(N7),DAY(N7))),4,IF(AND(P7>=DATE(YEAR(N7)+4,MONTH(N7),DAY(N7)),P7<DATE(YEAR(N7)+5,MONTH(N7),DAY(N7))),5,IF(AND(P7>=DATE(YEAR(N7)+5,MONTH(N7),DAY(N7)),P7<DATE(YEAR(N7)+6,MONTH(N7),DAY(N7))),6,IF(AND(P7>=DATE(YEAR(N7)+6,MONTH(N7),DAY(N7)),P7<DATE(YEAR(N7)+7,MONTH(N7),DAY(N7))),7,IF(AND(P7>=DATE(YEAR(N7)+7,MONTH(N7),DAY(N7)),P7<DATE(YEAR(N7)+8,MONTH(N7),DAY(N7))),8,IF(AND(P7>=DATE(YEAR(N7)+8,MONTH(N7),DAY(N7)),P7<DATE(YEAR(N7)+9,MONTH(N7),DAY(N7))),9,IF(AND(P7>=DATE(YEAR(N7)+9,MONTH(N7),DAY(N7)),P7<DATE(YEAR(N7)+100,MONTH(N7),DAY(N7))),10,0))))))))))) -> 1 | C7: ='2.การมอบหมายงานสอน'!C5 -> 2560 | D7: 1 | E7: 8 | F7: 2560-07-05 | G7: 2560-07-09 | K7: =L7 -> 4-256018... | L7: =IF(C7<>"","4-"&+C7&+D7&+E7&+"..."&+RIGHT(H7,10),"") -> 4-256018... | M7: =IF(LEFT(J7,3)="ไม่",0,IF(I7="","",B7)) ->  | N7: ='1.ข้อมูลส่วนบุคคล'!G$32 -> 2560-07-05 | O7: =TEXT(N7,"yyyy")&+IF(TEXT(N7,"mm")>9,TEXT(N7,"mm"),"0"&+TEXT(N7,"mm"))&+IF(TEXT(N7,"dd")>9,TEXT(N7,"dd"),"0"&+TEXT(N7,"dd")) -> 25600705 | P7: =G7 -> 2560-07-09 | Q7: =TEXT(P7,"yyyy")&+IF(TEXT(P7,"mm")>9,TEXT(P7,"mm"),"0"&+TEXT(P7,"mm"))&+IF(TEXT(P7,"dd")>9,TEXT(P7,"dd"),"0"&+TEXT(P7,"dd")) -> 25600709 | R7: =Q7-O7 -> 4 | S7: =IF(LEFT(J7,3)="ไม่",0,IF(I7="","",I7)) -> 
A8: ='1.ข้อมูลส่วนบุคคล'!$F$5 -> 12345678912345 | B8: =IF(R8<0,"",IF(AND(P8>=N8,P8<DATE(YEAR(N8)+1,MONTH(N8),DAY(N8))),1,IF(AND(P8>=DATE(YEAR(N8)+1,MONTH(N8),DAY(N8)),P8<DATE(YEAR(N8)+2,MONTH(N8),DAY(N8))),2,IF(AND(P8>=DATE(YEAR(N8)+2,MONTH(N8),DAY(N8)),P8<DATE(YEAR(N8)+3,MONTH(N8),DAY(N8))),3,IF(AND(P8>=DATE(YEAR(N8)+3,MONTH(N8),DAY(N8)),P8<DATE(YEAR(N8)+4,MONTH(N8),DAY(N8))),4,IF(AND(P8>=DATE(YEAR(N8)+4,MONTH(N8),DAY(N8)),P8<DATE(YEAR(N8)+5,MONTH(N8),DAY(N8))),5,IF(AND(P8>=DATE(YEAR(N8)+5,MONTH(N8),DAY(N8)),P8<DATE(YEAR(N8)+6,MONTH(N8),DAY(N8))),6,IF(AND(P8>=DATE(YEAR(N8)+6,MONTH(N8),DAY(N8)),P8<DATE(YEAR(N8)+7,MONTH(N8),DAY(N8))),7,IF(AND(P8>=DATE(YEAR(N8)+7,MONTH(N8),DAY(N8)),P8<DATE(YEAR(N8)+8,MONTH(N8),DAY(N8))),8,IF(AND(P8>=DATE(YEAR(N8)+8,MONTH(N8),DAY(N8)),P8<DATE(YEAR(N8)+9,MONTH(N8),DAY(N8))),9,IF(AND(P8>=DATE(YEAR(N8)+9,MONTH(N8),DAY(N8)),P8<DATE(YEAR(N8)+100,MONTH(N8),DAY(N8))),10,0))))))))))) ->  | K8: =L8 ->  | L8: =IF(C8<>"","4-"&+C8&+D8&+E8&+"..."&+RIGHT(H8,10),"") ->  | M8: =IF(LEFT(J8,3)="ไม่",0,IF(I8="","",B8)) ->  | N8: ='1.ข้อมูลส่วนบุคคล'!G$32 -> 2560-07-05 | O8: =TEXT(N8,"yyyy")&+IF(TEXT(N8,"mm")>9,TEXT(N8,"mm"),"0"&+TEXT(N8,"mm"))&+IF(TEXT(N8,"dd")>9,TEXT(N8,"dd"),"0"&+TEXT(N8,"dd")) -> 25600705 | P8: =G8 -> 00:00:00 | Q8: =TEXT(P8,"yyyy")&+IF(TEXT(P8,"mm")>9,TEXT(P8,"mm"),"0"&+TEXT(P8,"mm"))&+IF(TEXT(P8,"dd")>9,TEXT(P8,"dd"),"0"&+TEXT(P8,"dd")) -> 19000100 | R8: =Q8-O8 -> -6600605 | S8: =IF(LEFT(J8,3)="ไม่",0,IF(I8="","",I8)) -> 
A9: ='1.ข้อมูลส่วนบุคคล'!$F$5 -> 12345678912345 | M9: =IF(LEFT(J9,3)="ไม่",0,IF(I9="","",B9)) ->  | N9: ='1.ข้อมูลส่วนบุคคล'!G$32 -> 2560-07-05 | O9: 25600705 | P9: =G9 -> 00:00:00 | Q9: 19000100 | R9: -6600605
A10: ='1.ข้อมูลส่วนบุคคล'!$F$5 -> 12345678912345 | N10: ='1.ข้อมูลส่วนบุคคล'!G$32 -> 2560-07-05 | O10: 25600705 | P10: 00:00:00 | Q10: 19000100 | R10: -6600605
A11: ='1.ข้อมูลส่วนบุคคล'!$F$5 -> 12345678912345 | N11: ='1.ข้อมูลส่วนบุคคล'!G$32 -> 2560-07-05 | O11: 25600705 | P11: 00:00:00 | Q11: 19000100 | R11: -6600605
A12: ='1.ข้อมูลส่วนบุคคล'!$F$5 -> 12345678912345 | N12: ='1.ข้อมูลส่วนบุคคล'!G$32 -> 2560-07-05 | O12: 25600705 | P12: 00:00:00 | Q12: 19000100 | R12: -6600605
A13: ='1.ข้อมูลส่วนบุคคล'!$F$5 -> 12345678912345 | N13: ='1.ข้อมูลส่วนบุคคล'!G$32 -> 2560-07-05 | O13: 25600705 | P13: 00:00:00 | Q13: 19000100 | R13: -6600605
A14: ='1.ข้อมูลส่วนบุคคล'!$F$5 -> 12345678912345 | N14: ='1.ข้อมูลส่วนบุคคล'!G$32 -> 2560-07-05 | O14: 25600705 | P14: 00:00:00 | Q14: 19000100 | R14: -6600605
A15: ='1.ข้อมูลส่วนบุคคล'!$F$5 -> 12345678912345 | N15: ='1.ข้อมูลส่วนบุคคล'!G$32 -> 2560-07-05 | O15: 25600705 | P15: 00:00:00 | Q15: 19000100 | R15: -6600605
A16: ='1.ข้อมูลส่วนบุคคล'!$F$5 -> 12345678912345 | N16: ='1.ข้อมูลส่วนบุคคล'!G$32 -> 2560-07-05 | O16: 25600705 | P16: 00:00:00 | Q16: 19000100 | R16: -6600605
A17: ='1.ข้อมูลส่วนบุคคล'!$F$5 -> 12345678912345 | N17: ='1.ข้อมูลส่วนบุคคล'!G$32 -> 2560-07-05 | O17: 25600705 | P17: 00:00:00 | Q17: 19000100 | R17: -6600605
A18: ='1.ข้อมูลส่วนบุคคล'!$F$5 -> 12345678912345 | N18: ='1.ข้อมูลส่วนบุคคล'!G$32 -> 2560-07-05 | O18: 25600705 | P18: 00:00:00 | Q18: 19000100 | R18: -6600605
A19: ='1.ข้อมูลส่วนบุคคล'!$F$5 -> 12345678912345 | N19: ='1.ข้อมูลส่วนบุคคล'!G$32 -> 2560-07-05 | O19: 25600705 | P19: 00:00:00 | Q19: 19000100 | R19: -6600605
A20: ='1.ข้อมูลส่วนบุคคล'!$F$5 -> 12345678912345 | N20: ='1.ข้อมูลส่วนบุคคล'!G$32 -> 2560-07-05 | O20: 25600705 | P20: 00:00:00 | Q20: 19000100 | R20: -6600605
A21: ='1.ข้อมูลส่วนบุคคล'!$F$5 -> 12345678912345 | N21: ='1.ข้อมูลส่วนบุคคล'!G$32 -> 2560-07-05 | O21: 25600705 | P21: 00:00:00 | Q21: 19000100 | R21: -6600605
A22: ='1.ข้อมูลส่วนบุคคล'!$F$5 -> 12345678912345 | N22: ='1.ข้อมูลส่วนบุคคล'!G$32 -> 2560-07-05 | O22: 25600705 | P22: 00:00:00 | Q22: 19000100 | R22: -6600605
A23: ='1.ข้อมูลส่วนบุคคล'!$F$5 -> 12345678912345 | N23: ='1.ข้อมูลส่วนบุคคล'!G$32 -> 2560-07-05 | O23: 25600705 | P23: 00:00:00 | Q23: 19000100 | R23: -6600605
A24: ='1.ข้อมูลส่วนบุคคล'!$F$5 -> 12345678912345 | N24: ='1.ข้อมูลส่วนบุคคล'!G$32 -> 2560-07-05 | O24: 25600705 | P24: 00:00:00 | Q24: 19000100 | R24: -6600605
A25: ='1.ข้อมูลส่วนบุคคล'!$F$5 -> 12345678912345 | N25: ='1.ข้อมูลส่วนบุคคล'!G$32 -> 2560-07-05 | O25: 25600705 | P25: 00:00:00 | Q25: 19000100 | R25: -6600605
A26: ='1.ข้อมูลส่วนบุคคล'!$F$5 -> 12345678912345 | N26: ='1.ข้อมูลส่วนบุคคล'!G$32 -> 2560-07-05 | O26: 25600705 | P26: 00:00:00 | Q26: 19000100 | R26: -6600605
A27: ='1.ข้อมูลส่วนบุคคล'!$F$5 -> 12345678912345 | N27: ='1.ข้อมูลส่วนบุคคล'!G$32 -> 2560-07-05 | O27: 25600705 | P27: 00:00:00 | Q27: 19000100 | R27: -6600605
A28: ='1.ข้อมูลส่วนบุคคล'!$F$5 -> 12345678912345 | N28: ='1.ข้อมูลส่วนบุคคล'!G$32 -> 2560-07-05 | O28: 25600705 | P28: 00:00:00 | Q28: 19000100 | R28: -6600605
A29: ='1.ข้อมูลส่วนบุคคล'!$F$5 -> 12345678912345 | N29: ='1.ข้อมูลส่วนบุคคล'!G$32 -> 2560-07-05 | O29: 25600705 | P29: 00:00:00 | Q29: 19000100 | R29: -6600605
A30: ='1.ข้อมูลส่วนบุคคล'!$F$5 -> 12345678912345 | N30: ='1.ข้อมูลส่วนบุคคล'!G$32 -> 2560-07-05 | O30: 25600705 | P30: 00:00:00 | Q30: 19000100 | R30: -6600605
A31: ='1.ข้อมูลส่วนบุคคล'!$F$5 -> 12345678912345 | N31: ='1.ข้อมูลส่วนบุคคล'!G$32 -> 2560-07-05 | O31: 25600705 | P31: 00:00:00 | Q31: 19000100 | R31: -6600605
A32: ='1.ข้อมูลส่วนบุคคล'!$F$5 -> 12345678912345 | N32: ='1.ข้อมูลส่วนบุคคล'!G$32 -> 2560-07-05 | O32: 25600705 | P32: 00:00:00 | Q32: 19000100 | R32: -6600605
A33: ='1.ข้อมูลส่วนบุคคล'!$F$5 -> 12345678912345 | N33: ='1.ข้อมูลส่วนบุคคล'!G$32 -> 2560-07-05 | O33: 25600705 | P33: 00:00:00 | Q33: 19000100 | R33: -6600605
A34: ='1.ข้อมูลส่วนบุคคล'!$F$5 -> 12345678912345 | N34: ='1.ข้อมูลส่วนบุคคล'!G$32 -> 2560-07-05 | O34: 25600705 | P34: 00:00:00 | Q34: 19000100 | R34: -6600605
A35: ='1.ข้อมูลส่วนบุคคล'!$F$5 -> 12345678912345 | N35: ='1.ข้อมูลส่วนบุคคล'!G$32 -> 2560-07-05 | O35: 25600705 | P35: 00:00:00 | Q35: 19000100 | R35: -6600605
A36: ='1.ข้อมูลส่วนบุคคล'!$F$5 -> 12345678912345 | N36: ='1.ข้อมูลส่วนบุคคล'!G$32 -> 2560-07-05 | O36: 25600705 | P36: 00:00:00 | Q36: 19000100 | R36: -6600605
A37: ='1.ข้อมูลส่วนบุคคล'!$F$5 -> 12345678912345 | N37: ='1.ข้อมูลส่วนบุคคล'!G$32 -> 2560-07-05 | O37: 25600705 | P37: 00:00:00 | Q37: 19000100 | R37: -6600605
A38: ='1.ข้อมูลส่วนบุคคล'!$F$5 -> 12345678912345 | N38: ='1.ข้อมูลส่วนบุคคล'!G$32 -> 2560-07-05 | O38: 25600705 | P38: 00:00:00 | Q38: 19000100 | R38: -6600605
A39: ='1.ข้อมูลส่วนบุคคล'!$F$5 -> 12345678912345 | N39: ='1.ข้อมูลส่วนบุคคล'!G$32 -> 2560-07-05 | O39: 25600705 | P39: 00:00:00 | Q39: 19000100 | R39: -6600605
A40: ='1.ข้อมูลส่วนบุคคล'!$F$5 -> 12345678912345 | N40: ='1.ข้อมูลส่วนบุคคล'!G$32 -> 2560-07-05 | O40: 25600705 | P40: 00:00:00 | Q40: 19000100 | R40: -6600605
A41: ='1.ข้อมูลส่วนบุคคล'!$F$5 -> 12345678912345 | N41: ='1.ข้อมูลส่วนบุคคล'!G$32 -> 2560-07-05 | O41: 25600705 | P41: 00:00:00 | Q41: 19000100 | R41: -6600605
A42: ='1.ข้อมูลส่วนบุคคล'!$F$5 -> 12345678912345 | N42: ='1.ข้อมูลส่วนบุคคล'!G$32 -> 2560-07-05 | O42: 25600705 | P42: 00:00:00 | Q42: 19000100 | R42: -6600605
A43: ='1.ข้อมูลส่วนบุคคล'!$F$5 -> 12345678912345 | N43: ='1.ข้อมูลส่วนบุคคล'!G$32 -> 2560-07-05 | O43: 25600705 | P43: 00:00:00 | Q43: 19000100 | R43: -6600605
A44: ='1.ข้อมูลส่วนบุคคล'!$F$5 -> 12345678912345 | N44: ='1.ข้อมูลส่วนบุคคล'!G$32 -> 2560-07-05 | O44: 25600705 | P44: 00:00:00 | Q44: 19000100 | R44: -6600605
A45: ='1.ข้อมูลส่วนบุคคล'!$F$5 -> 12345678912345 | N45: ='1.ข้อมูลส่วนบุคคล'!G$32 -> 2560-07-05 | O45: 25600705 | P45: 00:00:00 | Q45: 19000100 | R45: -6600605
A46: ='1.ข้อมูลส่วนบุคคล'!$F$5 -> 12345678912345 | N46: ='1.ข้อมูลส่วนบุคคล'!G$32 -> 2560-07-05 | O46: 25600705 | P46: 00:00:00 | Q46: 19000100 | R46: -6600605
A47: ='1.ข้อมูลส่วนบุคคล'!$F$5 -> 12345678912345 | N47: ='1.ข้อมูลส่วนบุคคล'!G$32 -> 2560-07-05 | O47: 25600705 | P47: 00:00:00 | Q47: 19000100 | R47: -6600605
A48: ='1.ข้อมูลส่วนบุคคล'!$F$5 -> 12345678912345 | N48: ='1.ข้อมูลส่วนบุคคล'!G$32 -> 2560-07-05 | O48: 25600705 | P48: 00:00:00 | Q48: 19000100 | R48: -6600605
A49: ='1.ข้อมูลส่วนบุคคล'!$F$5 -> 12345678912345 | N49: ='1.ข้อมูลส่วนบุคคล'!G$32 -> 2560-07-05 | O49: 25600705 | P49: 00:00:00 | Q49: 19000100 | R49: -6600605
A50: ='1.ข้อมูลส่วนบุคคล'!$F$5 -> 12345678912345 | N50: ='1.ข้อมูลส่วนบุคคล'!G$32 -> 2560-07-05 | O50: 25600705 | P50: 00:00:00 | Q50: 19000100 | R50: -6600605
A51: ='1.ข้อมูลส่วนบุคคล'!$F$5 -> 12345678912345 | N51: ='1.ข้อมูลส่วนบุคคล'!G$32 -> 2560-07-05 | O51: 25600705 | P51: 00:00:00 | Q51: 19000100 | R51: -6600605
A52: ='1.ข้อมูลส่วนบุคคล'!$F$5 -> 12345678912345 | N52: ='1.ข้อมูลส่วนบุคคล'!G$32 -> 2560-07-05 | O52: 25600705 | P52: 00:00:00 | Q52: 19000100 | R52: -6600605
A53: ='1.ข้อมูลส่วนบุคคล'!$F$5 -> 12345678912345 | N53: ='1.ข้อมูลส่วนบุคคล'!G$32 -> 2560-07-05 | O53: 25600705 | P53: 00:00:00 | Q53: 19000100 | R53: -6600605
A54: ='1.ข้อมูลส่วนบุคคล'!$F$5 -> 12345678912345 | N54: ='1.ข้อมูลส่วนบุคคล'!G$32 -> 2560-07-05 | O54: 25600705 | P54: 00:00:00 | Q54: 19000100 | R54: -6600605
A55: ='1.ข้อมูลส่วนบุคคล'!$F$5 -> 12345678912345 | N55: ='1.ข้อมูลส่วนบุคคล'!G$32 -> 2560-07-05 | O55: 25600705 | P55: 00:00:00 | Q55: 19000100 | R55: -6600605
A56: ='1.ข้อมูลส่วนบุคคล'!$F$5 -> 12345678912345 | N56: ='1.ข้อมูลส่วนบุคคล'!G$32 -> 2560-07-05 | O56: 25600705 | P56: 00:00:00 | Q56: 19000100 | R56: -6600605
A57: ='1.ข้อมูลส่วนบุคคล'!$F$5 -> 12345678912345 | N57: ='1.ข้อมูลส่วนบุคคล'!G$32 -> 2560-07-05 | O57: 25600705 | P57: 00:00:00 | Q57: 19000100 | R57: -6600605
A58: ='1.ข้อมูลส่วนบุคคล'!$F$5 -> 12345678912345 | N58: ='1.ข้อมูลส่วนบุคคล'!G$32 -> 2560-07-05 | O58: 25600705 | P58: 00:00:00 | Q58: 19000100 | R58: -6600605
A59: ='1.ข้อมูลส่วนบุคคล'!$F$5 -> 12345678912345 | N59: ='1.ข้อมูลส่วนบุคคล'!G$32 -> 2560-07-05 | O59: 25600705 | P59: 00:00:00 | Q59: 19000100 | R59: -6600605
A60: ='1.ข้อมูลส่วนบุคคล'!$F$5 -> 12345678912345 | N60: ='1.ข้อมูลส่วนบุคคล'!G$32 -> 2560-07-05 | O60: 25600705 | P60: 00:00:00 | Q60: 19000100 | R60: -6600605
A61: ='1.ข้อมูลส่วนบุคคล'!$F$5 -> 12345678912345 | N61: ='1.ข้อมูลส่วนบุคคล'!G$32 -> 2560-07-05 | O61: 25600705 | P61: 00:00:00 | Q61: 19000100 | R61: -6600605
A62: ='1.ข้อมูลส่วนบุคคล'!$F$5 -> 12345678912345 | N62: ='1.ข้อมูลส่วนบุคคล'!G$32 -> 2560-07-05 | O62: 25600705 | P62: 00:00:00 | Q62: 19000100 | R62: -6600605
A63: ='1.ข้อมูลส่วนบุคคล'!$F$5 -> 12345678912345 | N63: ='1.ข้อมูลส่วนบุคคล'!G$32 -> 2560-07-05 | O63: 25600705 | P63: 00:00:00 | Q63: 19000100 | R63: -6600605
A64: ='1.ข้อมูลส่วนบุคคล'!$F$5 -> 12345678912345 | N64: ='1.ข้อมูลส่วนบุคคล'!G$32 -> 2560-07-05 | O64: 25600705 | P64: 00:00:00 | Q64: 19000100 | R64: -6600605
A65: ='1.ข้อมูลส่วนบุคคล'!$F$5 -> 12345678912345 | N65: ='1.ข้อมูลส่วนบุคคล'!G$32 -> 2560-07-05 | O65: 25600705 | P65: 00:00:00 | Q65: 19000100 | R65: -6600605
A66: ='1.ข้อมูลส่วนบุคคล'!$F$5 -> 12345678912345 | N66: ='1.ข้อมูลส่วนบุคคล'!G$32 -> 2560-07-05 | O66: 25600705 | P66: 00:00:00 | Q66: 19000100 | R66: -6600605
A67: ='1.ข้อมูลส่วนบุคคล'!$F$5 -> 12345678912345 | N67: ='1.ข้อมูลส่วนบุคคล'!G$32 -> 2560-07-05 | O67: 25600705 | P67: 00:00:00 | Q67: 19000100 | R67: -6600605
A68: ='1.ข้อมูลส่วนบุคคล'!$F$5 -> 12345678912345 | N68: ='1.ข้อมูลส่วนบุคคล'!G$32 -> 2560-07-05 | O68: 25600705 | P68: 00:00:00 | Q68: 19000100 | R68: -6600605
A69: ='1.ข้อมูลส่วนบุคคล'!$F$5 -> 12345678912345 | N69: ='1.ข้อมูลส่วนบุคคล'!G$32 -> 2560-07-05 | O69: 25600705 | P69: 00:00:00 | Q69: 19000100 | R69: -6600605
A70: ='1.ข้อมูลส่วนบุคคล'!$F$5 -> 12345678912345 | N70: ='1.ข้อมูลส่วนบุคคล'!G$32 -> 2560-07-05 | O70: 25600705 | P70: 00:00:00 | Q70: 19000100 | R70: -6600605
A71: ='1.ข้อมูลส่วนบุคคล'!$F$5 -> 12345678912345 | M71: =IF(LEFT(J71,3)="ไม่",0,IF(I71="","",B71)) ->  | N71: ='1.ข้อมูลส่วนบุคคล'!G$32 -> 2560-07-05 | O71: 25600705 | P71: 00:00:00 | Q71: 19000100 | R71: -6600605
A72: ='1.ข้อมูลส่วนบุคคล'!$F$5 -> 12345678912345 | B72: =IF(R72<0,"",IF(AND(P72>=N72,P72<DATE(YEAR(N72)+1,MONTH(N72),DAY(N72))),1,IF(AND(P72>=DATE(YEAR(N72)+1,MONTH(N72),DAY(N72)),P72<DATE(YEAR(N72)+2,MONTH(N72),DAY(N72))),2,IF(AND(P72>=DATE(YEAR(N72)+2,MONTH(N72),DAY(N72)),P72<DATE(YEAR(N72)+3,MONTH(N72),DAY(N72))),3,IF(AND(P72>=DATE(YEAR(N72)+3,MONTH(N72),DAY(N72)),P72<DATE(YEAR(N72)+4,MONTH(N72),DAY(N72))),4,IF(AND(P72>=DATE(YEAR(N72)+4,MONTH(N72),DAY(N72)),P72<DATE(YEAR(N72)+5,MONTH(N72),DAY(N72))),5,IF(AND(P72>=DATE(YEAR(N72)+5,MONTH(N72),DAY(N72)),P72<DATE(YEAR(N72)+6,MONTH(N72),DAY(N72))),6,IF(AND(P72>=DATE(YEAR(N72)+6,MONTH(N72),DAY(N72)),P72<DATE(YEAR(N72)+7,MONTH(N72),DAY(N72))),7,IF(AND(P72>=DATE(YEAR(N72)+7,MONTH(N72),DAY(N72)),P72<DATE(YEAR(N72)+8,MONTH(N72),DAY(N72))),8,IF(AND(P72>=DATE(YEAR(N72)+8,MONTH(N72),DAY(N72)),P72<DATE(YEAR(N72)+9,MONTH(N72),DAY(N72))),9,IF(AND(P72>=DATE(YEAR(N72)+9,MONTH(N72),DAY(N72)),P72<DATE(YEAR(N72)+100,MONTH(N72),DAY(N72))),10,0))))))))))) ->  | K72: =L72 ->  | L72: =IF(C72<>"","4-"&+C72&+D72&+E72&+"..."&+RIGHT(H72,10),"") ->  | N72: ='1.ข้อมูลส่วนบุคคล'!G$32 -> 2560-07-05 | O72: =TEXT(N72,"yyyy")&+IF(TEXT(N72,"mm")>9,TEXT(N72,"mm"),"0"&+TEXT(N72,"mm"))&+IF(TEXT(N72,"dd")>9,TEXT(N72,"dd"),"0"&+TEXT(N72,"dd")) -> 25600705 | P72: 00:00:00 | Q72: =TEXT(P72,"yyyy")&+IF(TEXT(P72,"mm")>9,TEXT(P72,"mm"),"0"&+TEXT(P72,"mm"))&+IF(TEXT(P72,"dd")>9,TEXT(P72,"dd"),"0"&+TEXT(P72,"dd")) -> 19000100 | R72: =Q72-O72 -> -6600605 | S72: =IF(LEFT(J72,3)="ไม่",0,IF(I72="","",I72)) -> 
A73: ='1.ข้อมูลส่วนบุคคล'!$F$5 -> 12345678912345 | N73: ='1.ข้อมูลส่วนบุคคล'!G$32 -> 2560-07-05 | O73: 25600705 | P73: =G73 -> 00:00:00 | Q73: 19000100 | R73: -6600605
A74: ='1.ข้อมูลส่วนบุคคล'!$F$5 -> 12345678912345 | N74: ='1.ข้อมูลส่วนบุคคล'!G$32 -> 2560-07-05 | O74: 25600705 | P74: 00:00:00 | Q74: 19000100 | R74: -6600605
A75: ='1.ข้อมูลส่วนบุคคล'!$F$5 -> 12345678912345 | N75: ='1.ข้อมูลส่วนบุคคล'!G$32 -> 2560-07-05 | O75: 25600705 | P75: 00:00:00 | Q75: 19000100 | R75: -6600605
A76: ='1.ข้อมูลส่วนบุคคล'!$F$5 -> 12345678912345 | N76: ='1.ข้อมูลส่วนบุคคล'!G$32 -> 2560-07-05 | O76: 25600705 | P76: 00:00:00 | Q76: 19000100 | R76: -6600605
A77: ='1.ข้อมูลส่วนบุคคล'!$F$5 -> 12345678912345 | N77: ='1.ข้อมูลส่วนบุคคล'!G$32 -> 2560-07-05 | O77: 25600705 | P77: 00:00:00 | Q77: 19000100 | R77: -6600605
A78: ='1.ข้อมูลส่วนบุคคล'!$F$5 -> 12345678912345 | N78: ='1.ข้อมูลส่วนบุคคล'!G$32 -> 2560-07-05 | O78: 25600705 | P78: 00:00:00 | Q78: 19000100 | R78: -6600605
A79: ='1.ข้อมูลส่วนบุคคล'!$F$5 -> 12345678912345 | N79: ='1.ข้อมูลส่วนบุคคล'!G$32 -> 2560-07-05 | O79: 25600705 | P79: 00:00:00 | Q79: 19000100 | R79: -6600605
A80: ='1.ข้อมูลส่วนบุคคล'!$F$5 -> 12345678912345 | N80: ='1.ข้อมูลส่วนบุคคล'!G$32 -> 2560-07-05 | O80: 25600705 | P80: 00:00:00 | Q80: 19000100 | R80: -6600605
A81: ='1.ข้อมูลส่วนบุคคล'!$F$5 -> 12345678912345 | N81: ='1.ข้อมูลส่วนบุคคล'!G$32 -> 2560-07-05 | O81: 25600705 | P81: 00:00:00 | Q81: 19000100 | R81: -6600605
A82: ='1.ข้อมูลส่วนบุคคล'!$F$5 -> 12345678912345 | N82: ='1.ข้อมูลส่วนบุคคล'!G$32 -> 2560-07-05 | O82: 25600705 | P82: 00:00:00 | Q82: 19000100 | R82: -6600605
A83: ='1.ข้อมูลส่วนบุคคล'!$F$5 -> 12345678912345 | N83: ='1.ข้อมูลส่วนบุคคล'!G$32 -> 2560-07-05 | O83: 25600705 | P83: 00:00:00 | Q83: 19000100 | R83: -6600605
A84: ='1.ข้อมูลส่วนบุคคล'!$F$5 -> 12345678912345 | N84: ='1.ข้อมูลส่วนบุคคล'!G$32 -> 2560-07-05 | O84: 25600705 | P84: 00:00:00 | Q84: 19000100 | R84: -6600605
A85: ='1.ข้อมูลส่วนบุคคล'!$F$5 -> 12345678912345 | N85: ='1.ข้อมูลส่วนบุคคล'!G$32 -> 2560-07-05 | O85: 25600705 | P85: 00:00:00 | Q85: 19000100 | R85: -6600605
A86: ='1.ข้อมูลส่วนบุคคล'!$F$5 -> 12345678912345 | N86: ='1.ข้อมูลส่วนบุคคล'!G$32 -> 2560-07-05 | O86: 25600705 | P86: 00:00:00 | Q86: 19000100 | R86: -6600605
A87: ='1.ข้อมูลส่วนบุคคล'!$F$5 -> 12345678912345 | N87: ='1.ข้อมูลส่วนบุคคล'!G$32 -> 2560-07-05 | O87: 25600705 | P87: 00:00:00 | Q87: 19000100 | R87: -6600605
A88: ='1.ข้อมูลส่วนบุคคล'!$F$5 -> 12345678912345 | N88: ='1.ข้อมูลส่วนบุคคล'!G$32 -> 2560-07-05 | O88: 25600705 | P88: 00:00:00 | Q88: 19000100 | R88: -6600605
A89: ='1.ข้อมูลส่วนบุคคล'!$F$5 -> 12345678912345 | N89: ='1.ข้อมูลส่วนบุคคล'!G$32 -> 2560-07-05 | O89: 25600705 | P89: 00:00:00 | Q89: 19000100 | R89: -6600605
A90: ='1.ข้อมูลส่วนบุคคล'!$F$5 -> 12345678912345 | N90: ='1.ข้อมูลส่วนบุคคล'!G$32 -> 2560-07-05 | O90: 25600705 | P90: 00:00:00 | Q90: 19000100 | R90: -6600605
A91: ='1.ข้อมูลส่วนบุคคล'!$F$5 -> 12345678912345 | N91: ='1.ข้อมูลส่วนบุคคล'!G$32 -> 2560-07-05 | O91: 25600705 | P91: 00:00:00 | Q91: 19000100 | R91: -6600605
A92: ='1.ข้อมูลส่วนบุคคล'!$F$5 -> 12345678912345 | N92: ='1.ข้อมูลส่วนบุคคล'!G$32 -> 2560-07-05 | O92: 25600705 | P92: 00:00:00 | Q92: 19000100 | R92: -6600605
A93: ='1.ข้อมูลส่วนบุคคล'!$F$5 -> 12345678912345 | N93: ='1.ข้อมูลส่วนบุคคล'!G$32 -> 2560-07-05 | O93: 25600705 | P93: 00:00:00 | Q93: 19000100 | R93: -6600605
A94: ='1.ข้อมูลส่วนบุคคล'!$F$5 -> 12345678912345 | N94: ='1.ข้อมูลส่วนบุคคล'!G$32 -> 2560-07-05 | O94: 25600705 | P94: 00:00:00 | Q94: 19000100 | R94: -6600605
A95: ='1.ข้อมูลส่วนบุคคล'!$F$5 -> 12345678912345 | N95: ='1.ข้อมูลส่วนบุคคล'!G$32 -> 2560-07-05 | O95: 25600705 | P95: 00:00:00 | Q95: 19000100 | R95: -6600605
A96: ='1.ข้อมูลส่วนบุคคล'!$F$5 -> 12345678912345 | N96: ='1.ข้อมูลส่วนบุคคล'!G$32 -> 2560-07-05 | O96: 25600705 | P96: 00:00:00 | Q96: 19000100 | R96: -6600605
A97: ='1.ข้อมูลส่วนบุคคล'!$F$5 -> 12345678912345 | N97: ='1.ข้อมูลส่วนบุคคล'!G$32 -> 2560-07-05 | O97: 25600705 | P97: 00:00:00 | Q97: 19000100 | R97: -6600605
A98: ='1.ข้อมูลส่วนบุคคล'!$F$5 -> 12345678912345 | N98: ='1.ข้อมูลส่วนบุคคล'!G$32 -> 2560-07-05 | O98: 25600705 | P98: 00:00:00 | Q98: 19000100 | R98: -6600605
A99: ='1.ข้อมูลส่วนบุคคล'!$F$5 -> 12345678912345 | N99: ='1.ข้อมูลส่วนบุคคล'!G$32 -> 2560-07-05 | O99: 25600705 | P99: 00:00:00 | Q99: 19000100 | R99: -6600605
A100: ='1.ข้อมูลส่วนบุคคล'!$F$5 -> 12345678912345 | N100: ='1.ข้อมูลส่วนบุคคล'!G$32 -> 2560-07-05 | O100: 25600705 | P100: 00:00:00 | Q100: 19000100 | R100: -6600605
A101: ='1.ข้อมูลส่วนบุคคล'!$F$5 -> 12345678912345 | N101: ='1.ข้อมูลส่วนบุคคล'!G$32 -> 2560-07-05 | O101: 25600705 | P101: 00:00:00 | Q101: 19000100 | R101: -6600605
A102: ='1.ข้อมูลส่วนบุคคล'!$F$5 -> 12345678912345 | N102: ='1.ข้อมูลส่วนบุคคล'!G$32 -> 2560-07-05 | O102: 25600705 | P102: 00:00:00 | Q102: 19000100 | R102: -6600605
A103: ='1.ข้อมูลส่วนบุคคล'!$F$5 -> 12345678912345 | N103: ='1.ข้อมูลส่วนบุคคล'!G$32 -> 2560-07-05 | O103: 25600705 | P103: 00:00:00 | Q103: 19000100 | R103: -6600605
A104: ='1.ข้อมูลส่วนบุคคล'!$F$5 -> 12345678912345 | N104: ='1.ข้อมูลส่วนบุคคล'!G$32 -> 2560-07-05 | O104: 25600705 | P104: 00:00:00 | Q104: 19000100 | R104: -6600605
A105: ='1.ข้อมูลส่วนบุคคล'!$F$5 -> 12345678912345 | N105: ='1.ข้อมูลส่วนบุคคล'!G$32 -> 2560-07-05 | O105: 25600705 | P105: 00:00:00 | Q105: 19000100 | R105: -6600605
A106: ='1.ข้อมูลส่วนบุคคล'!$F$5 -> 12345678912345 | N106: ='1.ข้อมูลส่วนบุคคล'!G$32 -> 2560-07-05 | O106: 25600705 | P106: 00:00:00 | Q106: 19000100 | R106: -6600605
A107: ='1.ข้อมูลส่วนบุคคล'!$F$5 -> 12345678912345 | N107: ='1.ข้อมูลส่วนบุคคล'!G$32 -> 2560-07-05 | O107: 25600705 | P107: 00:00:00 | Q107: 19000100 | R107: -6600605
A108: ='1.ข้อมูลส่วนบุคคล'!$F$5 -> 12345678912345 | N108: ='1.ข้อมูลส่วนบุคคล'!G$32 -> 2560-07-05 | O108: 25600705 | P108: 00:00:00 | Q108: 19000100 | R108: -6600605
A109: ='1.ข้อมูลส่วนบุคคล'!$F$5 -> 12345678912345 | N109: ='1.ข้อมูลส่วนบุคคล'!G$32 -> 2560-07-05 | O109: 25600705 | P109: 00:00:00 | Q109: 19000100 | R109: -6600605
A110: ='1.ข้อมูลส่วนบุคคล'!$F$5 -> 12345678912345 | N110: ='1.ข้อมูลส่วนบุคคล'!G$32 -> 2560-07-05 | O110: 25600705 | P110: 00:00:00 | Q110: 19000100 | R110: -6600605
A111: ='1.ข้อมูลส่วนบุคคล'!$F$5 -> 12345678912345 | N111: ='1.ข้อมูลส่วนบุคคล'!G$32 -> 2560-07-05 | O111: 25600705 | P111: 00:00:00 | Q111: 19000100 | R111: -6600605
A112: ='1.ข้อมูลส่วนบุคคล'!$F$5 -> 12345678912345 | N112: ='1.ข้อมูลส่วนบุคคล'!G$32 -> 2560-07-05 | O112: 25600705 | P112: 00:00:00 | Q112: 19000100 | R112: -6600605
A113: ='1.ข้อมูลส่วนบุคคล'!$F$5 -> 12345678912345 | N113: ='1.ข้อมูลส่วนบุคคล'!G$32 -> 2560-07-05 | O113: 25600705 | P113: 00:00:00 | Q113: 19000100 | R113: -6600605
A114: ='1.ข้อมูลส่วนบุคคล'!$F$5 -> 12345678912345 | N114: ='1.ข้อมูลส่วนบุคคล'!G$32 -> 2560-07-05 | O114: 25600705 | P114: 00:00:00 | Q114: 19000100 | R114: -6600605
A115: ='1.ข้อมูลส่วนบุคคล'!$F$5 -> 12345678912345 | N115: ='1.ข้อมูลส่วนบุคคล'!G$32 -> 2560-07-05 | O115: 25600705 | P115: 00:00:00 | Q115: 19000100 | R115: -6600605
A116: ='1.ข้อมูลส่วนบุคคล'!$F$5 -> 12345678912345 | N116: ='1.ข้อมูลส่วนบุคคล'!G$32 -> 2560-07-05 | O116: 25600705 | P116: 00:00:00 | Q116: 19000100 | R116: -6600605
A117: ='1.ข้อมูลส่วนบุคคล'!$F$5 -> 12345678912345 | N117: ='1.ข้อมูลส่วนบุคคล'!G$32 -> 2560-07-05 | O117: 25600705 | P117: 00:00:00 | Q117: 19000100 | R117: -6600605
A118: ='1.ข้อมูลส่วนบุคคล'!$F$5 -> 12345678912345 | N118: ='1.ข้อมูลส่วนบุคคล'!G$32 -> 2560-07-05 | O118: 25600705 | P118: 00:00:00 | Q118: 19000100 | R118: -6600605
A119: ='1.ข้อมูลส่วนบุคคล'!$F$5 -> 12345678912345 | N119: ='1.ข้อมูลส่วนบุคคล'!G$32 -> 2560-07-05 | O119: 25600705 | P119: 00:00:00 | Q119: 19000100 | R119: -6600605
A120: ='1.ข้อมูลส่วนบุคคล'!$F$5 -> 12345678912345 | N120: ='1.ข้อมูลส่วนบุคคล'!G$32 -> 2560-07-05 | O120: 25600705 | P120: 00:00:00 | Q120: 19000100 | R120: -6600605
A121: ='1.ข้อมูลส่วนบุคคล'!$F$5 -> 12345678912345 | N121: ='1.ข้อมูลส่วนบุคคล'!G$32 -> 2560-07-05 | O121: 25600705 | P121: 00:00:00 | Q121: 19000100 | R121: -6600605
A122: ='1.ข้อมูลส่วนบุคคล'!$F$5 -> 12345678912345 | N122: ='1.ข้อมูลส่วนบุคคล'!G$32 -> 2560-07-05 | O122: 25600705 | P122: 00:00:00 | Q122: 19000100 | R122: -6600605
A123: ='1.ข้อมูลส่วนบุคคล'!$F$5 -> 12345678912345 | N123: ='1.ข้อมูลส่วนบุคคล'!G$32 -> 2560-07-05 | O123: 25600705 | P123: 00:00:00 | Q123: 19000100 | R123: -6600605
A124: ='1.ข้อมูลส่วนบุคคล'!$F$5 -> 12345678912345 | N124: ='1.ข้อมูลส่วนบุคคล'!G$32 -> 2560-07-05 | O124: 25600705 | P124: 00:00:00 | Q124: 19000100 | R124: -6600605
A125: ='1.ข้อมูลส่วนบุคคล'!$F$5 -> 12345678912345 | N125: ='1.ข้อมูลส่วนบุคคล'!G$32 -> 2560-07-05 | O125: 25600705 | P125: 00:00:00 | Q125: 19000100 | R125: -6600605
A126: ='1.ข้อมูลส่วนบุคคล'!$F$5 -> 12345678912345 | N126: ='1.ข้อมูลส่วนบุคคล'!G$32 -> 2560-07-05 | O126: 25600705 | P126: 00:00:00 | Q126: 19000100 | R126: -6600605
A127: ='1.ข้อมูลส่วนบุคคล'!$F$5 -> 12345678912345 | N127: ='1.ข้อมูลส่วนบุคคล'!G$32 -> 2560-07-05 | O127: 25600705 | P127: 00:00:00 | Q127: 19000100 | R127: -6600605
A128: ='1.ข้อมูลส่วนบุคคล'!$F$5 -> 12345678912345 | N128: ='1.ข้อมูลส่วนบุคคล'!G$32 -> 2560-07-05 | O128: 25600705 | P128: 00:00:00 | Q128: 19000100 | R128: -6600605
A129: ='1.ข้อมูลส่วนบุคคล'!$F$5 -> 12345678912345 | N129: ='1.ข้อมูลส่วนบุคคล'!G$32 -> 2560-07-05 | O129: 25600705 | P129: 00:00:00 | Q129: 19000100 | R129: -6600605
A130: ='1.ข้อมูลส่วนบุคคล'!$F$5 -> 12345678912345 | N130: ='1.ข้อมูลส่วนบุคคล'!G$32 -> 2560-07-05 | O130: 25600705 | P130: 00:00:00 | Q130: 19000100 | R130: -6600605
A131: ='1.ข้อมูลส่วนบุคคล'!$F$5 -> 12345678912345 | N131: ='1.ข้อมูลส่วนบุคคล'!G$32 -> 2560-07-05 | O131: 25600705 | P131: 00:00:00 | Q131: 19000100 | R131: -6600605
A132: ='1.ข้อมูลส่วนบุคคล'!$F$5 -> 12345678912345 | N132: ='1.ข้อมูลส่วนบุคคล'!G$32 -> 2560-07-05 | O132: 25600705 | P132: 00:00:00 | Q132: 19000100 | R132: -6600605
A133: ='1.ข้อมูลส่วนบุคคล'!$F$5 -> 12345678912345 | N133: ='1.ข้อมูลส่วนบุคคล'!G$32 -> 2560-07-05 | O133: 25600705 | P133: 00:00:00 | Q133: 19000100 | R133: -6600605
A134: ='1.ข้อมูลส่วนบุคคล'!$F$5 -> 12345678912345 | N134: ='1.ข้อมูลส่วนบุคคล'!G$32 -> 2560-07-05 | O134: 25600705 | P134: 00:00:00 | Q134: 19000100 | R134: -6600605
A135: ='1.ข้อมูลส่วนบุคคล'!$F$5 -> 12345678912345 | M135: =IF(LEFT(J135,3)="ไม่",0,IF(I135="","",B135)) ->  | N135: ='1.ข้อมูลส่วนบุคคล'!G$32 -> 2560-07-05 | O135: 25600705 | P135: 00:00:00 | Q135: 19000100 | R135: -6600605
A136: ='1.ข้อมูลส่วนบุคคล'!$F$5 -> 12345678912345 | B136: =IF(R136<0,"",IF(AND(P136>=N136,P136<DATE(YEAR(N136)+1,MONTH(N136),DAY(N136))),1,IF(AND(P136>=DATE(YEAR(N136)+1,MONTH(N136),DAY(N136)),P136<DATE(YEAR(N136)+2,MONTH(N136),DAY(N136))),2,IF(AND(P136>=DATE(YEAR(N136)+2,MONTH(N136),DAY(N136)),P136<DATE(YEAR(N136)+3,MONTH(N136),DAY(N136))),3,IF(AND(P136>=DATE(YEAR(N136)+3,MONTH(N136),DAY(N136)),P136<DATE(YEAR(N136)+4,MONTH(N136),DAY(N136))),4,IF(AND(P136>=DATE(YEAR(N136)+4,MONTH(N136),DAY(N136)),P136<DATE(YEAR(N136)+5,MONTH(N136),DAY(N136))),5,IF(AND(P136>=DATE(YEAR(N136)+5,MONTH(N136),DAY(N136)),P136<DATE(YEAR(N136)+6,MONTH(N136),DAY(N136))),6,IF(AND(P136>=DATE(YEAR(N136)+6,MONTH(N136),DAY(N136)),P136<DATE(YEAR(N136)+7,MONTH(N136),DAY(N136))),7,IF(AND(P136>=DATE(YEAR(N136)+7,MONTH(N136),DAY(N136)),P136<DATE(YEAR(N136)+8,MONTH(N136),DAY(N136))),8,IF(AND(P136>=DATE(YEAR(N136)+8,MONTH(N136),DAY(N136)),P136<DATE(YEAR(N136)+9,MONTH(N136),DAY(N136))),9,IF(AND(P136>=DATE(YEAR(N136)+9,MONTH(N136),DAY(N136)),P136<DATE(YEAR(N136)+100,MONTH(N136),DAY(N136))),10,0))))))))))) ->  | K136: =L136 ->  | L136: =IF(C136<>"","4-"&+C136&+D136&+E136&+"..."&+RIGHT(H136,10),"") ->  | N136: ='1.ข้อมูลส่วนบุคคล'!G$32 -> 2560-07-05 | O136: =TEXT(N136,"yyyy")&+IF(TEXT(N136,"mm")>9,TEXT(N136,"mm"),"0"&+TEXT(N136,"mm"))&+IF(TEXT(N136,"dd")>9,TEXT(N136,"dd"),"0"&+TEXT(N136,"dd")) -> 25600705 | P136: 00:00:00 | Q136: =TEXT(P136,"yyyy")&+IF(TEXT(P136,"mm")>9,TEXT(P136,"mm"),"0"&+TEXT(P136,"mm"))&+IF(TEXT(P136,"dd")>9,TEXT(P136,"dd"),"0"&+TEXT(P136,"dd")) -> 19000100 | R136: =Q136-O136 -> -6600605 | S136: =IF(LEFT(J136,3)="ไม่",0,IF(I136="","",I136)) -> 
A137: ='1.ข้อมูลส่วนบุคคล'!$F$5 -> 12345678912345 | N137: ='1.ข้อมูลส่วนบุคคล'!G$32 -> 2560-07-05 | O137: 25600705 | P137: =G137 -> 00:00:00 | Q137: 19000100 | R137: -6600605
A138: ='1.ข้อมูลส่วนบุคคล'!$F$5 -> 12345678912345 | N138: ='1.ข้อมูลส่วนบุคคล'!G$32 -> 2560-07-05 | O138: 25600705 | P138: 00:00:00 | Q138: 19000100 | R138: -6600605
A139: ='1.ข้อมูลส่วนบุคคล'!$F$5 -> 12345678912345 | N139: ='1.ข้อมูลส่วนบุคคล'!G$32 -> 2560-07-05 | O139: 25600705 | P139: 00:00:00 | Q139: 19000100 | R139: -6600605
A140: ='1.ข้อมูลส่วนบุคคล'!$F$5 -> 12345678912345 | N140: ='1.ข้อมูลส่วนบุคคล'!G$32 -> 2560-07-05 | O140: 25600705 | P140: 00:00:00 | Q140: 19000100 | R140: -6600605
A141: ='1.ข้อมูลส่วนบุคคล'!$F$5 -> 12345678912345 | N141: ='1.ข้อมูลส่วนบุคคล'!G$32 -> 2560-07-05 | O141: 25600705 | P141: 00:00:00 | Q141: 19000100 | R141: -6600605
A142: ='1.ข้อมูลส่วนบุคคล'!$F$5 -> 12345678912345 | N142: ='1.ข้อมูลส่วนบุคคล'!G$32 -> 2560-07-05 | O142: 25600705 | P142: 00:00:00 | Q142: 19000100 | R142: -6600605
A143: ='1.ข้อมูลส่วนบุคคล'!$F$5 -> 12345678912345 | N143: ='1.ข้อมูลส่วนบุคคล'!G$32 -> 2560-07-05 | O143: 25600705 | P143: 00:00:00 | Q143: 19000100 | R143: -6600605
A144: ='1.ข้อมูลส่วนบุคคล'!$F$5 -> 12345678912345 | N144: ='1.ข้อมูลส่วนบุคคล'!G$32 -> 2560-07-05 | O144: 25600705 | P144: 00:00:00 | Q144: 19000100 | R144: -6600605
A145: ='1.ข้อมูลส่วนบุคคล'!$F$5 -> 12345678912345 | N145: ='1.ข้อมูลส่วนบุคคล'!G$32 -> 2560-07-05 | O145: 25600705 | P145: 00:00:00 | Q145: 19000100 | R145: -6600605
A146: ='1.ข้อมูลส่วนบุคคล'!$F$5 -> 12345678912345 | N146: ='1.ข้อมูลส่วนบุคคล'!G$32 -> 2560-07-05 | O146: 25600705 | P146: 00:00:00 | Q146: 19000100 | R146: -6600605
A147: ='1.ข้อมูลส่วนบุคคล'!$F$5 -> 12345678912345 | N147: ='1.ข้อมูลส่วนบุคคล'!G$32 -> 2560-07-05 | O147: 25600705 | P147: 00:00:00 | Q147: 19000100 | R147: -6600605
A148: ='1.ข้อมูลส่วนบุคคล'!$F$5 -> 12345678912345 | N148: ='1.ข้อมูลส่วนบุคคล'!G$32 -> 2560-07-05 | O148: 25600705 | P148: 00:00:00 | Q148: 19000100 | R148: -6600605
A149: ='1.ข้อมูลส่วนบุคคล'!$F$5 -> 12345678912345 | N149: ='1.ข้อมูลส่วนบุคคล'!G$32 -> 2560-07-05 | O149: 25600705 | P149: 00:00:00 | Q149: 19000100 | R149: -6600605
A150: ='1.ข้อมูลส่วนบุคคล'!$F$5 -> 12345678912345 | N150: ='1.ข้อมูลส่วนบุคคล'!G$32 -> 2560-07-05 | O150: 25600705 | P150: 00:00:00 | Q150: 19000100 | R150: -6600605
A151: ='1.ข้อมูลส่วนบุคคล'!$F$5 -> 12345678912345 | N151: ='1.ข้อมูลส่วนบุคคล'!G$32 -> 2560-07-05 | O151: 25600705 | P151: 00:00:00 | Q151: 19000100 | R151: -6600605
A152: ='1.ข้อมูลส่วนบุคคล'!$F$5 -> 12345678912345 | N152: ='1.ข้อมูลส่วนบุคคล'!G$32 -> 2560-07-05 | O152: 25600705 | P152: 00:00:00 | Q152: 19000100 | R152: -6600605
A153: ='1.ข้อมูลส่วนบุคคล'!$F$5 -> 12345678912345 | N153: ='1.ข้อมูลส่วนบุคคล'!G$32 -> 2560-07-05 | O153: 25600705 | P153: 00:00:00 | Q153: 19000100 | R153: -6600605
A154: ='1.ข้อมูลส่วนบุคคล'!$F$5 -> 12345678912345 | N154: ='1.ข้อมูลส่วนบุคคล'!G$32 -> 2560-07-05 | O154: 25600705 | P154: 00:00:00 | Q154: 19000100 | R154: -6600605
A155: ='1.ข้อมูลส่วนบุคคล'!$F$5 -> 12345678912345 | N155: ='1.ข้อมูลส่วนบุคคล'!G$32 -> 2560-07-05 | O155: 25600705 | P155: 00:00:00 | Q155: 19000100 | R155: -6600605
A156: ='1.ข้อมูลส่วนบุคคล'!$F$5 -> 12345678912345 | N156: ='1.ข้อมูลส่วนบุคคล'!G$32 -> 2560-07-05 | O156: 25600705 | P156: 00:00:00 | Q156: 19000100 | R156: -6600605
A157: ='1.ข้อมูลส่วนบุคคล'!$F$5 -> 12345678912345 | N157: ='1.ข้อมูลส่วนบุคคล'!G$32 -> 2560-07-05 | O157: 25600705 | P157: 00:00:00 | Q157: 19000100 | R157: -6600605
A158: ='1.ข้อมูลส่วนบุคคล'!$F$5 -> 12345678912345 | N158: ='1.ข้อมูลส่วนบุคคล'!G$32 -> 2560-07-05 | O158: 25600705 | P158: 00:00:00 | Q158: 19000100 | R158: -6600605
A159: ='1.ข้อมูลส่วนบุคคล'!$F$5 -> 12345678912345 | N159: ='1.ข้อมูลส่วนบุคคล'!G$32 -> 2560-07-05 | O159: 25600705 | P159: 00:00:00 | Q159: 19000100 | R159: -6600605
A160: ='1.ข้อมูลส่วนบุคคล'!$F$5 -> 12345678912345 | N160: ='1.ข้อมูลส่วนบุคคล'!G$32 -> 2560-07-05 | O160: 25600705 | P160: 00:00:00 | Q160: 19000100 | R160: -6600605
A161: ='1.ข้อมูลส่วนบุคคล'!$F$5 -> 12345678912345 | N161: ='1.ข้อมูลส่วนบุคคล'!G$32 -> 2560-07-05 | O161: 25600705 | P161: 00:00:00 | Q161: 19000100 | R161: -6600605
A162: ='1.ข้อมูลส่วนบุคคล'!$F$5 -> 12345678912345 | N162: ='1.ข้อมูลส่วนบุคคล'!G$32 -> 2560-07-05 | O162: 25600705 | P162: 00:00:00 | Q162: 19000100 | R162: -6600605
A163: ='1.ข้อมูลส่วนบุคคล'!$F$5 -> 12345678912345 | N163: ='1.ข้อมูลส่วนบุคคล'!G$32 -> 2560-07-05 | O163: 25600705 | P163: 00:00:00 | Q163: 19000100 | R163: -6600605
A164: ='1.ข้อมูลส่วนบุคคล'!$F$5 -> 12345678912345 | N164: ='1.ข้อมูลส่วนบุคคล'!G$32 -> 2560-07-05 | O164: 25600705 | P164: 00:00:00 | Q164: 19000100 | R164: -6600605
A165: ='1.ข้อมูลส่วนบุคคล'!$F$5 -> 12345678912345 | N165: ='1.ข้อมูลส่วนบุคคล'!G$32 -> 2560-07-05 | O165: 25600705 | P165: 00:00:00 | Q165: 19000100 | R165: -6600605
A166: ='1.ข้อมูลส่วนบุคคล'!$F$5 -> 12345678912345 | N166: ='1.ข้อมูลส่วนบุคคล'!G$32 -> 2560-07-05 | O166: 25600705 | P166: 00:00:00 | Q166: 19000100 | R166: -6600605
A167: ='1.ข้อมูลส่วนบุคคล'!$F$5 -> 12345678912345 | N167: ='1.ข้อมูลส่วนบุคคล'!G$32 -> 2560-07-05 | O167: 25600705 | P167: 00:00:00 | Q167: 19000100 | R167: -6600605
A168: ='1.ข้อมูลส่วนบุคคล'!$F$5 -> 12345678912345 | N168: ='1.ข้อมูลส่วนบุคคล'!G$32 -> 2560-07-05 | O168: 25600705 | P168: 00:00:00 | Q168: 19000100 | R168: -6600605
A169: ='1.ข้อมูลส่วนบุคคล'!$F$5 -> 12345678912345 | N169: ='1.ข้อมูลส่วนบุคคล'!G$32 -> 2560-07-05 | O169: 25600705 | P169: 00:00:00 | Q169: 19000100 | R169: -6600605
A170: ='1.ข้อมูลส่วนบุคคล'!$F$5 -> 12345678912345 | N170: ='1.ข้อมูลส่วนบุคคล'!G$32 -> 2560-07-05 | O170: 25600705 | P170: 00:00:00 | Q170: 19000100 | R170: -6600605
A171: ='1.ข้อมูลส่วนบุคคล'!$F$5 -> 12345678912345 | N171: ='1.ข้อมูลส่วนบุคคล'!G$32 -> 2560-07-05 | O171: 25600705 | P171: 00:00:00 | Q171: 19000100 | R171: -6600605
A172: ='1.ข้อมูลส่วนบุคคล'!$F$5 -> 12345678912345 | N172: ='1.ข้อมูลส่วนบุคคล'!G$32 -> 2560-07-05 | O172: 25600705 | P172: 00:00:00 | Q172: 19000100 | R172: -6600605
A173: ='1.ข้อมูลส่วนบุคคล'!$F$5 -> 12345678912345 | N173: ='1.ข้อมูลส่วนบุคคล'!G$32 -> 2560-07-05 | O173: 25600705 | P173: 00:00:00 | Q173: 19000100 | R173: -6600605
A174: ='1.ข้อมูลส่วนบุคคล'!$F$5 -> 12345678912345 | N174: ='1.ข้อมูลส่วนบุคคล'!G$32 -> 2560-07-05 | O174: 25600705 | P174: 00:00:00 | Q174: 19000100 | R174: -6600605
A175: ='1.ข้อมูลส่วนบุคคล'!$F$5 -> 12345678912345 | N175: ='1.ข้อมูลส่วนบุคคล'!G$32 -> 2560-07-05 | O175: 25600705 | P175: 00:00:00 | Q175: 19000100 | R175: -6600605
A176: ='1.ข้อมูลส่วนบุคคล'!$F$5 -> 12345678912345 | N176: ='1.ข้อมูลส่วนบุคคล'!G$32 -> 2560-07-05 | O176: 25600705 | P176: 00:00:00 | Q176: 19000100 | R176: -6600605
A177: ='1.ข้อมูลส่วนบุคคล'!$F$5 -> 12345678912345 | N177: ='1.ข้อมูลส่วนบุคคล'!G$32 -> 2560-07-05 | O177: 25600705 | P177: 00:00:00 | Q177: 19000100 | R177: -6600605
A178: ='1.ข้อมูลส่วนบุคคล'!$F$5 -> 12345678912345 | N178: ='1.ข้อมูลส่วนบุคคล'!G$32 -> 2560-07-05 | O178: 25600705 | P178: 00:00:00 | Q178: 19000100 | R178: -6600605
A179: ='1.ข้อมูลส่วนบุคคล'!$F$5 -> 12345678912345 | N179: ='1.ข้อมูลส่วนบุคคล'!G$32 -> 2560-07-05 | O179: 25600705 | P179: 00:00:00 | Q179: 19000100 | R179: -6600605
A180: ='1.ข้อมูลส่วนบุคคล'!$F$5 -> 12345678912345 | N180: ='1.ข้อมูลส่วนบุคคล'!G$32 -> 2560-07-05 | O180: 25600705 | P180: 00:00:00 | Q180: 19000100 | R180: -6600605
A181: ='1.ข้อมูลส่วนบุคคล'!$F$5 -> 12345678912345 | N181: ='1.ข้อมูลส่วนบุคคล'!G$32 -> 2560-07-05 | O181: 25600705 | P181: 00:00:00 | Q181: 19000100 | R181: -6600605
A182: ='1.ข้อมูลส่วนบุคคล'!$F$5 -> 12345678912345 | N182: ='1.ข้อมูลส่วนบุคคล'!G$32 -> 2560-07-05 | O182: 25600705 | P182: 00:00:00 | Q182: 19000100 | R182: -6600605
A183: ='1.ข้อมูลส่วนบุคคล'!$F$5 -> 12345678912345 | N183: ='1.ข้อมูลส่วนบุคคล'!G$32 -> 2560-07-05 | O183: 25600705 | P183: 00:00:00 | Q183: 19000100 | R183: -6600605
A184: ='1.ข้อมูลส่วนบุคคล'!$F$5 -> 12345678912345 | N184: ='1.ข้อมูลส่วนบุคคล'!G$32 -> 2560-07-05 | O184: 25600705 | P184: 00:00:00 | Q184: 19000100 | R184: -6600605
A185: ='1.ข้อมูลส่วนบุคคล'!$F$5 -> 12345678912345 | N185: ='1.ข้อมูลส่วนบุคคล'!G$32 -> 2560-07-05 | O185: 25600705 | P185: 00:00:00 | Q185: 19000100 | R185: -6600605
A186: ='1.ข้อมูลส่วนบุคคล'!$F$5 -> 12345678912345 | N186: ='1.ข้อมูลส่วนบุคคล'!G$32 -> 2560-07-05 | O186: 25600705 | P186: 00:00:00 | Q186: 19000100 | R186: -6600605
A187: ='1.ข้อมูลส่วนบุคคล'!$F$5 -> 12345678912345 | N187: ='1.ข้อมูลส่วนบุคคล'!G$32 -> 2560-07-05 | O187: 25600705 | P187: 00:00:00 | Q187: 19000100 | R187: -6600605
A188: ='1.ข้อมูลส่วนบุคคล'!$F$5 -> 12345678912345 | N188: ='1.ข้อมูลส่วนบุคคล'!G$32 -> 2560-07-05 | O188: 25600705 | P188: 00:00:00 | Q188: 19000100 | R188: -6600605
A189: ='1.ข้อมูลส่วนบุคคล'!$F$5 -> 12345678912345 | N189: ='1.ข้อมูลส่วนบุคคล'!G$32 -> 2560-07-05 | O189: 25600705 | P189: 00:00:00 | Q189: 19000100 | R189: -6600605
